Workbook

Sheet Read Me
A1: =RIGHT( CELL("filename",$B$1), LEN( CELL("filename",$B$1)) - SEARCH("]", CELL("filename",$B$1))) -> Read Me
C3: Authors | D3: Lingyi YANG
C4: Contact in IGF | D4: Thomas Lassourd: tlassourd@iisd.org
C5: Owner | D5: IGF
C6: Version Date | D6: 2026-03-11
A10: User guide
C11: Model structure
D12: The model applies user-configured fiscal regimes to user-configured mining project. This simplified model is currently configured to handle deep sea mining projects for Polymetallic nodules. The model structure is set out in the MODEL MAP sheet.
C13: Checks | D13: The model has a number of checks to test its internal consistency. These checks will remain green. If the master check cell is red, there is a problem in the model. It can be an error needs to be corrected, or the check itself refined, or the assumptions made is not going to be reached (for example: the cashflow is not enough to repay the debt as expected in the assumptions). In all case, red checks must be addressed.
C15: FAST modeling standard
D16: This model has been structured broadly in line with the FAST modeling standard (www.fast-standard.org/). Color coding: is set out in the ModelMap sheet Key part. The user should only need to change cells with yellow background.
B17: Inputs
D18: The model utilizes data from the Technical Report Summaries for the NORI Area D Prefeasibility Study and the TOML/NORI Initial Assessment (prepared for TMC). Both projects assume a light capital strategy where the collection system is managed and recovered by a contractor through a 10-year tolling agreement with TMC.However, deviating from the reports, the model assumes no refining facility will be built. As a result, the final sale products are alloys or mattes, rather than sulfates.
C19: Project data
D20: Project Assumptions are entered in INPUT sheet, including :
E21: Project lifecycle and production: project lifecycle is composed of pre-production phase, ramp up phase, full operation phase and closure phase. Production date and nodules grades, recovery rate are provide based on technical reports.
E22: Metal price: The Polymetallic nodule collected contains mainly 4 metals to be processed and sold: Manganese, Nickel, Cobalt and Copper. Prices are set up based market analysis found in the technical reports.
E23: Project capital expenditures, sustaining capital expenditure, closure cost and their depreciations.
E24: Operating expenditures and other costs and fees
E25: Fiscal Assumptions which can be changed in Dashboard
C26: Financing and economic assumptions
D27: Debt financing inputs are included in each fiscal regime, however in the base case there is no debt applied for both projects.
D28: Proportion of costs financed, interest rate and repayment period are included in fiscal regime parameters.
B30: Dashboard
D31: The DASHBOARD is where the user will spend most time driving the model.
D32: Select project: drop-down list on top left
E33: NORI-D or NORI - TOML (excl. NORI-D)
D34: Input fiscal assumptions
E35: Royalty rate, corresponding stage, and Additional profits share rate can be easily input there.
C37: Dashboard results
D38: Project Cashflows (table and chart top-centre) : Present the project cashflows during the life of the project.
D39: Participants cashflows (table and chart top center-right). Breakdown of collector cashflows to different participants including: International Seabed Authority, Sponsoring State, Equity Shareholder and External Lender
D40: ISA Revenue composition (table and chart right). Summary of ISA revenues by category.
D41: Participant Discount Cashflow including: International Seabed Authority, Sponsoring State, Collector Shareholder and Collector Shareholder Return rate (table and chart lower-Left)
D42: Comparison of 2 projects (table and chart below) : Comparison of cashflows for two projects , together with participants cashflows and shares.
B44: Sensitivity Analysis
C45: =Dashboard!A74 -> Price Sensitivity
D46: Sensitivity analysis showing results of cashflows for different participants and ISA and Sponsoring states share of the project profits across a user-defined price range.
C48: =Dashboard!A103 -> Production Sensitivity
D49: Sensitivity analysis showing results of cashflows for different participants and ISA and Sponsoring states share of the project profits across a user-defined production range.
C51: =Dashboard!A132 -> Opex Sensitivity
D52: Sensitivity analysis showing results of cashflows for different participants and ISA and Sponsoring states share of the project profits across a user-defined opex range.
C54: =Dashboard!A161 -> Capex Sensitivity
D55: Sensitivity analysis showing results of cashflows for different participants and ISA and Sponsoring states share of the project profits across a user-defined capex range.
B57: Workings/calculations
D58: The logic flow in the model is as set out in the MODELMAP:
D59: Select applicable project in Dashboard
D60: Set fiscal assumptions in Dashboard
D62: Enter project data in INPUT sheet
D63: WORKING INPUT sheet will apply inputs for selected project
D64: The PROJECTCASHFLOWS sheet imports project inputs from the WORKING INPUT sheet
D65: Fiscal calculations are done in the FISCALMODEL sheet
D66: The RESULT sheet compiles results from the model and derives outcomes for each participants and cashflows. Different cashflows under nominal and real terms are calculated and then exported to CHARTS sheet with charts presentation and Dashboard.
D73: \

Sheet Model Map
A1: =RIGHT( CELL("filename",$A$1), LEN( CELL("filename",$A$1)) - SEARCH("]", CELL("filename",$A$1))) -> Model Map | F1: ='Model Map'!E$25 -> Global labels | N1: Key
C3: =Dashboard!A1 -> Dashboard | E3: =Dashboard!#REF! ->  | G3: =+'T&E'!A1 -> T&E | I3: =Results!A1 -> Results | N3: Key
E4: =Dashboard!A74 -> Price Sensitivity | G4: =+'T&E'!A5 -> Flags and Counters | I4: =Results!A5 -> Project Cash Flow Allocation | O4: Sheet tabs
E5: =Dashboard!A103 -> Production Sensitivity | I5: =Results!A29 -> Project Cashflow | Q5: Documentation Sheet | U5: Grey
E6: =Dashboard!A132 -> Opex Sensitivity | G6: ='Project Cashflows'!A1 -> Project Cashflows | I6: =Results!A45 -> Projects comparison | Q6: Presentation & Control Sheet | U6: White
E7: =Dashboard!A$161 -> Capex Sensitivity | G7: ='Project Cashflows'!A5 -> Project data with sensitivity factors applied | Q7: Foundation (Input) sheets | U7: Yellow
G8: ='Project Cashflows'!A165 -> Project data | Q8: Working Sheet | U8: Transparent/light gray
E9: ='Projects Inputs '!A1 -> Projects Inputs | G9: ='Project Cashflows'!A258 -> Project Cashflow | I9: =Charts!A1 -> Charts
E10: ='Projects Inputs '!A5 -> Project General Assumptions | G10: ='Project Cashflows'!A406 -> Project Cashflow Summary | I10: =Charts!A4 -> Participants Cashflows | O10: Cells
E11: ='Projects Inputs '!A199 -> Other Operation Fees Assumptions | I11: =+Charts!A40 -> Project Cashflow | Q11: Input cell | U11: Yellow cell
E12: ='Projects Inputs '!A210 -> Fiscal Assumptions | G12: ='Fiscal Model'!A1 -> Fiscal Model | Q12: Imported line item | U12: Blue text
E13: ='Projects Inputs '!A226 -> Financing Assumptions | G13: ='Fiscal Model'!A5 -> Royalty | Q13: Exported line item | U13: Red text
E14: ='Projects Inputs '!A235 -> Economic assumptions | G14: ='Fiscal Model'!A47 -> Debt financing | Q14: Imported Fiscal inputs from based on fiscal assumptions | U14: Green text
E15: ='Projects Inputs '!A241 -> Technical parameters | G15: ='Fiscal Model'!A85 -> Depreciation | Q15: Intra-sheet counter-flow | U15: Grey cell
E16: ='Projects Inputs '!A251 -> Global labels | G16: ='Fiscal Model'!A156 -> Project Accounting Profit & Income tax | Q16: Used for all other line items (links and formulas) | U16: Black text
G17: ='Fiscal Model'!A184 -> Additional Profit Share
E18: ='Working Inputs'!A1 -> Working Inputs | G18: ='Fiscal Model'!A238 -> Revenue Allocation | O18: Error checks & alerts
E19: ='Working Inputs'!A5 -> Project General Assumptions | Q19: OK | U19: Green shade
E20: ='Working Inputs'!A199 -> Other Operation Fees Assumptions | Q20: Error | U20: Red shade
E21: ='Working Inputs'!A210 -> Fiscal Assumptions
E22: ='Working Inputs'!A226 -> Financing Assumptions | O22: Abbreviations
E23: ='Working Inputs'!A235 -> Economic assumptions | Q23: Average effective tax rate | U23: AETR
E24: ='Working Inputs'!A241 -> Technical parameters | Q24: Corporate income tax | U24: CIT
E25: ='Working Inputs'!A251 -> Global labels | Q25: Internal rate of return | U25: IRR
Q26: Net present value | U26: NPV
Q27: Interests | U27: Int.
Q28: Millions of dry tonnes | U28: DMT
Q29: United States Dollars | U29: US$
Q30: Operating Expenditure | U30: Opex
Q31: Capital Expenditure | U31: Capex
O36: Name ranges used in the model | Q36: CHK_TOL | R36: =Inputs!$F$73

Sheet Dashboard
A1: =RIGHT( CELL("filename",$A$1), LEN( CELL("filename",$A$1)) - SEARCH("]", CELL("filename",$A$1))) -> Dashboard
B3: Overall checks | C3: ='Project Cashflows'!F4+'Fiscal Model'!F4+Dashboard!L72+Results!F4 -> 0
B4: Project, Fiscal Regime & Sensitivity factor | G4: Project Cashflows | O4: Participants Cashflows | T4: ISA Revenue Composition
B5: Project selected | C5: NORI-D | D5: Option | G5: Project Cashflows - Real | O5: Participants Cashflows | T5: ISA Revenue Composition - Real
H6: Total Cash flow | P6: US$ mn (Real) | Q6: Share% | R6: % | V6: Total revenue | W6: % of ISA Revenue
B7: Fiscal Assumption | G7: Total Revenue | H7: =Results!I32 -> 58574.18437 | I7: US$ mn | O7: ='Fiscal Model'!E244 -> ISA Revenue | P7: =Results!I8 -> 5220.797481 | Q7: ISA % | R7: =Charts!F10 -> 0.2712252731 | T7: Royalty | V7: =Results!I17 -> 5189.297481 | W7: =V7/$P$7 -> 0.993966439
B8: Royalty - stage 1 | C8: 0.025 | D8: % | G8: Total Capital Expenditure | H8: =Results!I34 -> 2156.6 | I8: US$ mn | O8: ='Fiscal Model'!E254 -> Sponsoring State Revenue | P8: =Results!I10 -> 3683.474222 | Q8: Sponsoring State % | R8: =Charts!F12 -> 0.1913599034 | T8: Additional profit share | V8: =Results!I18 -> 0 | W8: =V8/$P$7 -> 0
B9: Royalty stage 1 duration | C9: 5 | D9: years into production | G9: Operating Expenditure | H9: =Results!I33 -> 36709.17 | I9: US$ mn | O9: All payments to public entities | P9: =+P8+P7 -> 8904.271703 | Q9: AETR | R9: =+R8+R7 -> 0.4625851765 | T9: Annual fees | V9: =Results!I19 -> 31.5 | W9: 0.006033560987
B10: Royalty - stage 2 | C10: 0.075 | D10: % | G10: Total fees, Royalties, taxes | H10: =Results!I35 -> 9363.751703 | I10: US$ mn | O10: ='Fiscal Model'!E248 -> Project equity cashflow | P10: =Results!I9 -> 10344.66267 | Q10: Project Equity Shareholder % | R10: =Charts!F11 -> 0.5374148235
B11: Additional profit share | C11: 0.25 | D11: % | G11: Project Net Cashflow | H11: =Results!I36 -> 10344.66267 | I11: US$ mn | O11: ='Fiscal Model'!E257 -> Loan provider cashflow | P11: =Results!I11 -> 0 | Q11: Loan provider % | R11: =Charts!F13 -> 0 | T11: Check: ISA Revenue | V11: =IF( ABS( V7+V8+V9-Dashboard!P7 ) > CHK_TOL, 1, 0) -> 0
B12: Additional Profits share adjustment factor | C12: 1.1 | K12: Go to: | O12: Check: Participant cashflow | P12: =IF( ABS( P10+P9+P11-Results!I12 ) > CHK_TOL, 1, 0) -> 0
B13: CIT Rate - Sponsoring state | C13: 0.25 | G13: Check: Project Net Cashflow | H13: =IF( ABS( H7-H8-H9-H10-H11 ) > CHK_TOL, 1, 0) -> 0 | K13: =Charts!A40 -> Project Cashflow
B14: Additionam profit share reductible for CIT | C14: 0 | D14: 1 = Yes, 0 = No
B16: Price sensitivity | C16: 1 | D16: factor
B17: Production sensitivity | C17: 1 | D17: factor
B18: Opex sensitivity | C18: 1 | D18: factor
B19: Capex sensitivity | C19: 1 | D19: factor
B21: Participants Discount Cashflow
B22: ISA Revenue NPV8 | C22: =Results!F24 -> 1826.053737 | D22: US$ mn
B23: Sponsoring State Revenue NPV8 | C23: =Results!F25 -> 1387.568682 | D23: US$ mn
B24: Project equity Shareholder NPV8 | C24: =Results!F40 -> 3668.492005 | D24: US$ mn
B25: Project equity Shareholder IRR (real term CF) | C25: =Results!F41 -> 0.414137457 | D25: %
B26: Project equity Shareholder Payback Period | C26: =Results!F42 -> 6 | D26: Years
B35: Results for two projects
T37: Project cashflow | U37: US$ mn | V37: ='Projects Inputs '!F2 -> NORI-D | W37: ='Projects Inputs '!G2 -> NORI - TOML (excl. NORI-D)
T38: =G7 -> Total Revenue | U38: =H7 -> 58574.18437 | V38: 58574.18437 | W38: 231455.5709
T39: =G8 -> Total Capital Expenditure | U39: =H8 -> 2156.6 | V39: 2156.6 | W39: 5428
T40: Operating Expenditure | U40: 36709.17 | V40: 36709.17 | W40: 110221.58
T41: Total fees, Royalties, taxes | U41: 9363.751703 | V41: 9363.751703 | W41: 46517.93568
T42: Project Net Cashflow | U42: 10344.66267 | V42: 10344.66267 | W42: 69288.05521
V43: 0 | W43: 0
T44: Participant cashflows | V44: 0 | W44: 0
T45: =O7 -> ISA Revenue | U45: =P7 -> 5220.797481 | V45: 5220.797481 | W45: 22423.96609
T46: =O8 -> Sponsoring State Revenue | U46: =P8 -> 3683.474222 | V46: 3683.474222 | W46: 23423.92959
T47: =O9 -> All payments to public entities | U47: 8904.271703 | V47: 8904.271703 | W47: 45847.89568
T48: =O10 -> Project equity cashflow | U48: 10344.66267 | V48: 10344.66267 | W48: 69288.05521
T49: =O11 -> Loan provider cashflow | U49: 0 | V49: 0 | W49: 0
V50: 0 | W50: 0
T51: Participant cashflows % | V51: 0 | W51: 0
T52: =$Q$7 -> ISA % | U52: =R7 -> 0.2712252731 | V52: 0.2712252731 | W52: 0.1947607669
T53: =$Q$8 -> Sponsoring State % | U53: =R8 -> 0.1913599034 | V53: 0.1913599034 | W53: 0.2034458343
T54: =$Q$9 -> AETR | U54: 0.4625851765 | V54: 0.4625851765 | W54: 0.3982066012
T55: =$Q$10 -> Project Equity Shareholder % | U55: 0.5374148235 | V55: 0.5374148235 | W55: 0.6017933988
T56: =$Q$11 -> Loan provider % | U56: 0 | V56: 0 | W56: 0
V57: 0 | W57: 0
T58: ISA Revenue Composition | V58: 0 | W58: 0
T59: =T7 -> Royalty | U59: =V7 -> 5189.297481 | V59: 5189.297481 | W59: 22136.36975
T60: =T8 -> Additional profit share | U60: =V8 -> 0 | V60: 0 | W60: 245.5963462
T61: =T9 -> Annual fees | U61: =V9 -> 31.5 | V61: 31.5 | W61: 42
A64: =RIGHT( CELL("filename",$A$1), LEN( CELL("filename",$A$1)) - SEARCH("]", CELL("filename",$A$1))) -> Dashboard
B66: Links to analytical routines | G66: Dashboard Check
B68: =A74 -> Price Sensitivity | G68: =G13 -> Check: Project Net Cashflow | L68: =H13 -> 0 | M68: Check
B69: =A103 -> Production Sensitivity | G69: =O12 -> Check: Participant cashflow | L69: =P12 -> 0 | M69: Check
B70: =A132 -> Opex Sensitivity | G70: =T11 -> Check: ISA Revenue | L70: =V11 -> 0 | M70: Check
B71: =A161 -> Capex Sensitivity
G72: Check: Dashboard | L72: =+SUM(L68:L70) -> 0 | M72: Check
A73: Sensitivity Analysis
A74: Price Sensitivity | F74: Go to | G74: =$A$1 -> Dashboard
P78: =B$5 -> Project selected | Q78: =C$5 -> NORI-D | R78: =D$5 -> Option
P81: =B16 -> Price sensitivity | Q81: =C16 -> 1 | R81: =D16 -> factor
P82: Starting price multiplier | Q82: 0.8 | R82: %
P83: Increment | Q83: 0.1 | R83: %
P85: =$O$5&" - "&P81 -> Participants Cashflows - Price sensitivity
P86: US$ mn | R86: =$Q$82 -> 0.8 | S86: =R86+$Q$83 -> 0.9 | T86: =S86+$Q$83 -> 1 | U86: =T86+$Q$83 -> 1.1 | V86: =U86+$Q$83 -> 1.2
P87: =$O$7 -> ISA Revenue | Q87: =$P$7 -> 5220.797481 | R87: 4182.937985 | S87: 4701.867733 | T87: 5220.797481 | U87: 5739.727229 | V87: 6258.656977
P88: =$O$8 -> Sponsoring State Revenue | Q88: =$P$8 -> 3683.474222 | R88: 1014.229878 | S88: 2348.85205 | T88: 3683.474222 | U88: 5018.096395 | V88: 6352.718567
P89: =$O$9 -> All payments to public entities | Q89: =$P$9 -> 8904.271703 | R89: 5197.167863 | S89: 7050.719783 | T89: 8904.271703 | U89: 10757.82362 | V89: 12611.37554
P90: =$O$10 -> Project equity cashflow | Q90: =$P$10 -> 10344.66267 | R90: 2336.929634 | S90: 6340.79615 | T90: 10344.66267 | U90: 14348.52918 | V90: 18352.3957
P91: =$O$11 -> Loan provider cashflow | Q91: =$P$11 -> 0 | R91: 0 | S91: 0 | T91: 0 | U91: 0 | V91: 0
P92: =$Q$6&" - "&P81 -> Share% - Price sensitivity | R92: 0 | S92: 0 | T92: 0 | U92: 0 | V92: 0
P93: =$Q$9 -> AETR | Q93: =$R$9 -> 0.4625851765 | R93: 0.6898195657 | S93: 0.5265064701 | T93: 0.4625851765 | U93: 0.4284900999 | V93: 0.4072945587
P94: =$Q$7 -> ISA % | Q94: =$R$7 -> 0.2712252731 | R94: 0.5552009364 | S94: 0.3511079519 | T94: 0.2712252731 | U94: 0.2286165288 | V94: 0.2021283818
P95: =$Q$8 -> Sponsoring State % | Q95: =$R$8 -> 0.1913599034 | R95: 0.1346186293 | S95: 0.1753985181 | T95: 0.1913599034 | U95: 0.1998735712 | V95: 0.2051661768
P96: =$R$7 -> 0.2712252731
A103: Production Sensitivity | F103: Go to | G103: =$A$1 -> Dashboard
P106: =B$5 -> Project selected | Q106: =C$5 -> NORI-D | R106: =D$5 -> Option
P109: =B17 -> Production sensitivity | Q109: =C17 -> 1 | R109: =D17 -> factor
P110: Starting production multiplier | Q110: 0.8 | R110: %
P111: Increment | Q111: 0.1 | R111: %
P113: =$O$5&" - "&P109 -> Participants Cashflows - Production sensitivity
P114: US$ mn | R114: =$Q$110 -> 0.8 | S114: =R114+$Q$111 -> 0.9 | T114: =S114+$Q$111 -> 1 | U114: =T114+$Q$111 -> 1.1 | V114: =U114+$Q$111 -> 1.2
P115: =$O$7 -> ISA Revenue | Q115: =$P$7 -> 5220.797481 | R115: 4182.937985 | S115: 4701.867733 | T115: 5220.797481 | U115: 5739.727229 | V115: 6258.656977
P116: =$O$8 -> Sponsoring State Revenue | Q116: =$P$8 -> 3683.474222 | R116: 2843.124378 | S116: 3263.2993 | T116: 3683.474222 | U116: 4103.649145 | V116: 4523.824067
P117: =$O$9 -> All payments to public entities | Q117: =$P$9 -> 8904.271703 | R117: 7026.062363 | S117: 7965.167033 | T117: 8904.271703 | U117: 9843.376374 | V117: 10782.48104
P118: =$O$10 -> Project equity cashflow | Q118: =$P$10 -> 10344.66267 | R118: 7941.765134 | S118: 9143.2139 | T118: 10344.66267 | U118: 11546.11143 | V118: 12747.5602
P119: =$O$11 -> Loan provider cashflow | Q119: =$P$11 -> 0 | R119: 0 | S119: 0 | T119: 0 | U119: 0 | V119: 0
P120: =$Q$6&" - "&P109 -> Share% - Production sensitivity | R120: 0 | S120: 0 | T120: 0 | U120: 0 | V120: 0
P121: =$Q$9 -> AETR | Q121: =$R$9 -> 0.4625851765 | R121: 0.4694109659 | S121: 0.4655710592 | T121: 0.4625851765 | U121: 0.4601969183 | V121: 0.458243185
P122: =$Q$7 -> ISA % | Q122: =$R$7 -> 0.2712252731 | R122: 0.2794619317 | S122: 0.2748283284 | T122: 0.2712252731 | U122: 0.2683433694 | V122: 0.2659858056
P123: =$Q$8 -> Sponsoring State % | Q123: =$R$8 -> 0.1913599034 | R123: 0.1899490343 | S123: 0.1907427309 | T123: 0.1913599034 | U123: 0.1918535489 | V123: 0.1922573794
A132: Opex Sensitivity | F132: Go to | G132: =$A$1 -> Dashboard
P135: =B$5 -> Project selected | Q135: =C$5 -> NORI-D | R135: =D$5 -> Option
P136: =B$6 -> 0 | Q136: =C$6 -> 0 | R136: =D$6 -> 0
P138: =B18 -> Opex sensitivity | Q138: =C18 -> 1 | R138: =D18 -> factor
P139: Starting opex multiplier | Q139: 0.8 | R139: %
P140: Increment | Q140: 0.1 | R140: %
P142: =$O$5&" - "&P138 -> Participants Cashflows - Opex sensitivity
P143: US$ mn | R143: =$Q$139 -> 0.8 | S143: =R143+$Q$140 -> 0.9 | T143: =S143+$Q$140 -> 1 | U143: =T143+$Q$140 -> 1.1 | V143: =U143+$Q$140 -> 1.2
P144: =$O$7 -> ISA Revenue | Q144: =$P$7 -> 5220.797481 | R144: 5220.797481 | S144: 5220.797481 | T144: 5220.797481 | U144: 5279.42908 | V144: 5349.258753
P145: =$O$8 -> Sponsoring State Revenue | Q145: =$P$8 -> 3683.474222 | R145: 5596.432722 | S145: 4639.953472 | T145: 3683.474222 | U145: 2726.994972 | V145: 1770.515722
P146: =$O$9 -> All payments to public entities | Q146: =$P$9 -> 8904.271703 | R146: 10817.2302 | S146: 9860.750953 | T146: 8904.271703 | U146: 8006.424053 | V146: 7119.774475
P147: =$O$10 -> Project equity cashflow | Q147: =$P$10 -> 10344.66267 | R147: 16083.53817 | S147: 13214.10042 | T147: 10344.66267 | U147: 7416.593318 | V147: 4477.325895
P148: =$O$11 -> Loan provider cashflow | Q148: =$P$11 -> 0 | R148: 0 | S148: 0 | T148: 0 | U148: 0 | V148: 0
P149: =$Q$6&" - "&P138 -> Share% - Opex sensitivity | R149: 0 | S149: 0 | T149: 0 | U149: 0 | V149: 0
P150: =$Q$9 -> AETR | Q150: =$R$9 -> 0.4625851765 | R150: 0.4021160308 | S150: 0.4273375718 | T150: 0.4625851765 | U150: 0.5191217685 | V150: 0.6139271238
P151: =$Q$7 -> ISA % | Q151: =$R$7 -> 0.2712252731 | R151: 0.1940761472 | S151: 0.2262548693 | T151: 0.2712252731 | U151: 0.3423084442 | V151: 0.4612582958
P152: =$Q$8 -> Sponsoring State % | Q152: =$R$8 -> 0.1913599034 | R152: 0.2080398837 | S152: 0.2010827025 | T152: 0.1913599034 | U152: 0.1768133243 | V152: 0.1526688281
A161: Capex Sensitivity | F161: Go to | G161: =$A$1 -> Dashboard
P164: =B$5 -> Project selected | Q164: =C$5 -> NORI-D | R164: =D$5 -> Option
P165: =B$6 -> 0 | Q165: =C$6 -> 0 | R165: =D$6 -> 0
P167: =B19 -> Capex sensitivity | Q167: =C19 -> 1 | R167: =D19 -> factor
P168: Starting capex multiplier | Q168: 0.8 | R168: %
P169: Increment | Q169: 0.1 | R169: %
P171: =$O$5&" - "&P167 -> Participants Cashflows - Capex sensitivity
P172: US$ mn | R172: =$Q$168 -> 0.8 | S172: =R172+$Q$169 -> 0.9 | T172: =S172+$Q$169 -> 1 | U172: =T172+$Q$169 -> 1.1 | V172: =U172+$Q$169 -> 1.2
P173: =$O$7 -> ISA Revenue | Q173: =$P$7 -> 5220.797481 | R173: 5221.817596 | S173: 5220.797481 | T173: 5220.797481 | U173: 5220.797481 | V173: 5220.797481
P174: =$O$8 -> Sponsoring State Revenue | Q174: =$P$8 -> 3683.474222 | R174: 3708.054222 | S174: 3695.764222 | T174: 3683.474222 | U174: 3671.184222 | V174: 3658.894222
P175: =$O$9 -> All payments to public entities | Q175: =$P$9 -> 8904.271703 | R175: 8929.871818 | S175: 8916.561703 | T175: 8904.271703 | U175: 8891.981703 | V175: 8879.691703
P176: =$O$10 -> Project equity cashflow | Q176: =$P$10 -> 10344.66267 | R176: 10417.38255 | S176: 10381.53267 | T176: 10344.66267 | U176: 10307.79267 | V176: 10270.92267
P177: =$O$11 -> Loan provider cashflow | Q177: =$P$11 -> 0 | R177: 0 | S177: 0 | T177: 0 | U177: 0 | V177: 0
P178: =$Q$6&" - "&P167 -> Share% - Capex sensitivity | R178: 0 | S178: 0 | T178: 0 | U178: 0 | V178: 0
P179: =$Q$9 -> AETR | Q179: =$R$9 -> 0.4625851765 | R179: 0.4615575754 | S179: 0.4620436367 | T179: 0.4625851765 | U179: 0.4631294895 | V179: 0.4636765971
P180: =$Q$7 -> ISA % | Q180: =$R$7 -> 0.2712252731 | R180: 0.2698996713 | S180: 0.2705343533 | T180: 0.2712252731 | U180: 0.2719197309 | V180: 0.2726177542
P181: =$Q$8 -> Sponsoring State % | Q181: =$R$8 -> 0.1913599034 | R181: 0.1916579041 | S181: 0.1915092833 | T181: 0.1913599034 | U181: 0.1912097586 | V181: 0.1910588429

Sheet Projects Inputs
A1: =RIGHT( CELL("filename",$A$1), LEN( CELL("filename",$A$1)) - SEARCH("]", CELL("filename",$A$1))) -> Projects Inputs | L1: ='Project Cashflows'!K1 -> 1 | M1: ='Project Cashflows'!L1 -> 2 | N1: ='Project Cashflows'!M1 -> 3 | O1: ='Project Cashflows'!N1 -> 4 | P1: ='Project Cashflows'!O1 -> 5 | Q1: ='Project Cashflows'!P1 -> 6 | R1: ='Project Cashflows'!Q1 -> 7 | S1: ='Project Cashflows'!R1 -> 8 | T1: ='Project Cashflows'!S1 -> 9 | U1: ='Project Cashflows'!T1 -> 10 | V1: ='Project Cashflows'!U1 -> 11 | W1: ='Project Cashflows'!V1 -> 12 | X1: ='Project Cashflows'!W1 -> 13 | Y1: ='Project Cashflows'!X1 -> 14 | Z1: ='Project Cashflows'!Y1 -> 15 | AA1: ='Project Cashflows'!Z1 -> 16 | AB1: ='Project Cashflows'!AA1 -> 17 | AC1: ='Project Cashflows'!AB1 -> 18 | AD1: ='Project Cashflows'!AC1 -> 19 | AE1: ='Project Cashflows'!AD1 -> 20 | AF1: ='Project Cashflows'!AE1 -> 21 | AG1: ='Project Cashflows'!AF1 -> 22 | AH1: ='Project Cashflows'!AG1 -> 23 | AI1: ='Project Cashflows'!AH1 -> 24 | AJ1: ='Project Cashflows'!AI1 -> 25 | AK1: ='Project Cashflows'!AJ1 -> 26 | AL1: ='Project Cashflows'!AK1 -> 27 | AM1: ='Project Cashflows'!AL1 -> 28 | AN1: ='Project Cashflows'!AM1 -> 29 | AO1: ='Project Cashflows'!AN1 -> 30 | AP1: ='Project Cashflows'!AO1 -> 31
E2: Row description | F2: NORI-D | G2: NORI - TOML (excl. NORI-D) | H2: Units | I2: Comments | J2: Total
H3: ='Model Map'!$E$25 -> Global labels
A5: Project General Assumptions
E7: Project Selected | F7: =Dashboard!C5 -> NORI-D
B9: Production lifecycle and productions data
C11: Project lifecycle
E12: Project start year | F12: 2025 | G12: 2032 | H12: year
E13: Pre-production - start | F13: 1 | G13: 1 | H13: year # | I13: TMC -Technical Report Summary of Prefeasibility Study of NORI Area D
E14: Pre-production - end | F14: 2 | G14: 5 | H14: year # | I14: TMC -Technical Report Summary of Prefeasibility Study of NORI Area D
E15: Ramp Up area 1 - start | F15: 3 | G15: 6 | H15: year # | I15: TMC -Technical Report Summary of Prefeasibility Study of NORI Area D
E16: Ramp Up area 1 - end | F16: 6 | G16: 7 | H16: year # | I16: TMC -Technical Report Summary of Prefeasibility Study of NORI Area D
E17: Full Operation area 1- start | F17: 7 | G17: 8 | H17: year # | I17: TMC -Technical Report Summary of Prefeasibility Study of NORI Area D
E18: Full Operation area 1- end | F18: 20 | G18: 12 | H18: year # | I18: TMC -Technical Report Summary of Prefeasibility Study of NORI Area D
E19: Operation closing area 1 - start | F19: 21 | G19: 13 | H19: year # | I19: TMC -Technical Report Summary of Prefeasibility Study of NORI Area D
E20: Operation closing area 1 - end | F20: 21 | G20: 13 | H20: year # | I20: TMC -Technical Report Summary of Prefeasibility Study of NORI Area D
E21: Ramp Up area 2 - start | G21: 13 | H21: year # | I21: TMC -Technical Report Summary of Prefeasibility Study of NORI Area D
E22: Ramp Up area 2- end | G22: 15 | H22: year # | I22: TMC -Technical Report Summary of Prefeasibility Study of NORI Area D
E23: Full Operation area 2 - start | G23: 16 | H23: year # | I23: TMC -Technical Report Summary of Prefeasibility Study of NORI Area D
E24: Full Operation area 2 - end | G24: 27 | H24: year # | I24: TMC -Technical Report Summary of Prefeasibility Study of NORI Area D
E25: Operation closing area 2 - start | G25: 28 | H25: year # | I25: TMC -Technical Report Summary of Prefeasibility Study of NORI Area D
E26: Operation closing area 2 - end | G26: 28 | H26: year # | I26: TMC -Technical Report Summary of Prefeasibility Study of NORI Area D
E27: Project Closure - start | F27: 22 | G27: 29 | H27: year # | I27: TMC -Technical Report Summary of Prefeasibility Study of NORI Area D
E28: Project Closure - end | F28: 31 | G28: 38 | H28: year # | I28: TMC -Technical Report Summary of Prefeasibility Study of NORI Area D
E29: Production year adjustment | F29: 1 | H29: year # | I29: Adjusted for 1 year as the production starts Q4 of the first production year
C31: Production ramp up rate
E32: Ramp up production area 1 (year 1) | F32: 0.2 | G32: 7 | H32: Mwmtpa | I32: TMC -Technical Report Summary of Prefeasibility Study of NORI Area D
E33: Ramp up production area 1 (year 2) | F33: 1 | G33: 14 | H33: Mwmtpa | I33: TMC -Technical Report Summary of Prefeasibility Study of NORI Area D
E34: Ramp up production area 1 (year 3) | F34: 2 | H34: Mwmtpa | I34: TMC -Technical Report Summary of Prefeasibility Study of NORI Area D
E35: Ramp up production area 1 (year 4) | F35: 5 | H35: Mwmtpa | I35: TMC -Technical Report Summary of Prefeasibility Study of NORI Area D
E36: Annual Full operation capacity area 1( Wet Ore) | F36: 10.75 | G36: 21 | H36: Mwmtpa | I36: TMC -Technical Report Summary of Prefeasibility Study of NORI Area D
E37: Operation closing production area 1 | F37: 5.4 | G37: 9 | H37: Mwmtpa
E38: Ramp up production area 2 (year 1) | G38: 8.6 | H38: Mwmtpa
E39: Ramp up production area 2 (year 2) | G39: 22.5 | H39: Mwmtpa
E40: Ramp up production area 2 (year 3) | G40: 30 | H40: Mwmtpa
E41: Annual Full operation capacity area 2( Wet Ore) | G41: 37.92 | H41: Mwmtpa | I41: TMC -Technical Report Summary of Prefeasibility Study of NORI Area D
E42: Operation closing production area 2 | G42: 18.9 | H42: Mwmtpa
E43: Wet ore to Dry ore rate area 1 | F43: 0.72 | G43: 0.72 | I43: Inferred from TMC -Technical Report Summary of Prefeasibility Study of NORI Area D
E44: Wet ore to Dry ore rate area 2 | G44: 0.737
C46: Nodules metal grade Area 1
E47: Manganese | F47: 0.3115 | G47: 0.3231 | H47: % | I47: TMC -Technical Report Summary of Prefeasibility Study of NORI Area D
E48: Nickel | F48: 0.014 | G48: 0.014 | H48: % | I48: TMC -Technical Report Summary of Prefeasibility Study of NORI Area D
E49: Cobalt | F49: 0.0014 | G49: 0.00133 | H49: % | I49: TMC -Technical Report Summary of Prefeasibility Study of NORI Area D
E50: Copper | F50: 0.0114 | G50: 0.0125 | H50: % | I50: TMC -Technical Report Summary of Prefeasibility Study of NORI Area D
C52: Nodules metal grade Area 2
E53: Manganese | F53: 0.3115 | G53: 0.2797 | H53: % | I53: TMC -Technical Report Summary of Prefeasibility Study of NORI Area D
E54: Nickel | F54: 0.014 | G54: 0.0127 | H54: % | I54: TMC -Technical Report Summary of Prefeasibility Study of NORI Area D
E55: Cobalt | F55: 0.0014 | G55: 0.00224 | H55: % | I55: TMC -Technical Report Summary of Prefeasibility Study of NORI Area D
E56: Copper | F56: 0.0114 | G56: 0.0107 | H56: % | I56: TMC -Technical Report Summary of Prefeasibility Study of NORI Area D
C58: Nodules recovery phase
E59: Alloy production - start | F59: 3 | H59: year # | I59: TMC -Technical Report Summary of Prefeasibility Study of NORI Area D
E60: Alloy production - end | F60: 4 | H60: year # | I60: TMC -Technical Report Summary of Prefeasibility Study of NORI Area D
E61: Alloy - Matte transition - start | F61: 5 | H61: year # | I61: TMC -Technical Report Summary of Prefeasibility Study of NORI Area D
E62: Alloy - Matte transition - end | F62: 5 | H62: year # | I62: TMC -Technical Report Summary of Prefeasibility Study of NORI Area D
E63: Matte production - start | F63: 6 | G63: 6 | H63: year # | I63: TMC -Technical Report Summary of Prefeasibility Study of NORI Area D
E64: Matte production - end | F64: 21 | G64: 28 | H64: year # | I64: TMC -Technical Report Summary of Prefeasibility Study of NORI Area D
E66: Alloy % during transition | F66: 0.32 | H66: % | I66: Inferred from TMC -Technical Report Summary of Prefeasibility Study of NORI Area D
C68: Nodules recovery rate
E69: Manganese - Silicate | F69: 0.989 | G69: 0.989 | H69: % | I69: TMC -Technical Report Summary of Prefeasibility Study of NORI Area D
E70: Nickel - Alloy | F70: 0.9691 | H70: % | I70: TMC -Technical Report Summary of Prefeasibility Study of NORI Area D
E71: Cobalt - Alloy | F71: 0.9306 | H71: % | I71: TMC -Technical Report Summary of Prefeasibility Study of NORI Area D
E72: Copper - Alloy | F72: 0.9355 | H72: % | I72: TMC -Technical Report Summary of Prefeasibility Study of NORI Area D
E73: Nickel - Matte | F73: 0.9476 | G73: 0.9476 | H73: % | I73: TMC -Technical Report Summary of Prefeasibility Study of NORI Area D
E74: Cobalt - Matte | F74: 0.7754 | G74: 0.7754 | H74: % | I74: TMC -Technical Report Summary of Prefeasibility Study of NORI Area D
E75: Copper - Matte | F75: 0.8643 | G75: 0.8643 | H75: % | I75: TMC -Technical Report Summary of Prefeasibility Study of NORI Area D
B77: Metal Price forecasts
E78: Metal price bracket 1 | F78: 6 | G78: 1 | H78: end year # as of production
E79: Metal price bracket 2 | F79: 11 | G79: 2 | H79: end year # as of production
E80: Metal price bracket 3 | F80: 19 | G80: 23 | H80: end year # as of production
E82: Price - Nickel Class 1 LME | F82: 18833 | G82: 20360 | H82: US$ /t
E83: Price - Nickel Class 1 LME | F83: 20706 | G83: 20360 | H83: US$ /t
E84: Price - Nickel Class 1 LME | F84: 20360 | G84: 20360 | H84: US$ /t
E86: Price - Cobalt LME | F86: 34172 | G86: 62529.6 | H86: US$ /t
E87: Price - Cobalt LME | F87: 53124 | G87: 62529.6 | H87: US$ /t
E88: Price - Cobalt LME | F88: 62530 | G88: 62529.6 | H88: US$ /t
E90: Price - Copper Class 1 LME | F90: 11317 | G90: 11456.4 | H90: US$ /t
E91: Price - Copper Class 1 LME | F91: 11456 | G91: 11456.4 | H91: US$ /t
E92: Price - Copper Class 1 LME | F92: 11456 | G92: 11456.4 | H92: US$ /t
E94: Price - Manganese | F94: 5.29 | G94: 5.23 | H94: US$ /DMTU
E95: Price - Manganese | F95: 5.44 | G95: 4.96 | H95: US$ /DMTU
E96: Price - Manganese | F96: 5.5 | G96: 4.7 | H96: US$ /DMTU
B98: Alloy/Matte Payable terms
E99: Alloy/Matte Payable terms bracket 1 2027 - 2031 | F99: 5 | H99: end year # as of production
E100: Alloy/Matte Payable terms bracket 2 2032-2036 | F100: 10 | H100: end year # as of production
E101: Alloy/Matte Payable terms bracket 3 2037-2045+ | F101: 19 | H101: end year # as of production
E103: Alloy - Payable Terms - Ni 2027-2031 | F103: 0.65 | H103: %
E104: Alloy - Payable Terms - Ni 2032-2036 | F104: 0.65 | H104: %
E105: Alloy - Payable Terms - Ni 2037-2045+ | F105: 0.65 | H105: %
E107: Alloy - Payable Terms - Co 2027-2031 | F107: 0.42 | H107: %
E108: Alloy - Payable Terms - Co 2032-2036 | F108: 0.43 | H108: %
E109: Alloy - Payable Terms - Co 2037-2045+ | F109: 0.45 | H109: %
E111: Alloy - Payable Terms - Cu 2027-2031 | F111: 0.5998 | H111: %
E112: Alloy - Payable Terms - Cu 2032-2036 | F112: 0.5998 | H112: %
E113: Alloy - Payable Terms - Cu 2037-2045+ | F113: 0.5998 | H113: %
E115: Matte - Payable Terms - Ni 2027-2031 | F115: 0.8 | G115: 0.8 | H115: %
E116: Matte - Payable Terms - Ni 2032-2036 | F116: 0.8 | G116: 0.8 | H116: %
E117: Matte - Payable Terms - Ni 2037-2045+ | F117: 0.8 | G117: 0.8 | H117: %
E119: Matte - Payable Terms - Co 2027-2031 | F119: 0.6 | G119: 0.6 | H119: %
E120: Matte - Payable Terms - Co 2032-2036 | F120: 0.6 | G120: 0.6 | H120: %
E121: Matte - Payable Terms - Co 2037-2045+ | F121: 0.6 | G121: 0.6 | H121: %
E123: Matte - Payable Terms - Cu 2027-2031 | F123: 0.7 | G123: 0.7 | H123: %
E124: Matte - Payable Terms - Cu 2032-2036 | F124: 0.7 | G124: 0.7 | H124: %
E125: Matte - Payable Terms - Cu 2037-2045+ | F125: 0.7 | G125: 0.7 | H125: %
E127: Payable Terms - Manganese | F127: 1 | G127: 1 | H127: %
B129: Project Cost
C131: Project Capital Expenditure
E133: Production Vessel | F133: 468.4 | H133: US$ mn
E134: Transfer Vessel/Bulk Carriers | F134: 89.6 | H134: US$ mn
E135: Support Vessel | F135: 15.2 | H135: US$ mn
E136: Operations facilities initial setup | F136: 2.3 | H136: US$ mn
E137: Direct subtotal | F137: =SUM(F133:F136) -> 575.5 | H137: US$ mn
E138: Professional Services | F138: 59.4 | H138: US$ mn
E139: Owners cost | F139: 44.6 | H139: US$ mn
E140: Indirect subtotal | F140: =SUM(F138:F139) -> 104 | H140: US$ mn
E141: Contingency | F141: 101.4 | H141: US$ mn
E142: Allseas credit | F142: -289.3 | H142: US$ mn
E143: Total project cost | F143: =+F137+F140+F141+F142 -> 491.6 | H143: US$ mn
C145: Sustaining Capital Expenditure
E146: Sustaining capital cost | F146: 155 | G146: 483 | H146: US$ mn/Vessel
E147: Sustaining capital cost interval | F147: 5 | G147: 10 | H147: years | I147: No sustaining cost in the last 2 years of production
E148: Sustaining vessels number | F148: 4 | G148: 8 | H148: #
E149: Exceptional vessel maintenance cost occuring period start | G149: 13 | H149: year #
E150: Exceptional vessel maintenance cost occuring period end | G150: 14 | H150: year #
E151: Exceptional vessel maintenance number | G151: 1.5 | H151: #
E152: Adjustement to sustaining period due to Exceptional vessel maintenance | G152: 3 | H152: year #
E153: Sustaining cost end year | F153: 19 | G153: 26 | H153: year #
C155: Closure Capital Expenditure
E156: Closure capital cost | F156: 11.5 | G156: 11.5 | H156: US$ mn/year
E157: Closure capital cost duration | F157: 10 | G157: 10 | H157: years | I157: Post mining operations
C159: Capex Depreciation
E160: Depreciation start year
E161: Production Vessel | F161: 4 | H161: year | I161: ="First year of Production = year "&$F$15 -> First year of Production = year 3
E162: Transfer Vessel/Bulk Carriers | F162: 4 | H162: year | I162: ="First year of Production = year "&$F$15 -> First year of Production = year 3
E163: Support Vessel | F163: 4 | H163: year | I163: First year of Production = year 3
E164: Operations facilities initial setup | F164: 4 | H164: year | I164: First year of Production = year 3
E165: Professional Services | F165: 4 | H165: year | I165: First year of Production = year 3
E166: Owners cost | F166: 4 | H166: year | I166: First year of Production = year 3
E167: Contingency | F167: 4 | H167: year | I167: First year of Production = year 3
A168: =A145 -> 0 | B168: 0 | C168: Sustaining Capital Expenditure | D168: 0 | E168: Allseas credit | F168: 4 | H168: year | I168: First year of Production = year 3 | J168: 0 | K168: 0 | L168: 0 | M168: 0 | N168: 0 | O168: 0 | P168: 0 | Q168: 0 | R168: 0 | S168: 0 | T168: 0 | U168: 0 | V168: 0 | W168: 0 | X168: 0 | Y168: 0 | Z168: 0 | AA168: 0 | AB168: 0 | AC168: 0 | AD168: 0 | AE168: 0 | AF168: 0 | AG168: 0 | AH168: 0 | AI168: 0 | AJ168: 0 | AK168: 0 | AL168: 0 | AM168: 0 | AN168: 0 | AO168: 0 | AP168: 0 | AQ168: 0 | AR168: 0 | AS168: 0 | AT168: 0 | AU168: 0 | AV168: 0 | AW168: 0 | AX168: 0 | AY168: 0 | AZ168: 0 | BA168: 0 | BB168: 0 | BC168: 0 | BD168: 0 | BE168: 0 | BF168: 0 | BG168: 0 | BH168: 0 | BI168: 0 | BJ168: 0 | BK168: 0 | BL168: 0 | BM168: =BM145 -> 0 | BN168: 0 | BO168: 0 | BP168: 0 | BQ168: 0 | BR168: 0 | BS168: 0 | BT168: 0 | BU168: 0 | BV168: 0 | BW168: 0 | BX168: 0 | BY168: 0 | BZ168: 0 | CA168: 0 | CB168: 0 | CC168: 0 | CD168: 0 | CE168: 0 | CF168: 0 | CG168: 0 | CH168: 0 | CI168: 0 | CJ168: 0 | CK168: 0 | CL168: 0 | CM168: 0 | CN168: 0 | CO168: 0 | CP168: 0 | CQ168: 0 | CR168: 0 | CS168: 0 | CT168: 0 | CU168: 0 | CV168: 0 | CW168: 0 | CX168: 0 | CY168: 0 | CZ168: 0 | DA168: 0 | DB168: 0 | DC168: 0 | DD168: 0 | DE168: 0 | DF168: 0 | DG168: 0 | DH168: 0 | DI168: 0 | DJ168: 0 | DK168: 0 | DL168: 0 | DM168: 0 | DN168: 0 | DO168: 0 | DP168: 0 | DQ168: 0 | DR168: 0 | DS168: 0 | DT168: 0 | DU168: 0 | DV168: 0 | DW168: 0 | DX168: 0 | DY168: =DY145 -> 0 | DZ168: 0 | EA168: 0 | EB168: 0 | EC168: 0 | ED168: 0 | EE168: 0 | EF168: 0 | EG168: 0 | EH168: 0 | EI168: 0 | EJ168: 0 | EK168: 0 | EL168: 0 | EM168: 0 | EN168: 0 | EO168: 0 | EP168: 0 | EQ168: 0 | ER168: 0 | ES168: 0 | ET168: 0 | EU168: 0 | EV168: 0 | EW168: 0 | EX168: 0 | EY168: 0 | EZ168: 0 | FA168: 0 | FB168: 0 | FC168: 0 | FD168: 0 | FE168: 0 | FF168: 0 | FG168: 0 | FH168: 0 | FI168: 0 | FJ168: 0 | FK168: 0 | FL168: 0 | FM168: 0 | FN168: 0 | FO168: 0 | FP168: 0 | FQ168: 0 | FR168: 0 | FS168: 0 | FT168: 0 | FU168: 0 | FV168: 0 | FW168: 0 | FX168: 0 | FY168: 0 | FZ168: 0 | GA168: 0 | GB168: 0 | GC168: 0 | GD168: 0 | GE168: 0 | GF168: 0 | GG168: 0 | GH168: 0 | GI168: 0 | GJ168: 0 | GK168: =GK145 -> 0 | GL168: 0 | GM168: 0 | GN168: 0 | GO168: 0 | GP168: 0 | GQ168: 0 | GR168: 0 | GS168: 0 | GT168: 0 | GU168: 0 | GV168: 0 | GW168: 0 | GX168: 0 | GY168: 0 | GZ168: 0 | HA168: 0 | HB168: 0 | HC168: 0 | HD168: 0 | HE168: 0 | HF168: 0 | HG168: 0 | HH168: 0 | HI168: 0 | HJ168: 0 | HK168: 0 | HL168: 0 | HM168: 0 | HN168: 0 | HO168: 0 | HP168: 0 | HQ168: 0 | HR168: 0 | HS168: 0 | HT168: 0 | HU168: 0 | HV168: 0 | HW168: 0 | HX168: 0 | HY168: 0 | HZ168: 0 | IA168: 0 | IB168: 0 | IC168: 0 | ID168: 0 | IE168: 0 | IF168: 0 | IG168: 0 | IH168: 0 | II168: 0 | IJ168: 0 | IK168: 0 | IL168: 0 | IM168: 0 | IN168: 0 | IO168: 0 | IP168: 0 | IQ168: 0 | IR168: 0 | IS168: 0 | IT168: 0 | IU168: 0 | IV168: 0 | IW168: =IW145 -> 0 | IX168: 0 | IY168: 0 | IZ168: 0 | JA168: 0 | JB168: 0 | JC168: 0 | JD168: 0 | JE168: 0 | JF168: 0 | JG168: 0 | JH168: 0 | JI168: 0 | JJ168: 0 | JK168: 0 | JL168: 0 | JM168: 0 | JN168: 0 | JO168: 0 | JP168: 0 | JQ168: 0 | JR168: 0 | JS168: 0 | JT168: 0 | JU168: 0 | JV168: 0 | JW168: 0 | JX168: 0 | JY168: 0 | JZ168: 0 | KA168: 0 | KB168: 0 | KC168: 0 | KD168: 0 | KE168: 0 | KF168: 0 | KG168: 0 | KH168: 0 | KI168: 0 | KJ168: 0 | KK168: 0 | KL168: 0 | KM168: 0 | KN168: 0 | KO168: 0 | KP168: 0 | KQ168: 0 | KR168: 0 | KS168: 0 | KT168: 0 | KU168: 0 | KV168: 0 | KW168: 0 | KX168: 0 | KY168: 0 | KZ168: 0 | LA168: 0 | LB168: 0 | LC168: 0 | LD168: 0 | LE168: 0 | LF168: 0 | LG168: 0 | LH168: 0 | LI168: =LI145 -> 0 | LJ168: 0 | LK168: 0 | LL168: 0 | LM168: 0 | LN168: 0 | LO168: 0 | LP168: 0 | LQ168: 0 | LR168: 0 | LS168: 0 | LT168: 0 | LU168: 0 | LV168: 0 | LW168: 0 | LX168: 0 | LY168: 0 | LZ168: 0 | MA168: 0 | MB168: 0 | MC168: 0 | MD168: 0 | ME168: 0 | MF168: 0 | MG168: 0 | MH168: 0 | MI168: 0 | MJ168: 0 | MK168: 0 | ML168: 0 | MM168: 0 | MN168: 0 | MO168: 0 | MP168: 0 | MQ168: 0 | MR168: 0 | MS168: 0 | MT168: 0 | MU168: 0 | MV168: 0 | MW168: 0 | MX168: 0 | MY168: 0 | MZ168: 0 | NA168: 0 | NB168: 0 | NC168: 0 | ND168: 0 | NE168: 0 | NF168: 0 | NG168: 0 | NH168: 0 | NI168: 0 | NJ168: 0 | NK168: 0 | NL168: 0 | NM168: 0 | NN168: 0 | NO168: 0 | NP168: 0 | NQ168: 0 | NR168: 0 | NS168: 0 | NT168: 0 | NU168: =NU145 -> 0 | NV168: 0 | NW168: 0 | NX168: 0 | NY168: 0 | NZ168: 0 | OA168: 0 | OB168: 0 | OC168: 0 | OD168: 0 | OE168: 0 | OF168: 0 | OG168: 0 | OH168: 0 | OI168: 0 | OJ168: 0 | OK168: 0 | OL168: 0 | OM168: 0 | ON168: 0 | OO168: 0 | OP168: 0 | OQ168: 0 | OR168: 0 | OS168: 0 | OT168: 0 | OU168: 0 | OV168: 0 | OW168: 0 | OX168: 0 | OY168: 0 | OZ168: 0 | PA168: 0 | PB168: 0 | PC168: 0 | PD168: 0 | PE168: 0 | PF168: 0 | PG168: 0 | PH168: 0 | PI168: 0 | PJ168: 0 | PK168: 0 | PL168: 0 | PM168: 0 | PN168: 0 | PO168: 0 | PP168: 0 | PQ168: 0 | PR168: 0 | PS168: 0 | PT168: 0 | PU168: 0 | PV168: 0 | PW168: 0 | PX168: 0 | PY168: 0 | PZ168: 0 | QA168: 0 | QB168: 0 | QC168: 0 | QD168: 0 | QE168: 0 | QF168: 0 | QG168: =QG145 -> 0 | QH168: 0 | QI168: 0 | QJ168: 0 | QK168: 0 | QL168: 0 | QM168: 0 | QN168: 0 | QO168: 0 | QP168: 0 | QQ168: 0 | QR168: 0 | QS168: 0 | QT168: 0 | QU168: 0 | QV168: 0 | QW168: 0 | QX168: 0 | QY168: 0 | QZ168: 0 | RA168: 0 | RB168: 0 | RC168: 0 | RD168: 0 | RE168: 0 | RF168: 0 | RG168: 0 | RH168: 0 | RI168: 0 | RJ168: 0 | RK168: 0 | RL168: 0 | RM168: 0 | RN168: 0 | RO168: 0 | RP168: 0 | RQ168: 0 | RR168: 0 | RS168: 0 | RT168: 0 | RU168: 0 | RV168: 0 | RW168: 0 | RX168: 0 | RY168: 0 | RZ168: 0 | SA168: 0 | SB168: 0 | SC168: 0 | SD168: 0 | SE168: 0 | SF168: 0 | SG168: 0 | SH168: 0 | SI168: 0 | SJ168: 0 | SK168: 0 | SL168: 0 | SM168: 0 | SN168: 0 | SO168: 0 | SP168: 0 | SQ168: 0 | SR168: 0 | SS168: =SS145 -> 0 | ST168: 0 | SU168: 0 | SV168: 0 | SW168: 0 | SX168: 0 | SY168: 0 | SZ168: 0 | TA168: 0 | TB168: 0 | TC168: 0 | TD168: 0 | TE168: 0 | TF168: 0 | TG168: 0 | TH168: 0 | TI168: 0 | TJ168: 0 | TK168: 0 | TL168: 0 | TM168: 0 | TN168: 0 | TO168: 0 | TP168: 0 | TQ168: 0 | TR168: 0 | TS168: 0 | TT168: 0 | TU168: 0 | TV168: 0 | TW168: 0 | TX168: 0 | TY168: 0 | TZ168: 0 | UA168: 0 | UB168: 0 | UC168: 0 | UD168: 0 | UE168: 0 | UF168: 0 | UG168: 0 | UH168: 0 | UI168: 0 | UJ168: 0 | UK168: 0 | UL168: 0 | UM168: 0 | UN168: 0 | UO168: 0 | UP168: 0 | UQ168: 0 | UR168: 0 | US168: 0 | UT168: 0 | UU168: 0 | UV168: 0 | UW168: 0 | UX168: 0 | UY168: 0 | UZ168: 0 | VA168: 0 | VB168: 0 | VC168: 0 | VD168: 0 | VE168: =VE145 -> 0 | VF168: 0 | VG168: 0 | VH168: 0 | VI168: 0 | VJ168: 0 | VK168: 0 | VL168: 0 | VM168: 0 | VN168: 0 | VO168: 0 | VP168: 0 | VQ168: 0 | VR168: 0 | VS168: 0 | VT168: 0 | VU168: 0 | VV168: 0 | VW168: 0 | VX168: 0 | VY168: 0 | VZ168: 0 | WA168: 0 | WB168: 0 | WC168: 0 | WD168: 0 | WE168: 0 | WF168: 0 | WG168: 0 | WH168: 0 | WI168: 0 | WJ168: 0 | WK168: 0 | WL168: 0 | WM168: 0 | WN168: 0 | WO168: 0 | WP168: 0 | WQ168: 0 | WR168: 0 | WS168: 0 | WT168: 0 | WU168: 0 | WV168: 0 | WW168: 0 | WX168: 0 | WY168: 0 | WZ168: 0 | XA168: 0 | XB168: 0 | XC168: 0 | XD168: 0 | XE168: 0 | XF168: 0 | XG168: 0 | XH168: 0 | XI168: 0 | XJ168: 0 | XK168: 0 | XL168: 0 | XM168: 0 | XN168: 0 | XO168: 0 | XP168: 0 | XQ168: =XQ145 -> 0 | XR168: 0 | XS168: 0 | XT168: 0 | XU168: 0 | XV168: 0 | XW168: 0 | XX168: 0 | XY168: 0 | XZ168: 0 | YA168: 0 | YB168: 0 | YC168: 0 | YD168: 0 | YE168: 0 | YF168: 0 | YG168: 0 | YH168: 0 | YI168: 0 | YJ168: 0 | YK168: 0 | YL168: 0 | YM168: 0 | YN168: 0 | YO168: 0 | YP168: 0 | YQ168: 0 | YR168: 0 | YS168: 0 | YT168: 0 | YU168: 0 | YV168: 0 | YW168: 0 | YX168: 0 | YY168: 0 | YZ168: 0 | ZA168: 0 | ZB168: 0 | ZC168: 0 | ZD168: 0 | ZE168: 0 | ZF168: 0 | ZG168: 0 | ZH168: 0 | ZI168: 0 | ZJ168: 0 | ZK168: 0 | ZL168: 0 | ZM168: 0 | ZN168: 0 | ZO168: 0 | ZP168: 0 | ZQ168: 0 | ZR168: 0 | ZS168: 0 | ZT168: 0 | ZU168: 0 | ZV168: 0 | ZW168: 0 | ZX168: 0 | ZY168: 0 | ZZ168: 0 | AAA168: 0 | AAB168: 0 | AAC168: =AAC145 -> 0 | AAD168: 0 | AAE168: 0 | AAF168: 0 | AAG168: 0 | AAH168: 0 | AAI168: 0 | AAJ168: 0 | AAK168: 0 | AAL168: 0 | AAM168: 0 | AAN168: 0 | AAO168: 0 | AAP168: 0 | AAQ168: 0 | AAR168: 0 | AAS168: 0 | AAT168: 0 | AAU168: 0 | AAV168: 0 | AAW168: 0 | AAX168: 0 | AAY168: 0 | AAZ168: 0 | ABA168: 0 | ABB168: 0 | ABC168: 0 | ABD168: 0 | ABE168: 0 | ABF168: 0 | ABG168: 0 | ABH168: 0 | ABI168: 0 | ABJ168: 0 | ABK168: 0 | ABL168: 0 | ABM168: 0 | ABN168: 0 | ABO168: 0 | ABP168: 0 | ABQ168: 0 | ABR168: 0 | ABS168: 0 | ABT168: 0 | ABU168: 0 | ABV168: 0 | ABW168: 0 | ABX168: 0 | ABY168: 0 | ABZ168: 0 | ACA168: 0 | ACB168: 0 | ACC168: 0 | ACD168: 0 | ACE168: 0 | ACF168: 0 | ACG168: 0 | ACH168: 0 | ACI168: 0 | ACJ168: 0 | ACK168: 0 | ACL168: 0 | ACM168: 0 | ACN168: 0 | ACO168: =ACO145 -> 0 | ACP168: 0 | ACQ168: 0 | ACR168: 0 | ACS168: 0 | ACT168: 0 | ACU168: 0 | ACV168: 0 | ACW168: 0 | ACX168: 0 | ACY168: 0 | ACZ168: 0 | ADA168: 0 | ADB168: 0 | ADC168: 0 | ADD168: 0 | ADE168: 0 | ADF168: 0 | ADG168: 0 | ADH168: 0 | ADI168: 0 | ADJ168: 0 | ADK168: 0 | ADL168: 0 | ADM168: 0 | ADN168: 0 | ADO168: 0 | ADP168: 0 | ADQ168: 0 | ADR168: 0 | ADS168: 0 | ADT168: 0 | ADU168: 0 | ADV168: 0 | ADW168: 0 | ADX168: 0 | ADY168: 0 | ADZ168: 0 | AEA168: 0 | AEB168: 0 | AEC168: 0 | AED168: 0 | AEE168: 0 | AEF168: 0 | AEG168: 0 | AEH168: 0 | AEI168: 0 | AEJ168: 0 | AEK168: 0 | AEL168: 0 | AEM168: 0 | AEN168: 0 | AEO168: 0 | AEP168: 0 | AEQ168: 0 | AER168: 0 | AES168: 0 | AET168: 0 | AEU168: 0 | AEV168: 0 | AEW168: 0 | AEX168: 0 | AEY168: 0 | AEZ168: 0 | AFA168: =AFA145 -> 0 | AFB168: 0 | AFC168: 0 | AFD168: 0 | AFE168: 0 | AFF168: 0 | AFG168: 0 | AFH168: 0 | AFI168: 0 | AFJ168: 0 | AFK168: 0 | AFL168: 0 | AFM168: 0 | AFN168: 0 | AFO168: 0 | AFP168: 0 | AFQ168: 0 | AFR168: 0 | AFS168: 0 | AFT168: 0 | AFU168: 0 | AFV168: 0 | AFW168: 0 | AFX168: 0 | AFY168: 0 | AFZ168: 0 | AGA168: 0 | AGB168: 0 | AGC168: 0 | AGD168: 0 | AGE168: 0 | AGF168: 0 | AGG168: 0 | AGH168: 0 | AGI168: 0 | AGJ168: 0 | AGK168: 0 | AGL168: 0 | AGM168: 0 | AGN168: 0 | AGO168: 0 | AGP168: 0 | AGQ168: 0 | AGR168: 0 | AGS168: 0 | AGT168: 0 | AGU168: 0 | AGV168: 0 | AGW168: 0 | AGX168: 0 | AGY168: 0 | AGZ168: 0 | AHA168: 0 | AHB168: 0 | AHC168: 0 | AHD168: 0 | AHE168: 0 | AHF168: 0 | AHG168: 0 | AHH168: 0 | AHI168: 0 | AHJ168: 0 | AHK168: 0 | AHL168: 0 | AHM168: =AHM145 -> 0 | AHN168: 0 | AHO168: 0 | AHP168: 0 | AHQ168: 0 | AHR168: 0 | AHS168: 0 | AHT168: 0 | AHU168: 0 | AHV168: 0 | AHW168: 0 | AHX168: 0 | AHY168: 0 | AHZ168: 0 | AIA168: 0 | AIB168: 0 | AIC168: 0 | AID168: 0 | AIE168: 0 | AIF168: 0 | AIG168: 0 | AIH168: 0 | AII168: 0 | AIJ168: 0 | AIK168: 0 | AIL168: 0 | AIM168: 0 | AIN168: 0 | AIO168: 0 | AIP168: 0 | AIQ168: 0 | AIR168: 0 | AIS168: 0 | AIT168: 0 | AIU168: 0 | AIV168: 0 | AIW168: 0 | AIX168: 0 | AIY168: 0 | AIZ168: 0 | AJA168: 0 | AJB168: 0 | AJC168: 0 | AJD168: 0 | AJE168: 0 | AJF168: 0 | AJG168: 0 | AJH168: 0 | AJI168: 0 | AJJ168: 0 | AJK168: 0 | AJL168: 0 | AJM168: 0 | AJN168: 0 | AJO168: 0 | AJP168: 0 | AJQ168: 0 | AJR168: 0 | AJS168: 0 | AJT168: 0 | AJU168: 0 | AJV168: 0 | AJW168: 0 | AJX168: 0 | AJY168: =AJY145 -> 0 | AJZ168: 0 | AKA168: 0 | AKB168: 0 | AKC168: 0 | AKD168: 0 | AKE168: 0 | AKF168: 0 | AKG168: 0 | AKH168: 0 | AKI168: 0 | AKJ168: 0 | AKK168: 0 | AKL168: 0 | AKM168: 0 | AKN168: 0 | AKO168: 0 | AKP168: 0 | AKQ168: 0 | AKR168: 0 | AKS168: 0 | AKT168: 0 | AKU168: 0 | AKV168: 0 | AKW168: 0 | AKX168: 0 | AKY168: 0 | AKZ168: 0 | ALA168: 0 | ALB168: 0 | ALC168: 0 | ALD168: 0 | ALE168: 0 | ALF168: 0 | ALG168: 0 | ALH168: 0 | ALI168: 0 | ALJ168: 0 | ALK168: 0 | ALL168: 0 | ALM168: 0 | ALN168: 0 | ALO168: 0 | ALP168: 0 | ALQ168: 0 | ALR168: 0 | ALS168: 0 | ALT168: 0 | ALU168: 0 | ALV168: 0 | ALW168: 0 | ALX168: 0 | ALY168: 0 | ALZ168: 0 | AMA168: 0 | AMB168: 0 | AMC168: 0 | AMD168: 0 | AME168: 0 | AMF168: 0 | AMG168: 0 | AMH168: 0 | AMI168: 0 | AMJ168: 0 | AMK168: =AMK145 -> 0 | AML168: 0 | AMM168: 0 | AMN168: 0 | AMO168: 0 | AMP168: 0 | AMQ168: 0 | AMR168: 0 | AMS168: 0 | AMT168: 0 | AMU168: 0 | AMV168: 0 | AMW168: 0 | AMX168: 0 | AMY168: 0 | AMZ168: 0 | ANA168: 0 | ANB168: 0 | ANC168: 0 | AND168: 0 | ANE168: 0 | ANF168: 0 | ANG168: 0 | ANH168: 0 | ANI168: 0 | ANJ168: 0 | ANK168: 0 | ANL168: 0 | ANM168: 0 | ANN168: 0 | ANO168: 0 | ANP168: 0 | ANQ168: 0 | ANR168: 0 | ANS168: 0 | ANT168: 0 | ANU168: 0 | ANV168: 0 | ANW168: 0 | ANX168: 0 | ANY168: 0 | ANZ168: 0 | AOA168: 0 | AOB168: 0 | AOC168: 0 | AOD168: 0 | AOE168: 0 | AOF168: 0 | AOG168: 0 | AOH168: 0 | AOI168: 0 | AOJ168: 0 | AOK168: 0 | AOL168: 0 | AOM168: 0 | AON168: 0 | AOO168: 0 | AOP168: 0 | AOQ168: 0 | AOR168: 0 | AOS168: 0 | AOT168: 0 | AOU168: 0 | AOV168: 0 | AOW168: =AOW145 -> 0 | AOX168: 0 | AOY168: 0 | AOZ168: 0 | APA168: 0 | APB168: 0 | APC168: 0 | APD168: 0 | APE168: 0 | APF168: 0 | APG168: 0 | APH168: 0 | API168: 0 | APJ168: 0 | APK168: 0 | APL168: 0 | APM168: 0 | APN168: 0 | APO168: 0 | APP168: 0 | APQ168: 0 | APR168: 0 | APS168: 0 | APT168: 0 | APU168: 0 | APV168: 0 | APW168: 0 | APX168: 0 | APY168: 0 | APZ168: 0 | AQA168: 0 | AQB168: 0 | AQC168: 0 | AQD168: 0 | AQE168: 0 | AQF168: 0 | AQG168: 0 | AQH168: 0 | AQI168: 0 | AQJ168: 0 | AQK168: 0 | AQL168: 0 | AQM168: 0 | AQN168: 0 | AQO168: 0 | AQP168: 0 | AQQ168: 0 | AQR168: 0 | AQS168: 0 | AQT168: 0 | AQU168: 0 | AQV168: 0 | AQW168: 0 | AQX168: 0 | AQY168: 0 | AQZ168: 0 | ARA168: 0 | ARB168: 0 | ARC168: 0 | ARD168: 0 | ARE168: 0 | ARF168: 0 | ARG168: 0 | ARH168: 0 | ARI168: =ARI145 -> 0 | ARJ168: 0 | ARK168: 0 | ARL168: 0 | ARM168: 0 | ARN168: 0 | ARO168: 0 | ARP168: 0 | ARQ168: 0 | ARR168: 0 | ARS168: 0 | ART168: 0 | ARU168: 0 | ARV168: 0 | ARW168: 0 | ARX168: 0 | ARY168: 0 | ARZ168: 0 | ASA168: 0 | ASB168: 0 | ASC168: 0 | ASD168: 0 | ASE168: 0 | ASF168: 0 | ASG168: 0 | ASH168: 0 | ASI168: 0 | ASJ168: 0 | ASK168: 0 | ASL168: 0 | ASM168: 0 | ASN168: 0 | ASO168: 0 | ASP168: 0 | ASQ168: 0 | ASR168: 0 | ASS168: 0 | AST168: 0 | ASU168: 0 | ASV168: 0 | ASW168: 0 | ASX168: 0 | ASY168: 0 | ASZ168: 0 | ATA168: 0 | ATB168: 0 | ATC168: 0 | ATD168: 0 | ATE168: 0 | ATF168: 0 | ATG168: 0 | ATH168: 0 | ATI168: 0 | ATJ168: 0 | ATK168: 0 | ATL168: 0 | ATM168: 0 | ATN168: 0 | ATO168: 0 | ATP168: 0 | ATQ168: 0 | ATR168: 0 | ATS168: 0 | ATT168: 0 | ATU168: =ATU145 -> 0 | ATV168: 0 | ATW168: 0 | ATX168: 0 | ATY168: 0 | ATZ168: 0 | AUA168: 0 | AUB168: 0 | AUC168: 0 | AUD168: 0 | AUE168: 0 | AUF168: 0 | AUG168: 0 | AUH168: 0 | AUI168: 0 | AUJ168: 0 | AUK168: 0 | AUL168: 0 | AUM168: 0 | AUN168: 0 | AUO168: 0 | AUP168: 0 | AUQ168: 0 | AUR168: 0 | AUS168: 0 | AUT168: 0 | AUU168: 0 | AUV168: 0 | AUW168: 0 | AUX168: 0 | AUY168: 0 | AUZ168: 0 | AVA168: 0 | AVB168: 0 | AVC168: 0 | AVD168: 0 | AVE168: 0 | AVF168: 0 | AVG168: 0 | AVH168: 0 | AVI168: 0 | AVJ168: 0 | AVK168: 0 | AVL168: 0 | AVM168: 0 | AVN168: 0 | AVO168: 0 | AVP168: 0 | AVQ168: 0 | AVR168: 0 | AVS168: 0 | AVT168: 0 | AVU168: 0 | AVV168: 0 | AVW168: 0 | AVX168: 0 | AVY168: 0 | AVZ168: 0 | AWA168: 0 | AWB168: 0 | AWC168: 0 | AWD168: 0 | AWE168: 0 | AWF168: 0 | AWG168: =AWG145 -> 0 | AWH168: 0 | AWI168: 0 | AWJ168: 0 | AWK168: 0 | AWL168: 0 | AWM168: 0 | AWN168: 0 | AWO168: 0 | AWP168: 0 | AWQ168: 0 | AWR168: 0 | AWS168: 0 | AWT168: 0 | AWU168: 0 | AWV168: 0 | AWW168: 0 | AWX168: 0 | AWY168: 0 | AWZ168: 0 | AXA168: 0 | AXB168: 0 | AXC168: 0 | AXD168: 0 | AXE168: 0 | AXF168: 0 | AXG168: 0 | AXH168: 0 | AXI168: 0 | AXJ168: 0 | AXK168: 0 | AXL168: 0 | AXM168: 0 | AXN168: 0 | AXO168: 0 | AXP168: 0 | AXQ168: 0 | AXR168: 0 | AXS168: 0 | AXT168: 0 | AXU168: 0 | AXV168: 0 | AXW168: 0 | AXX168: 0 | AXY168: 0 | AXZ168: 0 | AYA168: 0 | AYB168: 0 | AYC168: 0 | AYD168: 0 | AYE168: 0 | AYF168: 0 | AYG168: 0 | AYH168: 0 | AYI168: 0 | AYJ168: 0 | AYK168: 0 | AYL168: 0 | AYM168: 0 | AYN168: 0 | AYO168: 0 | AYP168: 0 | AYQ168: 0 | AYR168: 0 | AYS168: =AYS145 -> 0 | AYT168: 0 | AYU168: 0 | AYV168: 0 | AYW168: 0 | AYX168: 0 | AYY168: 0 | AYZ168: 0 | AZA168: 0 | AZB168: 0 | AZC168: 0 | AZD168: 0 | AZE168: 0 | AZF168: 0 | AZG168: 0 | AZH168: 0 | AZI168: 0 | AZJ168: 0 | AZK168: 0 | AZL168: 0 | AZM168: 0 | AZN168: 0 | AZO168: 0 | AZP168: 0 | AZQ168: 0 | AZR168: 0 | AZS168: 0 | AZT168: 0 | AZU168: 0 | AZV168: 0 | AZW168: 0 | AZX168: 0 | AZY168: 0 | AZZ168: 0 | BAA168: 0 | BAB168: 0 | BAC168: 0 | BAD168: 0 | BAE168: 0 | BAF168: 0 | BAG168: 0 | BAH168: 0 | BAI168: 0 | BAJ168: 0 | BAK168: 0 | BAL168: 0 | BAM168: 0 | BAN168: 0 | BAO168: 0 | BAP168: 0 | BAQ168: 0 | BAR168: 0 | BAS168: 0 | BAT168: 0 | BAU168: 0 | BAV168: 0 | BAW168: 0 | BAX168: 0 | BAY168: 0 | BAZ168: 0 | BBA168: 0 | BBB168: 0 | BBC168: 0 | BBD168: 0 | BBE168: =BBE145 -> 0 | BBF168: 0 | BBG168: 0 | BBH168: 0 | BBI168: 0 | BBJ168: 0 | BBK168: 0 | BBL168: 0 | BBM168: 0 | BBN168: 0 | BBO168: 0 | BBP168: 0 | BBQ168: 0 | BBR168: 0 | BBS168: 0 | BBT168: 0 | BBU168: 0 | BBV168: 0 | BBW168: 0 | BBX168: 0 | BBY168: 0 | BBZ168: 0 | BCA168: 0 | BCB168: 0 | BCC168: 0 | BCD168: 0 | BCE168: 0 | BCF168: 0 | BCG168: 0 | BCH168: 0 | BCI168: 0 | BCJ168: 0 | BCK168: 0 | BCL168: 0 | BCM168: 0 | BCN168: 0 | BCO168: 0 | BCP168: 0 | BCQ168: 0 | BCR168: 0 | BCS168: 0 | BCT168: 0 | BCU168: 0 | BCV168: 0 | BCW168: 0 | BCX168: 0 | BCY168: 0 | BCZ168: 0 | BDA168: 0 | BDB168: 0 | BDC168: 0 | BDD168: 0 | BDE168: 0 | BDF168: 0 | BDG168: 0 | BDH168: 0 | BDI168: 0 | BDJ168: 0 | BDK168: 0 | BDL168: 0 | BDM168: 0 | BDN168: 0 | BDO168: 0 | BDP168: 0 | BDQ168: =BDQ145 -> 0 | BDR168: 0 | BDS168: 0 | BDT168: 0 | BDU168: 0 | BDV168: 0 | BDW168: 0 | BDX168: 0 | BDY168: 0 | BDZ168: 0 | BEA168: 0 | BEB168: 0 | BEC168: 0 | BED168: 0 | BEE168: 0 | BEF168: 0 | BEG168: 0 | BEH168: 0 | BEI168: 0 | BEJ168: 0 | BEK168: 0 | BEL168: 0 | BEM168: 0 | BEN168: 0 | BEO168: 0 | BEP168: 0 | BEQ168: 0 | BER168: 0 | BES168: 0 | BET168: 0 | BEU168: 0 | BEV168: 0 | BEW168: 0 | BEX168: 0 | BEY168: 0 | BEZ168: 0 | BFA168: 0 | BFB168: 0 | BFC168: 0 | BFD168: 0 | BFE168: 0 | BFF168: 0 | BFG168: 0 | BFH168: 0 | BFI168: 0 | BFJ168: 0 | BFK168: 0 | BFL168: 0 | BFM168: 0 | BFN168: 0 | BFO168: 0 | BFP168: 0 | BFQ168: 0 | BFR168: 0 | BFS168: 0 | BFT168: 0 | BFU168: 0 | BFV168: 0 | BFW168: 0 | BFX168: 0 | BFY168: 0 | BFZ168: 0 | BGA168: 0 | BGB168: 0 | BGC168: =BGC145 -> 0 | BGD168: 0 | BGE168: 0 | BGF168: 0 | BGG168: 0 | BGH168: 0 | BGI168: 0 | BGJ168: 0 | BGK168: 0 | BGL168: 0 | BGM168: 0 | BGN168: 0 | BGO168: 0 | BGP168: 0 | BGQ168: 0 | BGR168: 0 | BGS168: 0 | BGT168: 0 | BGU168: 0 | BGV168: 0 | BGW168: 0 | BGX168: 0 | BGY168: 0 | BGZ168: 0 | BHA168: 0 | BHB168: 0 | BHC168: 0 | BHD168: 0 | BHE168: 0 | BHF168: 0 | BHG168: 0 | BHH168: 0 | BHI168: 0 | BHJ168: 0 | BHK168: 0 | BHL168: 0 | BHM168: 0 | BHN168: 0 | BHO168: 0 | BHP168: 0 | BHQ168: 0 | BHR168: 0 | BHS168: 0 | BHT168: 0 | BHU168: 0 | BHV168: 0 | BHW168: 0 | BHX168: 0 | BHY168: 0 | BHZ168: 0 | BIA168: 0 | BIB168: 0 | BIC168: 0 | BID168: 0 | BIE168: 0 | BIF168: 0 | BIG168: 0 | BIH168: 0 | BII168: 0 | BIJ168: 0 | BIK168: 0 | BIL168: 0 | BIM168: 0 | BIN168: 0 | BIO168: =BIO145 -> 0 | BIP168: 0 | BIQ168: 0 | BIR168: 0 | BIS168: 0 | BIT168: 0 | BIU168: 0 | BIV168: 0 | BIW168: 0 | BIX168: 0 | BIY168: 0 | BIZ168: 0 | BJA168: 0 | BJB168: 0 | BJC168: 0 | BJD168: 0 | BJE168: 0 | BJF168: 0 | BJG168: 0 | BJH168: 0 | BJI168: 0 | BJJ168: 0 | BJK168: 0 | BJL168: 0 | BJM168: 0 | BJN168: 0 | BJO168: 0 | BJP168: 0 | BJQ168: 0 | BJR168: 0 | BJS168: 0 | BJT168: 0 | BJU168: 0 | BJV168: 0 | BJW168: 0 | BJX168: 0 | BJY168: 0 | BJZ168: 0 | BKA168: 0 | BKB168: 0 | BKC168: 0 | BKD168: 0 | BKE168: 0 | BKF168: 0 | BKG168: 0 | BKH168: 0 | BKI168: 0 | BKJ168: 0 | BKK168: 0 | BKL168: 0 | BKM168: 0 | BKN168: 0 | BKO168: 0 | BKP168: 0 | BKQ168: 0 | BKR168: 0 | BKS168: 0 | BKT168: 0 | BKU168: 0 | BKV168: 0 | BKW168: 0 | BKX168: 0 | BKY168: 0 | BKZ168: 0 | BLA168: =BLA145 -> 0 | BLB168: 0 | BLC168: 0 | BLD168: 0 | BLE168: 0 | BLF168: 0 | BLG168: 0 | BLH168: 0 | BLI168: 0 | BLJ168: 0 | BLK168: 0 | BLL168: 0 | BLM168: 0 | BLN168: 0 | BLO168: 0 | BLP168: 0 | BLQ168: 0 | BLR168: 0 | BLS168: 0 | BLT168: 0 | BLU168: 0 | BLV168: 0 | BLW168: 0 | BLX168: 0 | BLY168: 0 | BLZ168: 0 | BMA168: 0 | BMB168: 0 | BMC168: 0 | BMD168: 0 | BME168: 0 | BMF168: 0 | BMG168: 0 | BMH168: 0 | BMI168: 0 | BMJ168: 0 | BMK168: 0 | BML168: 0 | BMM168: 0 | BMN168: 0 | BMO168: 0 | BMP168: 0 | BMQ168: 0 | BMR168: 0 | BMS168: 0 | BMT168: 0 | BMU168: 0 | BMV168: 0 | BMW168: 0 | BMX168: 0 | BMY168: 0 | BMZ168: 0 | BNA168: 0 | BNB168: 0 | BNC168: 0 | BND168: 0 | BNE168: 0 | BNF168: 0 | BNG168: 0 | BNH168: 0 | BNI168: 0 | BNJ168: 0 | BNK168: 0 | BNL168: 0 | BNM168: =BNM145 -> 0 | BNN168: 0 | BNO168: 0 | BNP168: 0 | BNQ168: 0 | BNR168: 0 | BNS168: 0 | BNT168: 0 | BNU168: 0 | BNV168: 0 | BNW168: 0 | BNX168: 0 | BNY168: 0 | BNZ168: 0 | BOA168: 0 | BOB168: 0 | BOC168: 0 | BOD168: 0 | BOE168: 0 | BOF168: 0 | BOG168: 0 | BOH168: 0 | BOI168: 0 | BOJ168: 0 | BOK168: 0 | BOL168: 0 | BOM168: 0 | BON168: 0 | BOO168: 0 | BOP168: 0 | BOQ168: 0 | BOR168: 0 | BOS168: 0 | BOT168: 0 | BOU168: 0 | BOV168: 0 | BOW168: 0 | BOX168: 0 | BOY168: 0 | BOZ168: 0 | BPA168: 0 | BPB168: 0 | BPC168: 0 | BPD168: 0 | BPE168: 0 | BPF168: 0 | BPG168: 0 | BPH168: 0 | BPI168: 0 | BPJ168: 0 | BPK168: 0 | BPL168: 0 | BPM168: 0 | BPN168: 0 | BPO168: 0 | BPP168: 0 | BPQ168: 0 | BPR168: 0 | BPS168: 0 | BPT168: 0 | BPU168: 0 | BPV168: 0 | BPW168: 0 | BPX168: 0 | BPY168: =BPY145 -> 0 | BPZ168: 0 | BQA168: 0 | BQB168: 0 | BQC168: 0 | BQD168: 0 | BQE168: 0 | BQF168: 0 | BQG168: 0 | BQH168: 0 | BQI168: 0 | BQJ168: 0 | BQK168: 0 | BQL168: 0 | BQM168: 0 | BQN168: 0 | BQO168: 0 | BQP168: 0 | BQQ168: 0 | BQR168: 0 | BQS168: 0 | BQT168: 0 | BQU168: 0 | BQV168: 0 | BQW168: 0 | BQX168: 0 | BQY168: 0 | BQZ168: 0 | BRA168: 0 | BRB168: 0 | BRC168: 0 | BRD168: 0 | BRE168: 0 | BRF168: 0 | BRG168: 0 | BRH168: 0 | BRI168: 0 | BRJ168: 0 | BRK168: 0 | BRL168: 0 | BRM168: 0 | BRN168: 0 | BRO168: 0 | BRP168: 0 | BRQ168: 0 | BRR168: 0 | BRS168: 0 | BRT168: 0 | BRU168: 0 | BRV168: 0 | BRW168: 0 | BRX168: 0 | BRY168: 0 | BRZ168: 0 | BSA168: 0 | BSB168: 0 | BSC168: 0 | BSD168: 0 | BSE168: 0 | BSF168: 0 | BSG168: 0 | BSH168: 0 | BSI168: 0 | BSJ168: 0 | BSK168: =BSK145 -> 0 | BSL168: 0 | BSM168: 0 | BSN168: 0 | BSO168: 0 | BSP168: 0 | BSQ168: 0 | BSR168: 0 | BSS168: 0 | BST168: 0 | BSU168: 0 | BSV168: 0 | BSW168: 0 | BSX168: 0 | BSY168: 0 | BSZ168: 0 | BTA168: 0 | BTB168: 0 | BTC168: 0 | BTD168: 0 | BTE168: 0 | BTF168: 0 | BTG168: 0 | BTH168: 0 | BTI168: 0 | BTJ168: 0 | BTK168: 0 | BTL168: 0 | BTM168: 0 | BTN168: 0 | BTO168: 0 | BTP168: 0 | BTQ168: 0 | BTR168: 0 | BTS168: 0 | BTT168: 0 | BTU168: 0 | BTV168: 0 | BTW168: 0 | BTX168: 0 | BTY168: 0 | BTZ168: 0 | BUA168: 0 | BUB168: 0 | BUC168: 0 | BUD168: 0 | BUE168: 0 | BUF168: 0 | BUG168: 0 | BUH168: 0 | BUI168: 0 | BUJ168: 0 | BUK168: 0 | BUL168: 0 | BUM168: 0 | BUN168: 0 | BUO168: 0 | BUP168: 0 | BUQ168: 0 | BUR168: 0 | BUS168: 0 | BUT168: 0 | BUU168: 0 | BUV168: 0 | BUW168: =BUW145 -> 0 | BUX168: 0 | BUY168: 0 | BUZ168: 0 | BVA168: 0 | BVB168: 0 | BVC168: 0 | BVD168: 0 | BVE168: 0 | BVF168: 0 | BVG168: 0 | BVH168: 0 | BVI168: 0 | BVJ168: 0 | BVK168: 0 | BVL168: 0 | BVM168: 0 | BVN168: 0 | BVO168: 0 | BVP168: 0 | BVQ168: 0 | BVR168: 0 | BVS168: 0 | BVT168: 0 | BVU168: 0 | BVV168: 0 | BVW168: 0 | BVX168: 0 | BVY168: 0 | BVZ168: 0 | BWA168: 0 | BWB168: 0 | BWC168: 0 | BWD168: 0 | BWE168: 0 | BWF168: 0 | BWG168: 0 | BWH168: 0 | BWI168: 0 | BWJ168: 0 | BWK168: 0 | BWL168: 0 | BWM168: 0 | BWN168: 0 | BWO168: 0 | BWP168: 0 | BWQ168: 0 | BWR168: 0 | BWS168: 0 | BWT168: 0 | BWU168: 0 | BWV168: 0 | BWW168: 0 | BWX168: 0 | BWY168: 0 | BWZ168: 0 | BXA168: 0 | BXB168: 0 | BXC168: 0 | BXD168: 0 | BXE168: 0 | BXF168: 0 | BXG168: 0 | BXH168: 0 | BXI168: =BXI145 -> 0 | BXJ168: 0 | BXK168: 0 | BXL168: 0 | BXM168: 0 | BXN168: 0 | BXO168: 0 | BXP168: 0 | BXQ168: 0 | BXR168: 0 | BXS168: 0 | BXT168: 0 | BXU168: 0 | BXV168: 0 | BXW168: 0 | BXX168: 0 | BXY168: 0 | BXZ168: 0 | BYA168: 0 | BYB168: 0 | BYC168: 0 | BYD168: 0 | BYE168: 0 | BYF168: 0 | BYG168: 0 | BYH168: 0 | BYI168: 0 | BYJ168: 0 | BYK168: 0 | BYL168: 0 | BYM168: 0 | BYN168: 0 | BYO168: 0 | BYP168: 0 | BYQ168: 0 | BYR168: 0 | BYS168: 0 | BYT168: 0 | BYU168: 0 | BYV168: 0 | BYW168: 0 | BYX168: 0 | BYY168: 0 | BYZ168: 0 | BZA168: 0 | BZB168: 0 | BZC168: 0 | BZD168: 0 | BZE168: 0 | BZF168: 0 | BZG168: 0 | BZH168: 0 | BZI168: 0 | BZJ168: 0 | BZK168: 0 | BZL168: 0 | BZM168: 0 | BZN168: 0 | BZO168: 0 | BZP168: 0 | BZQ168: 0 | BZR168: 0 | BZS168: 0 | BZT168: 0 | BZU168: =BZU145 -> 0 | BZV168: 0 | BZW168: 0 | BZX168: 0 | BZY168: 0 | BZZ168: 0 | CAA168: 0 | CAB168: 0 | CAC168: 0 | CAD168: 0 | CAE168: 0 | CAF168: 0 | CAG168: 0 | CAH168: 0 | CAI168: 0 | CAJ168: 0 | CAK168: 0 | CAL168: 0 | CAM168: 0 | CAN168: 0 | CAO168: 0 | CAP168: 0 | CAQ168: 0 | CAR168: 0 | CAS168: 0 | CAT168: 0 | CAU168: 0 | CAV168: 0 | CAW168: 0 | CAX168: 0 | CAY168: 0 | CAZ168: 0 | CBA168: 0 | CBB168: 0 | CBC168: 0 | CBD168: 0 | CBE168: 0 | CBF168: 0 | CBG168: 0 | CBH168: 0 | CBI168: 0 | CBJ168: 0 | CBK168: 0 | CBL168: 0 | CBM168: 0 | CBN168: 0 | CBO168: 0 | CBP168: 0 | CBQ168: 0 | CBR168: 0 | CBS168: 0 | CBT168: 0 | CBU168: 0 | CBV168: 0 | CBW168: 0 | CBX168: 0 | CBY168: 0 | CBZ168: 0 | CCA168: 0 | CCB168: 0 | CCC168: 0 | CCD168: 0 | CCE168: 0 | CCF168: 0 | CCG168: =CCG145 -> 0 | CCH168: 0 | CCI168: 0 | CCJ168: 0 | CCK168: 0 | CCL168: 0 | CCM168: 0 | CCN168: 0 | CCO168: 0 | CCP168: 0 | CCQ168: 0 | CCR168: 0 | CCS168: 0 | CCT168: 0 | CCU168: 0 | CCV168: 0 | CCW168: 0 | CCX168: 0 | CCY168: 0 | CCZ168: 0 | CDA168: 0 | CDB168: 0 | CDC168: 0 | CDD168: 0 | CDE168: 0 | CDF168: 0 | CDG168: 0 | CDH168: 0 | CDI168: 0 | CDJ168: 0 | CDK168: 0 | CDL168: 0 | CDM168: 0 | CDN168: 0 | CDO168: 0 | CDP168: 0 | CDQ168: 0 | CDR168: 0 | CDS168: 0 | CDT168: 0 | CDU168: 0 | CDV168: 0 | CDW168: 0 | CDX168: 0 | CDY168: 0 | CDZ168: 0 | CEA168: 0 | CEB168: 0 | CEC168: 0 | CED168: 0 | CEE168: 0 | CEF168: 0 | CEG168: 0 | CEH168: 0 | CEI168: 0 | CEJ168: 0 | CEK168: 0 | CEL168: 0 | CEM168: 0 | CEN168: 0 | CEO168: 0 | CEP168: 0 | CEQ168: 0 | CER168: 0 | CES168: =CES145 -> 0 | CET168: 0 | CEU168: 0 | CEV168: 0 | CEW168: 0 | CEX168: 0 | CEY168: 0 | CEZ168: 0 | CFA168: 0 | CFB168: 0 | CFC168: 0 | CFD168: 0 | CFE168: 0 | CFF168: 0 | CFG168: 0 | CFH168: 0 | CFI168: 0 | CFJ168: 0 | CFK168: 0 | CFL168: 0 | CFM168: 0 | CFN168: 0 | CFO168: 0 | CFP168: 0 | CFQ168: 0 | CFR168: 0 | CFS168: 0 | CFT168: 0 | CFU168: 0 | CFV168: 0 | CFW168: 0 | CFX168: 0 | CFY168: 0 | CFZ168: 0 | CGA168: 0 | CGB168: 0 | CGC168: 0 | CGD168: 0 | CGE168: 0 | CGF168: 0 | CGG168: 0 | CGH168: 0 | CGI168: 0 | CGJ168: 0 | CGK168: 0 | CGL168: 0 | CGM168: 0 | CGN168: 0 | CGO168: 0 | CGP168: 0 | CGQ168: 0 | CGR168: 0 | CGS168: 0 | CGT168: 0 | CGU168: 0 | CGV168: 0 | CGW168: 0 | CGX168: 0 | CGY168: 0 | CGZ168: 0 | CHA168: 0 | CHB168: 0 | CHC168: 0 | CHD168: 0 | CHE168: =CHE145 -> 0 | CHF168: 0 | CHG168: 0 | CHH168: 0 | CHI168: 0 | CHJ168: 0 | CHK168: 0 | CHL168: 0 | CHM168: 0 | CHN168: 0 | CHO168: 0 | CHP168: 0 | CHQ168: 0 | CHR168: 0 | CHS168: 0 | CHT168: 0 | CHU168: 0 | CHV168: 0 | CHW168: 0 | CHX168: 0 | CHY168: 0 | CHZ168: 0 | CIA168: 0 | CIB168: 0 | CIC168: 0 | CID168: 0 | CIE168: 0 | CIF168: 0 | CIG168: 0 | CIH168: 0 | CII168: 0 | CIJ168: 0 | CIK168: 0 | CIL168: 0 | CIM168: 0 | CIN168: 0 | CIO168: 0 | CIP168: 0 | CIQ168: 0 | CIR168: 0 | CIS168: 0 | CIT168: 0 | CIU168: 0 | CIV168: 0 | CIW168: 0 | CIX168: 0 | CIY168: 0 | CIZ168: 0 | CJA168: 0 | CJB168: 0 | CJC168: 0 | CJD168: 0 | CJE168: 0 | CJF168: 0 | CJG168: 0 | CJH168: 0 | CJI168: 0 | CJJ168: 0 | CJK168: 0 | CJL168: 0 | CJM168: 0 | CJN168: 0 | CJO168: 0 | CJP168: 0 | CJQ168: =CJQ145 -> 0 | CJR168: 0 | CJS168: 0 | CJT168: 0 | CJU168: 0 | CJV168: 0 | CJW168: 0 | CJX168: 0 | CJY168: 0 | CJZ168: 0 | CKA168: 0 | CKB168: 0 | CKC168: 0 | CKD168: 0 | CKE168: 0 | CKF168: 0 | CKG168: 0 | CKH168: 0 | CKI168: 0 | CKJ168: 0 | CKK168: 0 | CKL168: 0 | CKM168: 0 | CKN168: 0 | CKO168: 0 | CKP168: 0 | CKQ168: 0 | CKR168: 0 | CKS168: 0 | CKT168: 0 | CKU168: 0 | CKV168: 0 | CKW168: 0 | CKX168: 0 | CKY168: 0 | CKZ168: 0 | CLA168: 0 | CLB168: 0 | CLC168: 0 | CLD168: 0 | CLE168: 0 | CLF168: 0 | CLG168: 0 | CLH168: 0 | CLI168: 0 | CLJ168: 0 | CLK168: 0 | CLL168: 0 | CLM168: 0 | CLN168: 0 | CLO168: 0 | CLP168: 0 | CLQ168: 0 | CLR168: 0 | CLS168: 0 | CLT168: 0 | CLU168: 0 | CLV168: 0 | CLW168: 0 | CLX168: 0 | CLY168: 0 | CLZ168: 0 | CMA168: 0 | CMB168: 0 | CMC168: =CMC145 -> 0 | CMD168: 0 | CME168: 0 | CMF168: 0 | CMG168: 0 | CMH168: 0 | CMI168: 0 | CMJ168: 0 | CMK168: 0 | CML168: 0 | CMM168: 0 | CMN168: 0 | CMO168: 0 | CMP168: 0 | CMQ168: 0 | CMR168: 0 | CMS168: 0 | CMT168: 0 | CMU168: 0 | CMV168: 0 | CMW168: 0 | CMX168: 0 | CMY168: 0 | CMZ168: 0 | CNA168: 0 | CNB168: 0 | CNC168: 0 | CND168: 0 | CNE168: 0 | CNF168: 0 | CNG168: 0 | CNH168: 0 | CNI168: 0 | CNJ168: 0 | CNK168: 0 | CNL168: 0 | CNM168: 0 | CNN168: 0 | CNO168: 0 | CNP168: 0 | CNQ168: 0 | CNR168: 0 | CNS168: 0 | CNT168: 0 | CNU168: 0 | CNV168: 0 | CNW168: 0 | CNX168: 0 | CNY168: 0 | CNZ168: 0 | COA168: 0 | COB168: 0 | COC168: 0 | COD168: 0 | COE168: 0 | COF168: 0 | COG168: 0 | COH168: 0 | COI168: 0 | COJ168: 0 | COK168: 0 | COL168: 0 | COM168: 0 | CON168: 0 | COO168: =COO145 -> 0 | COP168: 0 | COQ168: 0 | COR168: 0 | COS168: 0 | COT168: 0 | COU168: 0 | COV168: 0 | COW168: 0 | COX168: 0 | COY168: 0 | COZ168: 0 | CPA168: 0 | CPB168: 0 | CPC168: 0 | CPD168: 0 | CPE168: 0 | CPF168: 0 | CPG168: 0 | CPH168: 0 | CPI168: 0 | CPJ168: 0 | CPK168: 0 | CPL168: 0 | CPM168: 0 | CPN168: 0 | CPO168: 0 | CPP168: 0 | CPQ168: 0 | CPR168: 0 | CPS168: 0 | CPT168: 0 | CPU168: 0 | CPV168: 0 | CPW168: 0 | CPX168: 0 | CPY168: 0 | CPZ168: 0 | CQA168: 0 | CQB168: 0 | CQC168: 0 | CQD168: 0 | CQE168: 0 | CQF168: 0 | CQG168: 0 | CQH168: 0 | CQI168: 0 | CQJ168: 0 | CQK168: 0 | CQL168: 0 | CQM168: 0 | CQN168: 0 | CQO168: 0 | CQP168: 0 | CQQ168: 0 | CQR168: 0 | CQS168: 0 | CQT168: 0 | CQU168: 0 | CQV168: 0 | CQW168: 0 | CQX168: 0 | CQY168: 0 | CQZ168: 0 | CRA168: =CRA145 -> 0 | CRB168: 0 | CRC168: 0 | CRD168: 0 | CRE168: 0 | CRF168: 0 | CRG168: 0 | CRH168: 0 | CRI168: 0 | CRJ168: 0 | CRK168: 0 | CRL168: 0 | CRM168: 0 | CRN168: 0 | CRO168: 0 | CRP168: 0 | CRQ168: 0 | CRR168: 0 | CRS168: 0 | CRT168: 0 | CRU168: 0 | CRV168: 0 | CRW168: 0 | CRX168: 0 | CRY168: 0 | CRZ168: 0 | CSA168: 0 | CSB168: 0 | CSC168: 0 | CSD168: 0 | CSE168: 0 | CSF168: 0 | CSG168: 0 | CSH168: 0 | CSI168: 0 | CSJ168: 0 | CSK168: 0 | CSL168: 0 | CSM168: 0 | CSN168: 0 | CSO168: 0 | CSP168: 0 | CSQ168: 0 | CSR168: 0 | CSS168: 0 | CST168: 0 | CSU168: 0 | CSV168: 0 | CSW168: 0 | CSX168: 0 | CSY168: 0 | CSZ168: 0 | CTA168: 0 | CTB168: 0 | CTC168: 0 | CTD168: 0 | CTE168: 0 | CTF168: 0 | CTG168: 0 | CTH168: 0 | CTI168: 0 | CTJ168: 0 | CTK168: 0 | CTL168: 0 | CTM168: =CTM145 -> 0 | CTN168: 0 | CTO168: 0 | CTP168: 0 | CTQ168: 0 | CTR168: 0 | CTS168: 0 | CTT168: 0 | CTU168: 0 | CTV168: 0 | CTW168: 0 | CTX168: 0 | CTY168: 0 | CTZ168: 0 | CUA168: 0 | CUB168: 0 | CUC168: 0 | CUD168: 0 | CUE168: 0 | CUF168: 0 | CUG168: 0 | CUH168: 0 | CUI168: 0 | CUJ168: 0 | CUK168: 0 | CUL168: 0 | CUM168: 0 | CUN168: 0 | CUO168: 0 | CUP168: 0 | CUQ168: 0 | CUR168: 0 | CUS168: 0 | CUT168: 0 | CUU168: 0 | CUV168: 0 | CUW168: 0 | CUX168: 0 | CUY168: 0 | CUZ168: 0 | CVA168: 0 | CVB168: 0 | CVC168: 0 | CVD168: 0 | CVE168: 0 | CVF168: 0 | CVG168: 0 | CVH168: 0 | CVI168: 0 | CVJ168: 0 | CVK168: 0 | CVL168: 0 | CVM168: 0 | CVN168: 0 | CVO168: 0 | CVP168: 0 | CVQ168: 0 | CVR168: 0 | CVS168: 0 | CVT168: 0 | CVU168: 0 | CVV168: 0 | CVW168: 0 | CVX168: 0 | CVY168: =CVY145 -> 0 | CVZ168: 0 | CWA168: 0 | CWB168: 0 | CWC168: 0 | CWD168: 0 | CWE168: 0 | CWF168: 0 | CWG168: 0 | CWH168: 0 | CWI168: 0 | CWJ168: 0 | CWK168: 0 | CWL168: 0 | CWM168: 0 | CWN168: 0 | CWO168: 0 | CWP168: 0 | CWQ168: 0 | CWR168: 0 | CWS168: 0 | CWT168: 0 | CWU168: 0 | CWV168: 0 | CWW168: 0 | CWX168: 0 | CWY168: 0 | CWZ168: 0 | CXA168: 0 | CXB168: 0 | CXC168: 0 | CXD168: 0 | CXE168: 0 | CXF168: 0 | CXG168: 0 | CXH168: 0 | CXI168: 0 | CXJ168: 0 | CXK168: 0 | CXL168: 0 | CXM168: 0 | CXN168: 0 | CXO168: 0 | CXP168: 0 | CXQ168: 0 | CXR168: 0 | CXS168: 0 | CXT168: 0 | CXU168: 0 | CXV168: 0 | CXW168: 0 | CXX168: 0 | CXY168: 0 | CXZ168: 0 | CYA168: 0 | CYB168: 0 | CYC168: 0 | CYD168: 0 | CYE168: 0 | CYF168: 0 | CYG168: 0 | CYH168: 0 | CYI168: 0 | CYJ168: 0 | CYK168: =CYK145 -> 0 | CYL168: 0 | CYM168: 0 | CYN168: 0 | CYO168: 0 | CYP168: 0 | CYQ168: 0 | CYR168: 0 | CYS168: 0 | CYT168: 0 | CYU168: 0 | CYV168: 0 | CYW168: 0 | CYX168: 0 | CYY168: 0 | CYZ168: 0 | CZA168: 0 | CZB168: 0 | CZC168: 0 | CZD168: 0 | CZE168: 0 | CZF168: 0 | CZG168: 0 | CZH168: 0 | CZI168: 0 | CZJ168: 0 | CZK168: 0 | CZL168: 0 | CZM168: 0 | CZN168: 0 | CZO168: 0 | CZP168: 0 | CZQ168: 0 | CZR168: 0 | CZS168: 0 | CZT168: 0 | CZU168: 0 | CZV168: 0 | CZW168: 0 | CZX168: 0 | CZY168: 0 | CZZ168: 0 | DAA168: 0 | DAB168: 0 | DAC168: 0 | DAD168: 0 | DAE168: 0 | DAF168: 0 | DAG168: 0 | DAH168: 0 | DAI168: 0 | DAJ168: 0 | DAK168: 0 | DAL168: 0 | DAM168: 0 | DAN168: 0 | DAO168: 0 | DAP168: 0 | DAQ168: 0 | DAR168: 0 | DAS168: 0 | DAT168: 0 | DAU168: 0 | DAV168: 0 | DAW168: =DAW145 -> 0 | DAX168: 0 | DAY168: 0 | DAZ168: 0 | DBA168: 0 | DBB168: 0 | DBC168: 0 | DBD168: 0 | DBE168: 0 | DBF168: 0 | DBG168: 0 | DBH168: 0 | DBI168: 0 | DBJ168: 0 | DBK168: 0 | DBL168: 0 | DBM168: 0 | DBN168: 0 | DBO168: 0 | DBP168: 0 | DBQ168: 0 | DBR168: 0 | DBS168: 0 | DBT168: 0 | DBU168: 0 | DBV168: 0 | DBW168: 0 | DBX168: 0 | DBY168: 0 | DBZ168: 0 | DCA168: 0 | DCB168: 0 | DCC168: 0 | DCD168: 0 | DCE168: 0 | DCF168: 0 | DCG168: 0 | DCH168: 0 | DCI168: 0 | DCJ168: 0 | DCK168: 0 | DCL168: 0 | DCM168: 0 | DCN168: 0 | DCO168: 0 | DCP168: 0 | DCQ168: 0 | DCR168: 0 | DCS168: 0 | DCT168: 0 | DCU168: 0 | DCV168: 0 | DCW168: 0 | DCX168: 0 | DCY168: 0 | DCZ168: 0 | DDA168: 0 | DDB168: 0 | DDC168: 0 | DDD168: 0 | DDE168: 0 | DDF168: 0 | DDG168: 0 | DDH168: 0 | DDI168: =DDI145 -> 0 | DDJ168: 0 | DDK168: 0 | DDL168: 0 | DDM168: 0 | DDN168: 0 | DDO168: 0 | DDP168: 0 | DDQ168: 0 | DDR168: 0 | DDS168: 0 | DDT168: 0 | DDU168: 0 | DDV168: 0 | DDW168: 0 | DDX168: 0 | DDY168: 0 | DDZ168: 0 | DEA168: 0 | DEB168: 0 | DEC168: 0 | DED168: 0 | DEE168: 0 | DEF168: 0 | DEG168: 0 | DEH168: 0 | DEI168: 0 | DEJ168: 0 | DEK168: 0 | DEL168: 0 | DEM168: 0 | DEN168: 0 | DEO168: 0 | DEP168: 0 | DEQ168: 0 | DER168: 0 | DES168: 0 | DET168: 0 | DEU168: 0 | DEV168: 0 | DEW168: 0 | DEX168: 0 | DEY168: 0 | DEZ168: 0 | DFA168: 0 | DFB168: 0 | DFC168: 0 | DFD168: 0 | DFE168: 0 | DFF168: 0 | DFG168: 0 | DFH168: 0 | DFI168: 0 | DFJ168: 0 | DFK168: 0 | DFL168: 0 | DFM168: 0 | DFN168: 0 | DFO168: 0 | DFP168: 0 | DFQ168: 0 | DFR168: 0 | DFS168: 0 | DFT168: 0 | DFU168: =DFU145 -> 0 | DFV168: 0 | DFW168: 0 | DFX168: 0 | DFY168: 0 | DFZ168: 0 | DGA168: 0 | DGB168: 0 | DGC168: 0 | DGD168: 0 | DGE168: 0 | DGF168: 0 | DGG168: 0 | DGH168: 0 | DGI168: 0 | DGJ168: 0 | DGK168: 0 | DGL168: 0 | DGM168: 0 | DGN168: 0 | DGO168: 0 | DGP168: 0 | DGQ168: 0 | DGR168: 0 | DGS168: 0 | DGT168: 0 | DGU168: 0 | DGV168: 0 | DGW168: 0 | DGX168: 0 | DGY168: 0 | DGZ168: 0 | DHA168: 0 | DHB168: 0 | DHC168: 0 | DHD168: 0 | DHE168: 0 | DHF168: 0 | DHG168: 0 | DHH168: 0 | DHI168: 0 | DHJ168: 0 | DHK168: 0 | DHL168: 0 | DHM168: 0 | DHN168: 0 | DHO168: 0 | DHP168: 0 | DHQ168: 0 | DHR168: 0 | DHS168: 0 | DHT168: 0 | DHU168: 0 | DHV168: 0 | DHW168: 0 | DHX168: 0 | DHY168: 0 | DHZ168: 0 | DIA168: 0 | DIB168: 0 | DIC168: 0 | DID168: 0 | DIE168: 0 | DIF168: 0 | DIG168: =DIG145 -> 0 | DIH168: 0 | DII168: 0 | DIJ168: 0 | DIK168: 0 | DIL168: 0 | DIM168: 0 | DIN168: 0 | DIO168: 0 | DIP168: 0 | DIQ168: 0 | DIR168: 0 | DIS168: 0 | DIT168: 0 | DIU168: 0 | DIV168: 0 | DIW168: 0 | DIX168: 0 | DIY168: 0 | DIZ168: 0 | DJA168: 0 | DJB168: 0 | DJC168: 0 | DJD168: 0 | DJE168: 0 | DJF168: 0 | DJG168: 0 | DJH168: 0 | DJI168: 0 | DJJ168: 0 | DJK168: 0 | DJL168: 0 | DJM168: 0 | DJN168: 0 | DJO168: 0 | DJP168: 0 | DJQ168: 0 | DJR168: 0 | DJS168: 0 | DJT168: 0 | DJU168: 0 | DJV168: 0 | DJW168: 0 | DJX168: 0 | DJY168: 0 | DJZ168: 0 | DKA168: 0 | DKB168: 0 | DKC168: 0 | DKD168: 0 | DKE168: 0 | DKF168: 0 | DKG168: 0 | DKH168: 0 | DKI168: 0 | DKJ168: 0 | DKK168: 0 | DKL168: 0 | DKM168: 0 | DKN168: 0 | DKO168: 0 | DKP168: 0 | DKQ168: 0 | DKR168: 0 | DKS168: =DKS145 -> 0 | DKT168: 0 | DKU168: 0 | DKV168: 0 | DKW168: 0 | DKX168: 0 | DKY168: 0 | DKZ168: 0 | DLA168: 0 | DLB168: 0 | DLC168: 0 | DLD168: 0 | DLE168: 0 | DLF168: 0 | DLG168: 0 | DLH168: 0 | DLI168: 0 | DLJ168: 0 | DLK168: 0 | DLL168: 0 | DLM168: 0 | DLN168: 0 | DLO168: 0 | DLP168: 0 | DLQ168: 0 | DLR168: 0 | DLS168: 0 | DLT168: 0 | DLU168: 0 | DLV168: 0 | DLW168: 0 | DLX168: 0 | DLY168: 0 | DLZ168: 0 | DMA168: 0 | DMB168: 0 | DMC168: 0 | DMD168: 0 | DME168: 0 | DMF168: 0 | DMG168: 0 | DMH168: 0 | DMI168: 0 | DMJ168: 0 | DMK168: 0 | DML168: 0 | DMM168: 0 | DMN168: 0 | DMO168: 0 | DMP168: 0 | DMQ168: 0 | DMR168: 0 | DMS168: 0 | DMT168: 0 | DMU168: 0 | DMV168: 0 | DMW168: 0 | DMX168: 0 | DMY168: 0 | DMZ168: 0 | DNA168: 0 | DNB168: 0 | DNC168: 0 | DND168: 0 | DNE168: =DNE145 -> 0 | DNF168: 0 | DNG168: 0 | DNH168: 0 | DNI168: 0 | DNJ168: 0 | DNK168: 0 | DNL168: 0 | DNM168: 0 | DNN168: 0 | DNO168: 0 | DNP168: 0 | DNQ168: 0 | DNR168: 0 | DNS168: 0 | DNT168: 0 | DNU168: 0 | DNV168: 0 | DNW168: 0 | DNX168: 0 | DNY168: 0 | DNZ168: 0 | DOA168: 0 | DOB168: 0 | DOC168: 0 | DOD168: 0 | DOE168: 0 | DOF168: 0 | DOG168: 0 | DOH168: 0 | DOI168: 0 | DOJ168: 0 | DOK168: 0 | DOL168: 0 | DOM168: 0 | DON168: 0 | DOO168: 0 | DOP168: 0 | DOQ168: 0 | DOR168: 0 | DOS168: 0 | DOT168: 0 | DOU168: 0 | DOV168: 0 | DOW168: 0 | DOX168: 0 | DOY168: 0 | DOZ168: 0 | DPA168: 0 | DPB168: 0 | DPC168: 0 | DPD168: 0 | DPE168: 0 | DPF168: 0 | DPG168: 0 | DPH168: 0 | DPI168: 0 | DPJ168: 0 | DPK168: 0 | DPL168: 0 | DPM168: 0 | DPN168: 0 | DPO168: 0 | DPP168: 0 | DPQ168: =DPQ145 -> 0 | DPR168: 0 | DPS168: 0 | DPT168: 0 | DPU168: 0 | DPV168: 0 | DPW168: 0 | DPX168: 0 | DPY168: 0 | DPZ168: 0 | DQA168: 0 | DQB168: 0 | DQC168: 0 | DQD168: 0 | DQE168: 0 | DQF168: 0 | DQG168: 0 | DQH168: 0 | DQI168: 0 | DQJ168: 0 | DQK168: 0 | DQL168: 0 | DQM168: 0 | DQN168: 0 | DQO168: 0 | DQP168: 0 | DQQ168: 0 | DQR168: 0 | DQS168: 0 | DQT168: 0 | DQU168: 0 | DQV168: 0 | DQW168: 0 | DQX168: 0 | DQY168: 0 | DQZ168: 0 | DRA168: 0 | DRB168: 0 | DRC168: 0 | DRD168: 0 | DRE168: 0 | DRF168: 0 | DRG168: 0 | DRH168: 0 | DRI168: 0 | DRJ168: 0 | DRK168: 0 | DRL168: 0 | DRM168: 0 | DRN168: 0 | DRO168: 0 | DRP168: 0 | DRQ168: 0 | DRR168: 0 | DRS168: 0 | DRT168: 0 | DRU168: 0 | DRV168: 0 | DRW168: 0 | DRX168: 0 | DRY168: 0 | DRZ168: 0 | DSA168: 0 | DSB168: 0 | DSC168: =DSC145 -> 0 | DSD168: 0 | DSE168: 0 | DSF168: 0 | DSG168: 0 | DSH168: 0 | DSI168: 0 | DSJ168: 0 | DSK168: 0 | DSL168: 0 | DSM168: 0 | DSN168: 0 | DSO168: 0 | DSP168: 0 | DSQ168: 0 | DSR168: 0 | DSS168: 0 | DST168: 0 | DSU168: 0 | DSV168: 0 | DSW168: 0 | DSX168: 0 | DSY168: 0 | DSZ168: 0 | DTA168: 0 | DTB168: 0 | DTC168: 0 | DTD168: 0 | DTE168: 0 | DTF168: 0 | DTG168: 0 | DTH168: 0 | DTI168: 0 | DTJ168: 0 | DTK168: 0 | DTL168: 0 | DTM168: 0 | DTN168: 0 | DTO168: 0 | DTP168: 0 | DTQ168: 0 | DTR168: 0 | DTS168: 0 | DTT168: 0 | DTU168: 0 | DTV168: 0 | DTW168: 0 | DTX168: 0 | DTY168: 0 | DTZ168: 0 | DUA168: 0 | DUB168: 0 | DUC168: 0 | DUD168: 0 | DUE168: 0 | DUF168: 0 | DUG168: 0 | DUH168: 0 | DUI168: 0 | DUJ168: 0 | DUK168: 0 | DUL168: 0 | DUM168: 0 | DUN168: 0 | DUO168: =DUO145 -> 0 | DUP168: 0 | DUQ168: 0 | DUR168: 0 | DUS168: 0 | DUT168: 0 | DUU168: 0 | DUV168: 0 | DUW168: 0 | DUX168: 0 | DUY168: 0 | DUZ168: 0 | DVA168: 0 | DVB168: 0 | DVC168: 0 | DVD168: 0 | DVE168: 0 | DVF168: 0 | DVG168: 0 | DVH168: 0 | DVI168: 0 | DVJ168: 0 | DVK168: 0 | DVL168: 0 | DVM168: 0 | DVN168: 0 | DVO168: 0 | DVP168: 0 | DVQ168: 0 | DVR168: 0 | DVS168: 0 | DVT168: 0 | DVU168: 0 | DVV168: 0 | DVW168: 0 | DVX168: 0 | DVY168: 0 | DVZ168: 0 | DWA168: 0 | DWB168: 0 | DWC168: 0 | DWD168: 0 | DWE168: 0 | DWF168: 0 | DWG168: 0 | DWH168: 0 | DWI168: 0 | DWJ168: 0 | DWK168: 0 | DWL168: 0 | DWM168: 0 | DWN168: 0 | DWO168: 0 | DWP168: 0 | DWQ168: 0 | DWR168: 0 | DWS168: 0 | DWT168: 0 | DWU168: 0 | DWV168: 0 | DWW168: 0 | DWX168: 0 | DWY168: 0 | DWZ168: 0 | DXA168: =DXA145 -> 0 | DXB168: 0 | DXC168: 0 | DXD168: 0 | DXE168: 0 | DXF168: 0 | DXG168: 0 | DXH168: 0 | DXI168: 0 | DXJ168: 0 | DXK168: 0 | DXL168: 0 | DXM168: 0 | DXN168: 0 | DXO168: 0 | DXP168: 0 | DXQ168: 0 | DXR168: 0 | DXS168: 0 | DXT168: 0 | DXU168: 0 | DXV168: 0 | DXW168: 0 | DXX168: 0 | DXY168: 0 | DXZ168: 0 | DYA168: 0 | DYB168: 0 | DYC168: 0 | DYD168: 0 | DYE168: 0 | DYF168: 0 | DYG168: 0 | DYH168: 0 | DYI168: 0 | DYJ168: 0 | DYK168: 0 | DYL168: 0 | DYM168: 0 | DYN168: 0 | DYO168: 0 | DYP168: 0 | DYQ168: 0 | DYR168: 0 | DYS168: 0 | DYT168: 0 | DYU168: 0 | DYV168: 0 | DYW168: 0 | DYX168: 0 | DYY168: 0 | DYZ168: 0 | DZA168: 0 | DZB168: 0 | DZC168: 0 | DZD168: 0 | DZE168: 0 | DZF168: 0 | DZG168: 0 | DZH168: 0 | DZI168: 0 | DZJ168: 0 | DZK168: 0 | DZL168: 0 | DZM168: =DZM145 -> 0 | DZN168: 0 | DZO168: 0 | DZP168: 0 | DZQ168: 0 | DZR168: 0 | DZS168: 0 | DZT168: 0 | DZU168: 0 | DZV168: 0 | DZW168: 0 | DZX168: 0 | DZY168: 0 | DZZ168: 0 | EAA168: 0 | EAB168: 0 | EAC168: 0 | EAD168: 0 | EAE168: 0 | EAF168: 0 | EAG168: 0 | EAH168: 0 | EAI168: 0 | EAJ168: 0 | EAK168: 0 | EAL168: 0 | EAM168: 0 | EAN168: 0 | EAO168: 0 | EAP168: 0 | EAQ168: 0 | EAR168: 0 | EAS168: 0 | EAT168: 0 | EAU168: 0 | EAV168: 0 | EAW168: 0 | EAX168: 0 | EAY168: 0 | EAZ168: 0 | EBA168: 0 | EBB168: 0 | EBC168: 0 | EBD168: 0 | EBE168: 0 | EBF168: 0 | EBG168: 0 | EBH168: 0 | EBI168: 0 | EBJ168: 0 | EBK168: 0 | EBL168: 0 | EBM168: 0 | EBN168: 0 | EBO168: 0 | EBP168: 0 | EBQ168: 0 | EBR168: 0 | EBS168: 0 | EBT168: 0 | EBU168: 0 | EBV168: 0 | EBW168: 0 | EBX168: 0 | EBY168: =EBY145 -> 0 | EBZ168: 0 | ECA168: 0 | ECB168: 0 | ECC168: 0 | ECD168: 0 | ECE168: 0 | ECF168: 0 | ECG168: 0 | ECH168: 0 | ECI168: 0 | ECJ168: 0 | ECK168: 0 | ECL168: 0 | ECM168: 0 | ECN168: 0 | ECO168: 0 | ECP168: 0 | ECQ168: 0 | ECR168: 0 | ECS168: 0 | ECT168: 0 | ECU168: 0 | ECV168: 0 | ECW168: 0 | ECX168: 0 | ECY168: 0 | ECZ168: 0 | EDA168: 0 | EDB168: 0 | EDC168: 0 | EDD168: 0 | EDE168: 0 | EDF168: 0 | EDG168: 0 | EDH168: 0 | EDI168: 0 | EDJ168: 0 | EDK168: 0 | EDL168: 0 | EDM168: 0 | EDN168: 0 | EDO168: 0 | EDP168: 0 | EDQ168: 0 | EDR168: 0 | EDS168: 0 | EDT168: 0 | EDU168: 0 | EDV168: 0 | EDW168: 0 | EDX168: 0 | EDY168: 0 | EDZ168: 0 | EEA168: 0 | EEB168: 0 | EEC168: 0 | EED168: 0 | EEE168: 0 | EEF168: 0 | EEG168: 0 | EEH168: 0 | EEI168: 0 | EEJ168: 0 | EEK168: =EEK145 -> 0 | EEL168: 0 | EEM168: 0 | EEN168: 0 | EEO168: 0 | EEP168: 0 | EEQ168: 0 | EER168: 0 | EES168: 0 | EET168: 0 | EEU168: 0 | EEV168: 0 | EEW168: 0 | EEX168: 0 | EEY168: 0 | EEZ168: 0 | EFA168: 0 | EFB168: 0 | EFC168: 0 | EFD168: 0 | EFE168: 0 | EFF168: 0 | EFG168: 0 | EFH168: 0 | EFI168: 0 | EFJ168: 0 | EFK168: 0 | EFL168: 0 | EFM168: 0 | EFN168: 0 | EFO168: 0 | EFP168: 0 | EFQ168: 0 | EFR168: 0 | EFS168: 0 | EFT168: 0 | EFU168: 0 | EFV168: 0 | EFW168: 0 | EFX168: 0 | EFY168: 0 | EFZ168: 0 | EGA168: 0 | EGB168: 0 | EGC168: 0 | EGD168: 0 | EGE168: 0 | EGF168: 0 | EGG168: 0 | EGH168: 0 | EGI168: 0 | EGJ168: 0 | EGK168: 0 | EGL168: 0 | EGM168: 0 | EGN168: 0 | EGO168: 0 | EGP168: 0 | EGQ168: 0 | EGR168: 0 | EGS168: 0 | EGT168: 0 | EGU168: 0 | EGV168: 0 | EGW168: =EGW145 -> 0 | EGX168: 0 | EGY168: 0 | EGZ168: 0 | EHA168: 0 | EHB168: 0 | EHC168: 0 | EHD168: 0 | EHE168: 0 | EHF168: 0 | EHG168: 0 | EHH168: 0 | EHI168: 0 | EHJ168: 0 | EHK168: 0 | EHL168: 0 | EHM168: 0 | EHN168: 0 | EHO168: 0 | EHP168: 0 | EHQ168: 0 | EHR168: 0 | EHS168: 0 | EHT168: 0 | EHU168: 0 | EHV168: 0 | EHW168: 0 | EHX168: 0 | EHY168: 0 | EHZ168: 0 | EIA168: 0 | EIB168: 0 | EIC168: 0 | EID168: 0 | EIE168: 0 | EIF168: 0 | EIG168: 0 | EIH168: 0 | EII168: 0 | EIJ168: 0 | EIK168: 0 | EIL168: 0 | EIM168: 0 | EIN168: 0 | EIO168: 0 | EIP168: 0 | EIQ168: 0 | EIR168: 0 | EIS168: 0 | EIT168: 0 | EIU168: 0 | EIV168: 0 | EIW168: 0 | EIX168: 0 | EIY168: 0 | EIZ168: 0 | EJA168: 0 | EJB168: 0 | EJC168: 0 | EJD168: 0 | EJE168: 0 | EJF168: 0 | EJG168: 0 | EJH168: 0 | EJI168: =EJI145 -> 0 | EJJ168: 0 | EJK168: 0 | EJL168: 0 | EJM168: 0 | EJN168: 0 | EJO168: 0 | EJP168: 0 | EJQ168: 0 | EJR168: 0 | EJS168: 0 | EJT168: 0 | EJU168: 0 | EJV168: 0 | EJW168: 0 | EJX168: 0 | EJY168: 0 | EJZ168: 0 | EKA168: 0 | EKB168: 0 | EKC168: 0 | EKD168: 0 | EKE168: 0 | EKF168: 0 | EKG168: 0 | EKH168: 0 | EKI168: 0 | EKJ168: 0 | EKK168: 0 | EKL168: 0 | EKM168: 0 | EKN168: 0 | EKO168: 0 | EKP168: 0 | EKQ168: 0 | EKR168: 0 | EKS168: 0 | EKT168: 0 | EKU168: 0 | EKV168: 0 | EKW168: 0 | EKX168: 0 | EKY168: 0 | EKZ168: 0 | ELA168: 0 | ELB168: 0 | ELC168: 0 | ELD168: 0 | ELE168: 0 | ELF168: 0 | ELG168: 0 | ELH168: 0 | ELI168: 0 | ELJ168: 0 | ELK168: 0 | ELL168: 0 | ELM168: 0 | ELN168: 0 | ELO168: 0 | ELP168: 0 | ELQ168: 0 | ELR168: 0 | ELS168: 0 | ELT168: 0 | ELU168: =ELU145 -> 0 | ELV168: 0 | ELW168: 0 | ELX168: 0 | ELY168: 0 | ELZ168: 0 | EMA168: 0 | EMB168: 0 | EMC168: 0 | EMD168: 0 | EME168: 0 | EMF168: 0 | EMG168: 0 | EMH168: 0 | EMI168: 0 | EMJ168: 0 | EMK168: 0 | EML168: 0 | EMM168: 0 | EMN168: 0 | EMO168: 0 | EMP168: 0 | EMQ168: 0 | EMR168: 0 | EMS168: 0 | EMT168: 0 | EMU168: 0 | EMV168: 0 | EMW168: 0 | EMX168: 0 | EMY168: 0 | EMZ168: 0 | ENA168: 0 | ENB168: 0 | ENC168: 0 | END168: 0 | ENE168: 0 | ENF168: 0 | ENG168: 0 | ENH168: 0 | ENI168: 0 | ENJ168: 0 | ENK168: 0 | ENL168: 0 | ENM168: 0 | ENN168: 0 | ENO168: 0 | ENP168: 0 | ENQ168: 0 | ENR168: 0 | ENS168: 0 | ENT168: 0 | ENU168: 0 | ENV168: 0 | ENW168: 0 | ENX168: 0 | ENY168: 0 | ENZ168: 0 | EOA168: 0 | EOB168: 0 | EOC168: 0 | EOD168: 0 | EOE168: 0 | EOF168: 0 | EOG168: =EOG145 -> 0 | EOH168: 0 | EOI168: 0 | EOJ168: 0 | EOK168: 0 | EOL168: 0 | EOM168: 0 | EON168: 0 | EOO168: 0 | EOP168: 0 | EOQ168: 0 | EOR168: 0 | EOS168: 0 | EOT168: 0 | EOU168: 0 | EOV168: 0 | EOW168: 0 | EOX168: 0 | EOY168: 0 | EOZ168: 0 | EPA168: 0 | EPB168: 0 | EPC168: 0 | EPD168: 0 | EPE168: 0 | EPF168: 0 | EPG168: 0 | EPH168: 0 | EPI168: 0 | EPJ168: 0 | EPK168: 0 | EPL168: 0 | EPM168: 0 | EPN168: 0 | EPO168: 0 | EPP168: 0 | EPQ168: 0 | EPR168: 0 | EPS168: 0 | EPT168: 0 | EPU168: 0 | EPV168: 0 | EPW168: 0 | EPX168: 0 | EPY168: 0 | EPZ168: 0 | EQA168: 0 | EQB168: 0 | EQC168: 0 | EQD168: 0 | EQE168: 0 | EQF168: 0 | EQG168: 0 | EQH168: 0 | EQI168: 0 | EQJ168: 0 | EQK168: 0 | EQL168: 0 | EQM168: 0 | EQN168: 0 | EQO168: 0 | EQP168: 0 | EQQ168: 0 | EQR168: 0 | EQS168: =EQS145 -> 0 | EQT168: 0 | EQU168: 0 | EQV168: 0 | EQW168: 0 | EQX168: 0 | EQY168: 0 | EQZ168: 0 | ERA168: 0 | ERB168: 0 | ERC168: 0 | ERD168: 0 | ERE168: 0 | ERF168: 0 | ERG168: 0 | ERH168: 0 | ERI168: 0 | ERJ168: 0 | ERK168: 0 | ERL168: 0 | ERM168: 0 | ERN168: 0 | ERO168: 0 | ERP168: 0 | ERQ168: 0 | ERR168: 0 | ERS168: 0 | ERT168: 0 | ERU168: 0 | ERV168: 0 | ERW168: 0 | ERX168: 0 | ERY168: 0 | ERZ168: 0 | ESA168: 0 | ESB168: 0 | ESC168: 0 | ESD168: 0 | ESE168: 0 | ESF168: 0 | ESG168: 0 | ESH168: 0 | ESI168: 0 | ESJ168: 0 | ESK168: 0 | ESL168: 0 | ESM168: 0 | ESN168: 0 | ESO168: 0 | ESP168: 0 | ESQ168: 0 | ESR168: 0 | ESS168: 0 | EST168: 0 | ESU168: 0 | ESV168: 0 | ESW168: 0 | ESX168: 0 | ESY168: 0 | ESZ168: 0 | ETA168: 0 | ETB168: 0 | ETC168: 0 | ETD168: 0 | ETE168: =ETE145 -> 0 | ETF168: 0 | ETG168: 0 | ETH168: 0 | ETI168: 0 | ETJ168: 0 | ETK168: 0 | ETL168: 0 | ETM168: 0 | ETN168: 0 | ETO168: 0 | ETP168: 0 | ETQ168: 0 | ETR168: 0 | ETS168: 0 | ETT168: 0 | ETU168: 0 | ETV168: 0 | ETW168: 0 | ETX168: 0 | ETY168: 0 | ETZ168: 0 | EUA168: 0 | EUB168: 0 | EUC168: 0 | EUD168: 0 | EUE168: 0 | EUF168: 0 | EUG168: 0 | EUH168: 0 | EUI168: 0 | EUJ168: 0 | EUK168: 0 | EUL168: 0 | EUM168: 0 | EUN168: 0 | EUO168: 0 | EUP168: 0 | EUQ168: 0 | EUR168: 0 | EUS168: 0 | EUT168: 0 | EUU168: 0 | EUV168: 0 | EUW168: 0 | EUX168: 0 | EUY168: 0 | EUZ168: 0 | EVA168: 0 | EVB168: 0 | EVC168: 0 | EVD168: 0 | EVE168: 0 | EVF168: 0 | EVG168: 0 | EVH168: 0 | EVI168: 0 | EVJ168: 0 | EVK168: 0 | EVL168: 0 | EVM168: 0 | EVN168: 0 | EVO168: 0 | EVP168: 0 | EVQ168: =EVQ145 -> 0 | EVR168: 0 | EVS168: 0 | EVT168: 0 | EVU168: 0 | EVV168: 0 | EVW168: 0 | EVX168: 0 | EVY168: 0 | EVZ168: 0 | EWA168: 0 | EWB168: 0 | EWC168: 0 | EWD168: 0 | EWE168: 0 | EWF168: 0 | EWG168: 0 | EWH168: 0 | EWI168: 0 | EWJ168: 0 | EWK168: 0 | EWL168: 0 | EWM168: 0 | EWN168: 0 | EWO168: 0 | EWP168: 0 | EWQ168: 0 | EWR168: 0 | EWS168: 0 | EWT168: 0 | EWU168: 0 | EWV168: 0 | EWW168: 0 | EWX168: 0 | EWY168: 0 | EWZ168: 0 | EXA168: 0 | EXB168: 0 | EXC168: 0 | EXD168: 0 | EXE168: 0 | EXF168: 0 | EXG168: 0 | EXH168: 0 | EXI168: 0 | EXJ168: 0 | EXK168: 0 | EXL168: 0 | EXM168: 0 | EXN168: 0 | EXO168: 0 | EXP168: 0 | EXQ168: 0 | EXR168: 0 | EXS168: 0 | EXT168: 0 | EXU168: 0 | EXV168: 0 | EXW168: 0 | EXX168: 0 | EXY168: 0 | EXZ168: 0 | EYA168: 0 | EYB168: 0 | EYC168: =EYC145 -> 0 | EYD168: 0 | EYE168: 0 | EYF168: 0 | EYG168: 0 | EYH168: 0 | EYI168: 0 | EYJ168: 0 | EYK168: 0 | EYL168: 0 | EYM168: 0 | EYN168: 0 | EYO168: 0 | EYP168: 0 | EYQ168: 0 | EYR168: 0 | EYS168: 0 | EYT168: 0 | EYU168: 0 | EYV168: 0 | EYW168: 0 | EYX168: 0 | EYY168: 0 | EYZ168: 0 | EZA168: 0 | EZB168: 0 | EZC168: 0 | EZD168: 0 | EZE168: 0 | EZF168: 0 | EZG168: 0 | EZH168: 0 | EZI168: 0 | EZJ168: 0 | EZK168: 0 | EZL168: 0 | EZM168: 0 | EZN168: 0 | EZO168: 0 | EZP168: 0 | EZQ168: 0 | EZR168: 0 | EZS168: 0 | EZT168: 0 | EZU168: 0 | EZV168: 0 | EZW168: 0 | EZX168: 0 | EZY168: 0 | EZZ168: 0 | FAA168: 0 | FAB168: 0 | FAC168: 0 | FAD168: 0 | FAE168: 0 | FAF168: 0 | FAG168: 0 | FAH168: 0 | FAI168: 0 | FAJ168: 0 | FAK168: 0 | FAL168: 0 | FAM168: 0 | FAN168: 0 | FAO168: =FAO145 -> 0 | FAP168: 0 | FAQ168: 0 | FAR168: 0 | FAS168: 0 | FAT168: 0 | FAU168: 0 | FAV168: 0 | FAW168: 0 | FAX168: 0 | FAY168: 0 | FAZ168: 0 | FBA168: 0 | FBB168: 0 | FBC168: 0 | FBD168: 0 | FBE168: 0 | FBF168: 0 | FBG168: 0 | FBH168: 0 | FBI168: 0 | FBJ168: 0 | FBK168: 0 | FBL168: 0 | FBM168: 0 | FBN168: 0 | FBO168: 0 | FBP168: 0 | FBQ168: 0 | FBR168: 0 | FBS168: 0 | FBT168: 0 | FBU168: 0 | FBV168: 0 | FBW168: 0 | FBX168: 0 | FBY168: 0 | FBZ168: 0 | FCA168: 0 | FCB168: 0 | FCC168: 0 | FCD168: 0 | FCE168: 0 | FCF168: 0 | FCG168: 0 | FCH168: 0 | FCI168: 0 | FCJ168: 0 | FCK168: 0 | FCL168: 0 | FCM168: 0 | FCN168: 0 | FCO168: 0 | FCP168: 0 | FCQ168: 0 | FCR168: 0 | FCS168: 0 | FCT168: 0 | FCU168: 0 | FCV168: 0 | FCW168: 0 | FCX168: 0 | FCY168: 0 | FCZ168: 0 | FDA168: =FDA145 -> 0 | FDB168: 0 | FDC168: 0 | FDD168: 0 | FDE168: 0 | FDF168: 0 | FDG168: 0 | FDH168: 0 | FDI168: 0 | FDJ168: 0 | FDK168: 0 | FDL168: 0 | FDM168: 0 | FDN168: 0 | FDO168: 0 | FDP168: 0 | FDQ168: 0 | FDR168: 0 | FDS168: 0 | FDT168: 0 | FDU168: 0 | FDV168: 0 | FDW168: 0 | FDX168: 0 | FDY168: 0 | FDZ168: 0 | FEA168: 0 | FEB168: 0 | FEC168: 0 | FED168: 0 | FEE168: 0 | FEF168: 0 | FEG168: 0 | FEH168: 0 | FEI168: 0 | FEJ168: 0 | FEK168: 0 | FEL168: 0 | FEM168: 0 | FEN168: 0 | FEO168: 0 | FEP168: 0 | FEQ168: 0 | FER168: 0 | FES168: 0 | FET168: 0 | FEU168: 0 | FEV168: 0 | FEW168: 0 | FEX168: 0 | FEY168: 0 | FEZ168: 0 | FFA168: 0 | FFB168: 0 | FFC168: 0 | FFD168: 0 | FFE168: 0 | FFF168: 0 | FFG168: 0 | FFH168: 0 | FFI168: 0 | FFJ168: 0 | FFK168: 0 | FFL168: 0 | FFM168: =FFM145 -> 0 | FFN168: 0 | FFO168: 0 | FFP168: 0 | FFQ168: 0 | FFR168: 0 | FFS168: 0 | FFT168: 0 | FFU168: 0 | FFV168: 0 | FFW168: 0 | FFX168: 0 | FFY168: 0 | FFZ168: 0 | FGA168: 0 | FGB168: 0 | FGC168: 0 | FGD168: 0 | FGE168: 0 | FGF168: 0 | FGG168: 0 | FGH168: 0 | FGI168: 0 | FGJ168: 0 | FGK168: 0 | FGL168: 0 | FGM168: 0 | FGN168: 0 | FGO168: 0 | FGP168: 0 | FGQ168: 0 | FGR168: 0 | FGS168: 0 | FGT168: 0 | FGU168: 0 | FGV168: 0 | FGW168: 0 | FGX168: 0 | FGY168: 0 | FGZ168: 0 | FHA168: 0 | FHB168: 0 | FHC168: 0 | FHD168: 0 | FHE168: 0 | FHF168: 0 | FHG168: 0 | FHH168: 0 | FHI168: 0 | FHJ168: 0 | FHK168: 0 | FHL168: 0 | FHM168: 0 | FHN168: 0 | FHO168: 0 | FHP168: 0 | FHQ168: 0 | FHR168: 0 | FHS168: 0 | FHT168: 0 | FHU168: 0 | FHV168: 0 | FHW168: 0 | FHX168: 0 | FHY168: =FHY145 -> 0 | FHZ168: 0 | FIA168: 0 | FIB168: 0 | FIC168: 0 | FID168: 0 | FIE168: 0 | FIF168: 0 | FIG168: 0 | FIH168: 0 | FII168: 0 | FIJ168: 0 | FIK168: 0 | FIL168: 0 | FIM168: 0 | FIN168: 0 | FIO168: 0 | FIP168: 0 | FIQ168: 0 | FIR168: 0 | FIS168: 0 | FIT168: 0 | FIU168: 0 | FIV168: 0 | FIW168: 0 | FIX168: 0 | FIY168: 0 | FIZ168: 0 | FJA168: 0 | FJB168: 0 | FJC168: 0 | FJD168: 0 | FJE168: 0 | FJF168: 0 | FJG168: 0 | FJH168: 0 | FJI168: 0 | FJJ168: 0 | FJK168: 0 | FJL168: 0 | FJM168: 0 | FJN168: 0 | FJO168: 0 | FJP168: 0 | FJQ168: 0 | FJR168: 0 | FJS168: 0 | FJT168: 0 | FJU168: 0 | FJV168: 0 | FJW168: 0 | FJX168: 0 | FJY168: 0 | FJZ168: 0 | FKA168: 0 | FKB168: 0 | FKC168: 0 | FKD168: 0 | FKE168: 0 | FKF168: 0 | FKG168: 0 | FKH168: 0 | FKI168: 0 | FKJ168: 0 | FKK168: =FKK145 -> 0 | FKL168: 0 | FKM168: 0 | FKN168: 0 | FKO168: 0 | FKP168: 0 | FKQ168: 0 | FKR168: 0 | FKS168: 0 | FKT168: 0 | FKU168: 0 | FKV168: 0 | FKW168: 0 | FKX168: 0 | FKY168: 0 | FKZ168: 0 | FLA168: 0 | FLB168: 0 | FLC168: 0 | FLD168: 0 | FLE168: 0 | FLF168: 0 | FLG168: 0 | FLH168: 0 | FLI168: 0 | FLJ168: 0 | FLK168: 0 | FLL168: 0 | FLM168: 0 | FLN168: 0 | FLO168: 0 | FLP168: 0 | FLQ168: 0 | FLR168: 0 | FLS168: 0 | FLT168: 0 | FLU168: 0 | FLV168: 0 | FLW168: 0 | FLX168: 0 | FLY168: 0 | FLZ168: 0 | FMA168: 0 | FMB168: 0 | FMC168: 0 | FMD168: 0 | FME168: 0 | FMF168: 0 | FMG168: 0 | FMH168: 0 | FMI168: 0 | FMJ168: 0 | FMK168: 0 | FML168: 0 | FMM168: 0 | FMN168: 0 | FMO168: 0 | FMP168: 0 | FMQ168: 0 | FMR168: 0 | FMS168: 0 | FMT168: 0 | FMU168: 0 | FMV168: 0 | FMW168: =FMW145 -> 0 | FMX168: 0 | FMY168: 0 | FMZ168: 0 | FNA168: 0 | FNB168: 0 | FNC168: 0 | FND168: 0 | FNE168: 0 | FNF168: 0 | FNG168: 0 | FNH168: 0 | FNI168: 0 | FNJ168: 0 | FNK168: 0 | FNL168: 0 | FNM168: 0 | FNN168: 0 | FNO168: 0 | FNP168: 0 | FNQ168: 0 | FNR168: 0 | FNS168: 0 | FNT168: 0 | FNU168: 0 | FNV168: 0 | FNW168: 0 | FNX168: 0 | FNY168: 0 | FNZ168: 0 | FOA168: 0 | FOB168: 0 | FOC168: 0 | FOD168: 0 | FOE168: 0 | FOF168: 0 | FOG168: 0 | FOH168: 0 | FOI168: 0 | FOJ168: 0 | FOK168: 0 | FOL168: 0 | FOM168: 0 | FON168: 0 | FOO168: 0 | FOP168: 0 | FOQ168: 0 | FOR168: 0 | FOS168: 0 | FOT168: 0 | FOU168: 0 | FOV168: 0 | FOW168: 0 | FOX168: 0 | FOY168: 0 | FOZ168: 0 | FPA168: 0 | FPB168: 0 | FPC168: 0 | FPD168: 0 | FPE168: 0 | FPF168: 0 | FPG168: 0 | FPH168: 0 | FPI168: =FPI145 -> 0 | FPJ168: 0 | FPK168: 0 | FPL168: 0 | FPM168: 0 | FPN168: 0 | FPO168: 0 | FPP168: 0 | FPQ168: 0 | FPR168: 0 | FPS168: 0 | FPT168: 0 | FPU168: 0 | FPV168: 0 | FPW168: 0 | FPX168: 0 | FPY168: 0 | FPZ168: 0 | FQA168: 0 | FQB168: 0 | FQC168: 0 | FQD168: 0 | FQE168: 0 | FQF168: 0 | FQG168: 0 | FQH168: 0 | FQI168: 0 | FQJ168: 0 | FQK168: 0 | FQL168: 0 | FQM168: 0 | FQN168: 0 | FQO168: 0 | FQP168: 0 | FQQ168: 0 | FQR168: 0 | FQS168: 0 | FQT168: 0 | FQU168: 0 | FQV168: 0 | FQW168: 0 | FQX168: 0 | FQY168: 0 | FQZ168: 0 | FRA168: 0 | FRB168: 0 | FRC168: 0 | FRD168: 0 | FRE168: 0 | FRF168: 0 | FRG168: 0 | FRH168: 0 | FRI168: 0 | FRJ168: 0 | FRK168: 0 | FRL168: 0 | FRM168: 0 | FRN168: 0 | FRO168: 0 | FRP168: 0 | FRQ168: 0 | FRR168: 0 | FRS168: 0 | FRT168: 0 | FRU168: =FRU145 -> 0 | FRV168: 0 | FRW168: 0 | FRX168: 0 | FRY168: 0 | FRZ168: 0 | FSA168: 0 | FSB168: 0 | FSC168: 0 | FSD168: 0 | FSE168: 0 | FSF168: 0 | FSG168: 0 | FSH168: 0 | FSI168: 0 | FSJ168: 0 | FSK168: 0 | FSL168: 0 | FSM168: 0 | FSN168: 0 | FSO168: 0 | FSP168: 0 | FSQ168: 0 | FSR168: 0 | FSS168: 0 | FST168: 0 | FSU168: 0 | FSV168: 0 | FSW168: 0 | FSX168: 0 | FSY168: 0 | FSZ168: 0 | FTA168: 0 | FTB168: 0 | FTC168: 0 | FTD168: 0 | FTE168: 0 | FTF168: 0 | FTG168: 0 | FTH168: 0 | FTI168: 0 | FTJ168: 0 | FTK168: 0 | FTL168: 0 | FTM168: 0 | FTN168: 0 | FTO168: 0 | FTP168: 0 | FTQ168: 0 | FTR168: 0 | FTS168: 0 | FTT168: 0 | FTU168: 0 | FTV168: 0 | FTW168: 0 | FTX168: 0 | FTY168: 0 | FTZ168: 0 | FUA168: 0 | FUB168: 0 | FUC168: 0 | FUD168: 0 | FUE168: 0 | FUF168: 0 | FUG168: =FUG145 -> 0 | FUH168: 0 | FUI168: 0 | FUJ168: 0 | FUK168: 0 | FUL168: 0 | FUM168: 0 | FUN168: 0 | FUO168: 0 | FUP168: 0 | FUQ168: 0 | FUR168: 0 | FUS168: 0 | FUT168: 0 | FUU168: 0 | FUV168: 0 | FUW168: 0 | FUX168: 0 | FUY168: 0 | FUZ168: 0 | FVA168: 0 | FVB168: 0 | FVC168: 0 | FVD168: 0 | FVE168: 0 | FVF168: 0 | FVG168: 0 | FVH168: 0 | FVI168: 0 | FVJ168: 0 | FVK168: 0 | FVL168: 0 | FVM168: 0 | FVN168: 0 | FVO168: 0 | FVP168: 0 | FVQ168: 0 | FVR168: 0 | FVS168: 0 | FVT168: 0 | FVU168: 0 | FVV168: 0 | FVW168: 0 | FVX168: 0 | FVY168: 0 | FVZ168: 0 | FWA168: 0 | FWB168: 0 | FWC168: 0 | FWD168: 0 | FWE168: 0 | FWF168: 0 | FWG168: 0 | FWH168: 0 | FWI168: 0 | FWJ168: 0 | FWK168: 0 | FWL168: 0 | FWM168: 0 | FWN168: 0 | FWO168: 0 | FWP168: 0 | FWQ168: 0 | FWR168: 0 | FWS168: =FWS145 -> 0 | FWT168: 0 | FWU168: 0 | FWV168: 0 | FWW168: 0 | FWX168: 0 | FWY168: 0 | FWZ168: 0 | FXA168: 0 | FXB168: 0 | FXC168: 0 | FXD168: 0 | FXE168: 0 | FXF168: 0 | FXG168: 0 | FXH168: 0 | FXI168: 0 | FXJ168: 0 | FXK168: 0 | FXL168: 0 | FXM168: 0 | FXN168: 0 | FXO168: 0 | FXP168: 0 | FXQ168: 0 | FXR168: 0 | FXS168: 0 | FXT168: 0 | FXU168: 0 | FXV168: 0 | FXW168: 0 | FXX168: 0 | FXY168: 0 | FXZ168: 0 | FYA168: 0 | FYB168: 0 | FYC168: 0 | FYD168: 0 | FYE168: 0 | FYF168: 0 | FYG168: 0 | FYH168: 0 | FYI168: 0 | FYJ168: 0 | FYK168: 0 | FYL168: 0 | FYM168: 0 | FYN168: 0 | FYO168: 0 | FYP168: 0 | FYQ168: 0 | FYR168: 0 | FYS168: 0 | FYT168: 0 | FYU168: 0 | FYV168: 0 | FYW168: 0 | FYX168: 0 | FYY168: 0 | FYZ168: 0 | FZA168: 0 | FZB168: 0 | FZC168: 0 | FZD168: 0 | FZE168: =FZE145 -> 0 | FZF168: 0 | FZG168: 0 | FZH168: 0 | FZI168: 0 | FZJ168: 0 | FZK168: 0 | FZL168: 0 | FZM168: 0 | FZN168: 0 | FZO168: 0 | FZP168: 0 | FZQ168: 0 | FZR168: 0 | FZS168: 0 | FZT168: 0 | FZU168: 0 | FZV168: 0 | FZW168: 0 | FZX168: 0 | FZY168: 0 | FZZ168: 0 | GAA168: 0 | GAB168: 0 | GAC168: 0 | GAD168: 0 | GAE168: 0 | GAF168: 0 | GAG168: 0 | GAH168: 0 | GAI168: 0 | GAJ168: 0 | GAK168: 0 | GAL168: 0 | GAM168: 0 | GAN168: 0 | GAO168: 0 | GAP168: 0 | GAQ168: 0 | GAR168: 0 | GAS168: 0 | GAT168: 0 | GAU168: 0 | GAV168: 0 | GAW168: 0 | GAX168: 0 | GAY168: 0 | GAZ168: 0 | GBA168: 0 | GBB168: 0 | GBC168: 0 | GBD168: 0 | GBE168: 0 | GBF168: 0 | GBG168: 0 | GBH168: 0 | GBI168: 0 | GBJ168: 0 | GBK168: 0 | GBL168: 0 | GBM168: 0 | GBN168: 0 | GBO168: 0 | GBP168: 0 | GBQ168: =GBQ145 -> 0 | GBR168: 0 | GBS168: 0 | GBT168: 0 | GBU168: 0 | GBV168: 0 | GBW168: 0 | GBX168: 0 | GBY168: 0 | GBZ168: 0 | GCA168: 0 | GCB168: 0 | GCC168: 0 | GCD168: 0 | GCE168: 0 | GCF168: 0 | GCG168: 0 | GCH168: 0 | GCI168: 0 | GCJ168: 0 | GCK168: 0 | GCL168: 0 | GCM168: 0 | GCN168: 0 | GCO168: 0 | GCP168: 0 | GCQ168: 0 | GCR168: 0 | GCS168: 0 | GCT168: 0 | GCU168: 0 | GCV168: 0 | GCW168: 0 | GCX168: 0 | GCY168: 0 | GCZ168: 0 | GDA168: 0 | GDB168: 0 | GDC168: 0 | GDD168: 0 | GDE168: 0 | GDF168: 0 | GDG168: 0 | GDH168: 0 | GDI168: 0 | GDJ168: 0 | GDK168: 0 | GDL168: 0 | GDM168: 0 | GDN168: 0 | GDO168: 0 | GDP168: 0 | GDQ168: 0 | GDR168: 0 | GDS168: 0 | GDT168: 0 | GDU168: 0 | GDV168: 0 | GDW168: 0 | GDX168: 0 | GDY168: 0 | GDZ168: 0 | GEA168: 0 | GEB168: 0 | GEC168: =GEC145 -> 0 | GED168: 0 | GEE168: 0 | GEF168: 0 | GEG168: 0 | GEH168: 0 | GEI168: 0 | GEJ168: 0 | GEK168: 0 | GEL168: 0 | GEM168: 0 | GEN168: 0 | GEO168: 0 | GEP168: 0 | GEQ168: 0 | GER168: 0 | GES168: 0 | GET168: 0 | GEU168: 0 | GEV168: 0 | GEW168: 0 | GEX168: 0 | GEY168: 0 | GEZ168: 0 | GFA168: 0 | GFB168: 0 | GFC168: 0 | GFD168: 0 | GFE168: 0 | GFF168: 0 | GFG168: 0 | GFH168: 0 | GFI168: 0 | GFJ168: 0 | GFK168: 0 | GFL168: 0 | GFM168: 0 | GFN168: 0 | GFO168: 0 | GFP168: 0 | GFQ168: 0 | GFR168: 0 | GFS168: 0 | GFT168: 0 | GFU168: 0 | GFV168: 0 | GFW168: 0 | GFX168: 0 | GFY168: 0 | GFZ168: 0 | GGA168: 0 | GGB168: 0 | GGC168: 0 | GGD168: 0 | GGE168: 0 | GGF168: 0 | GGG168: 0 | GGH168: 0 | GGI168: 0 | GGJ168: 0 | GGK168: 0 | GGL168: 0 | GGM168: 0 | GGN168: 0 | GGO168: =GGO145 -> 0 | GGP168: 0 | GGQ168: 0 | GGR168: 0 | GGS168: 0 | GGT168: 0 | GGU168: 0 | GGV168: 0 | GGW168: 0 | GGX168: 0 | GGY168: 0 | GGZ168: 0 | GHA168: 0 | GHB168: 0 | GHC168: 0 | GHD168: 0 | GHE168: 0 | GHF168: 0 | GHG168: 0 | GHH168: 0 | GHI168: 0 | GHJ168: 0 | GHK168: 0 | GHL168: 0 | GHM168: 0 | GHN168: 0 | GHO168: 0 | GHP168: 0 | GHQ168: 0 | GHR168: 0 | GHS168: 0 | GHT168: 0 | GHU168: 0 | GHV168: 0 | GHW168: 0 | GHX168: 0 | GHY168: 0 | GHZ168: 0 | GIA168: 0 | GIB168: 0 | GIC168: 0 | GID168: 0 | GIE168: 0 | GIF168: 0 | GIG168: 0 | GIH168: 0 | GII168: 0 | GIJ168: 0 | GIK168: 0 | GIL168: 0 | GIM168: 0 | GIN168: 0 | GIO168: 0 | GIP168: 0 | GIQ168: 0 | GIR168: 0 | GIS168: 0 | GIT168: 0 | GIU168: 0 | GIV168: 0 | GIW168: 0 | GIX168: 0 | GIY168: 0 | GIZ168: 0 | GJA168: =GJA145 -> 0 | GJB168: 0 | GJC168: 0 | GJD168: 0 | GJE168: 0 | GJF168: 0 | GJG168: 0 | GJH168: 0 | GJI168: 0 | GJJ168: 0 | GJK168: 0 | GJL168: 0 | GJM168: 0 | GJN168: 0 | GJO168: 0 | GJP168: 0 | GJQ168: 0 | GJR168: 0 | GJS168: 0 | GJT168: 0 | GJU168: 0 | GJV168: 0 | GJW168: 0 | GJX168: 0 | GJY168: 0 | GJZ168: 0 | GKA168: 0 | GKB168: 0 | GKC168: 0 | GKD168: 0 | GKE168: 0 | GKF168: 0 | GKG168: 0 | GKH168: 0 | GKI168: 0 | GKJ168: 0 | GKK168: 0 | GKL168: 0 | GKM168: 0 | GKN168: 0 | GKO168: 0 | GKP168: 0 | GKQ168: 0 | GKR168: 0 | GKS168: 0 | GKT168: 0 | GKU168: 0 | GKV168: 0 | GKW168: 0 | GKX168: 0 | GKY168: 0 | GKZ168: 0 | GLA168: 0 | GLB168: 0 | GLC168: 0 | GLD168: 0 | GLE168: 0 | GLF168: 0 | GLG168: 0 | GLH168: 0 | GLI168: 0 | GLJ168: 0 | GLK168: 0 | GLL168: 0 | GLM168: =GLM145 -> 0 | GLN168: 0 | GLO168: 0 | GLP168: 0 | GLQ168: 0 | GLR168: 0 | GLS168: 0 | GLT168: 0 | GLU168: 0 | GLV168: 0 | GLW168: 0 | GLX168: 0 | GLY168: 0 | GLZ168: 0 | GMA168: 0 | GMB168: 0 | GMC168: 0 | GMD168: 0 | GME168: 0 | GMF168: 0 | GMG168: 0 | GMH168: 0 | GMI168: 0 | GMJ168: 0 | GMK168: 0 | GML168: 0 | GMM168: 0 | GMN168: 0 | GMO168: 0 | GMP168: 0 | GMQ168: 0 | GMR168: 0 | GMS168: 0 | GMT168: 0 | GMU168: 0 | GMV168: 0 | GMW168: 0 | GMX168: 0 | GMY168: 0 | GMZ168: 0 | GNA168: 0 | GNB168: 0 | GNC168: 0 | GND168: 0 | GNE168: 0 | GNF168: 0 | GNG168: 0 | GNH168: 0 | GNI168: 0 | GNJ168: 0 | GNK168: 0 | GNL168: 0 | GNM168: 0 | GNN168: 0 | GNO168: 0 | GNP168: 0 | GNQ168: 0 | GNR168: 0 | GNS168: 0 | GNT168: 0 | GNU168: 0 | GNV168: 0 | GNW168: 0 | GNX168: 0 | GNY168: =GNY145 -> 0 | GNZ168: 0 | GOA168: 0 | GOB168: 0 | GOC168: 0 | GOD168: 0 | GOE168: 0 | GOF168: 0 | GOG168: 0 | GOH168: 0 | GOI168: 0 | GOJ168: 0 | GOK168: 0 | GOL168: 0 | GOM168: 0 | GON168: 0 | GOO168: 0 | GOP168: 0 | GOQ168: 0 | GOR168: 0 | GOS168: 0 | GOT168: 0 | GOU168: 0 | GOV168: 0 | GOW168: 0 | GOX168: 0 | GOY168: 0 | GOZ168: 0 | GPA168: 0 | GPB168: 0 | GPC168: 0 | GPD168: 0 | GPE168: 0 | GPF168: 0 | GPG168: 0 | GPH168: 0 | GPI168: 0 | GPJ168: 0 | GPK168: 0 | GPL168: 0 | GPM168: 0 | GPN168: 0 | GPO168: 0 | GPP168: 0 | GPQ168: 0 | GPR168: 0 | GPS168: 0 | GPT168: 0 | GPU168: 0 | GPV168: 0 | GPW168: 0 | GPX168: 0 | GPY168: 0 | GPZ168: 0 | GQA168: 0 | GQB168: 0 | GQC168: 0 | GQD168: 0 | GQE168: 0 | GQF168: 0 | GQG168: 0 | GQH168: 0 | GQI168: 0 | GQJ168: 0 | GQK168: =GQK145 -> 0 | GQL168: 0 | GQM168: 0 | GQN168: 0 | GQO168: 0 | GQP168: 0 | GQQ168: 0 | GQR168: 0 | GQS168: 0 | GQT168: 0 | GQU168: 0 | GQV168: 0 | GQW168: 0 | GQX168: 0 | GQY168: 0 | GQZ168: 0 | GRA168: 0 | GRB168: 0 | GRC168: 0 | GRD168: 0 | GRE168: 0 | GRF168: 0 | GRG168: 0 | GRH168: 0 | GRI168: 0 | GRJ168: 0 | GRK168: 0 | GRL168: 0 | GRM168: 0 | GRN168: 0 | GRO168: 0 | GRP168: 0 | GRQ168: 0 | GRR168: 0 | GRS168: 0 | GRT168: 0 | GRU168: 0 | GRV168: 0 | GRW168: 0 | GRX168: 0 | GRY168: 0 | GRZ168: 0 | GSA168: 0 | GSB168: 0 | GSC168: 0 | GSD168: 0 | GSE168: 0 | GSF168: 0 | GSG168: 0 | GSH168: 0 | GSI168: 0 | GSJ168: 0 | GSK168: 0 | GSL168: 0 | GSM168: 0 | GSN168: 0 | GSO168: 0 | GSP168: 0 | GSQ168: 0 | GSR168: 0 | GSS168: 0 | GST168: 0 | GSU168: 0 | GSV168: 0 | GSW168: =GSW145 -> 0 | GSX168: 0 | GSY168: 0 | GSZ168: 0 | GTA168: 0 | GTB168: 0 | GTC168: 0 | GTD168: 0 | GTE168: 0 | GTF168: 0 | GTG168: 0 | GTH168: 0 | GTI168: 0 | GTJ168: 0 | GTK168: 0 | GTL168: 0 | GTM168: 0 | GTN168: 0 | GTO168: 0 | GTP168: 0 | GTQ168: 0 | GTR168: 0 | GTS168: 0 | GTT168: 0 | GTU168: 0 | GTV168: 0 | GTW168: 0 | GTX168: 0 | GTY168: 0 | GTZ168: 0 | GUA168: 0 | GUB168: 0 | GUC168: 0 | GUD168: 0 | GUE168: 0 | GUF168: 0 | GUG168: 0 | GUH168: 0 | GUI168: 0 | GUJ168: 0 | GUK168: 0 | GUL168: 0 | GUM168: 0 | GUN168: 0 | GUO168: 0 | GUP168: 0 | GUQ168: 0 | GUR168: 0 | GUS168: 0 | GUT168: 0 | GUU168: 0 | GUV168: 0 | GUW168: 0 | GUX168: 0 | GUY168: 0 | GUZ168: 0 | GVA168: 0 | GVB168: 0 | GVC168: 0 | GVD168: 0 | GVE168: 0 | GVF168: 0 | GVG168: 0 | GVH168: 0 | GVI168: =GVI145 -> 0 | GVJ168: 0 | GVK168: 0 | GVL168: 0 | GVM168: 0 | GVN168: 0 | GVO168: 0 | GVP168: 0 | GVQ168: 0 | GVR168: 0 | GVS168: 0 | GVT168: 0 | GVU168: 0 | GVV168: 0 | GVW168: 0 | GVX168: 0 | GVY168: 0 | GVZ168: 0 | GWA168: 0 | GWB168: 0 | GWC168: 0 | GWD168: 0 | GWE168: 0 | GWF168: 0 | GWG168: 0 | GWH168: 0 | GWI168: 0 | GWJ168: 0 | GWK168: 0 | GWL168: 0 | GWM168: 0 | GWN168: 0 | GWO168: 0 | GWP168: 0 | GWQ168: 0 | GWR168: 0 | GWS168: 0 | GWT168: 0 | GWU168: 0 | GWV168: 0 | GWW168: 0 | GWX168: 0 | GWY168: 0 | GWZ168: 0 | GXA168: 0 | GXB168: 0 | GXC168: 0 | GXD168: 0 | GXE168: 0 | GXF168: 0 | GXG168: 0 | GXH168: 0 | GXI168: 0 | GXJ168: 0 | GXK168: 0 | GXL168: 0 | GXM168: 0 | GXN168: 0 | GXO168: 0 | GXP168: 0 | GXQ168: 0 | GXR168: 0 | GXS168: 0 | GXT168: 0 | GXU168: =GXU145 -> 0 | GXV168: 0 | GXW168: 0 | GXX168: 0 | GXY168: 0 | GXZ168: 0 | GYA168: 0 | GYB168: 0 | GYC168: 0 | GYD168: 0 | GYE168: 0 | GYF168: 0 | GYG168: 0 | GYH168: 0 | GYI168: 0 | GYJ168: 0 | GYK168: 0 | GYL168: 0 | GYM168: 0 | GYN168: 0 | GYO168: 0 | GYP168: 0 | GYQ168: 0 | GYR168: 0 | GYS168: 0 | GYT168: 0 | GYU168: 0 | GYV168: 0 | GYW168: 0 | GYX168: 0 | GYY168: 0 | GYZ168: 0 | GZA168: 0 | GZB168: 0 | GZC168: 0 | GZD168: 0 | GZE168: 0 | GZF168: 0 | GZG168: 0 | GZH168: 0 | GZI168: 0 | GZJ168: 0 | GZK168: 0 | GZL168: 0 | GZM168: 0 | GZN168: 0 | GZO168: 0 | GZP168: 0 | GZQ168: 0 | GZR168: 0 | GZS168: 0 | GZT168: 0 | GZU168: 0 | GZV168: 0 | GZW168: 0 | GZX168: 0 | GZY168: 0 | GZZ168: 0 | HAA168: 0 | HAB168: 0 | HAC168: 0 | HAD168: 0 | HAE168: 0 | HAF168: 0 | HAG168: =HAG145 -> 0 | HAH168: 0 | HAI168: 0 | HAJ168: 0 | HAK168: 0 | HAL168: 0 | HAM168: 0 | HAN168: 0 | HAO168: 0 | HAP168: 0 | HAQ168: 0 | HAR168: 0 | HAS168: 0 | HAT168: 0 | HAU168: 0 | HAV168: 0 | HAW168: 0 | HAX168: 0 | HAY168: 0 | HAZ168: 0 | HBA168: 0 | HBB168: 0 | HBC168: 0 | HBD168: 0 | HBE168: 0 | HBF168: 0 | HBG168: 0 | HBH168: 0 | HBI168: 0 | HBJ168: 0 | HBK168: 0 | HBL168: 0 | HBM168: 0 | HBN168: 0 | HBO168: 0 | HBP168: 0 | HBQ168: 0 | HBR168: 0 | HBS168: 0 | HBT168: 0 | HBU168: 0 | HBV168: 0 | HBW168: 0 | HBX168: 0 | HBY168: 0 | HBZ168: 0 | HCA168: 0 | HCB168: 0 | HCC168: 0 | HCD168: 0 | HCE168: 0 | HCF168: 0 | HCG168: 0 | HCH168: 0 | HCI168: 0 | HCJ168: 0 | HCK168: 0 | HCL168: 0 | HCM168: 0 | HCN168: 0 | HCO168: 0 | HCP168: 0 | HCQ168: 0 | HCR168: 0 | HCS168: =HCS145 -> 0 | HCT168: 0 | HCU168: 0 | HCV168: 0 | HCW168: 0 | HCX168: 0 | HCY168: 0 | HCZ168: 0 | HDA168: 0 | HDB168: 0 | HDC168: 0 | HDD168: 0 | HDE168: 0 | HDF168: 0 | HDG168: 0 | HDH168: 0 | HDI168: 0 | HDJ168: 0 | HDK168: 0 | HDL168: 0 | HDM168: 0 | HDN168: 0 | HDO168: 0 | HDP168: 0 | HDQ168: 0 | HDR168: 0 | HDS168: 0 | HDT168: 0 | HDU168: 0 | HDV168: 0 | HDW168: 0 | HDX168: 0 | HDY168: 0 | HDZ168: 0 | HEA168: 0 | HEB168: 0 | HEC168: 0 | HED168: 0 | HEE168: 0 | HEF168: 0 | HEG168: 0 | HEH168: 0 | HEI168: 0 | HEJ168: 0 | HEK168: 0 | HEL168: 0 | HEM168: 0 | HEN168: 0 | HEO168: 0 | HEP168: 0 | HEQ168: 0 | HER168: 0 | HES168: 0 | HET168: 0 | HEU168: 0 | HEV168: 0 | HEW168: 0 | HEX168: 0 | HEY168: 0 | HEZ168: 0 | HFA168: 0 | HFB168: 0 | HFC168: 0 | HFD168: 0 | HFE168: =HFE145 -> 0 | HFF168: 0 | HFG168: 0 | HFH168: 0 | HFI168: 0 | HFJ168: 0 | HFK168: 0 | HFL168: 0 | HFM168: 0 | HFN168: 0 | HFO168: 0 | HFP168: 0 | HFQ168: 0 | HFR168: 0 | HFS168: 0 | HFT168: 0 | HFU168: 0 | HFV168: 0 | HFW168: 0 | HFX168: 0 | HFY168: 0 | HFZ168: 0 | HGA168: 0 | HGB168: 0 | HGC168: 0 | HGD168: 0 | HGE168: 0 | HGF168: 0 | HGG168: 0 | HGH168: 0 | HGI168: 0 | HGJ168: 0 | HGK168: 0 | HGL168: 0 | HGM168: 0 | HGN168: 0 | HGO168: 0 | HGP168: 0 | HGQ168: 0 | HGR168: 0 | HGS168: 0 | HGT168: 0 | HGU168: 0 | HGV168: 0 | HGW168: 0 | HGX168: 0 | HGY168: 0 | HGZ168: 0 | HHA168: 0 | HHB168: 0 | HHC168: 0 | HHD168: 0 | HHE168: 0 | HHF168: 0 | HHG168: 0 | HHH168: 0 | HHI168: 0 | HHJ168: 0 | HHK168: 0 | HHL168: 0 | HHM168: 0 | HHN168: 0 | HHO168: 0 | HHP168: 0 | HHQ168: =HHQ145 -> 0 | HHR168: 0 | HHS168: 0 | HHT168: 0 | HHU168: 0 | HHV168: 0 | HHW168: 0 | HHX168: 0 | HHY168: 0 | HHZ168: 0 | HIA168: 0 | HIB168: 0 | HIC168: 0 | HID168: 0 | HIE168: 0 | HIF168: 0 | HIG168: 0 | HIH168: 0 | HII168: 0 | HIJ168: 0 | HIK168: 0 | HIL168: 0 | HIM168: 0 | HIN168: 0 | HIO168: 0 | HIP168: 0 | HIQ168: 0 | HIR168: 0 | HIS168: 0 | HIT168: 0 | HIU168: 0 | HIV168: 0 | HIW168: 0 | HIX168: 0 | HIY168: 0 | HIZ168: 0 | HJA168: 0 | HJB168: 0 | HJC168: 0 | HJD168: 0 | HJE168: 0 | HJF168: 0 | HJG168: 0 | HJH168: 0 | HJI168: 0 | HJJ168: 0 | HJK168: 0 | HJL168: 0 | HJM168: 0 | HJN168: 0 | HJO168: 0 | HJP168: 0 | HJQ168: 0 | HJR168: 0 | HJS168: 0 | HJT168: 0 | HJU168: 0 | HJV168: 0 | HJW168: 0 | HJX168: 0 | HJY168: 0 | HJZ168: 0 | HKA168: 0 | HKB168: 0 | HKC168: =HKC145 -> 0 | HKD168: 0 | HKE168: 0 | HKF168: 0 | HKG168: 0 | HKH168: 0 | HKI168: 0 | HKJ168: 0 | HKK168: 0 | HKL168: 0 | HKM168: 0 | HKN168: 0 | HKO168: 0 | HKP168: 0 | HKQ168: 0 | HKR168: 0 | HKS168: 0 | HKT168: 0 | HKU168: 0 | HKV168: 0 | HKW168: 0 | HKX168: 0 | HKY168: 0 | HKZ168: 0 | HLA168: 0 | HLB168: 0 | HLC168: 0 | HLD168: 0 | HLE168: 0 | HLF168: 0 | HLG168: 0 | HLH168: 0 | HLI168: 0 | HLJ168: 0 | HLK168: 0 | HLL168: 0 | HLM168: 0 | HLN168: 0 | HLO168: 0 | HLP168: 0 | HLQ168: 0 | HLR168: 0 | HLS168: 0 | HLT168: 0 | HLU168: 0 | HLV168: 0 | HLW168: 0 | HLX168: 0 | HLY168: 0 | HLZ168: 0 | HMA168: 0 | HMB168: 0 | HMC168: 0 | HMD168: 0 | HME168: 0 | HMF168: 0 | HMG168: 0 | HMH168: 0 | HMI168: 0 | HMJ168: 0 | HMK168: 0 | HML168: 0 | HMM168: 0 | HMN168: 0 | HMO168: =HMO145 -> 0 | HMP168: 0 | HMQ168: 0 | HMR168: 0 | HMS168: 0 | HMT168: 0 | HMU168: 0 | HMV168: 0 | HMW168: 0 | HMX168: 0 | HMY168: 0 | HMZ168: 0 | HNA168: 0 | HNB168: 0 | HNC168: 0 | HND168: 0 | HNE168: 0 | HNF168: 0 | HNG168: 0 | HNH168: 0 | HNI168: 0 | HNJ168: 0 | HNK168: 0 | HNL168: 0 | HNM168: 0 | HNN168: 0 | HNO168: 0 | HNP168: 0 | HNQ168: 0 | HNR168: 0 | HNS168: 0 | HNT168: 0 | HNU168: 0 | HNV168: 0 | HNW168: 0 | HNX168: 0 | HNY168: 0 | HNZ168: 0 | HOA168: 0 | HOB168: 0 | HOC168: 0 | HOD168: 0 | HOE168: 0 | HOF168: 0 | HOG168: 0 | HOH168: 0 | HOI168: 0 | HOJ168: 0 | HOK168: 0 | HOL168: 0 | HOM168: 0 | HON168: 0 | HOO168: 0 | HOP168: 0 | HOQ168: 0 | HOR168: 0 | HOS168: 0 | HOT168: 0 | HOU168: 0 | HOV168: 0 | HOW168: 0 | HOX168: 0 | HOY168: 0 | HOZ168: 0 | HPA168: =HPA145 -> 0 | HPB168: 0 | HPC168: 0 | HPD168: 0 | HPE168: 0 | HPF168: 0 | HPG168: 0 | HPH168: 0 | HPI168: 0 | HPJ168: 0 | HPK168: 0 | HPL168: 0 | HPM168: 0 | HPN168: 0 | HPO168: 0 | HPP168: 0 | HPQ168: 0 | HPR168: 0 | HPS168: 0 | HPT168: 0 | HPU168: 0 | HPV168: 0 | HPW168: 0 | HPX168: 0 | HPY168: 0 | HPZ168: 0 | HQA168: 0 | HQB168: 0 | HQC168: 0 | HQD168: 0 | HQE168: 0 | HQF168: 0 | HQG168: 0 | HQH168: 0 | HQI168: 0 | HQJ168: 0 | HQK168: 0 | HQL168: 0 | HQM168: 0 | HQN168: 0 | HQO168: 0 | HQP168: 0 | HQQ168: 0 | HQR168: 0 | HQS168: 0 | HQT168: 0 | HQU168: 0 | HQV168: 0 | HQW168: 0 | HQX168: 0 | HQY168: 0 | HQZ168: 0 | HRA168: 0 | HRB168: 0 | HRC168: 0 | HRD168: 0 | HRE168: 0 | HRF168: 0 | HRG168: 0 | HRH168: 0 | HRI168: 0 | HRJ168: 0 | HRK168: 0 | HRL168: 0 | HRM168: =HRM145 -> 0 | HRN168: 0 | HRO168: 0 | HRP168: 0 | HRQ168: 0 | HRR168: 0 | HRS168: 0 | HRT168: 0 | HRU168: 0 | HRV168: 0 | HRW168: 0 | HRX168: 0 | HRY168: 0 | HRZ168: 0 | HSA168: 0 | HSB168: 0 | HSC168: 0 | HSD168: 0 | HSE168: 0 | HSF168: 0 | HSG168: 0 | HSH168: 0 | HSI168: 0 | HSJ168: 0 | HSK168: 0 | HSL168: 0 | HSM168: 0 | HSN168: 0 | HSO168: 0 | HSP168: 0 | HSQ168: 0 | HSR168: 0 | HSS168: 0 | HST168: 0 | HSU168: 0 | HSV168: 0 | HSW168: 0 | HSX168: 0 | HSY168: 0 | HSZ168: 0 | HTA168: 0 | HTB168: 0 | HTC168: 0 | HTD168: 0 | HTE168: 0 | HTF168: 0 | HTG168: 0 | HTH168: 0 | HTI168: 0 | HTJ168: 0 | HTK168: 0 | HTL168: 0 | HTM168: 0 | HTN168: 0 | HTO168: 0 | HTP168: 0 | HTQ168: 0 | HTR168: 0 | HTS168: 0 | HTT168: 0 | HTU168: 0 | HTV168: 0 | HTW168: 0 | HTX168: 0 | HTY168: =HTY145 -> 0 | HTZ168: 0 | HUA168: 0 | HUB168: 0 | HUC168: 0 | HUD168: 0 | HUE168: 0 | HUF168: 0 | HUG168: 0 | HUH168: 0 | HUI168: 0 | HUJ168: 0 | HUK168: 0 | HUL168: 0 | HUM168: 0 | HUN168: 0 | HUO168: 0 | HUP168: 0 | HUQ168: 0 | HUR168: 0 | HUS168: 0 | HUT168: 0 | HUU168: 0 | HUV168: 0 | HUW168: 0 | HUX168: 0 | HUY168: 0 | HUZ168: 0 | HVA168: 0 | HVB168: 0 | HVC168: 0 | HVD168: 0 | HVE168: 0 | HVF168: 0 | HVG168: 0 | HVH168: 0 | HVI168: 0 | HVJ168: 0 | HVK168: 0 | HVL168: 0 | HVM168: 0 | HVN168: 0 | HVO168: 0 | HVP168: 0 | HVQ168: 0 | HVR168: 0 | HVS168: 0 | HVT168: 0 | HVU168: 0 | HVV168: 0 | HVW168: 0 | HVX168: 0 | HVY168: 0 | HVZ168: 0 | HWA168: 0 | HWB168: 0 | HWC168: 0 | HWD168: 0 | HWE168: 0 | HWF168: 0 | HWG168: 0 | HWH168: 0 | HWI168: 0 | HWJ168: 0 | HWK168: =HWK145 -> 0 | HWL168: 0 | HWM168: 0 | HWN168: 0 | HWO168: 0 | HWP168: 0 | HWQ168: 0 | HWR168: 0 | HWS168: 0 | HWT168: 0 | HWU168: 0 | HWV168: 0 | HWW168: 0 | HWX168: 0 | HWY168: 0 | HWZ168: 0 | HXA168: 0 | HXB168: 0 | HXC168: 0 | HXD168: 0 | HXE168: 0 | HXF168: 0 | HXG168: 0 | HXH168: 0 | HXI168: 0 | HXJ168: 0 | HXK168: 0 | HXL168: 0 | HXM168: 0 | HXN168: 0 | HXO168: 0 | HXP168: 0 | HXQ168: 0 | HXR168: 0 | HXS168: 0 | HXT168: 0 | HXU168: 0 | HXV168: 0 | HXW168: 0 | HXX168: 0 | HXY168: 0 | HXZ168: 0 | HYA168: 0 | HYB168: 0 | HYC168: 0 | HYD168: 0 | HYE168: 0 | HYF168: 0 | HYG168: 0 | HYH168: 0 | HYI168: 0 | HYJ168: 0 | HYK168: 0 | HYL168: 0 | HYM168: 0 | HYN168: 0 | HYO168: 0 | HYP168: 0 | HYQ168: 0 | HYR168: 0 | HYS168: 0 | HYT168: 0 | HYU168: 0 | HYV168: 0 | HYW168: =HYW145 -> 0 | HYX168: 0 | HYY168: 0 | HYZ168: 0 | HZA168: 0 | HZB168: 0 | HZC168: 0 | HZD168: 0 | HZE168: 0 | HZF168: 0 | HZG168: 0 | HZH168: 0 | HZI168: 0 | HZJ168: 0 | HZK168: 0 | HZL168: 0 | HZM168: 0 | HZN168: 0 | HZO168: 0 | HZP168: 0 | HZQ168: 0 | HZR168: 0 | HZS168: 0 | HZT168: 0 | HZU168: 0 | HZV168: 0 | HZW168: 0 | HZX168: 0 | HZY168: 0 | HZZ168: 0 | IAA168: 0 | IAB168: 0 | IAC168: 0 | IAD168: 0 | IAE168: 0 | IAF168: 0 | IAG168: 0 | IAH168: 0 | IAI168: 0 | IAJ168: 0 | IAK168: 0 | IAL168: 0 | IAM168: 0 | IAN168: 0 | IAO168: 0 | IAP168: 0 | IAQ168: 0 | IAR168: 0 | IAS168: 0 | IAT168: 0 | IAU168: 0 | IAV168: 0 | IAW168: 0 | IAX168: 0 | IAY168: 0 | IAZ168: 0 | IBA168: 0 | IBB168: 0 | IBC168: 0 | IBD168: 0 | IBE168: 0 | IBF168: 0 | IBG168: 0 | IBH168: 0 | IBI168: =IBI145 -> 0 | IBJ168: 0 | IBK168: 0 | IBL168: 0 | IBM168: 0 | IBN168: 0 | IBO168: 0 | IBP168: 0 | IBQ168: 0 | IBR168: 0 | IBS168: 0 | IBT168: 0 | IBU168: 0 | IBV168: 0 | IBW168: 0 | IBX168: 0 | IBY168: 0 | IBZ168: 0 | ICA168: 0 | ICB168: 0 | ICC168: 0 | ICD168: 0 | ICE168: 0 | ICF168: 0 | ICG168: 0 | ICH168: 0 | ICI168: 0 | ICJ168: 0 | ICK168: 0 | ICL168: 0 | ICM168: 0 | ICN168: 0 | ICO168: 0 | ICP168: 0 | ICQ168: 0 | ICR168: 0 | ICS168: 0 | ICT168: 0 | ICU168: 0 | ICV168: 0 | ICW168: 0 | ICX168: 0 | ICY168: 0 | ICZ168: 0 | IDA168: 0 | IDB168: 0 | IDC168: 0 | IDD168: 0 | IDE168: 0 | IDF168: 0 | IDG168: 0 | IDH168: 0 | IDI168: 0 | IDJ168: 0 | IDK168: 0 | IDL168: 0 | IDM168: 0 | IDN168: 0 | IDO168: 0 | IDP168: 0 | IDQ168: 0 | IDR168: 0 | IDS168: 0 | IDT168: 0 | IDU168: =IDU145 -> 0 | IDV168: 0 | IDW168: 0 | IDX168: 0 | IDY168: 0 | IDZ168: 0 | IEA168: 0 | IEB168: 0 | IEC168: 0 | IED168: 0 | IEE168: 0 | IEF168: 0 | IEG168: 0 | IEH168: 0 | IEI168: 0 | IEJ168: 0 | IEK168: 0 | IEL168: 0 | IEM168: 0 | IEN168: 0 | IEO168: 0 | IEP168: 0 | IEQ168: 0 | IER168: 0 | IES168: 0 | IET168: 0 | IEU168: 0 | IEV168: 0 | IEW168: 0 | IEX168: 0 | IEY168: 0 | IEZ168: 0 | IFA168: 0 | IFB168: 0 | IFC168: 0 | IFD168: 0 | IFE168: 0 | IFF168: 0 | IFG168: 0 | IFH168: 0 | IFI168: 0 | IFJ168: 0 | IFK168: 0 | IFL168: 0 | IFM168: 0 | IFN168: 0 | IFO168: 0 | IFP168: 0 | IFQ168: 0 | IFR168: 0 | IFS168: 0 | IFT168: 0 | IFU168: 0 | IFV168: 0 | IFW168: 0 | IFX168: 0 | IFY168: 0 | IFZ168: 0 | IGA168: 0 | IGB168: 0 | IGC168: 0 | IGD168: 0 | IGE168: 0 | IGF168: 0 | IGG168: =IGG145 -> 0 | IGH168: 0 | IGI168: 0 | IGJ168: 0 | IGK168: 0 | IGL168: 0 | IGM168: 0 | IGN168: 0 | IGO168: 0 | IGP168: 0 | IGQ168: 0 | IGR168: 0 | IGS168: 0 | IGT168: 0 | IGU168: 0 | IGV168: 0 | IGW168: 0 | IGX168: 0 | IGY168: 0 | IGZ168: 0 | IHA168: 0 | IHB168: 0 | IHC168: 0 | IHD168: 0 | IHE168: 0 | IHF168: 0 | IHG168: 0 | IHH168: 0 | IHI168: 0 | IHJ168: 0 | IHK168: 0 | IHL168: 0 | IHM168: 0 | IHN168: 0 | IHO168: 0 | IHP168: 0 | IHQ168: 0 | IHR168: 0 | IHS168: 0 | IHT168: 0 | IHU168: 0 | IHV168: 0 | IHW168: 0 | IHX168: 0 | IHY168: 0 | IHZ168: 0 | IIA168: 0 | IIB168: 0 | IIC168: 0 | IID168: 0 | IIE168: 0 | IIF168: 0 | IIG168: 0 | IIH168: 0 | III168: 0 | IIJ168: 0 | IIK168: 0 | IIL168: 0 | IIM168: 0 | IIN168: 0 | IIO168: 0 | IIP168: 0 | IIQ168: 0 | IIR168: 0 | IIS168: =IIS145 -> 0 | IIT168: 0 | IIU168: 0 | IIV168: 0 | IIW168: 0 | IIX168: 0 | IIY168: 0 | IIZ168: 0 | IJA168: 0 | IJB168: 0 | IJC168: 0 | IJD168: 0 | IJE168: 0 | IJF168: 0 | IJG168: 0 | IJH168: 0 | IJI168: 0 | IJJ168: 0 | IJK168: 0 | IJL168: 0 | IJM168: 0 | IJN168: 0 | IJO168: 0 | IJP168: 0 | IJQ168: 0 | IJR168: 0 | IJS168: 0 | IJT168: 0 | IJU168: 0 | IJV168: 0 | IJW168: 0 | IJX168: 0 | IJY168: 0 | IJZ168: 0 | IKA168: 0 | IKB168: 0 | IKC168: 0 | IKD168: 0 | IKE168: 0 | IKF168: 0 | IKG168: 0 | IKH168: 0 | IKI168: 0 | IKJ168: 0 | IKK168: 0 | IKL168: 0 | IKM168: 0 | IKN168: 0 | IKO168: 0 | IKP168: 0 | IKQ168: 0 | IKR168: 0 | IKS168: 0 | IKT168: 0 | IKU168: 0 | IKV168: 0 | IKW168: 0 | IKX168: 0 | IKY168: 0 | IKZ168: 0 | ILA168: 0 | ILB168: 0 | ILC168: 0 | ILD168: 0 | ILE168: =ILE145 -> 0 | ILF168: 0 | ILG168: 0 | ILH168: 0 | ILI168: 0 | ILJ168: 0 | ILK168: 0 | ILL168: 0 | ILM168: 0 | ILN168: 0 | ILO168: 0 | ILP168: 0 | ILQ168: 0 | ILR168: 0 | ILS168: 0 | ILT168: 0 | ILU168: 0 | ILV168: 0 | ILW168: 0 | ILX168: 0 | ILY168: 0 | ILZ168: 0 | IMA168: 0 | IMB168: 0 | IMC168: 0 | IMD168: 0 | IME168: 0 | IMF168: 0 | IMG168: 0 | IMH168: 0 | IMI168: 0 | IMJ168: 0 | IMK168: 0 | IML168: 0 | IMM168: 0 | IMN168: 0 | IMO168: 0 | IMP168: 0 | IMQ168: 0 | IMR168: 0 | IMS168: 0 | IMT168: 0 | IMU168: 0 | IMV168: 0 | IMW168: 0 | IMX168: 0 | IMY168: 0 | IMZ168: 0 | INA168: 0 | INB168: 0 | INC168: 0 | IND168: 0 | INE168: 0 | INF168: 0 | ING168: 0 | INH168: 0 | INI168: 0 | INJ168: 0 | INK168: 0 | INL168: 0 | INM168: 0 | INN168: 0 | INO168: 0 | INP168: 0 | INQ168: =INQ145 -> 0 | INR168: 0 | INS168: 0 | INT168: 0 | INU168: 0 | INV168: 0 | INW168: 0 | INX168: 0 | INY168: 0 | INZ168: 0 | IOA168: 0 | IOB168: 0 | IOC168: 0 | IOD168: 0 | IOE168: 0 | IOF168: 0 | IOG168: 0 | IOH168: 0 | IOI168: 0 | IOJ168: 0 | IOK168: 0 | IOL168: 0 | IOM168: 0 | ION168: 0 | IOO168: 0 | IOP168: 0 | IOQ168: 0 | IOR168: 0 | IOS168: 0 | IOT168: 0 | IOU168: 0 | IOV168: 0 | IOW168: 0 | IOX168: 0 | IOY168: 0 | IOZ168: 0 | IPA168: 0 | IPB168: 0 | IPC168: 0 | IPD168: 0 | IPE168: 0 | IPF168: 0 | IPG168: 0 | IPH168: 0 | IPI168: 0 | IPJ168: 0 | IPK168: 0 | IPL168: 0 | IPM168: 0 | IPN168: 0 | IPO168: 0 | IPP168: 0 | IPQ168: 0 | IPR168: 0 | IPS168: 0 | IPT168: 0 | IPU168: 0 | IPV168: 0 | IPW168: 0 | IPX168: 0 | IPY168: 0 | IPZ168: 0 | IQA168: 0 | IQB168: 0 | IQC168: =IQC145 -> 0 | IQD168: 0 | IQE168: 0 | IQF168: 0 | IQG168: 0 | IQH168: 0 | IQI168: 0 | IQJ168: 0 | IQK168: 0 | IQL168: 0 | IQM168: 0 | IQN168: 0 | IQO168: 0 | IQP168: 0 | IQQ168: 0 | IQR168: 0 | IQS168: 0 | IQT168: 0 | IQU168: 0 | IQV168: 0 | IQW168: 0 | IQX168: 0 | IQY168: 0 | IQZ168: 0 | IRA168: 0 | IRB168: 0 | IRC168: 0 | IRD168: 0 | IRE168: 0 | IRF168: 0 | IRG168: 0 | IRH168: 0 | IRI168: 0 | IRJ168: 0 | IRK168: 0 | IRL168: 0 | IRM168: 0 | IRN168: 0 | IRO168: 0 | IRP168: 0 | IRQ168: 0 | IRR168: 0 | IRS168: 0 | IRT168: 0 | IRU168: 0 | IRV168: 0 | IRW168: 0 | IRX168: 0 | IRY168: 0 | IRZ168: 0 | ISA168: 0 | ISB168: 0 | ISC168: 0 | ISD168: 0 | ISE168: 0 | ISF168: 0 | ISG168: 0 | ISH168: 0 | ISI168: 0 | ISJ168: 0 | ISK168: 0 | ISL168: 0 | ISM168: 0 | ISN168: 0 | ISO168: =ISO145 -> 0 | ISP168: 0 | ISQ168: 0 | ISR168: 0 | ISS168: 0 | IST168: 0 | ISU168: 0 | ISV168: 0 | ISW168: 0 | ISX168: 0 | ISY168: 0 | ISZ168: 0 | ITA168: 0 | ITB168: 0 | ITC168: 0 | ITD168: 0 | ITE168: 0 | ITF168: 0 | ITG168: 0 | ITH168: 0 | ITI168: 0 | ITJ168: 0 | ITK168: 0 | ITL168: 0 | ITM168: 0 | ITN168: 0 | ITO168: 0 | ITP168: 0 | ITQ168: 0 | ITR168: 0 | ITS168: 0 | ITT168: 0 | ITU168: 0 | ITV168: 0 | ITW168: 0 | ITX168: 0 | ITY168: 0 | ITZ168: 0 | IUA168: 0 | IUB168: 0 | IUC168: 0 | IUD168: 0 | IUE168: 0 | IUF168: 0 | IUG168: 0 | IUH168: 0 | IUI168: 0 | IUJ168: 0 | IUK168: 0 | IUL168: 0 | IUM168: 0 | IUN168: 0 | IUO168: 0 | IUP168: 0 | IUQ168: 0 | IUR168: 0 | IUS168: 0 | IUT168: 0 | IUU168: 0 | IUV168: 0 | IUW168: 0 | IUX168: 0 | IUY168: 0 | IUZ168: 0 | IVA168: =IVA145 -> 0 | IVB168: 0 | IVC168: 0 | IVD168: 0 | IVE168: 0 | IVF168: 0 | IVG168: 0 | IVH168: 0 | IVI168: 0 | IVJ168: 0 | IVK168: 0 | IVL168: 0 | IVM168: 0 | IVN168: 0 | IVO168: 0 | IVP168: 0 | IVQ168: 0 | IVR168: 0 | IVS168: 0 | IVT168: 0 | IVU168: 0 | IVV168: 0 | IVW168: 0 | IVX168: 0 | IVY168: 0 | IVZ168: 0 | IWA168: 0 | IWB168: 0 | IWC168: 0 | IWD168: 0 | IWE168: 0 | IWF168: 0 | IWG168: 0 | IWH168: 0 | IWI168: 0 | IWJ168: 0 | IWK168: 0 | IWL168: 0 | IWM168: 0 | IWN168: 0 | IWO168: 0 | IWP168: 0 | IWQ168: 0 | IWR168: 0 | IWS168: 0 | IWT168: 0 | IWU168: 0 | IWV168: 0 | IWW168: 0 | IWX168: 0 | IWY168: 0 | IWZ168: 0 | IXA168: 0 | IXB168: 0 | IXC168: 0 | IXD168: 0 | IXE168: 0 | IXF168: 0 | IXG168: 0 | IXH168: 0 | IXI168: 0 | IXJ168: 0 | IXK168: 0 | IXL168: 0 | IXM168: =IXM145 -> 0 | IXN168: 0 | IXO168: 0 | IXP168: 0 | IXQ168: 0 | IXR168: 0 | IXS168: 0 | IXT168: 0 | IXU168: 0 | IXV168: 0 | IXW168: 0 | IXX168: 0 | IXY168: 0 | IXZ168: 0 | IYA168: 0 | IYB168: 0 | IYC168: 0 | IYD168: 0 | IYE168: 0 | IYF168: 0 | IYG168: 0 | IYH168: 0 | IYI168: 0 | IYJ168: 0 | IYK168: 0 | IYL168: 0 | IYM168: 0 | IYN168: 0 | IYO168: 0 | IYP168: 0 | IYQ168: 0 | IYR168: 0 | IYS168: 0 | IYT168: 0 | IYU168: 0 | IYV168: 0 | IYW168: 0 | IYX168: 0 | IYY168: 0 | IYZ168: 0 | IZA168: 0 | IZB168: 0 | IZC168: 0 | IZD168: 0 | IZE168: 0 | IZF168: 0 | IZG168: 0 | IZH168: 0 | IZI168: 0 | IZJ168: 0 | IZK168: 0 | IZL168: 0 | IZM168: 0 | IZN168: 0 | IZO168: 0 | IZP168: 0 | IZQ168: 0 | IZR168: 0 | IZS168: 0 | IZT168: 0 | IZU168: 0 | IZV168: 0 | IZW168: 0 | IZX168: 0 | IZY168: =IZY145 -> 0 | IZZ168: 0 | JAA168: 0 | JAB168: 0 | JAC168: 0 | JAD168: 0 | JAE168: 0 | JAF168: 0 | JAG168: 0 | JAH168: 0 | JAI168: 0 | JAJ168: 0 | JAK168: 0 | JAL168: 0 | JAM168: 0 | JAN168: 0 | JAO168: 0 | JAP168: 0 | JAQ168: 0 | JAR168: 0 | JAS168: 0 | JAT168: 0 | JAU168: 0 | JAV168: 0 | JAW168: 0 | JAX168: 0 | JAY168: 0 | JAZ168: 0 | JBA168: 0 | JBB168: 0 | JBC168: 0 | JBD168: 0 | JBE168: 0 | JBF168: 0 | JBG168: 0 | JBH168: 0 | JBI168: 0 | JBJ168: 0 | JBK168: 0 | JBL168: 0 | JBM168: 0 | JBN168: 0 | JBO168: 0 | JBP168: 0 | JBQ168: 0 | JBR168: 0 | JBS168: 0 | JBT168: 0 | JBU168: 0 | JBV168: 0 | JBW168: 0 | JBX168: 0 | JBY168: 0 | JBZ168: 0 | JCA168: 0 | JCB168: 0 | JCC168: 0 | JCD168: 0 | JCE168: 0 | JCF168: 0 | JCG168: 0 | JCH168: 0 | JCI168: 0 | JCJ168: 0 | JCK168: =JCK145 -> 0 | JCL168: 0 | JCM168: 0 | JCN168: 0 | JCO168: 0 | JCP168: 0 | JCQ168: 0 | JCR168: 0 | JCS168: 0 | JCT168: 0 | JCU168: 0 | JCV168: 0 | JCW168: 0 | JCX168: 0 | JCY168: 0 | JCZ168: 0 | JDA168: 0 | JDB168: 0 | JDC168: 0 | JDD168: 0 | JDE168: 0 | JDF168: 0 | JDG168: 0 | JDH168: 0 | JDI168: 0 | JDJ168: 0 | JDK168: 0 | JDL168: 0 | JDM168: 0 | JDN168: 0 | JDO168: 0 | JDP168: 0 | JDQ168: 0 | JDR168: 0 | JDS168: 0 | JDT168: 0 | JDU168: 0 | JDV168: 0 | JDW168: 0 | JDX168: 0 | JDY168: 0 | JDZ168: 0 | JEA168: 0 | JEB168: 0 | JEC168: 0 | JED168: 0 | JEE168: 0 | JEF168: 0 | JEG168: 0 | JEH168: 0 | JEI168: 0 | JEJ168: 0 | JEK168: 0 | JEL168: 0 | JEM168: 0 | JEN168: 0 | JEO168: 0 | JEP168: 0 | JEQ168: 0 | JER168: 0 | JES168: 0 | JET168: 0 | JEU168: 0 | JEV168: 0 | JEW168: =JEW145 -> 0 | JEX168: 0 | JEY168: 0 | JEZ168: 0 | JFA168: 0 | JFB168: 0 | JFC168: 0 | JFD168: 0 | JFE168: 0 | JFF168: 0 | JFG168: 0 | JFH168: 0 | JFI168: 0 | JFJ168: 0 | JFK168: 0 | JFL168: 0 | JFM168: 0 | JFN168: 0 | JFO168: 0 | JFP168: 0 | JFQ168: 0 | JFR168: 0 | JFS168: 0 | JFT168: 0 | JFU168: 0 | JFV168: 0 | JFW168: 0 | JFX168: 0 | JFY168: 0 | JFZ168: 0 | JGA168: 0 | JGB168: 0 | JGC168: 0 | JGD168: 0 | JGE168: 0 | JGF168: 0 | JGG168: 0 | JGH168: 0 | JGI168: 0 | JGJ168: 0 | JGK168: 0 | JGL168: 0 | JGM168: 0 | JGN168: 0 | JGO168: 0 | JGP168: 0 | JGQ168: 0 | JGR168: 0 | JGS168: 0 | JGT168: 0 | JGU168: 0 | JGV168: 0 | JGW168: 0 | JGX168: 0 | JGY168: 0 | JGZ168: 0 | JHA168: 0 | JHB168: 0 | JHC168: 0 | JHD168: 0 | JHE168: 0 | JHF168: 0 | JHG168: 0 | JHH168: 0 | JHI168: =JHI145 -> 0 | JHJ168: 0 | JHK168: 0 | JHL168: 0 | JHM168: 0 | JHN168: 0 | JHO168: 0 | JHP168: 0 | JHQ168: 0 | JHR168: 0 | JHS168: 0 | JHT168: 0 | JHU168: 0 | JHV168: 0 | JHW168: 0 | JHX168: 0 | JHY168: 0 | JHZ168: 0 | JIA168: 0 | JIB168: 0 | JIC168: 0 | JID168: 0 | JIE168: 0 | JIF168: 0 | JIG168: 0 | JIH168: 0 | JII168: 0 | JIJ168: 0 | JIK168: 0 | JIL168: 0 | JIM168: 0 | JIN168: 0 | JIO168: 0 | JIP168: 0 | JIQ168: 0 | JIR168: 0 | JIS168: 0 | JIT168: 0 | JIU168: 0 | JIV168: 0 | JIW168: 0 | JIX168: 0 | JIY168: 0 | JIZ168: 0 | JJA168: 0 | JJB168: 0 | JJC168: 0 | JJD168: 0 | JJE168: 0 | JJF168: 0 | JJG168: 0 | JJH168: 0 | JJI168: 0 | JJJ168: 0 | JJK168: 0 | JJL168: 0 | JJM168: 0 | JJN168: 0 | JJO168: 0 | JJP168: 0 | JJQ168: 0 | JJR168: 0 | JJS168: 0 | JJT168: 0 | JJU168: =JJU145 -> 0 | JJV168: 0 | JJW168: 0 | JJX168: 0 | JJY168: 0 | JJZ168: 0 | JKA168: 0 | JKB168: 0 | JKC168: 0 | JKD168: 0 | JKE168: 0 | JKF168: 0 | JKG168: 0 | JKH168: 0 | JKI168: 0 | JKJ168: 0 | JKK168: 0 | JKL168: 0 | JKM168: 0 | JKN168: 0 | JKO168: 0 | JKP168: 0 | JKQ168: 0 | JKR168: 0 | JKS168: 0 | JKT168: 0 | JKU168: 0 | JKV168: 0 | JKW168: 0 | JKX168: 0 | JKY168: 0 | JKZ168: 0 | JLA168: 0 | JLB168: 0 | JLC168: 0 | JLD168: 0 | JLE168: 0 | JLF168: 0 | JLG168: 0 | JLH168: 0 | JLI168: 0 | JLJ168: 0 | JLK168: 0 | JLL168: 0 | JLM168: 0 | JLN168: 0 | JLO168: 0 | JLP168: 0 | JLQ168: 0 | JLR168: 0 | JLS168: 0 | JLT168: 0 | JLU168: 0 | JLV168: 0 | JLW168: 0 | JLX168: 0 | JLY168: 0 | JLZ168: 0 | JMA168: 0 | JMB168: 0 | JMC168: 0 | JMD168: 0 | JME168: 0 | JMF168: 0 | JMG168: =JMG145 -> 0 | JMH168: 0 | JMI168: 0 | JMJ168: 0 | JMK168: 0 | JML168: 0 | JMM168: 0 | JMN168: 0 | JMO168: 0 | JMP168: 0 | JMQ168: 0 | JMR168: 0 | JMS168: 0 | JMT168: 0 | JMU168: 0 | JMV168: 0 | JMW168: 0 | JMX168: 0 | JMY168: 0 | JMZ168: 0 | JNA168: 0 | JNB168: 0 | JNC168: 0 | JND168: 0 | JNE168: 0 | JNF168: 0 | JNG168: 0 | JNH168: 0 | JNI168: 0 | JNJ168: 0 | JNK168: 0 | JNL168: 0 | JNM168: 0 | JNN168: 0 | JNO168: 0 | JNP168: 0 | JNQ168: 0 | JNR168: 0 | JNS168: 0 | JNT168: 0 | JNU168: 0 | JNV168: 0 | JNW168: 0 | JNX168: 0 | JNY168: 0 | JNZ168: 0 | JOA168: 0 | JOB168: 0 | JOC168: 0 | JOD168: 0 | JOE168: 0 | JOF168: 0 | JOG168: 0 | JOH168: 0 | JOI168: 0 | JOJ168: 0 | JOK168: 0 | JOL168: 0 | JOM168: 0 | JON168: 0 | JOO168: 0 | JOP168: 0 | JOQ168: 0 | JOR168: 0 | JOS168: =JOS145 -> 0 | JOT168: 0 | JOU168: 0 | JOV168: 0 | JOW168: 0 | JOX168: 0 | JOY168: 0 | JOZ168: 0 | JPA168: 0 | JPB168: 0 | JPC168: 0 | JPD168: 0 | JPE168: 0 | JPF168: 0 | JPG168: 0 | JPH168: 0 | JPI168: 0 | JPJ168: 0 | JPK168: 0 | JPL168: 0 | JPM168: 0 | JPN168: 0 | JPO168: 0 | JPP168: 0 | JPQ168: 0 | JPR168: 0 | JPS168: 0 | JPT168: 0 | JPU168: 0 | JPV168: 0 | JPW168: 0 | JPX168: 0 | JPY168: 0 | JPZ168: 0 | JQA168: 0 | JQB168: 0 | JQC168: 0 | JQD168: 0 | JQE168: 0 | JQF168: 0 | JQG168: 0 | JQH168: 0 | JQI168: 0 | JQJ168: 0 | JQK168: 0 | JQL168: 0 | JQM168: 0 | JQN168: 0 | JQO168: 0 | JQP168: 0 | JQQ168: 0 | JQR168: 0 | JQS168: 0 | JQT168: 0 | JQU168: 0 | JQV168: 0 | JQW168: 0 | JQX168: 0 | JQY168: 0 | JQZ168: 0 | JRA168: 0 | JRB168: 0 | JRC168: 0 | JRD168: 0 | JRE168: =JRE145 -> 0 | JRF168: 0 | JRG168: 0 | JRH168: 0 | JRI168: 0 | JRJ168: 0 | JRK168: 0 | JRL168: 0 | JRM168: 0 | JRN168: 0 | JRO168: 0 | JRP168: 0 | JRQ168: 0 | JRR168: 0 | JRS168: 0 | JRT168: 0 | JRU168: 0 | JRV168: 0 | JRW168: 0 | JRX168: 0 | JRY168: 0 | JRZ168: 0 | JSA168: 0 | JSB168: 0 | JSC168: 0 | JSD168: 0 | JSE168: 0 | JSF168: 0 | JSG168: 0 | JSH168: 0 | JSI168: 0 | JSJ168: 0 | JSK168: 0 | JSL168: 0 | JSM168: 0 | JSN168: 0 | JSO168: 0 | JSP168: 0 | JSQ168: 0 | JSR168: 0 | JSS168: 0 | JST168: 0 | JSU168: 0 | JSV168: 0 | JSW168: 0 | JSX168: 0 | JSY168: 0 | JSZ168: 0 | JTA168: 0 | JTB168: 0 | JTC168: 0 | JTD168: 0 | JTE168: 0 | JTF168: 0 | JTG168: 0 | JTH168: 0 | JTI168: 0 | JTJ168: 0 | JTK168: 0 | JTL168: 0 | JTM168: 0 | JTN168: 0 | JTO168: 0 | JTP168: 0 | JTQ168: =JTQ145 -> 0 | JTR168: 0 | JTS168: 0 | JTT168: 0 | JTU168: 0 | JTV168: 0 | JTW168: 0 | JTX168: 0 | JTY168: 0 | JTZ168: 0 | JUA168: 0 | JUB168: 0 | JUC168: 0 | JUD168: 0 | JUE168: 0 | JUF168: 0 | JUG168: 0 | JUH168: 0 | JUI168: 0 | JUJ168: 0 | JUK168: 0 | JUL168: 0 | JUM168: 0 | JUN168: 0 | JUO168: 0 | JUP168: 0 | JUQ168: 0 | JUR168: 0 | JUS168: 0 | JUT168: 0 | JUU168: 0 | JUV168: 0 | JUW168: 0 | JUX168: 0 | JUY168: 0 | JUZ168: 0 | JVA168: 0 | JVB168: 0 | JVC168: 0 | JVD168: 0 | JVE168: 0 | JVF168: 0 | JVG168: 0 | JVH168: 0 | JVI168: 0 | JVJ168: 0 | JVK168: 0 | JVL168: 0 | JVM168: 0 | JVN168: 0 | JVO168: 0 | JVP168: 0 | JVQ168: 0 | JVR168: 0 | JVS168: 0 | JVT168: 0 | JVU168: 0 | JVV168: 0 | JVW168: 0 | JVX168: 0 | JVY168: 0 | JVZ168: 0 | JWA168: 0 | JWB168: 0 | JWC168: =JWC145 -> 0 | JWD168: 0 | JWE168: 0 | JWF168: 0 | JWG168: 0 | JWH168: 0 | JWI168: 0 | JWJ168: 0 | JWK168: 0 | JWL168: 0 | JWM168: 0 | JWN168: 0 | JWO168: 0 | JWP168: 0 | JWQ168: 0 | JWR168: 0 | JWS168: 0 | JWT168: 0 | JWU168: 0 | JWV168: 0 | JWW168: 0 | JWX168: 0 | JWY168: 0 | JWZ168: 0 | JXA168: 0 | JXB168: 0 | JXC168: 0 | JXD168: 0 | JXE168: 0 | JXF168: 0 | JXG168: 0 | JXH168: 0 | JXI168: 0 | JXJ168: 0 | JXK168: 0 | JXL168: 0 | JXM168: 0 | JXN168: 0 | JXO168: 0 | JXP168: 0 | JXQ168: 0 | JXR168: 0 | JXS168: 0 | JXT168: 0 | JXU168: 0 | JXV168: 0 | JXW168: 0 | JXX168: 0 | JXY168: 0 | JXZ168: 0 | JYA168: 0 | JYB168: 0 | JYC168: 0 | JYD168: 0 | JYE168: 0 | JYF168: 0 | JYG168: 0 | JYH168: 0 | JYI168: 0 | JYJ168: 0 | JYK168: 0 | JYL168: 0 | JYM168: 0 | JYN168: 0 | JYO168: =JYO145 -> 0 | JYP168: 0 | JYQ168: 0 | JYR168: 0 | JYS168: 0 | JYT168: 0 | JYU168: 0 | JYV168: 0 | JYW168: 0 | JYX168: 0 | JYY168: 0 | JYZ168: 0 | JZA168: 0 | JZB168: 0 | JZC168: 0 | JZD168: 0 | JZE168: 0 | JZF168: 0 | JZG168: 0 | JZH168: 0 | JZI168: 0 | JZJ168: 0 | JZK168: 0 | JZL168: 0 | JZM168: 0 | JZN168: 0 | JZO168: 0 | JZP168: 0 | JZQ168: 0 | JZR168: 0 | JZS168: 0 | JZT168: 0 | JZU168: 0 | JZV168: 0 | JZW168: 0 | JZX168: 0 | JZY168: 0 | JZZ168: 0 | KAA168: 0 | KAB168: 0 | KAC168: 0 | KAD168: 0 | KAE168: 0 | KAF168: 0 | KAG168: 0 | KAH168: 0 | KAI168: 0 | KAJ168: 0 | KAK168: 0 | KAL168: 0 | KAM168: 0 | KAN168: 0 | KAO168: 0 | KAP168: 0 | KAQ168: 0 | KAR168: 0 | KAS168: 0 | KAT168: 0 | KAU168: 0 | KAV168: 0 | KAW168: 0 | KAX168: 0 | KAY168: 0 | KAZ168: 0 | KBA168: =KBA145 -> 0 | KBB168: 0 | KBC168: 0 | KBD168: 0 | KBE168: 0 | KBF168: 0 | KBG168: 0 | KBH168: 0 | KBI168: 0 | KBJ168: 0 | KBK168: 0 | KBL168: 0 | KBM168: 0 | KBN168: 0 | KBO168: 0 | KBP168: 0 | KBQ168: 0 | KBR168: 0 | KBS168: 0 | KBT168: 0 | KBU168: 0 | KBV168: 0 | KBW168: 0 | KBX168: 0 | KBY168: 0 | KBZ168: 0 | KCA168: 0 | KCB168: 0 | KCC168: 0 | KCD168: 0 | KCE168: 0 | KCF168: 0 | KCG168: 0 | KCH168: 0 | KCI168: 0 | KCJ168: 0 | KCK168: 0 | KCL168: 0 | KCM168: 0 | KCN168: 0 | KCO168: 0 | KCP168: 0 | KCQ168: 0 | KCR168: 0 | KCS168: 0 | KCT168: 0 | KCU168: 0 | KCV168: 0 | KCW168: 0 | KCX168: 0 | KCY168: 0 | KCZ168: 0 | KDA168: 0 | KDB168: 0 | KDC168: 0 | KDD168: 0 | KDE168: 0 | KDF168: 0 | KDG168: 0 | KDH168: 0 | KDI168: 0 | KDJ168: 0 | KDK168: 0 | KDL168: 0 | KDM168: =KDM145 -> 0 | KDN168: 0 | KDO168: 0 | KDP168: 0 | KDQ168: 0 | KDR168: 0 | KDS168: 0 | KDT168: 0 | KDU168: 0 | KDV168: 0 | KDW168: 0 | KDX168: 0 | KDY168: 0 | KDZ168: 0 | KEA168: 0 | KEB168: 0 | KEC168: 0 | KED168: 0 | KEE168: 0 | KEF168: 0 | KEG168: 0 | KEH168: 0 | KEI168: 0 | KEJ168: 0 | KEK168: 0 | KEL168: 0 | KEM168: 0 | KEN168: 0 | KEO168: 0 | KEP168: 0 | KEQ168: 0 | KER168: 0 | KES168: 0 | KET168: 0 | KEU168: 0 | KEV168: 0 | KEW168: 0 | KEX168: 0 | KEY168: 0 | KEZ168: 0 | KFA168: 0 | KFB168: 0 | KFC168: 0 | KFD168: 0 | KFE168: 0 | KFF168: 0 | KFG168: 0 | KFH168: 0 | KFI168: 0 | KFJ168: 0 | KFK168: 0 | KFL168: 0 | KFM168: 0 | KFN168: 0 | KFO168: 0 | KFP168: 0 | KFQ168: 0 | KFR168: 0 | KFS168: 0 | KFT168: 0 | KFU168: 0 | KFV168: 0 | KFW168: 0 | KFX168: 0 | KFY168: =KFY145 -> 0 | KFZ168: 0 | KGA168: 0 | KGB168: 0 | KGC168: 0 | KGD168: 0 | KGE168: 0 | KGF168: 0 | KGG168: 0 | KGH168: 0 | KGI168: 0 | KGJ168: 0 | KGK168: 0 | KGL168: 0 | KGM168: 0 | KGN168: 0 | KGO168: 0 | KGP168: 0 | KGQ168: 0 | KGR168: 0 | KGS168: 0 | KGT168: 0 | KGU168: 0 | KGV168: 0 | KGW168: 0 | KGX168: 0 | KGY168: 0 | KGZ168: 0 | KHA168: 0 | KHB168: 0 | KHC168: 0 | KHD168: 0 | KHE168: 0 | KHF168: 0 | KHG168: 0 | KHH168: 0 | KHI168: 0 | KHJ168: 0 | KHK168: 0 | KHL168: 0 | KHM168: 0 | KHN168: 0 | KHO168: 0 | KHP168: 0 | KHQ168: 0 | KHR168: 0 | KHS168: 0 | KHT168: 0 | KHU168: 0 | KHV168: 0 | KHW168: 0 | KHX168: 0 | KHY168: 0 | KHZ168: 0 | KIA168: 0 | KIB168: 0 | KIC168: 0 | KID168: 0 | KIE168: 0 | KIF168: 0 | KIG168: 0 | KIH168: 0 | KII168: 0 | KIJ168: 0 | KIK168: =KIK145 -> 0 | KIL168: 0 | KIM168: 0 | KIN168: 0 | KIO168: 0 | KIP168: 0 | KIQ168: 0 | KIR168: 0 | KIS168: 0 | KIT168: 0 | KIU168: 0 | KIV168: 0 | KIW168: 0 | KIX168: 0 | KIY168: 0 | KIZ168: 0 | KJA168: 0 | KJB168: 0 | KJC168: 0 | KJD168: 0 | KJE168: 0 | KJF168: 0 | KJG168: 0 | KJH168: 0 | KJI168: 0 | KJJ168: 0 | KJK168: 0 | KJL168: 0 | KJM168: 0 | KJN168: 0 | KJO168: 0 | KJP168: 0 | KJQ168: 0 | KJR168: 0 | KJS168: 0 | KJT168: 0 | KJU168: 0 | KJV168: 0 | KJW168: 0 | KJX168: 0 | KJY168: 0 | KJZ168: 0 | KKA168: 0 | KKB168: 0 | KKC168: 0 | KKD168: 0 | KKE168: 0 | KKF168: 0 | KKG168: 0 | KKH168: 0 | KKI168: 0 | KKJ168: 0 | KKK168: 0 | KKL168: 0 | KKM168: 0 | KKN168: 0 | KKO168: 0 | KKP168: 0 | KKQ168: 0 | KKR168: 0 | KKS168: 0 | KKT168: 0 | KKU168: 0 | KKV168: 0 | KKW168: =KKW145 -> 0 | KKX168: 0 | KKY168: 0 | KKZ168: 0 | KLA168: 0 | KLB168: 0 | KLC168: 0 | KLD168: 0 | KLE168: 0 | KLF168: 0 | KLG168: 0 | KLH168: 0 | KLI168: 0 | KLJ168: 0 | KLK168: 0 | KLL168: 0 | KLM168: 0 | KLN168: 0 | KLO168: 0 | KLP168: 0 | KLQ168: 0 | KLR168: 0 | KLS168: 0 | KLT168: 0 | KLU168: 0 | KLV168: 0 | KLW168: 0 | KLX168: 0 | KLY168: 0 | KLZ168: 0 | KMA168: 0 | KMB168: 0 | KMC168: 0 | KMD168: 0 | KME168: 0 | KMF168: 0 | KMG168: 0 | KMH168: 0 | KMI168: 0 | KMJ168: 0 | KMK168: 0 | KML168: 0 | KMM168: 0 | KMN168: 0 | KMO168: 0 | KMP168: 0 | KMQ168: 0 | KMR168: 0 | KMS168: 0 | KMT168: 0 | KMU168: 0 | KMV168: 0 | KMW168: 0 | KMX168: 0 | KMY168: 0 | KMZ168: 0 | KNA168: 0 | KNB168: 0 | KNC168: 0 | KND168: 0 | KNE168: 0 | KNF168: 0 | KNG168: 0 | KNH168: 0 | KNI168: =KNI145 -> 0 | KNJ168: 0 | KNK168: 0 | KNL168: 0 | KNM168: 0 | KNN168: 0 | KNO168: 0 | KNP168: 0 | KNQ168: 0 | KNR168: 0 | KNS168: 0 | KNT168: 0 | KNU168: 0 | KNV168: 0 | KNW168: 0 | KNX168: 0 | KNY168: 0 | KNZ168: 0 | KOA168: 0 | KOB168: 0 | KOC168: 0 | KOD168: 0 | KOE168: 0 | KOF168: 0 | KOG168: 0 | KOH168: 0 | KOI168: 0 | KOJ168: 0 | KOK168: 0 | KOL168: 0 | KOM168: 0 | KON168: 0 | KOO168: 0 | KOP168: 0 | KOQ168: 0 | KOR168: 0 | KOS168: 0 | KOT168: 0 | KOU168: 0 | KOV168: 0 | KOW168: 0 | KOX168: 0 | KOY168: 0 | KOZ168: 0 | KPA168: 0 | KPB168: 0 | KPC168: 0 | KPD168: 0 | KPE168: 0 | KPF168: 0 | KPG168: 0 | KPH168: 0 | KPI168: 0 | KPJ168: 0 | KPK168: 0 | KPL168: 0 | KPM168: 0 | KPN168: 0 | KPO168: 0 | KPP168: 0 | KPQ168: 0 | KPR168: 0 | KPS168: 0 | KPT168: 0 | KPU168: =KPU145 -> 0 | KPV168: 0 | KPW168: 0 | KPX168: 0 | KPY168: 0 | KPZ168: 0 | KQA168: 0 | KQB168: 0 | KQC168: 0 | KQD168: 0 | KQE168: 0 | KQF168: 0 | KQG168: 0 | KQH168: 0 | KQI168: 0 | KQJ168: 0 | KQK168: 0 | KQL168: 0 | KQM168: 0 | KQN168: 0 | KQO168: 0 | KQP168: 0 | KQQ168: 0 | KQR168: 0 | KQS168: 0 | KQT168: 0 | KQU168: 0 | KQV168: 0 | KQW168: 0 | KQX168: 0 | KQY168: 0 | KQZ168: 0 | KRA168: 0 | KRB168: 0 | KRC168: 0 | KRD168: 0 | KRE168: 0 | KRF168: 0 | KRG168: 0 | KRH168: 0 | KRI168: 0 | KRJ168: 0 | KRK168: 0 | KRL168: 0 | KRM168: 0 | KRN168: 0 | KRO168: 0 | KRP168: 0 | KRQ168: 0 | KRR168: 0 | KRS168: 0 | KRT168: 0 | KRU168: 0 | KRV168: 0 | KRW168: 0 | KRX168: 0 | KRY168: 0 | KRZ168: 0 | KSA168: 0 | KSB168: 0 | KSC168: 0 | KSD168: 0 | KSE168: 0 | KSF168: 0 | KSG168: =KSG145 -> 0 | KSH168: 0 | KSI168: 0 | KSJ168: 0 | KSK168: 0 | KSL168: 0 | KSM168: 0 | KSN168: 0 | KSO168: 0 | KSP168: 0 | KSQ168: 0 | KSR168: 0 | KSS168: 0 | KST168: 0 | KSU168: 0 | KSV168: 0 | KSW168: 0 | KSX168: 0 | KSY168: 0 | KSZ168: 0 | KTA168: 0 | KTB168: 0 | KTC168: 0 | KTD168: 0 | KTE168: 0 | KTF168: 0 | KTG168: 0 | KTH168: 0 | KTI168: 0 | KTJ168: 0 | KTK168: 0 | KTL168: 0 | KTM168: 0 | KTN168: 0 | KTO168: 0 | KTP168: 0 | KTQ168: 0 | KTR168: 0 | KTS168: 0 | KTT168: 0 | KTU168: 0 | KTV168: 0 | KTW168: 0 | KTX168: 0 | KTY168: 0 | KTZ168: 0 | KUA168: 0 | KUB168: 0 | KUC168: 0 | KUD168: 0 | KUE168: 0 | KUF168: 0 | KUG168: 0 | KUH168: 0 | KUI168: 0 | KUJ168: 0 | KUK168: 0 | KUL168: 0 | KUM168: 0 | KUN168: 0 | KUO168: 0 | KUP168: 0 | KUQ168: 0 | KUR168: 0 | KUS168: =KUS145 -> 0 | KUT168: 0 | KUU168: 0 | KUV168: 0 | KUW168: 0 | KUX168: 0 | KUY168: 0 | KUZ168: 0 | KVA168: 0 | KVB168: 0 | KVC168: 0 | KVD168: 0 | KVE168: 0 | KVF168: 0 | KVG168: 0 | KVH168: 0 | KVI168: 0 | KVJ168: 0 | KVK168: 0 | KVL168: 0 | KVM168: 0 | KVN168: 0 | KVO168: 0 | KVP168: 0 | KVQ168: 0 | KVR168: 0 | KVS168: 0 | KVT168: 0 | KVU168: 0 | KVV168: 0 | KVW168: 0 | KVX168: 0 | KVY168: 0 | KVZ168: 0 | KWA168: 0 | KWB168: 0 | KWC168: 0 | KWD168: 0 | KWE168: 0 | KWF168: 0 | KWG168: 0 | KWH168: 0 | KWI168: 0 | KWJ168: 0 | KWK168: 0 | KWL168: 0 | KWM168: 0 | KWN168: 0 | KWO168: 0 | KWP168: 0 | KWQ168: 0 | KWR168: 0 | KWS168: 0 | KWT168: 0 | KWU168: 0 | KWV168: 0 | KWW168: 0 | KWX168: 0 | KWY168: 0 | KWZ168: 0 | KXA168: 0 | KXB168: 0 | KXC168: 0 | KXD168: 0 | KXE168: =KXE145 -> 0 | KXF168: 0 | KXG168: 0 | KXH168: 0 | KXI168: 0 | KXJ168: 0 | KXK168: 0 | KXL168: 0 | KXM168: 0 | KXN168: 0 | KXO168: 0 | KXP168: 0 | KXQ168: 0 | KXR168: 0 | KXS168: 0 | KXT168: 0 | KXU168: 0 | KXV168: 0 | KXW168: 0 | KXX168: 0 | KXY168: 0 | KXZ168: 0 | KYA168: 0 | KYB168: 0 | KYC168: 0 | KYD168: 0 | KYE168: 0 | KYF168: 0 | KYG168: 0 | KYH168: 0 | KYI168: 0 | KYJ168: 0 | KYK168: 0 | KYL168: 0 | KYM168: 0 | KYN168: 0 | KYO168: 0 | KYP168: 0 | KYQ168: 0 | KYR168: 0 | KYS168: 0 | KYT168: 0 | KYU168: 0 | KYV168: 0 | KYW168: 0 | KYX168: 0 | KYY168: 0 | KYZ168: 0 | KZA168: 0 | KZB168: 0 | KZC168: 0 | KZD168: 0 | KZE168: 0 | KZF168: 0 | KZG168: 0 | KZH168: 0 | KZI168: 0 | KZJ168: 0 | KZK168: 0 | KZL168: 0 | KZM168: 0 | KZN168: 0 | KZO168: 0 | KZP168: 0 | KZQ168: =KZQ145 -> 0 | KZR168: 0 | KZS168: 0 | KZT168: 0 | KZU168: 0 | KZV168: 0 | KZW168: 0 | KZX168: 0 | KZY168: 0 | KZZ168: 0 | LAA168: 0 | LAB168: 0 | LAC168: 0 | LAD168: 0 | LAE168: 0 | LAF168: 0 | LAG168: 0 | LAH168: 0 | LAI168: 0 | LAJ168: 0 | LAK168: 0 | LAL168: 0 | LAM168: 0 | LAN168: 0 | LAO168: 0 | LAP168: 0 | LAQ168: 0 | LAR168: 0 | LAS168: 0 | LAT168: 0 | LAU168: 0 | LAV168: 0 | LAW168: 0 | LAX168: 0 | LAY168: 0 | LAZ168: 0 | LBA168: 0 | LBB168: 0 | LBC168: 0 | LBD168: 0 | LBE168: 0 | LBF168: 0 | LBG168: 0 | LBH168: 0 | LBI168: 0 | LBJ168: 0 | LBK168: 0 | LBL168: 0 | LBM168: 0 | LBN168: 0 | LBO168: 0 | LBP168: 0 | LBQ168: 0 | LBR168: 0 | LBS168: 0 | LBT168: 0 | LBU168: 0 | LBV168: 0 | LBW168: 0 | LBX168: 0 | LBY168: 0 | LBZ168: 0 | LCA168: 0 | LCB168: 0 | LCC168: =LCC145 -> 0 | LCD168: 0 | LCE168: 0 | LCF168: 0 | LCG168: 0 | LCH168: 0 | LCI168: 0 | LCJ168: 0 | LCK168: 0 | LCL168: 0 | LCM168: 0 | LCN168: 0 | LCO168: 0 | LCP168: 0 | LCQ168: 0 | LCR168: 0 | LCS168: 0 | LCT168: 0 | LCU168: 0 | LCV168: 0 | LCW168: 0 | LCX168: 0 | LCY168: 0 | LCZ168: 0 | LDA168: 0 | LDB168: 0 | LDC168: 0 | LDD168: 0 | LDE168: 0 | LDF168: 0 | LDG168: 0 | LDH168: 0 | LDI168: 0 | LDJ168: 0 | LDK168: 0 | LDL168: 0 | LDM168: 0 | LDN168: 0 | LDO168: 0 | LDP168: 0 | LDQ168: 0 | LDR168: 0 | LDS168: 0 | LDT168: 0 | LDU168: 0 | LDV168: 0 | LDW168: 0 | LDX168: 0 | LDY168: 0 | LDZ168: 0 | LEA168: 0 | LEB168: 0 | LEC168: 0 | LED168: 0 | LEE168: 0 | LEF168: 0 | LEG168: 0 | LEH168: 0 | LEI168: 0 | LEJ168: 0 | LEK168: 0 | LEL168: 0 | LEM168: 0 | LEN168: 0 | LEO168: =LEO145 -> 0 | LEP168: 0 | LEQ168: 0 | LER168: 0 | LES168: 0 | LET168: 0 | LEU168: 0 | LEV168: 0 | LEW168: 0 | LEX168: 0 | LEY168: 0 | LEZ168: 0 | LFA168: 0 | LFB168: 0 | LFC168: 0 | LFD168: 0 | LFE168: 0 | LFF168: 0 | LFG168: 0 | LFH168: 0 | LFI168: 0 | LFJ168: 0 | LFK168: 0 | LFL168: 0 | LFM168: 0 | LFN168: 0 | LFO168: 0 | LFP168: 0 | LFQ168: 0 | LFR168: 0 | LFS168: 0 | LFT168: 0 | LFU168: 0 | LFV168: 0 | LFW168: 0 | LFX168: 0 | LFY168: 0 | LFZ168: 0 | LGA168: 0 | LGB168: 0 | LGC168: 0 | LGD168: 0 | LGE168: 0 | LGF168: 0 | LGG168: 0 | LGH168: 0 | LGI168: 0 | LGJ168: 0 | LGK168: 0 | LGL168: 0 | LGM168: 0 | LGN168: 0 | LGO168: 0 | LGP168: 0 | LGQ168: 0 | LGR168: 0 | LGS168: 0 | LGT168: 0 | LGU168: 0 | LGV168: 0 | LGW168: 0 | LGX168: 0 | LGY168: 0 | LGZ168: 0 | LHA168: =LHA145 -> 0 | LHB168: 0 | LHC168: 0 | LHD168: 0 | LHE168: 0 | LHF168: 0 | LHG168: 0 | LHH168: 0 | LHI168: 0 | LHJ168: 0 | LHK168: 0 | LHL168: 0 | LHM168: 0 | LHN168: 0 | LHO168: 0 | LHP168: 0 | LHQ168: 0 | LHR168: 0 | LHS168: 0 | LHT168: 0 | LHU168: 0 | LHV168: 0 | LHW168: 0 | LHX168: 0 | LHY168: 0 | LHZ168: 0 | LIA168: 0 | LIB168: 0 | LIC168: 0 | LID168: 0 | LIE168: 0 | LIF168: 0 | LIG168: 0 | LIH168: 0 | LII168: 0 | LIJ168: 0 | LIK168: 0 | LIL168: 0 | LIM168: 0 | LIN168: 0 | LIO168: 0 | LIP168: 0 | LIQ168: 0 | LIR168: 0 | LIS168: 0 | LIT168: 0 | LIU168: 0 | LIV168: 0 | LIW168: 0 | LIX168: 0 | LIY168: 0 | LIZ168: 0 | LJA168: 0 | LJB168: 0 | LJC168: 0 | LJD168: 0 | LJE168: 0 | LJF168: 0 | LJG168: 0 | LJH168: 0 | LJI168: 0 | LJJ168: 0 | LJK168: 0 | LJL168: 0 | LJM168: =LJM145 -> 0 | LJN168: 0 | LJO168: 0 | LJP168: 0 | LJQ168: 0 | LJR168: 0 | LJS168: 0 | LJT168: 0 | LJU168: 0 | LJV168: 0 | LJW168: 0 | LJX168: 0 | LJY168: 0 | LJZ168: 0 | LKA168: 0 | LKB168: 0 | LKC168: 0 | LKD168: 0 | LKE168: 0 | LKF168: 0 | LKG168: 0 | LKH168: 0 | LKI168: 0 | LKJ168: 0 | LKK168: 0 | LKL168: 0 | LKM168: 0 | LKN168: 0 | LKO168: 0 | LKP168: 0 | LKQ168: 0 | LKR168: 0 | LKS168: 0 | LKT168: 0 | LKU168: 0 | LKV168: 0 | LKW168: 0 | LKX168: 0 | LKY168: 0 | LKZ168: 0 | LLA168: 0 | LLB168: 0 | LLC168: 0 | LLD168: 0 | LLE168: 0 | LLF168: 0 | LLG168: 0 | LLH168: 0 | LLI168: 0 | LLJ168: 0 | LLK168: 0 | LLL168: 0 | LLM168: 0 | LLN168: 0 | LLO168: 0 | LLP168: 0 | LLQ168: 0 | LLR168: 0 | LLS168: 0 | LLT168: 0 | LLU168: 0 | LLV168: 0 | LLW168: 0 | LLX168: 0 | LLY168: =LLY145 -> 0 | LLZ168: 0 | LMA168: 0 | LMB168: 0 | LMC168: 0 | LMD168: 0 | LME168: 0 | LMF168: 0 | LMG168: 0 | LMH168: 0 | LMI168: 0 | LMJ168: 0 | LMK168: 0 | LML168: 0 | LMM168: 0 | LMN168: 0 | LMO168: 0 | LMP168: 0 | LMQ168: 0 | LMR168: 0 | LMS168: 0 | LMT168: 0 | LMU168: 0 | LMV168: 0 | LMW168: 0 | LMX168: 0 | LMY168: 0 | LMZ168: 0 | LNA168: 0 | LNB168: 0 | LNC168: 0 | LND168: 0 | LNE168: 0 | LNF168: 0 | LNG168: 0 | LNH168: 0 | LNI168: 0 | LNJ168: 0 | LNK168: 0 | LNL168: 0 | LNM168: 0 | LNN168: 0 | LNO168: 0 | LNP168: 0 | LNQ168: 0 | LNR168: 0 | LNS168: 0 | LNT168: 0 | LNU168: 0 | LNV168: 0 | LNW168: 0 | LNX168: 0 | LNY168: 0 | LNZ168: 0 | LOA168: 0 | LOB168: 0 | LOC168: 0 | LOD168: 0 | LOE168: 0 | LOF168: 0 | LOG168: 0 | LOH168: 0 | LOI168: 0 | LOJ168: 0 | LOK168: =LOK145 -> 0 | LOL168: 0 | LOM168: 0 | LON168: 0 | LOO168: 0 | LOP168: 0 | LOQ168: 0 | LOR168: 0 | LOS168: 0 | LOT168: 0 | LOU168: 0 | LOV168: 0 | LOW168: 0 | LOX168: 0 | LOY168: 0 | LOZ168: 0 | LPA168: 0 | LPB168: 0 | LPC168: 0 | LPD168: 0 | LPE168: 0 | LPF168: 0 | LPG168: 0 | LPH168: 0 | LPI168: 0 | LPJ168: 0 | LPK168: 0 | LPL168: 0 | LPM168: 0 | LPN168: 0 | LPO168: 0 | LPP168: 0 | LPQ168: 0 | LPR168: 0 | LPS168: 0 | LPT168: 0 | LPU168: 0 | LPV168: 0 | LPW168: 0 | LPX168: 0 | LPY168: 0 | LPZ168: 0 | LQA168: 0 | LQB168: 0 | LQC168: 0 | LQD168: 0 | LQE168: 0 | LQF168: 0 | LQG168: 0 | LQH168: 0 | LQI168: 0 | LQJ168: 0 | LQK168: 0 | LQL168: 0 | LQM168: 0 | LQN168: 0 | LQO168: 0 | LQP168: 0 | LQQ168: 0 | LQR168: 0 | LQS168: 0 | LQT168: 0 | LQU168: 0 | LQV168: 0 | LQW168: =LQW145 -> 0 | LQX168: 0 | LQY168: 0 | LQZ168: 0 | LRA168: 0 | LRB168: 0 | LRC168: 0 | LRD168: 0 | LRE168: 0 | LRF168: 0 | LRG168: 0 | LRH168: 0 | LRI168: 0 | LRJ168: 0 | LRK168: 0 | LRL168: 0 | LRM168: 0 | LRN168: 0 | LRO168: 0 | LRP168: 0 | LRQ168: 0 | LRR168: 0 | LRS168: 0 | LRT168: 0 | LRU168: 0 | LRV168: 0 | LRW168: 0 | LRX168: 0 | LRY168: 0 | LRZ168: 0 | LSA168: 0 | LSB168: 0 | LSC168: 0 | LSD168: 0 | LSE168: 0 | LSF168: 0 | LSG168: 0 | LSH168: 0 | LSI168: 0 | LSJ168: 0 | LSK168: 0 | LSL168: 0 | LSM168: 0 | LSN168: 0 | LSO168: 0 | LSP168: 0 | LSQ168: 0 | LSR168: 0 | LSS168: 0 | LST168: 0 | LSU168: 0 | LSV168: 0 | LSW168: 0 | LSX168: 0 | LSY168: 0 | LSZ168: 0 | LTA168: 0 | LTB168: 0 | LTC168: 0 | LTD168: 0 | LTE168: 0 | LTF168: 0 | LTG168: 0 | LTH168: 0 | LTI168: =LTI145 -> 0 | LTJ168: 0 | LTK168: 0 | LTL168: 0 | LTM168: 0 | LTN168: 0 | LTO168: 0 | LTP168: 0 | LTQ168: 0 | LTR168: 0 | LTS168: 0 | LTT168: 0 | LTU168: 0 | LTV168: 0 | LTW168: 0 | LTX168: 0 | LTY168: 0 | LTZ168: 0 | LUA168: 0 | LUB168: 0 | LUC168: 0 | LUD168: 0 | LUE168: 0 | LUF168: 0 | LUG168: 0 | LUH168: 0 | LUI168: 0 | LUJ168: 0 | LUK168: 0 | LUL168: 0 | LUM168: 0 | LUN168: 0 | LUO168: 0 | LUP168: 0 | LUQ168: 0 | LUR168: 0 | LUS168: 0 | LUT168: 0 | LUU168: 0 | LUV168: 0 | LUW168: 0 | LUX168: 0 | LUY168: 0 | LUZ168: 0 | LVA168: 0 | LVB168: 0 | LVC168: 0 | LVD168: 0 | LVE168: 0 | LVF168: 0 | LVG168: 0 | LVH168: 0 | LVI168: 0 | LVJ168: 0 | LVK168: 0 | LVL168: 0 | LVM168: 0 | LVN168: 0 | LVO168: 0 | LVP168: 0 | LVQ168: 0 | LVR168: 0 | LVS168: 0 | LVT168: 0 | LVU168: =LVU145 -> 0 | LVV168: 0 | LVW168: 0 | LVX168: 0 | LVY168: 0 | LVZ168: 0 | LWA168: 0 | LWB168: 0 | LWC168: 0 | LWD168: 0 | LWE168: 0 | LWF168: 0 | LWG168: 0 | LWH168: 0 | LWI168: 0 | LWJ168: 0 | LWK168: 0 | LWL168: 0 | LWM168: 0 | LWN168: 0 | LWO168: 0 | LWP168: 0 | LWQ168: 0 | LWR168: 0 | LWS168: 0 | LWT168: 0 | LWU168: 0 | LWV168: 0 | LWW168: 0 | LWX168: 0 | LWY168: 0 | LWZ168: 0 | LXA168: 0 | LXB168: 0 | LXC168: 0 | LXD168: 0 | LXE168: 0 | LXF168: 0 | LXG168: 0 | LXH168: 0 | LXI168: 0 | LXJ168: 0 | LXK168: 0 | LXL168: 0 | LXM168: 0 | LXN168: 0 | LXO168: 0 | LXP168: 0 | LXQ168: 0 | LXR168: 0 | LXS168: 0 | LXT168: 0 | LXU168: 0 | LXV168: 0 | LXW168: 0 | LXX168: 0 | LXY168: 0 | LXZ168: 0 | LYA168: 0 | LYB168: 0 | LYC168: 0 | LYD168: 0 | LYE168: 0 | LYF168: 0 | LYG168: =LYG145 -> 0 | LYH168: 0 | LYI168: 0 | LYJ168: 0 | LYK168: 0 | LYL168: 0 | LYM168: 0 | LYN168: 0 | LYO168: 0 | LYP168: 0 | LYQ168: 0 | LYR168: 0 | LYS168: 0 | LYT168: 0 | LYU168: 0 | LYV168: 0 | LYW168: 0 | LYX168: 0 | LYY168: 0 | LYZ168: 0 | LZA168: 0 | LZB168: 0 | LZC168: 0 | LZD168: 0 | LZE168: 0 | LZF168: 0 | LZG168: 0 | LZH168: 0 | LZI168: 0 | LZJ168: 0 | LZK168: 0 | LZL168: 0 | LZM168: 0 | LZN168: 0 | LZO168: 0 | LZP168: 0 | LZQ168: 0 | LZR168: 0 | LZS168: 0 | LZT168: 0 | LZU168: 0 | LZV168: 0 | LZW168: 0 | LZX168: 0 | LZY168: 0 | LZZ168: 0 | MAA168: 0 | MAB168: 0 | MAC168: 0 | MAD168: 0 | MAE168: 0 | MAF168: 0 | MAG168: 0 | MAH168: 0 | MAI168: 0 | MAJ168: 0 | MAK168: 0 | MAL168: 0 | MAM168: 0 | MAN168: 0 | MAO168: 0 | MAP168: 0 | MAQ168: 0 | MAR168: 0 | MAS168: =MAS145 -> 0 | MAT168: 0 | MAU168: 0 | MAV168: 0 | MAW168: 0 | MAX168: 0 | MAY168: 0 | MAZ168: 0 | MBA168: 0 | MBB168: 0 | MBC168: 0 | MBD168: 0 | MBE168: 0 | MBF168: 0 | MBG168: 0 | MBH168: 0 | MBI168: 0 | MBJ168: 0 | MBK168: 0 | MBL168: 0 | MBM168: 0 | MBN168: 0 | MBO168: 0 | MBP168: 0 | MBQ168: 0 | MBR168: 0 | MBS168: 0 | MBT168: 0 | MBU168: 0 | MBV168: 0 | MBW168: 0 | MBX168: 0 | MBY168: 0 | MBZ168: 0 | MCA168: 0 | MCB168: 0 | MCC168: 0 | MCD168: 0 | MCE168: 0 | MCF168: 0 | MCG168: 0 | MCH168: 0 | MCI168: 0 | MCJ168: 0 | MCK168: 0 | MCL168: 0 | MCM168: 0 | MCN168: 0 | MCO168: 0 | MCP168: 0 | MCQ168: 0 | MCR168: 0 | MCS168: 0 | MCT168: 0 | MCU168: 0 | MCV168: 0 | MCW168: 0 | MCX168: 0 | MCY168: 0 | MCZ168: 0 | MDA168: 0 | MDB168: 0 | MDC168: 0 | MDD168: 0 | MDE168: =MDE145 -> 0 | MDF168: 0 | MDG168: 0 | MDH168: 0 | MDI168: 0 | MDJ168: 0 | MDK168: 0 | MDL168: 0 | MDM168: 0 | MDN168: 0 | MDO168: 0 | MDP168: 0 | MDQ168: 0 | MDR168: 0 | MDS168: 0 | MDT168: 0 | MDU168: 0 | MDV168: 0 | MDW168: 0 | MDX168: 0 | MDY168: 0 | MDZ168: 0 | MEA168: 0 | MEB168: 0 | MEC168: 0 | MED168: 0 | MEE168: 0 | MEF168: 0 | MEG168: 0 | MEH168: 0 | MEI168: 0 | MEJ168: 0 | MEK168: 0 | MEL168: 0 | MEM168: 0 | MEN168: 0 | MEO168: 0 | MEP168: 0 | MEQ168: 0 | MER168: 0 | MES168: 0 | MET168: 0 | MEU168: 0 | MEV168: 0 | MEW168: 0 | MEX168: 0 | MEY168: 0 | MEZ168: 0 | MFA168: 0 | MFB168: 0 | MFC168: 0 | MFD168: 0 | MFE168: 0 | MFF168: 0 | MFG168: 0 | MFH168: 0 | MFI168: 0 | MFJ168: 0 | MFK168: 0 | MFL168: 0 | MFM168: 0 | MFN168: 0 | MFO168: 0 | MFP168: 0 | MFQ168: =MFQ145 -> 0 | MFR168: 0 | MFS168: 0 | MFT168: 0 | MFU168: 0 | MFV168: 0 | MFW168: 0 | MFX168: 0 | MFY168: 0 | MFZ168: 0 | MGA168: 0 | MGB168: 0 | MGC168: 0 | MGD168: 0 | MGE168: 0 | MGF168: 0 | MGG168: 0 | MGH168: 0 | MGI168: 0 | MGJ168: 0 | MGK168: 0 | MGL168: 0 | MGM168: 0 | MGN168: 0 | MGO168: 0 | MGP168: 0 | MGQ168: 0 | MGR168: 0 | MGS168: 0 | MGT168: 0 | MGU168: 0 | MGV168: 0 | MGW168: 0 | MGX168: 0 | MGY168: 0 | MGZ168: 0 | MHA168: 0 | MHB168: 0 | MHC168: 0 | MHD168: 0 | MHE168: 0 | MHF168: 0 | MHG168: 0 | MHH168: 0 | MHI168: 0 | MHJ168: 0 | MHK168: 0 | MHL168: 0 | MHM168: 0 | MHN168: 0 | MHO168: 0 | MHP168: 0 | MHQ168: 0 | MHR168: 0 | MHS168: 0 | MHT168: 0 | MHU168: 0 | MHV168: 0 | MHW168: 0 | MHX168: 0 | MHY168: 0 | MHZ168: 0 | MIA168: 0 | MIB168: 0 | MIC168: =MIC145 -> 0 | MID168: 0 | MIE168: 0 | MIF168: 0 | MIG168: 0 | MIH168: 0 | MII168: 0 | MIJ168: 0 | MIK168: 0 | MIL168: 0 | MIM168: 0 | MIN168: 0 | MIO168: 0 | MIP168: 0 | MIQ168: 0 | MIR168: 0 | MIS168: 0 | MIT168: 0 | MIU168: 0 | MIV168: 0 | MIW168: 0 | MIX168: 0 | MIY168: 0 | MIZ168: 0 | MJA168: 0 | MJB168: 0 | MJC168: 0 | MJD168: 0 | MJE168: 0 | MJF168: 0 | MJG168: 0 | MJH168: 0 | MJI168: 0 | MJJ168: 0 | MJK168: 0 | MJL168: 0 | MJM168: 0 | MJN168: 0 | MJO168: 0 | MJP168: 0 | MJQ168: 0 | MJR168: 0 | MJS168: 0 | MJT168: 0 | MJU168: 0 | MJV168: 0 | MJW168: 0 | MJX168: 0 | MJY168: 0 | MJZ168: 0 | MKA168: 0 | MKB168: 0 | MKC168: 0 | MKD168: 0 | MKE168: 0 | MKF168: 0 | MKG168: 0 | MKH168: 0 | MKI168: 0 | MKJ168: 0 | MKK168: 0 | MKL168: 0 | MKM168: 0 | MKN168: 0 | MKO168: =MKO145 -> 0 | MKP168: 0 | MKQ168: 0 | MKR168: 0 | MKS168: 0 | MKT168: 0 | MKU168: 0 | MKV168: 0 | MKW168: 0 | MKX168: 0 | MKY168: 0 | MKZ168: 0 | MLA168: 0 | MLB168: 0 | MLC168: 0 | MLD168: 0 | MLE168: 0 | MLF168: 0 | MLG168: 0 | MLH168: 0 | MLI168: 0 | MLJ168: 0 | MLK168: 0 | MLL168: 0 | MLM168: 0 | MLN168: 0 | MLO168: 0 | MLP168: 0 | MLQ168: 0 | MLR168: 0 | MLS168: 0 | MLT168: 0 | MLU168: 0 | MLV168: 0 | MLW168: 0 | MLX168: 0 | MLY168: 0 | MLZ168: 0 | MMA168: 0 | MMB168: 0 | MMC168: 0 | MMD168: 0 | MME168: 0 | MMF168: 0 | MMG168: 0 | MMH168: 0 | MMI168: 0 | MMJ168: 0 | MMK168: 0 | MML168: 0 | MMM168: 0 | MMN168: 0 | MMO168: 0 | MMP168: 0 | MMQ168: 0 | MMR168: 0 | MMS168: 0 | MMT168: 0 | MMU168: 0 | MMV168: 0 | MMW168: 0 | MMX168: 0 | MMY168: 0 | MMZ168: 0 | MNA168: =MNA145 -> 0 | MNB168: 0 | MNC168: 0 | MND168: 0 | MNE168: 0 | MNF168: 0 | MNG168: 0 | MNH168: 0 | MNI168: 0 | MNJ168: 0 | MNK168: 0 | MNL168: 0 | MNM168: 0 | MNN168: 0 | MNO168: 0 | MNP168: 0 | MNQ168: 0 | MNR168: 0 | MNS168: 0 | MNT168: 0 | MNU168: 0 | MNV168: 0 | MNW168: 0 | MNX168: 0 | MNY168: 0 | MNZ168: 0 | MOA168: 0 | MOB168: 0 | MOC168: 0 | MOD168: 0 | MOE168: 0 | MOF168: 0 | MOG168: 0 | MOH168: 0 | MOI168: 0 | MOJ168: 0 | MOK168: 0 | MOL168: 0 | MOM168: 0 | MON168: 0 | MOO168: 0 | MOP168: 0 | MOQ168: 0 | MOR168: 0 | MOS168: 0 | MOT168: 0 | MOU168: 0 | MOV168: 0 | MOW168: 0 | MOX168: 0 | MOY168: 0 | MOZ168: 0 | MPA168: 0 | MPB168: 0 | MPC168: 0 | MPD168: 0 | MPE168: 0 | MPF168: 0 | MPG168: 0 | MPH168: 0 | MPI168: 0 | MPJ168: 0 | MPK168: 0 | MPL168: 0 | MPM168: =MPM145 -> 0 | MPN168: 0 | MPO168: 0 | MPP168: 0 | MPQ168: 0 | MPR168: 0 | MPS168: 0 | MPT168: 0 | MPU168: 0 | MPV168: 0 | MPW168: 0 | MPX168: 0 | MPY168: 0 | MPZ168: 0 | MQA168: 0 | MQB168: 0 | MQC168: 0 | MQD168: 0 | MQE168: 0 | MQF168: 0 | MQG168: 0 | MQH168: 0 | MQI168: 0 | MQJ168: 0 | MQK168: 0 | MQL168: 0 | MQM168: 0 | MQN168: 0 | MQO168: 0 | MQP168: 0 | MQQ168: 0 | MQR168: 0 | MQS168: 0 | MQT168: 0 | MQU168: 0 | MQV168: 0 | MQW168: 0 | MQX168: 0 | MQY168: 0 | MQZ168: 0 | MRA168: 0 | MRB168: 0 | MRC168: 0 | MRD168: 0 | MRE168: 0 | MRF168: 0 | MRG168: 0 | MRH168: 0 | MRI168: 0 | MRJ168: 0 | MRK168: 0 | MRL168: 0 | MRM168: 0 | MRN168: 0 | MRO168: 0 | MRP168: 0 | MRQ168: 0 | MRR168: 0 | MRS168: 0 | MRT168: 0 | MRU168: 0 | MRV168: 0 | MRW168: 0 | MRX168: 0 | MRY168: =MRY145 -> 0 | MRZ168: 0 | MSA168: 0 | MSB168: 0 | MSC168: 0 | MSD168: 0 | MSE168: 0 | MSF168: 0 | MSG168: 0 | MSH168: 0 | MSI168: 0 | MSJ168: 0 | MSK168: 0 | MSL168: 0 | MSM168: 0 | MSN168: 0 | MSO168: 0 | MSP168: 0 | MSQ168: 0 | MSR168: 0 | MSS168: 0 | MST168: 0 | MSU168: 0 | MSV168: 0 | MSW168: 0 | MSX168: 0 | MSY168: 0 | MSZ168: 0 | MTA168: 0 | MTB168: 0 | MTC168: 0 | MTD168: 0 | MTE168: 0 | MTF168: 0 | MTG168: 0 | MTH168: 0 | MTI168: 0 | MTJ168: 0 | MTK168: 0 | MTL168: 0 | MTM168: 0 | MTN168: 0 | MTO168: 0 | MTP168: 0 | MTQ168: 0 | MTR168: 0 | MTS168: 0 | MTT168: 0 | MTU168: 0 | MTV168: 0 | MTW168: 0 | MTX168: 0 | MTY168: 0 | MTZ168: 0 | MUA168: 0 | MUB168: 0 | MUC168: 0 | MUD168: 0 | MUE168: 0 | MUF168: 0 | MUG168: 0 | MUH168: 0 | MUI168: 0 | MUJ168: 0 | MUK168: =MUK145 -> 0 | MUL168: 0 | MUM168: 0 | MUN168: 0 | MUO168: 0 | MUP168: 0 | MUQ168: 0 | MUR168: 0 | MUS168: 0 | MUT168: 0 | MUU168: 0 | MUV168: 0 | MUW168: 0 | MUX168: 0 | MUY168: 0 | MUZ168: 0 | MVA168: 0 | MVB168: 0 | MVC168: 0 | MVD168: 0 | MVE168: 0 | MVF168: 0 | MVG168: 0 | MVH168: 0 | MVI168: 0 | MVJ168: 0 | MVK168: 0 | MVL168: 0 | MVM168: 0 | MVN168: 0 | MVO168: 0 | MVP168: 0 | MVQ168: 0 | MVR168: 0 | MVS168: 0 | MVT168: 0 | MVU168: 0 | MVV168: 0 | MVW168: 0 | MVX168: 0 | MVY168: 0 | MVZ168: 0 | MWA168: 0 | MWB168: 0 | MWC168: 0 | MWD168: 0 | MWE168: 0 | MWF168: 0 | MWG168: 0 | MWH168: 0 | MWI168: 0 | MWJ168: 0 | MWK168: 0 | MWL168: 0 | MWM168: 0 | MWN168: 0 | MWO168: 0 | MWP168: 0 | MWQ168: 0 | MWR168: 0 | MWS168: 0 | MWT168: 0 | MWU168: 0 | MWV168: 0 | MWW168: =MWW145 -> 0 | MWX168: 0 | MWY168: 0 | MWZ168: 0 | MXA168: 0 | MXB168: 0 | MXC168: 0 | MXD168: 0 | MXE168: 0 | MXF168: 0 | MXG168: 0 | MXH168: 0 | MXI168: 0 | MXJ168: 0 | MXK168: 0 | MXL168: 0 | MXM168: 0 | MXN168: 0 | MXO168: 0 | MXP168: 0 | MXQ168: 0 | MXR168: 0 | MXS168: 0 | MXT168: 0 | MXU168: 0 | MXV168: 0 | MXW168: 0 | MXX168: 0 | MXY168: 0 | MXZ168: 0 | MYA168: 0 | MYB168: 0 | MYC168: 0 | MYD168: 0 | MYE168: 0 | MYF168: 0 | MYG168: 0 | MYH168: 0 | MYI168: 0 | MYJ168: 0 | MYK168: 0 | MYL168: 0 | MYM168: 0 | MYN168: 0 | MYO168: 0 | MYP168: 0 | MYQ168: 0 | MYR168: 0 | MYS168: 0 | MYT168: 0 | MYU168: 0 | MYV168: 0 | MYW168: 0 | MYX168: 0 | MYY168: 0 | MYZ168: 0 | MZA168: 0 | MZB168: 0 | MZC168: 0 | MZD168: 0 | MZE168: 0 | MZF168: 0 | MZG168: 0 | MZH168: 0 | MZI168: =MZI145 -> 0 | MZJ168: 0 | MZK168: 0 | MZL168: 0 | MZM168: 0 | MZN168: 0 | MZO168: 0 | MZP168: 0 | MZQ168: 0 | MZR168: 0 | MZS168: 0 | MZT168: 0 | MZU168: 0 | MZV168: 0 | MZW168: 0 | MZX168: 0 | MZY168: 0 | MZZ168: 0 | NAA168: 0 | NAB168: 0 | NAC168: 0 | NAD168: 0 | NAE168: 0 | NAF168: 0 | NAG168: 0 | NAH168: 0 | NAI168: 0 | NAJ168: 0 | NAK168: 0 | NAL168: 0 | NAM168: 0 | NAN168: 0 | NAO168: 0 | NAP168: 0 | NAQ168: 0 | NAR168: 0 | NAS168: 0 | NAT168: 0 | NAU168: 0 | NAV168: 0 | NAW168: 0 | NAX168: 0 | NAY168: 0 | NAZ168: 0 | NBA168: 0 | NBB168: 0 | NBC168: 0 | NBD168: 0 | NBE168: 0 | NBF168: 0 | NBG168: 0 | NBH168: 0 | NBI168: 0 | NBJ168: 0 | NBK168: 0 | NBL168: 0 | NBM168: 0 | NBN168: 0 | NBO168: 0 | NBP168: 0 | NBQ168: 0 | NBR168: 0 | NBS168: 0 | NBT168: 0 | NBU168: =NBU145 -> 0 | NBV168: 0 | NBW168: 0 | NBX168: 0 | NBY168: 0 | NBZ168: 0 | NCA168: 0 | NCB168: 0 | NCC168: 0 | NCD168: 0 | NCE168: 0 | NCF168: 0 | NCG168: 0 | NCH168: 0 | NCI168: 0 | NCJ168: 0 | NCK168: 0 | NCL168: 0 | NCM168: 0 | NCN168: 0 | NCO168: 0 | NCP168: 0 | NCQ168: 0 | NCR168: 0 | NCS168: 0 | NCT168: 0 | NCU168: 0 | NCV168: 0 | NCW168: 0 | NCX168: 0 | NCY168: 0 | NCZ168: 0 | NDA168: 0 | NDB168: 0 | NDC168: 0 | NDD168: 0 | NDE168: 0 | NDF168: 0 | NDG168: 0 | NDH168: 0 | NDI168: 0 | NDJ168: 0 | NDK168: 0 | NDL168: 0 | NDM168: 0 | NDN168: 0 | NDO168: 0 | NDP168: 0 | NDQ168: 0 | NDR168: 0 | NDS168: 0 | NDT168: 0 | NDU168: 0 | NDV168: 0 | NDW168: 0 | NDX168: 0 | NDY168: 0 | NDZ168: 0 | NEA168: 0 | NEB168: 0 | NEC168: 0 | NED168: 0 | NEE168: 0 | NEF168: 0 | NEG168: =NEG145 -> 0 | NEH168: 0 | NEI168: 0 | NEJ168: 0 | NEK168: 0 | NEL168: 0 | NEM168: 0 | NEN168: 0 | NEO168: 0 | NEP168: 0 | NEQ168: 0 | NER168: 0 | NES168: 0 | NET168: 0 | NEU168: 0 | NEV168: 0 | NEW168: 0 | NEX168: 0 | NEY168: 0 | NEZ168: 0 | NFA168: 0 | NFB168: 0 | NFC168: 0 | NFD168: 0 | NFE168: 0 | NFF168: 0 | NFG168: 0 | NFH168: 0 | NFI168: 0 | NFJ168: 0 | NFK168: 0 | NFL168: 0 | NFM168: 0 | NFN168: 0 | NFO168: 0 | NFP168: 0 | NFQ168: 0 | NFR168: 0 | NFS168: 0 | NFT168: 0 | NFU168: 0 | NFV168: 0 | NFW168: 0 | NFX168: 0 | NFY168: 0 | NFZ168: 0 | NGA168: 0 | NGB168: 0 | NGC168: 0 | NGD168: 0 | NGE168: 0 | NGF168: 0 | NGG168: 0 | NGH168: 0 | NGI168: 0 | NGJ168: 0 | NGK168: 0 | NGL168: 0 | NGM168: 0 | NGN168: 0 | NGO168: 0 | NGP168: 0 | NGQ168: 0 | NGR168: 0 | NGS168: =NGS145 -> 0 | NGT168: 0 | NGU168: 0 | NGV168: 0 | NGW168: 0 | NGX168: 0 | NGY168: 0 | NGZ168: 0 | NHA168: 0 | NHB168: 0 | NHC168: 0 | NHD168: 0 | NHE168: 0 | NHF168: 0 | NHG168: 0 | NHH168: 0 | NHI168: 0 | NHJ168: 0 | NHK168: 0 | NHL168: 0 | NHM168: 0 | NHN168: 0 | NHO168: 0 | NHP168: 0 | NHQ168: 0 | NHR168: 0 | NHS168: 0 | NHT168: 0 | NHU168: 0 | NHV168: 0 | NHW168: 0 | NHX168: 0 | NHY168: 0 | NHZ168: 0 | NIA168: 0 | NIB168: 0 | NIC168: 0 | NID168: 0 | NIE168: 0 | NIF168: 0 | NIG168: 0 | NIH168: 0 | NII168: 0 | NIJ168: 0 | NIK168: 0 | NIL168: 0 | NIM168: 0 | NIN168: 0 | NIO168: 0 | NIP168: 0 | NIQ168: 0 | NIR168: 0 | NIS168: 0 | NIT168: 0 | NIU168: 0 | NIV168: 0 | NIW168: 0 | NIX168: 0 | NIY168: 0 | NIZ168: 0 | NJA168: 0 | NJB168: 0 | NJC168: 0 | NJD168: 0 | NJE168: =NJE145 -> 0 | NJF168: 0 | NJG168: 0 | NJH168: 0 | NJI168: 0 | NJJ168: 0 | NJK168: 0 | NJL168: 0 | NJM168: 0 | NJN168: 0 | NJO168: 0 | NJP168: 0 | NJQ168: 0 | NJR168: 0 | NJS168: 0 | NJT168: 0 | NJU168: 0 | NJV168: 0 | NJW168: 0 | NJX168: 0 | NJY168: 0 | NJZ168: 0 | NKA168: 0 | NKB168: 0 | NKC168: 0 | NKD168: 0 | NKE168: 0 | NKF168: 0 | NKG168: 0 | NKH168: 0 | NKI168: 0 | NKJ168: 0 | NKK168: 0 | NKL168: 0 | NKM168: 0 | NKN168: 0 | NKO168: 0 | NKP168: 0 | NKQ168: 0 | NKR168: 0 | NKS168: 0 | NKT168: 0 | NKU168: 0 | NKV168: 0 | NKW168: 0 | NKX168: 0 | NKY168: 0 | NKZ168: 0 | NLA168: 0 | NLB168: 0 | NLC168: 0 | NLD168: 0 | NLE168: 0 | NLF168: 0 | NLG168: 0 | NLH168: 0 | NLI168: 0 | NLJ168: 0 | NLK168: 0 | NLL168: 0 | NLM168: 0 | NLN168: 0 | NLO168: 0 | NLP168: 0 | NLQ168: =NLQ145 -> 0 | NLR168: 0 | NLS168: 0 | NLT168: 0 | NLU168: 0 | NLV168: 0 | NLW168: 0 | NLX168: 0 | NLY168: 0 | NLZ168: 0 | NMA168: 0 | NMB168: 0 | NMC168: 0 | NMD168: 0 | NME168: 0 | NMF168: 0 | NMG168: 0 | NMH168: 0 | NMI168: 0 | NMJ168: 0 | NMK168: 0 | NML168: 0 | NMM168: 0 | NMN168: 0 | NMO168: 0 | NMP168: 0 | NMQ168: 0 | NMR168: 0 | NMS168: 0 | NMT168: 0 | NMU168: 0 | NMV168: 0 | NMW168: 0 | NMX168: 0 | NMY168: 0 | NMZ168: 0 | NNA168: 0 | NNB168: 0 | NNC168: 0 | NND168: 0 | NNE168: 0 | NNF168: 0 | NNG168: 0 | NNH168: 0 | NNI168: 0 | NNJ168: 0 | NNK168: 0 | NNL168: 0 | NNM168: 0 | NNN168: 0 | NNO168: 0 | NNP168: 0 | NNQ168: 0 | NNR168: 0 | NNS168: 0 | NNT168: 0 | NNU168: 0 | NNV168: 0 | NNW168: 0 | NNX168: 0 | NNY168: 0 | NNZ168: 0 | NOA168: 0 | NOB168: 0 | NOC168: =NOC145 -> 0 | NOD168: 0 | NOE168: 0 | NOF168: 0 | NOG168: 0 | NOH168: 0 | NOI168: 0 | NOJ168: 0 | NOK168: 0 | NOL168: 0 | NOM168: 0 | NON168: 0 | NOO168: 0 | NOP168: 0 | NOQ168: 0 | NOR168: 0 | NOS168: 0 | NOT168: 0 | NOU168: 0 | NOV168: 0 | NOW168: 0 | NOX168: 0 | NOY168: 0 | NOZ168: 0 | NPA168: 0 | NPB168: 0 | NPC168: 0 | NPD168: 0 | NPE168: 0 | NPF168: 0 | NPG168: 0 | NPH168: 0 | NPI168: 0 | NPJ168: 0 | NPK168: 0 | NPL168: 0 | NPM168: 0 | NPN168: 0 | NPO168: 0 | NPP168: 0 | NPQ168: 0 | NPR168: 0 | NPS168: 0 | NPT168: 0 | NPU168: 0 | NPV168: 0 | NPW168: 0 | NPX168: 0 | NPY168: 0 | NPZ168: 0 | NQA168: 0 | NQB168: 0 | NQC168: 0 | NQD168: 0 | NQE168: 0 | NQF168: 0 | NQG168: 0 | NQH168: 0 | NQI168: 0 | NQJ168: 0 | NQK168: 0 | NQL168: 0 | NQM168: 0 | NQN168: 0 | NQO168: =NQO145 -> 0 | NQP168: 0 | NQQ168: 0 | NQR168: 0 | NQS168: 0 | NQT168: 0 | NQU168: 0 | NQV168: 0 | NQW168: 0 | NQX168: 0 | NQY168: 0 | NQZ168: 0 | NRA168: 0 | NRB168: 0 | NRC168: 0 | NRD168: 0 | NRE168: 0 | NRF168: 0 | NRG168: 0 | NRH168: 0 | NRI168: 0 | NRJ168: 0 | NRK168: 0 | NRL168: 0 | NRM168: 0 | NRN168: 0 | NRO168: 0 | NRP168: 0 | NRQ168: 0 | NRR168: 0 | NRS168: 0 | NRT168: 0 | NRU168: 0 | NRV168: 0 | NRW168: 0 | NRX168: 0 | NRY168: 0 | NRZ168: 0 | NSA168: 0 | NSB168: 0 | NSC168: 0 | NSD168: 0 | NSE168: 0 | NSF168: 0 | NSG168: 0 | NSH168: 0 | NSI168: 0 | NSJ168: 0 | NSK168: 0 | NSL168: 0 | NSM168: 0 | NSN168: 0 | NSO168: 0 | NSP168: 0 | NSQ168: 0 | NSR168: 0 | NSS168: 0 | NST168: 0 | NSU168: 0 | NSV168: 0 | NSW168: 0 | NSX168: 0 | NSY168: 0 | NSZ168: 0 | NTA168: =NTA145 -> 0 | NTB168: 0 | NTC168: 0 | NTD168: 0 | NTE168: 0 | NTF168: 0 | NTG168: 0 | NTH168: 0 | NTI168: 0 | NTJ168: 0 | NTK168: 0 | NTL168: 0 | NTM168: 0 | NTN168: 0 | NTO168: 0 | NTP168: 0 | NTQ168: 0 | NTR168: 0 | NTS168: 0 | NTT168: 0 | NTU168: 0 | NTV168: 0 | NTW168: 0 | NTX168: 0 | NTY168: 0 | NTZ168: 0 | NUA168: 0 | NUB168: 0 | NUC168: 0 | NUD168: 0 | NUE168: 0 | NUF168: 0 | NUG168: 0 | NUH168: 0 | NUI168: 0 | NUJ168: 0 | NUK168: 0 | NUL168: 0 | NUM168: 0 | NUN168: 0 | NUO168: 0 | NUP168: 0 | NUQ168: 0 | NUR168: 0 | NUS168: 0 | NUT168: 0 | NUU168: 0 | NUV168: 0 | NUW168: 0 | NUX168: 0 | NUY168: 0 | NUZ168: 0 | NVA168: 0 | NVB168: 0 | NVC168: 0 | NVD168: 0 | NVE168: 0 | NVF168: 0 | NVG168: 0 | NVH168: 0 | NVI168: 0 | NVJ168: 0 | NVK168: 0 | NVL168: 0 | NVM168: =NVM145 -> 0 | NVN168: 0 | NVO168: 0 | NVP168: 0 | NVQ168: 0 | NVR168: 0 | NVS168: 0 | NVT168: 0 | NVU168: 0 | NVV168: 0 | NVW168: 0 | NVX168: 0 | NVY168: 0 | NVZ168: 0 | NWA168: 0 | NWB168: 0 | NWC168: 0 | NWD168: 0 | NWE168: 0 | NWF168: 0 | NWG168: 0 | NWH168: 0 | NWI168: 0 | NWJ168: 0 | NWK168: 0 | NWL168: 0 | NWM168: 0 | NWN168: 0 | NWO168: 0 | NWP168: 0 | NWQ168: 0 | NWR168: 0 | NWS168: 0 | NWT168: 0 | NWU168: 0 | NWV168: 0 | NWW168: 0 | NWX168: 0 | NWY168: 0 | NWZ168: 0 | NXA168: 0 | NXB168: 0 | NXC168: 0 | NXD168: 0 | NXE168: 0 | NXF168: 0 | NXG168: 0 | NXH168: 0 | NXI168: 0 | NXJ168: 0 | NXK168: 0 | NXL168: 0 | NXM168: 0 | NXN168: 0 | NXO168: 0 | NXP168: 0 | NXQ168: 0 | NXR168: 0 | NXS168: 0 | NXT168: 0 | NXU168: 0 | NXV168: 0 | NXW168: 0 | NXX168: 0 | NXY168: =NXY145 -> 0 | NXZ168: 0 | NYA168: 0 | NYB168: 0 | NYC168: 0 | NYD168: 0 | NYE168: 0 | NYF168: 0 | NYG168: 0 | NYH168: 0 | NYI168: 0 | NYJ168: 0 | NYK168: 0 | NYL168: 0 | NYM168: 0 | NYN168: 0 | NYO168: 0 | NYP168: 0 | NYQ168: 0 | NYR168: 0 | NYS168: 0 | NYT168: 0 | NYU168: 0 | NYV168: 0 | NYW168: 0 | NYX168: 0 | NYY168: 0 | NYZ168: 0 | NZA168: 0 | NZB168: 0 | NZC168: 0 | NZD168: 0 | NZE168: 0 | NZF168: 0 | NZG168: 0 | NZH168: 0 | NZI168: 0 | NZJ168: 0 | NZK168: 0 | NZL168: 0 | NZM168: 0 | NZN168: 0 | NZO168: 0 | NZP168: 0 | NZQ168: 0 | NZR168: 0 | NZS168: 0 | NZT168: 0 | NZU168: 0 | NZV168: 0 | NZW168: 0 | NZX168: 0 | NZY168: 0 | NZZ168: 0 | OAA168: 0 | OAB168: 0 | OAC168: 0 | OAD168: 0 | OAE168: 0 | OAF168: 0 | OAG168: 0 | OAH168: 0 | OAI168: 0 | OAJ168: 0 | OAK168: =OAK145 -> 0 | OAL168: 0 | OAM168: 0 | OAN168: 0 | OAO168: 0 | OAP168: 0 | OAQ168: 0 | OAR168: 0 | OAS168: 0 | OAT168: 0 | OAU168: 0 | OAV168: 0 | OAW168: 0 | OAX168: 0 | OAY168: 0 | OAZ168: 0 | OBA168: 0 | OBB168: 0 | OBC168: 0 | OBD168: 0 | OBE168: 0 | OBF168: 0 | OBG168: 0 | OBH168: 0 | OBI168: 0 | OBJ168: 0 | OBK168: 0 | OBL168: 0 | OBM168: 0 | OBN168: 0 | OBO168: 0 | OBP168: 0 | OBQ168: 0 | OBR168: 0 | OBS168: 0 | OBT168: 0 | OBU168: 0 | OBV168: 0 | OBW168: 0 | OBX168: 0 | OBY168: 0 | OBZ168: 0 | OCA168: 0 | OCB168: 0 | OCC168: 0 | OCD168: 0 | OCE168: 0 | OCF168: 0 | OCG168: 0 | OCH168: 0 | OCI168: 0 | OCJ168: 0 | OCK168: 0 | OCL168: 0 | OCM168: 0 | OCN168: 0 | OCO168: 0 | OCP168: 0 | OCQ168: 0 | OCR168: 0 | OCS168: 0 | OCT168: 0 | OCU168: 0 | OCV168: 0 | OCW168: =OCW145 -> 0 | OCX168: 0 | OCY168: 0 | OCZ168: 0 | ODA168: 0 | ODB168: 0 | ODC168: 0 | ODD168: 0 | ODE168: 0 | ODF168: 0 | ODG168: 0 | ODH168: 0 | ODI168: 0 | ODJ168: 0 | ODK168: 0 | ODL168: 0 | ODM168: 0 | ODN168: 0 | ODO168: 0 | ODP168: 0 | ODQ168: 0 | ODR168: 0 | ODS168: 0 | ODT168: 0 | ODU168: 0 | ODV168: 0 | ODW168: 0 | ODX168: 0 | ODY168: 0 | ODZ168: 0 | OEA168: 0 | OEB168: 0 | OEC168: 0 | OED168: 0 | OEE168: 0 | OEF168: 0 | OEG168: 0 | OEH168: 0 | OEI168: 0 | OEJ168: 0 | OEK168: 0 | OEL168: 0 | OEM168: 0 | OEN168: 0 | OEO168: 0 | OEP168: 0 | OEQ168: 0 | OER168: 0 | OES168: 0 | OET168: 0 | OEU168: 0 | OEV168: 0 | OEW168: 0 | OEX168: 0 | OEY168: 0 | OEZ168: 0 | OFA168: 0 | OFB168: 0 | OFC168: 0 | OFD168: 0 | OFE168: 0 | OFF168: 0 | OFG168: 0 | OFH168: 0 | OFI168: =OFI145 -> 0 | OFJ168: 0 | OFK168: 0 | OFL168: 0 | OFM168: 0 | OFN168: 0 | OFO168: 0 | OFP168: 0 | OFQ168: 0 | OFR168: 0 | OFS168: 0 | OFT168: 0 | OFU168: 0 | OFV168: 0 | OFW168: 0 | OFX168: 0 | OFY168: 0 | OFZ168: 0 | OGA168: 0 | OGB168: 0 | OGC168: 0 | OGD168: 0 | OGE168: 0 | OGF168: 0 | OGG168: 0 | OGH168: 0 | OGI168: 0 | OGJ168: 0 | OGK168: 0 | OGL168: 0 | OGM168: 0 | OGN168: 0 | OGO168: 0 | OGP168: 0 | OGQ168: 0 | OGR168: 0 | OGS168: 0 | OGT168: 0 | OGU168: 0 | OGV168: 0 | OGW168: 0 | OGX168: 0 | OGY168: 0 | OGZ168: 0 | OHA168: 0 | OHB168: 0 | OHC168: 0 | OHD168: 0 | OHE168: 0 | OHF168: 0 | OHG168: 0 | OHH168: 0 | OHI168: 0 | OHJ168: 0 | OHK168: 0 | OHL168: 0 | OHM168: 0 | OHN168: 0 | OHO168: 0 | OHP168: 0 | OHQ168: 0 | OHR168: 0 | OHS168: 0 | OHT168: 0 | OHU168: =OHU145 -> 0 | OHV168: 0 | OHW168: 0 | OHX168: 0 | OHY168: 0 | OHZ168: 0 | OIA168: 0 | OIB168: 0 | OIC168: 0 | OID168: 0 | OIE168: 0 | OIF168: 0 | OIG168: 0 | OIH168: 0 | OII168: 0 | OIJ168: 0 | OIK168: 0 | OIL168: 0 | OIM168: 0 | OIN168: 0 | OIO168: 0 | OIP168: 0 | OIQ168: 0 | OIR168: 0 | OIS168: 0 | OIT168: 0 | OIU168: 0 | OIV168: 0 | OIW168: 0 | OIX168: 0 | OIY168: 0 | OIZ168: 0 | OJA168: 0 | OJB168: 0 | OJC168: 0 | OJD168: 0 | OJE168: 0 | OJF168: 0 | OJG168: 0 | OJH168: 0 | OJI168: 0 | OJJ168: 0 | OJK168: 0 | OJL168: 0 | OJM168: 0 | OJN168: 0 | OJO168: 0 | OJP168: 0 | OJQ168: 0 | OJR168: 0 | OJS168: 0 | OJT168: 0 | OJU168: 0 | OJV168: 0 | OJW168: 0 | OJX168: 0 | OJY168: 0 | OJZ168: 0 | OKA168: 0 | OKB168: 0 | OKC168: 0 | OKD168: 0 | OKE168: 0 | OKF168: 0 | OKG168: =OKG145 -> 0 | OKH168: 0 | OKI168: 0 | OKJ168: 0 | OKK168: 0 | OKL168: 0 | OKM168: 0 | OKN168: 0 | OKO168: 0 | OKP168: 0 | OKQ168: 0 | OKR168: 0 | OKS168: 0 | OKT168: 0 | OKU168: 0 | OKV168: 0 | OKW168: 0 | OKX168: 0 | OKY168: 0 | OKZ168: 0 | OLA168: 0 | OLB168: 0 | OLC168: 0 | OLD168: 0 | OLE168: 0 | OLF168: 0 | OLG168: 0 | OLH168: 0 | OLI168: 0 | OLJ168: 0 | OLK168: 0 | OLL168: 0 | OLM168: 0 | OLN168: 0 | OLO168: 0 | OLP168: 0 | OLQ168: 0 | OLR168: 0 | OLS168: 0 | OLT168: 0 | OLU168: 0 | OLV168: 0 | OLW168: 0 | OLX168: 0 | OLY168: 0 | OLZ168: 0 | OMA168: 0 | OMB168: 0 | OMC168: 0 | OMD168: 0 | OME168: 0 | OMF168: 0 | OMG168: 0 | OMH168: 0 | OMI168: 0 | OMJ168: 0 | OMK168: 0 | OML168: 0 | OMM168: 0 | OMN168: 0 | OMO168: 0 | OMP168: 0 | OMQ168: 0 | OMR168: 0 | OMS168: =OMS145 -> 0 | OMT168: 0 | OMU168: 0 | OMV168: 0 | OMW168: 0 | OMX168: 0 | OMY168: 0 | OMZ168: 0 | ONA168: 0 | ONB168: 0 | ONC168: 0 | OND168: 0 | ONE168: 0 | ONF168: 0 | ONG168: 0 | ONH168: 0 | ONI168: 0 | ONJ168: 0 | ONK168: 0 | ONL168: 0 | ONM168: 0 | ONN168: 0 | ONO168: 0 | ONP168: 0 | ONQ168: 0 | ONR168: 0 | ONS168: 0 | ONT168: 0 | ONU168: 0 | ONV168: 0 | ONW168: 0 | ONX168: 0 | ONY168: 0 | ONZ168: 0 | OOA168: 0 | OOB168: 0 | OOC168: 0 | OOD168: 0 | OOE168: 0 | OOF168: 0 | OOG168: 0 | OOH168: 0 | OOI168: 0 | OOJ168: 0 | OOK168: 0 | OOL168: 0 | OOM168: 0 | OON168: 0 | OOO168: 0 | OOP168: 0 | OOQ168: 0 | OOR168: 0 | OOS168: 0 | OOT168: 0 | OOU168: 0 | OOV168: 0 | OOW168: 0 | OOX168: 0 | OOY168: 0 | OOZ168: 0 | OPA168: 0 | OPB168: 0 | OPC168: 0 | OPD168: 0 | OPE168: =OPE145 -> 0 | OPF168: 0 | OPG168: 0 | OPH168: 0 | OPI168: 0 | OPJ168: 0 | OPK168: 0 | OPL168: 0 | OPM168: 0 | OPN168: 0 | OPO168: 0 | OPP168: 0 | OPQ168: 0 | OPR168: 0 | OPS168: 0 | OPT168: 0 | OPU168: 0 | OPV168: 0 | OPW168: 0 | OPX168: 0 | OPY168: 0 | OPZ168: 0 | OQA168: 0 | OQB168: 0 | OQC168: 0 | OQD168: 0 | OQE168: 0 | OQF168: 0 | OQG168: 0 | OQH168: 0 | OQI168: 0 | OQJ168: 0 | OQK168: 0 | OQL168: 0 | OQM168: 0 | OQN168: 0 | OQO168: 0 | OQP168: 0 | OQQ168: 0 | OQR168: 0 | OQS168: 0 | OQT168: 0 | OQU168: 0 | OQV168: 0 | OQW168: 0 | OQX168: 0 | OQY168: 0 | OQZ168: 0 | ORA168: 0 | ORB168: 0 | ORC168: 0 | ORD168: 0 | ORE168: 0 | ORF168: 0 | ORG168: 0 | ORH168: 0 | ORI168: 0 | ORJ168: 0 | ORK168: 0 | ORL168: 0 | ORM168: 0 | ORN168: 0 | ORO168: 0 | ORP168: 0 | ORQ168: =ORQ145 -> 0 | ORR168: 0 | ORS168: 0 | ORT168: 0 | ORU168: 0 | ORV168: 0 | ORW168: 0 | ORX168: 0 | ORY168: 0 | ORZ168: 0 | OSA168: 0 | OSB168: 0 | OSC168: 0 | OSD168: 0 | OSE168: 0 | OSF168: 0 | OSG168: 0 | OSH168: 0 | OSI168: 0 | OSJ168: 0 | OSK168: 0 | OSL168: 0 | OSM168: 0 | OSN168: 0 | OSO168: 0 | OSP168: 0 | OSQ168: 0 | OSR168: 0 | OSS168: 0 | OST168: 0 | OSU168: 0 | OSV168: 0 | OSW168: 0 | OSX168: 0 | OSY168: 0 | OSZ168: 0 | OTA168: 0 | OTB168: 0 | OTC168: 0 | OTD168: 0 | OTE168: 0 | OTF168: 0 | OTG168: 0 | OTH168: 0 | OTI168: 0 | OTJ168: 0 | OTK168: 0 | OTL168: 0 | OTM168: 0 | OTN168: 0 | OTO168: 0 | OTP168: 0 | OTQ168: 0 | OTR168: 0 | OTS168: 0 | OTT168: 0 | OTU168: 0 | OTV168: 0 | OTW168: 0 | OTX168: 0 | OTY168: 0 | OTZ168: 0 | OUA168: 0 | OUB168: 0 | OUC168: =OUC145 -> 0 | OUD168: 0 | OUE168: 0 | OUF168: 0 | OUG168: 0 | OUH168: 0 | OUI168: 0 | OUJ168: 0 | OUK168: 0 | OUL168: 0 | OUM168: 0 | OUN168: 0 | OUO168: 0 | OUP168: 0 | OUQ168: 0 | OUR168: 0 | OUS168: 0 | OUT168: 0 | OUU168: 0 | OUV168: 0 | OUW168: 0 | OUX168: 0 | OUY168: 0 | OUZ168: 0 | OVA168: 0 | OVB168: 0 | OVC168: 0 | OVD168: 0 | OVE168: 0 | OVF168: 0 | OVG168: 0 | OVH168: 0 | OVI168: 0 | OVJ168: 0 | OVK168: 0 | OVL168: 0 | OVM168: 0 | OVN168: 0 | OVO168: 0 | OVP168: 0 | OVQ168: 0 | OVR168: 0 | OVS168: 0 | OVT168: 0 | OVU168: 0 | OVV168: 0 | OVW168: 0 | OVX168: 0 | OVY168: 0 | OVZ168: 0 | OWA168: 0 | OWB168: 0 | OWC168: 0 | OWD168: 0 | OWE168: 0 | OWF168: 0 | OWG168: 0 | OWH168: 0 | OWI168: 0 | OWJ168: 0 | OWK168: 0 | OWL168: 0 | OWM168: 0 | OWN168: 0 | OWO168: =OWO145 -> 0 | OWP168: 0 | OWQ168: 0 | OWR168: 0 | OWS168: 0 | OWT168: 0 | OWU168: 0 | OWV168: 0 | OWW168: 0 | OWX168: 0 | OWY168: 0 | OWZ168: 0 | OXA168: 0 | OXB168: 0 | OXC168: 0 | OXD168: 0 | OXE168: 0 | OXF168: 0 | OXG168: 0 | OXH168: 0 | OXI168: 0 | OXJ168: 0 | OXK168: 0 | OXL168: 0 | OXM168: 0 | OXN168: 0 | OXO168: 0 | OXP168: 0 | OXQ168: 0 | OXR168: 0 | OXS168: 0 | OXT168: 0 | OXU168: 0 | OXV168: 0 | OXW168: 0 | OXX168: 0 | OXY168: 0 | OXZ168: 0 | OYA168: 0 | OYB168: 0 | OYC168: 0 | OYD168: 0 | OYE168: 0 | OYF168: 0 | OYG168: 0 | OYH168: 0 | OYI168: 0 | OYJ168: 0 | OYK168: 0 | OYL168: 0 | OYM168: 0 | OYN168: 0 | OYO168: 0 | OYP168: 0 | OYQ168: 0 | OYR168: 0 | OYS168: 0 | OYT168: 0 | OYU168: 0 | OYV168: 0 | OYW168: 0 | OYX168: 0 | OYY168: 0 | OYZ168: 0 | OZA168: =OZA145 -> 0 | OZB168: 0 | OZC168: 0 | OZD168: 0 | OZE168: 0 | OZF168: 0 | OZG168: 0 | OZH168: 0 | OZI168: 0 | OZJ168: 0 | OZK168: 0 | OZL168: 0 | OZM168: 0 | OZN168: 0 | OZO168: 0 | OZP168: 0 | OZQ168: 0 | OZR168: 0 | OZS168: 0 | OZT168: 0 | OZU168: 0 | OZV168: 0 | OZW168: 0 | OZX168: 0 | OZY168: 0 | OZZ168: 0 | PAA168: 0 | PAB168: 0 | PAC168: 0 | PAD168: 0 | PAE168: 0 | PAF168: 0 | PAG168: 0 | PAH168: 0 | PAI168: 0 | PAJ168: 0 | PAK168: 0 | PAL168: 0 | PAM168: 0 | PAN168: 0 | PAO168: 0 | PAP168: 0 | PAQ168: 0 | PAR168: 0 | PAS168: 0 | PAT168: 0 | PAU168: 0 | PAV168: 0 | PAW168: 0 | PAX168: 0 | PAY168: 0 | PAZ168: 0 | PBA168: 0 | PBB168: 0 | PBC168: 0 | PBD168: 0 | PBE168: 0 | PBF168: 0 | PBG168: 0 | PBH168: 0 | PBI168: 0 | PBJ168: 0 | PBK168: 0 | PBL168: 0 | PBM168: =PBM145 -> 0 | PBN168: 0 | PBO168: 0 | PBP168: 0 | PBQ168: 0 | PBR168: 0 | PBS168: 0 | PBT168: 0 | PBU168: 0 | PBV168: 0 | PBW168: 0 | PBX168: 0 | PBY168: 0 | PBZ168: 0 | PCA168: 0 | PCB168: 0 | PCC168: 0 | PCD168: 0 | PCE168: 0 | PCF168: 0 | PCG168: 0 | PCH168: 0 | PCI168: 0 | PCJ168: 0 | PCK168: 0 | PCL168: 0 | PCM168: 0 | PCN168: 0 | PCO168: 0 | PCP168: 0 | PCQ168: 0 | PCR168: 0 | PCS168: 0 | PCT168: 0 | PCU168: 0 | PCV168: 0 | PCW168: 0 | PCX168: 0 | PCY168: 0 | PCZ168: 0 | PDA168: 0 | PDB168: 0 | PDC168: 0 | PDD168: 0 | PDE168: 0 | PDF168: 0 | PDG168: 0 | PDH168: 0 | PDI168: 0 | PDJ168: 0 | PDK168: 0 | PDL168: 0 | PDM168: 0 | PDN168: 0 | PDO168: 0 | PDP168: 0 | PDQ168: 0 | PDR168: 0 | PDS168: 0 | PDT168: 0 | PDU168: 0 | PDV168: 0 | PDW168: 0 | PDX168: 0 | PDY168: =PDY145 -> 0 | PDZ168: 0 | PEA168: 0 | PEB168: 0 | PEC168: 0 | PED168: 0 | PEE168: 0 | PEF168: 0 | PEG168: 0 | PEH168: 0 | PEI168: 0 | PEJ168: 0 | PEK168: 0 | PEL168: 0 | PEM168: 0 | PEN168: 0 | PEO168: 0 | PEP168: 0 | PEQ168: 0 | PER168: 0 | PES168: 0 | PET168: 0 | PEU168: 0 | PEV168: 0 | PEW168: 0 | PEX168: 0 | PEY168: 0 | PEZ168: 0 | PFA168: 0 | PFB168: 0 | PFC168: 0 | PFD168: 0 | PFE168: 0 | PFF168: 0 | PFG168: 0 | PFH168: 0 | PFI168: 0 | PFJ168: 0 | PFK168: 0 | PFL168: 0 | PFM168: 0 | PFN168: 0 | PFO168: 0 | PFP168: 0 | PFQ168: 0 | PFR168: 0 | PFS168: 0 | PFT168: 0 | PFU168: 0 | PFV168: 0 | PFW168: 0 | PFX168: 0 | PFY168: 0 | PFZ168: 0 | PGA168: 0 | PGB168: 0 | PGC168: 0 | PGD168: 0 | PGE168: 0 | PGF168: 0 | PGG168: 0 | PGH168: 0 | PGI168: 0 | PGJ168: 0 | PGK168: =PGK145 -> 0 | PGL168: 0 | PGM168: 0 | PGN168: 0 | PGO168: 0 | PGP168: 0 | PGQ168: 0 | PGR168: 0 | PGS168: 0 | PGT168: 0 | PGU168: 0 | PGV168: 0 | PGW168: 0 | PGX168: 0 | PGY168: 0 | PGZ168: 0 | PHA168: 0 | PHB168: 0 | PHC168: 0 | PHD168: 0 | PHE168: 0 | PHF168: 0 | PHG168: 0 | PHH168: 0 | PHI168: 0 | PHJ168: 0 | PHK168: 0 | PHL168: 0 | PHM168: 0 | PHN168: 0 | PHO168: 0 | PHP168: 0 | PHQ168: 0 | PHR168: 0 | PHS168: 0 | PHT168: 0 | PHU168: 0 | PHV168: 0 | PHW168: 0 | PHX168: 0 | PHY168: 0 | PHZ168: 0 | PIA168: 0 | PIB168: 0 | PIC168: 0 | PID168: 0 | PIE168: 0 | PIF168: 0 | PIG168: 0 | PIH168: 0 | PII168: 0 | PIJ168: 0 | PIK168: 0 | PIL168: 0 | PIM168: 0 | PIN168: 0 | PIO168: 0 | PIP168: 0 | PIQ168: 0 | PIR168: 0 | PIS168: 0 | PIT168: 0 | PIU168: 0 | PIV168: 0 | PIW168: =PIW145 -> 0 | PIX168: 0 | PIY168: 0 | PIZ168: 0 | PJA168: 0 | PJB168: 0 | PJC168: 0 | PJD168: 0 | PJE168: 0 | PJF168: 0 | PJG168: 0 | PJH168: 0 | PJI168: 0 | PJJ168: 0 | PJK168: 0 | PJL168: 0 | PJM168: 0 | PJN168: 0 | PJO168: 0 | PJP168: 0 | PJQ168: 0 | PJR168: 0 | PJS168: 0 | PJT168: 0 | PJU168: 0 | PJV168: 0 | PJW168: 0 | PJX168: 0 | PJY168: 0 | PJZ168: 0 | PKA168: 0 | PKB168: 0 | PKC168: 0 | PKD168: 0 | PKE168: 0 | PKF168: 0 | PKG168: 0 | PKH168: 0 | PKI168: 0 | PKJ168: 0 | PKK168: 0 | PKL168: 0 | PKM168: 0 | PKN168: 0 | PKO168: 0 | PKP168: 0 | PKQ168: 0 | PKR168: 0 | PKS168: 0 | PKT168: 0 | PKU168: 0 | PKV168: 0 | PKW168: 0 | PKX168: 0 | PKY168: 0 | PKZ168: 0 | PLA168: 0 | PLB168: 0 | PLC168: 0 | PLD168: 0 | PLE168: 0 | PLF168: 0 | PLG168: 0 | PLH168: 0 | PLI168: =PLI145 -> 0 | PLJ168: 0 | PLK168: 0 | PLL168: 0 | PLM168: 0 | PLN168: 0 | PLO168: 0 | PLP168: 0 | PLQ168: 0 | PLR168: 0 | PLS168: 0 | PLT168: 0 | PLU168: 0 | PLV168: 0 | PLW168: 0 | PLX168: 0 | PLY168: 0 | PLZ168: 0 | PMA168: 0 | PMB168: 0 | PMC168: 0 | PMD168: 0 | PME168: 0 | PMF168: 0 | PMG168: 0 | PMH168: 0 | PMI168: 0 | PMJ168: 0 | PMK168: 0 | PML168: 0 | PMM168: 0 | PMN168: 0 | PMO168: 0 | PMP168: 0 | PMQ168: 0 | PMR168: 0 | PMS168: 0 | PMT168: 0 | PMU168: 0 | PMV168: 0 | PMW168: 0 | PMX168: 0 | PMY168: 0 | PMZ168: 0 | PNA168: 0 | PNB168: 0 | PNC168: 0 | PND168: 0 | PNE168: 0 | PNF168: 0 | PNG168: 0 | PNH168: 0 | PNI168: 0 | PNJ168: 0 | PNK168: 0 | PNL168: 0 | PNM168: 0 | PNN168: 0 | PNO168: 0 | PNP168: 0 | PNQ168: 0 | PNR168: 0 | PNS168: 0 | PNT168: 0 | PNU168: =PNU145 -> 0 | PNV168: 0 | PNW168: 0 | PNX168: 0 | PNY168: 0 | PNZ168: 0 | POA168: 0 | POB168: 0 | POC168: 0 | POD168: 0 | POE168: 0 | POF168: 0 | POG168: 0 | POH168: 0 | POI168: 0 | POJ168: 0 | POK168: 0 | POL168: 0 | POM168: 0 | PON168: 0 | POO168: 0 | POP168: 0 | POQ168: 0 | POR168: 0 | POS168: 0 | POT168: 0 | POU168: 0 | POV168: 0 | POW168: 0 | POX168: 0 | POY168: 0 | POZ168: 0 | PPA168: 0 | PPB168: 0 | PPC168: 0 | PPD168: 0 | PPE168: 0 | PPF168: 0 | PPG168: 0 | PPH168: 0 | PPI168: 0 | PPJ168: 0 | PPK168: 0 | PPL168: 0 | PPM168: 0 | PPN168: 0 | PPO168: 0 | PPP168: 0 | PPQ168: 0 | PPR168: 0 | PPS168: 0 | PPT168: 0 | PPU168: 0 | PPV168: 0 | PPW168: 0 | PPX168: 0 | PPY168: 0 | PPZ168: 0 | PQA168: 0 | PQB168: 0 | PQC168: 0 | PQD168: 0 | PQE168: 0 | PQF168: 0 | PQG168: =PQG145 -> 0 | PQH168: 0 | PQI168: 0 | PQJ168: 0 | PQK168: 0 | PQL168: 0 | PQM168: 0 | PQN168: 0 | PQO168: 0 | PQP168: 0 | PQQ168: 0 | PQR168: 0 | PQS168: 0 | PQT168: 0 | PQU168: 0 | PQV168: 0 | PQW168: 0 | PQX168: 0 | PQY168: 0 | PQZ168: 0 | PRA168: 0 | PRB168: 0 | PRC168: 0 | PRD168: 0 | PRE168: 0 | PRF168: 0 | PRG168: 0 | PRH168: 0 | PRI168: 0 | PRJ168: 0 | PRK168: 0 | PRL168: 0 | PRM168: 0 | PRN168: 0 | PRO168: 0 | PRP168: 0 | PRQ168: 0 | PRR168: 0 | PRS168: 0 | PRT168: 0 | PRU168: 0 | PRV168: 0 | PRW168: 0 | PRX168: 0 | PRY168: 0 | PRZ168: 0 | PSA168: 0 | PSB168: 0 | PSC168: 0 | PSD168: 0 | PSE168: 0 | PSF168: 0 | PSG168: 0 | PSH168: 0 | PSI168: 0 | PSJ168: 0 | PSK168: 0 | PSL168: 0 | PSM168: 0 | PSN168: 0 | PSO168: 0 | PSP168: 0 | PSQ168: 0 | PSR168: 0 | PSS168: =PSS145 -> 0 | PST168: 0 | PSU168: 0 | PSV168: 0 | PSW168: 0 | PSX168: 0 | PSY168: 0 | PSZ168: 0 | PTA168: 0 | PTB168: 0 | PTC168: 0 | PTD168: 0 | PTE168: 0 | PTF168: 0 | PTG168: 0 | PTH168: 0 | PTI168: 0 | PTJ168: 0 | PTK168: 0 | PTL168: 0 | PTM168: 0 | PTN168: 0 | PTO168: 0 | PTP168: 0 | PTQ168: 0 | PTR168: 0 | PTS168: 0 | PTT168: 0 | PTU168: 0 | PTV168: 0 | PTW168: 0 | PTX168: 0 | PTY168: 0 | PTZ168: 0 | PUA168: 0 | PUB168: 0 | PUC168: 0 | PUD168: 0 | PUE168: 0 | PUF168: 0 | PUG168: 0 | PUH168: 0 | PUI168: 0 | PUJ168: 0 | PUK168: 0 | PUL168: 0 | PUM168: 0 | PUN168: 0 | PUO168: 0 | PUP168: 0 | PUQ168: 0 | PUR168: 0 | PUS168: 0 | PUT168: 0 | PUU168: 0 | PUV168: 0 | PUW168: 0 | PUX168: 0 | PUY168: 0 | PUZ168: 0 | PVA168: 0 | PVB168: 0 | PVC168: 0 | PVD168: 0 | PVE168: =PVE145 -> 0 | PVF168: 0 | PVG168: 0 | PVH168: 0 | PVI168: 0 | PVJ168: 0 | PVK168: 0 | PVL168: 0 | PVM168: 0 | PVN168: 0 | PVO168: 0 | PVP168: 0 | PVQ168: 0 | PVR168: 0 | PVS168: 0 | PVT168: 0 | PVU168: 0 | PVV168: 0 | PVW168: 0 | PVX168: 0 | PVY168: 0 | PVZ168: 0 | PWA168: 0 | PWB168: 0 | PWC168: 0 | PWD168: 0 | PWE168: 0 | PWF168: 0 | PWG168: 0 | PWH168: 0 | PWI168: 0 | PWJ168: 0 | PWK168: 0 | PWL168: 0 | PWM168: 0 | PWN168: 0 | PWO168: 0 | PWP168: 0 | PWQ168: 0 | PWR168: 0 | PWS168: 0 | PWT168: 0 | PWU168: 0 | PWV168: 0 | PWW168: 0 | PWX168: 0 | PWY168: 0 | PWZ168: 0 | PXA168: 0 | PXB168: 0 | PXC168: 0 | PXD168: 0 | PXE168: 0 | PXF168: 0 | PXG168: 0 | PXH168: 0 | PXI168: 0 | PXJ168: 0 | PXK168: 0 | PXL168: 0 | PXM168: 0 | PXN168: 0 | PXO168: 0 | PXP168: 0 | PXQ168: =PXQ145 -> 0 | PXR168: 0 | PXS168: 0 | PXT168: 0 | PXU168: 0 | PXV168: 0 | PXW168: 0 | PXX168: 0 | PXY168: 0 | PXZ168: 0 | PYA168: 0 | PYB168: 0 | PYC168: 0 | PYD168: 0 | PYE168: 0 | PYF168: 0 | PYG168: 0 | PYH168: 0 | PYI168: 0 | PYJ168: 0 | PYK168: 0 | PYL168: 0 | PYM168: 0 | PYN168: 0 | PYO168: 0 | PYP168: 0 | PYQ168: 0 | PYR168: 0 | PYS168: 0 | PYT168: 0 | PYU168: 0 | PYV168: 0 | PYW168: 0 | PYX168: 0 | PYY168: 0 | PYZ168: 0 | PZA168: 0 | PZB168: 0 | PZC168: 0 | PZD168: 0 | PZE168: 0 | PZF168: 0 | PZG168: 0 | PZH168: 0 | PZI168: 0 | PZJ168: 0 | PZK168: 0 | PZL168: 0 | PZM168: 0 | PZN168: 0 | PZO168: 0 | PZP168: 0 | PZQ168: 0 | PZR168: 0 | PZS168: 0 | PZT168: 0 | PZU168: 0 | PZV168: 0 | PZW168: 0 | PZX168: 0 | PZY168: 0 | PZZ168: 0 | QAA168: 0 | QAB168: 0 | QAC168: =QAC145 -> 0 | QAD168: 0 | QAE168: 0 | QAF168: 0 | QAG168: 0 | QAH168: 0 | QAI168: 0 | QAJ168: 0 | QAK168: 0 | QAL168: 0 | QAM168: 0 | QAN168: 0 | QAO168: 0 | QAP168: 0 | QAQ168: 0 | QAR168: 0 | QAS168: 0 | QAT168: 0 | QAU168: 0 | QAV168: 0 | QAW168: 0 | QAX168: 0 | QAY168: 0 | QAZ168: 0 | QBA168: 0 | QBB168: 0 | QBC168: 0 | QBD168: 0 | QBE168: 0 | QBF168: 0 | QBG168: 0 | QBH168: 0 | QBI168: 0 | QBJ168: 0 | QBK168: 0 | QBL168: 0 | QBM168: 0 | QBN168: 0 | QBO168: 0 | QBP168: 0 | QBQ168: 0 | QBR168: 0 | QBS168: 0 | QBT168: 0 | QBU168: 0 | QBV168: 0 | QBW168: 0 | QBX168: 0 | QBY168: 0 | QBZ168: 0 | QCA168: 0 | QCB168: 0 | QCC168: 0 | QCD168: 0 | QCE168: 0 | QCF168: 0 | QCG168: 0 | QCH168: 0 | QCI168: 0 | QCJ168: 0 | QCK168: 0 | QCL168: 0 | QCM168: 0 | QCN168: 0 | QCO168: =QCO145 -> 0 | QCP168: 0 | QCQ168: 0 | QCR168: 0 | QCS168: 0 | QCT168: 0 | QCU168: 0 | QCV168: 0 | QCW168: 0 | QCX168: 0 | QCY168: 0 | QCZ168: 0 | QDA168: 0 | QDB168: 0 | QDC168: 0 | QDD168: 0 | QDE168: 0 | QDF168: 0 | QDG168: 0 | QDH168: 0 | QDI168: 0 | QDJ168: 0 | QDK168: 0 | QDL168: 0 | QDM168: 0 | QDN168: 0 | QDO168: 0 | QDP168: 0 | QDQ168: 0 | QDR168: 0 | QDS168: 0 | QDT168: 0 | QDU168: 0 | QDV168: 0 | QDW168: 0 | QDX168: 0 | QDY168: 0 | QDZ168: 0 | QEA168: 0 | QEB168: 0 | QEC168: 0 | QED168: 0 | QEE168: 0 | QEF168: 0 | QEG168: 0 | QEH168: 0 | QEI168: 0 | QEJ168: 0 | QEK168: 0 | QEL168: 0 | QEM168: 0 | QEN168: 0 | QEO168: 0 | QEP168: 0 | QEQ168: 0 | QER168: 0 | QES168: 0 | QET168: 0 | QEU168: 0 | QEV168: 0 | QEW168: 0 | QEX168: 0 | QEY168: 0 | QEZ168: 0 | QFA168: =QFA145 -> 0 | QFB168: 0 | QFC168: 0 | QFD168: 0 | QFE168: 0 | QFF168: 0 | QFG168: 0 | QFH168: 0 | QFI168: 0 | QFJ168: 0 | QFK168: 0 | QFL168: 0 | QFM168: 0 | QFN168: 0 | QFO168: 0 | QFP168: 0 | QFQ168: 0 | QFR168: 0 | QFS168: 0 | QFT168: 0 | QFU168: 0 | QFV168: 0 | QFW168: 0 | QFX168: 0 | QFY168: 0 | QFZ168: 0 | QGA168: 0 | QGB168: 0 | QGC168: 0 | QGD168: 0 | QGE168: 0 | QGF168: 0 | QGG168: 0 | QGH168: 0 | QGI168: 0 | QGJ168: 0 | QGK168: 0 | QGL168: 0 | QGM168: 0 | QGN168: 0 | QGO168: 0 | QGP168: 0 | QGQ168: 0 | QGR168: 0 | QGS168: 0 | QGT168: 0 | QGU168: 0 | QGV168: 0 | QGW168: 0 | QGX168: 0 | QGY168: 0 | QGZ168: 0 | QHA168: 0 | QHB168: 0 | QHC168: 0 | QHD168: 0 | QHE168: 0 | QHF168: 0 | QHG168: 0 | QHH168: 0 | QHI168: 0 | QHJ168: 0 | QHK168: 0 | QHL168: 0 | QHM168: =QHM145 -> 0 | QHN168: 0 | QHO168: 0 | QHP168: 0 | QHQ168: 0 | QHR168: 0 | QHS168: 0 | QHT168: 0 | QHU168: 0 | QHV168: 0 | QHW168: 0 | QHX168: 0 | QHY168: 0 | QHZ168: 0 | QIA168: 0 | QIB168: 0 | QIC168: 0 | QID168: 0 | QIE168: 0 | QIF168: 0 | QIG168: 0 | QIH168: 0 | QII168: 0 | QIJ168: 0 | QIK168: 0 | QIL168: 0 | QIM168: 0 | QIN168: 0 | QIO168: 0 | QIP168: 0 | QIQ168: 0 | QIR168: 0 | QIS168: 0 | QIT168: 0 | QIU168: 0 | QIV168: 0 | QIW168: 0 | QIX168: 0 | QIY168: 0 | QIZ168: 0 | QJA168: 0 | QJB168: 0 | QJC168: 0 | QJD168: 0 | QJE168: 0 | QJF168: 0 | QJG168: 0 | QJH168: 0 | QJI168: 0 | QJJ168: 0 | QJK168: 0 | QJL168: 0 | QJM168: 0 | QJN168: 0 | QJO168: 0 | QJP168: 0 | QJQ168: 0 | QJR168: 0 | QJS168: 0 | QJT168: 0 | QJU168: 0 | QJV168: 0 | QJW168: 0 | QJX168: 0 | QJY168: =QJY145 -> 0 | QJZ168: 0 | QKA168: 0 | QKB168: 0 | QKC168: 0 | QKD168: 0 | QKE168: 0 | QKF168: 0 | QKG168: 0 | QKH168: 0 | QKI168: 0 | QKJ168: 0 | QKK168: 0 | QKL168: 0 | QKM168: 0 | QKN168: 0 | QKO168: 0 | QKP168: 0 | QKQ168: 0 | QKR168: 0 | QKS168: 0 | QKT168: 0 | QKU168: 0 | QKV168: 0 | QKW168: 0 | QKX168: 0 | QKY168: 0 | QKZ168: 0 | QLA168: 0 | QLB168: 0 | QLC168: 0 | QLD168: 0 | QLE168: 0 | QLF168: 0 | QLG168: 0 | QLH168: 0 | QLI168: 0 | QLJ168: 0 | QLK168: 0 | QLL168: 0 | QLM168: 0 | QLN168: 0 | QLO168: 0 | QLP168: 0 | QLQ168: 0 | QLR168: 0 | QLS168: 0 | QLT168: 0 | QLU168: 0 | QLV168: 0 | QLW168: 0 | QLX168: 0 | QLY168: 0 | QLZ168: 0 | QMA168: 0 | QMB168: 0 | QMC168: 0 | QMD168: 0 | QME168: 0 | QMF168: 0 | QMG168: 0 | QMH168: 0 | QMI168: 0 | QMJ168: 0 | QMK168: =QMK145 -> 0 | QML168: 0 | QMM168: 0 | QMN168: 0 | QMO168: 0 | QMP168: 0 | QMQ168: 0 | QMR168: 0 | QMS168: 0 | QMT168: 0 | QMU168: 0 | QMV168: 0 | QMW168: 0 | QMX168: 0 | QMY168: 0 | QMZ168: 0 | QNA168: 0 | QNB168: 0 | QNC168: 0 | QND168: 0 | QNE168: 0 | QNF168: 0 | QNG168: 0 | QNH168: 0 | QNI168: 0 | QNJ168: 0 | QNK168: 0 | QNL168: 0 | QNM168: 0 | QNN168: 0 | QNO168: 0 | QNP168: 0 | QNQ168: 0 | QNR168: 0 | QNS168: 0 | QNT168: 0 | QNU168: 0 | QNV168: 0 | QNW168: 0 | QNX168: 0 | QNY168: 0 | QNZ168: 0 | QOA168: 0 | QOB168: 0 | QOC168: 0 | QOD168: 0 | QOE168: 0 | QOF168: 0 | QOG168: 0 | QOH168: 0 | QOI168: 0 | QOJ168: 0 | QOK168: 0 | QOL168: 0 | QOM168: 0 | QON168: 0 | QOO168: 0 | QOP168: 0 | QOQ168: 0 | QOR168: 0 | QOS168: 0 | QOT168: 0 | QOU168: 0 | QOV168: 0 | QOW168: =QOW145 -> 0 | QOX168: 0 | QOY168: 0 | QOZ168: 0 | QPA168: 0 | QPB168: 0 | QPC168: 0 | QPD168: 0 | QPE168: 0 | QPF168: 0 | QPG168: 0 | QPH168: 0 | QPI168: 0 | QPJ168: 0 | QPK168: 0 | QPL168: 0 | QPM168: 0 | QPN168: 0 | QPO168: 0 | QPP168: 0 | QPQ168: 0 | QPR168: 0 | QPS168: 0 | QPT168: 0 | QPU168: 0 | QPV168: 0 | QPW168: 0 | QPX168: 0 | QPY168: 0 | QPZ168: 0 | QQA168: 0 | QQB168: 0 | QQC168: 0 | QQD168: 0 | QQE168: 0 | QQF168: 0 | QQG168: 0 | QQH168: 0 | QQI168: 0 | QQJ168: 0 | QQK168: 0 | QQL168: 0 | QQM168: 0 | QQN168: 0 | QQO168: 0 | QQP168: 0 | QQQ168: 0 | QQR168: 0 | QQS168: 0 | QQT168: 0 | QQU168: 0 | QQV168: 0 | QQW168: 0 | QQX168: 0 | QQY168: 0 | QQZ168: 0 | QRA168: 0 | QRB168: 0 | QRC168: 0 | QRD168: 0 | QRE168: 0 | QRF168: 0 | QRG168: 0 | QRH168: 0 | QRI168: =QRI145 -> 0 | QRJ168: 0 | QRK168: 0 | QRL168: 0 | QRM168: 0 | QRN168: 0 | QRO168: 0 | QRP168: 0 | QRQ168: 0 | QRR168: 0 | QRS168: 0 | QRT168: 0 | QRU168: 0 | QRV168: 0 | QRW168: 0 | QRX168: 0 | QRY168: 0 | QRZ168: 0 | QSA168: 0 | QSB168: 0 | QSC168: 0 | QSD168: 0 | QSE168: 0 | QSF168: 0 | QSG168: 0 | QSH168: 0 | QSI168: 0 | QSJ168: 0 | QSK168: 0 | QSL168: 0 | QSM168: 0 | QSN168: 0 | QSO168: 0 | QSP168: 0 | QSQ168: 0 | QSR168: 0 | QSS168: 0 | QST168: 0 | QSU168: 0 | QSV168: 0 | QSW168: 0 | QSX168: 0 | QSY168: 0 | QSZ168: 0 | QTA168: 0 | QTB168: 0 | QTC168: 0 | QTD168: 0 | QTE168: 0 | QTF168: 0 | QTG168: 0 | QTH168: 0 | QTI168: 0 | QTJ168: 0 | QTK168: 0 | QTL168: 0 | QTM168: 0 | QTN168: 0 | QTO168: 0 | QTP168: 0 | QTQ168: 0 | QTR168: 0 | QTS168: 0 | QTT168: 0 | QTU168: =QTU145 -> 0 | QTV168: 0 | QTW168: 0 | QTX168: 0 | QTY168: 0 | QTZ168: 0 | QUA168: 0 | QUB168: 0 | QUC168: 0 | QUD168: 0 | QUE168: 0 | QUF168: 0 | QUG168: 0 | QUH168: 0 | QUI168: 0 | QUJ168: 0 | QUK168: 0 | QUL168: 0 | QUM168: 0 | QUN168: 0 | QUO168: 0 | QUP168: 0 | QUQ168: 0 | QUR168: 0 | QUS168: 0 | QUT168: 0 | QUU168: 0 | QUV168: 0 | QUW168: 0 | QUX168: 0 | QUY168: 0 | QUZ168: 0 | QVA168: 0 | QVB168: 0 | QVC168: 0 | QVD168: 0 | QVE168: 0 | QVF168: 0 | QVG168: 0 | QVH168: 0 | QVI168: 0 | QVJ168: 0 | QVK168: 0 | QVL168: 0 | QVM168: 0 | QVN168: 0 | QVO168: 0 | QVP168: 0 | QVQ168: 0 | QVR168: 0 | QVS168: 0 | QVT168: 0 | QVU168: 0 | QVV168: 0 | QVW168: 0 | QVX168: 0 | QVY168: 0 | QVZ168: 0 | QWA168: 0 | QWB168: 0 | QWC168: 0 | QWD168: 0 | QWE168: 0 | QWF168: 0 | QWG168: =QWG145 -> 0 | QWH168: 0 | QWI168: 0 | QWJ168: 0 | QWK168: 0 | QWL168: 0 | QWM168: 0 | QWN168: 0 | QWO168: 0 | QWP168: 0 | QWQ168: 0 | QWR168: 0 | QWS168: 0 | QWT168: 0 | QWU168: 0 | QWV168: 0 | QWW168: 0 | QWX168: 0 | QWY168: 0 | QWZ168: 0 | QXA168: 0 | QXB168: 0 | QXC168: 0 | QXD168: 0 | QXE168: 0 | QXF168: 0 | QXG168: 0 | QXH168: 0 | QXI168: 0 | QXJ168: 0 | QXK168: 0 | QXL168: 0 | QXM168: 0 | QXN168: 0 | QXO168: 0 | QXP168: 0 | QXQ168: 0 | QXR168: 0 | QXS168: 0 | QXT168: 0 | QXU168: 0 | QXV168: 0 | QXW168: 0 | QXX168: 0 | QXY168: 0 | QXZ168: 0 | QYA168: 0 | QYB168: 0 | QYC168: 0 | QYD168: 0 | QYE168: 0 | QYF168: 0 | QYG168: 0 | QYH168: 0 | QYI168: 0 | QYJ168: 0 | QYK168: 0 | QYL168: 0 | QYM168: 0 | QYN168: 0 | QYO168: 0 | QYP168: 0 | QYQ168: 0 | QYR168: 0 | QYS168: =QYS145 -> 0 | QYT168: 0 | QYU168: 0 | QYV168: 0 | QYW168: 0 | QYX168: 0 | QYY168: 0 | QYZ168: 0 | QZA168: 0 | QZB168: 0 | QZC168: 0 | QZD168: 0 | QZE168: 0 | QZF168: 0 | QZG168: 0 | QZH168: 0 | QZI168: 0 | QZJ168: 0 | QZK168: 0 | QZL168: 0 | QZM168: 0 | QZN168: 0 | QZO168: 0 | QZP168: 0 | QZQ168: 0 | QZR168: 0 | QZS168: 0 | QZT168: 0 | QZU168: 0 | QZV168: 0 | QZW168: 0 | QZX168: 0 | QZY168: 0 | QZZ168: 0 | RAA168: 0 | RAB168: 0 | RAC168: 0 | RAD168: 0 | RAE168: 0 | RAF168: 0 | RAG168: 0 | RAH168: 0 | RAI168: 0 | RAJ168: 0 | RAK168: 0 | RAL168: 0 | RAM168: 0 | RAN168: 0 | RAO168: 0 | RAP168: 0 | RAQ168: 0 | RAR168: 0 | RAS168: 0 | RAT168: 0 | RAU168: 0 | RAV168: 0 | RAW168: 0 | RAX168: 0 | RAY168: 0 | RAZ168: 0 | RBA168: 0 | RBB168: 0 | RBC168: 0 | RBD168: 0 | RBE168: =RBE145 -> 0 | RBF168: 0 | RBG168: 0 | RBH168: 0 | RBI168: 0 | RBJ168: 0 | RBK168: 0 | RBL168: 0 | RBM168: 0 | RBN168: 0 | RBO168: 0 | RBP168: 0 | RBQ168: 0 | RBR168: 0 | RBS168: 0 | RBT168: 0 | RBU168: 0 | RBV168: 0 | RBW168: 0 | RBX168: 0 | RBY168: 0 | RBZ168: 0 | RCA168: 0 | RCB168: 0 | RCC168: 0 | RCD168: 0 | RCE168: 0 | RCF168: 0 | RCG168: 0 | RCH168: 0 | RCI168: 0 | RCJ168: 0 | RCK168: 0 | RCL168: 0 | RCM168: 0 | RCN168: 0 | RCO168: 0 | RCP168: 0 | RCQ168: 0 | RCR168: 0 | RCS168: 0 | RCT168: 0 | RCU168: 0 | RCV168: 0 | RCW168: 0 | RCX168: 0 | RCY168: 0 | RCZ168: 0 | RDA168: 0 | RDB168: 0 | RDC168: 0 | RDD168: 0 | RDE168: 0 | RDF168: 0 | RDG168: 0 | RDH168: 0 | RDI168: 0 | RDJ168: 0 | RDK168: 0 | RDL168: 0 | RDM168: 0 | RDN168: 0 | RDO168: 0 | RDP168: 0 | RDQ168: =RDQ145 -> 0 | RDR168: 0 | RDS168: 0 | RDT168: 0 | RDU168: 0 | RDV168: 0 | RDW168: 0 | RDX168: 0 | RDY168: 0 | RDZ168: 0 | REA168: 0 | REB168: 0 | REC168: 0 | RED168: 0 | REE168: 0 | REF168: 0 | REG168: 0 | REH168: 0 | REI168: 0 | REJ168: 0 | REK168: 0 | REL168: 0 | REM168: 0 | REN168: 0 | REO168: 0 | REP168: 0 | REQ168: 0 | RER168: 0 | RES168: 0 | RET168: 0 | REU168: 0 | REV168: 0 | REW168: 0 | REX168: 0 | REY168: 0 | REZ168: 0 | RFA168: 0 | RFB168: 0 | RFC168: 0 | RFD168: 0 | RFE168: 0 | RFF168: 0 | RFG168: 0 | RFH168: 0 | RFI168: 0 | RFJ168: 0 | RFK168: 0 | RFL168: 0 | RFM168: 0 | RFN168: 0 | RFO168: 0 | RFP168: 0 | RFQ168: 0 | RFR168: 0 | RFS168: 0 | RFT168: 0 | RFU168: 0 | RFV168: 0 | RFW168: 0 | RFX168: 0 | RFY168: 0 | RFZ168: 0 | RGA168: 0 | RGB168: 0 | RGC168: =RGC145 -> 0 | RGD168: 0 | RGE168: 0 | RGF168: 0 | RGG168: 0 | RGH168: 0 | RGI168: 0 | RGJ168: 0 | RGK168: 0 | RGL168: 0 | RGM168: 0 | RGN168: 0 | RGO168: 0 | RGP168: 0 | RGQ168: 0 | RGR168: 0 | RGS168: 0 | RGT168: 0 | RGU168: 0 | RGV168: 0 | RGW168: 0 | RGX168: 0 | RGY168: 0 | RGZ168: 0 | RHA168: 0 | RHB168: 0 | RHC168: 0 | RHD168: 0 | RHE168: 0 | RHF168: 0 | RHG168: 0 | RHH168: 0 | RHI168: 0 | RHJ168: 0 | RHK168: 0 | RHL168: 0 | RHM168: 0 | RHN168: 0 | RHO168: 0 | RHP168: 0 | RHQ168: 0 | RHR168: 0 | RHS168: 0 | RHT168: 0 | RHU168: 0 | RHV168: 0 | RHW168: 0 | RHX168: 0 | RHY168: 0 | RHZ168: 0 | RIA168: 0 | RIB168: 0 | RIC168: 0 | RID168: 0 | RIE168: 0 | RIF168: 0 | RIG168: 0 | RIH168: 0 | RII168: 0 | RIJ168: 0 | RIK168: 0 | RIL168: 0 | RIM168: 0 | RIN168: 0 | RIO168: =RIO145 -> 0 | RIP168: 0 | RIQ168: 0 | RIR168: 0 | RIS168: 0 | RIT168: 0 | RIU168: 0 | RIV168: 0 | RIW168: 0 | RIX168: 0 | RIY168: 0 | RIZ168: 0 | RJA168: 0 | RJB168: 0 | RJC168: 0 | RJD168: 0 | RJE168: 0 | RJF168: 0 | RJG168: 0 | RJH168: 0 | RJI168: 0 | RJJ168: 0 | RJK168: 0 | RJL168: 0 | RJM168: 0 | RJN168: 0 | RJO168: 0 | RJP168: 0 | RJQ168: 0 | RJR168: 0 | RJS168: 0 | RJT168: 0 | RJU168: 0 | RJV168: 0 | RJW168: 0 | RJX168: 0 | RJY168: 0 | RJZ168: 0 | RKA168: 0 | RKB168: 0 | RKC168: 0 | RKD168: 0 | RKE168: 0 | RKF168: 0 | RKG168: 0 | RKH168: 0 | RKI168: 0 | RKJ168: 0 | RKK168: 0 | RKL168: 0 | RKM168: 0 | RKN168: 0 | RKO168: 0 | RKP168: 0 | RKQ168: 0 | RKR168: 0 | RKS168: 0 | RKT168: 0 | RKU168: 0 | RKV168: 0 | RKW168: 0 | RKX168: 0 | RKY168: 0 | RKZ168: 0 | RLA168: =RLA145 -> 0 | RLB168: 0 | RLC168: 0 | RLD168: 0 | RLE168: 0 | RLF168: 0 | RLG168: 0 | RLH168: 0 | RLI168: 0 | RLJ168: 0 | RLK168: 0 | RLL168: 0 | RLM168: 0 | RLN168: 0 | RLO168: 0 | RLP168: 0 | RLQ168: 0 | RLR168: 0 | RLS168: 0 | RLT168: 0 | RLU168: 0 | RLV168: 0 | RLW168: 0 | RLX168: 0 | RLY168: 0 | RLZ168: 0 | RMA168: 0 | RMB168: 0 | RMC168: 0 | RMD168: 0 | RME168: 0 | RMF168: 0 | RMG168: 0 | RMH168: 0 | RMI168: 0 | RMJ168: 0 | RMK168: 0 | RML168: 0 | RMM168: 0 | RMN168: 0 | RMO168: 0 | RMP168: 0 | RMQ168: 0 | RMR168: 0 | RMS168: 0 | RMT168: 0 | RMU168: 0 | RMV168: 0 | RMW168: 0 | RMX168: 0 | RMY168: 0 | RMZ168: 0 | RNA168: 0 | RNB168: 0 | RNC168: 0 | RND168: 0 | RNE168: 0 | RNF168: 0 | RNG168: 0 | RNH168: 0 | RNI168: 0 | RNJ168: 0 | RNK168: 0 | RNL168: 0 | RNM168: =RNM145 -> 0 | RNN168: 0 | RNO168: 0 | RNP168: 0 | RNQ168: 0 | RNR168: 0 | RNS168: 0 | RNT168: 0 | RNU168: 0 | RNV168: 0 | RNW168: 0 | RNX168: 0 | RNY168: 0 | RNZ168: 0 | ROA168: 0 | ROB168: 0 | ROC168: 0 | ROD168: 0 | ROE168: 0 | ROF168: 0 | ROG168: 0 | ROH168: 0 | ROI168: 0 | ROJ168: 0 | ROK168: 0 | ROL168: 0 | ROM168: 0 | RON168: 0 | ROO168: 0 | ROP168: 0 | ROQ168: 0 | ROR168: 0 | ROS168: 0 | ROT168: 0 | ROU168: 0 | ROV168: 0 | ROW168: 0 | ROX168: 0 | ROY168: 0 | ROZ168: 0 | RPA168: 0 | RPB168: 0 | RPC168: 0 | RPD168: 0 | RPE168: 0 | RPF168: 0 | RPG168: 0 | RPH168: 0 | RPI168: 0 | RPJ168: 0 | RPK168: 0 | RPL168: 0 | RPM168: 0 | RPN168: 0 | RPO168: 0 | RPP168: 0 | RPQ168: 0 | RPR168: 0 | RPS168: 0 | RPT168: 0 | RPU168: 0 | RPV168: 0 | RPW168: 0 | RPX168: 0 | RPY168: =RPY145 -> 0 | RPZ168: 0 | RQA168: 0 | RQB168: 0 | RQC168: 0 | RQD168: 0 | RQE168: 0 | RQF168: 0 | RQG168: 0 | RQH168: 0 | RQI168: 0 | RQJ168: 0 | RQK168: 0 | RQL168: 0 | RQM168: 0 | RQN168: 0 | RQO168: 0 | RQP168: 0 | RQQ168: 0 | RQR168: 0 | RQS168: 0 | RQT168: 0 | RQU168: 0 | RQV168: 0 | RQW168: 0 | RQX168: 0 | RQY168: 0 | RQZ168: 0 | RRA168: 0 | RRB168: 0 | RRC168: 0 | RRD168: 0 | RRE168: 0 | RRF168: 0 | RRG168: 0 | RRH168: 0 | RRI168: 0 | RRJ168: 0 | RRK168: 0 | RRL168: 0 | RRM168: 0 | RRN168: 0 | RRO168: 0 | RRP168: 0 | RRQ168: 0 | RRR168: 0 | RRS168: 0 | RRT168: 0 | RRU168: 0 | RRV168: 0 | RRW168: 0 | RRX168: 0 | RRY168: 0 | RRZ168: 0 | RSA168: 0 | RSB168: 0 | RSC168: 0 | RSD168: 0 | RSE168: 0 | RSF168: 0 | RSG168: 0 | RSH168: 0 | RSI168: 0 | RSJ168: 0 | RSK168: =RSK145 -> 0 | RSL168: 0 | RSM168: 0 | RSN168: 0 | RSO168: 0 | RSP168: 0 | RSQ168: 0 | RSR168: 0 | RSS168: 0 | RST168: 0 | RSU168: 0 | RSV168: 0 | RSW168: 0 | RSX168: 0 | RSY168: 0 | RSZ168: 0 | RTA168: 0 | RTB168: 0 | RTC168: 0 | RTD168: 0 | RTE168: 0 | RTF168: 0 | RTG168: 0 | RTH168: 0 | RTI168: 0 | RTJ168: 0 | RTK168: 0 | RTL168: 0 | RTM168: 0 | RTN168: 0 | RTO168: 0 | RTP168: 0 | RTQ168: 0 | RTR168: 0 | RTS168: 0 | RTT168: 0 | RTU168: 0 | RTV168: 0 | RTW168: 0 | RTX168: 0 | RTY168: 0 | RTZ168: 0 | RUA168: 0 | RUB168: 0 | RUC168: 0 | RUD168: 0 | RUE168: 0 | RUF168: 0 | RUG168: 0 | RUH168: 0 | RUI168: 0 | RUJ168: 0 | RUK168: 0 | RUL168: 0 | RUM168: 0 | RUN168: 0 | RUO168: 0 | RUP168: 0 | RUQ168: 0 | RUR168: 0 | RUS168: 0 | RUT168: 0 | RUU168: 0 | RUV168: 0 | RUW168: =RUW145 -> 0 | RUX168: 0 | RUY168: 0 | RUZ168: 0 | RVA168: 0 | RVB168: 0 | RVC168: 0 | RVD168: 0 | RVE168: 0 | RVF168: 0 | RVG168: 0 | RVH168: 0 | RVI168: 0 | RVJ168: 0 | RVK168: 0 | RVL168: 0 | RVM168: 0 | RVN168: 0 | RVO168: 0 | RVP168: 0 | RVQ168: 0 | RVR168: 0 | RVS168: 0 | RVT168: 0 | RVU168: 0 | RVV168: 0 | RVW168: 0 | RVX168: 0 | RVY168: 0 | RVZ168: 0 | RWA168: 0 | RWB168: 0 | RWC168: 0 | RWD168: 0 | RWE168: 0 | RWF168: 0 | RWG168: 0 | RWH168: 0 | RWI168: 0 | RWJ168: 0 | RWK168: 0 | RWL168: 0 | RWM168: 0 | RWN168: 0 | RWO168: 0 | RWP168: 0 | RWQ168: 0 | RWR168: 0 | RWS168: 0 | RWT168: 0 | RWU168: 0 | RWV168: 0 | RWW168: 0 | RWX168: 0 | RWY168: 0 | RWZ168: 0 | RXA168: 0 | RXB168: 0 | RXC168: 0 | RXD168: 0 | RXE168: 0 | RXF168: 0 | RXG168: 0 | RXH168: 0 | RXI168: =RXI145 -> 0 | RXJ168: 0 | RXK168: 0 | RXL168: 0 | RXM168: 0 | RXN168: 0 | RXO168: 0 | RXP168: 0 | RXQ168: 0 | RXR168: 0 | RXS168: 0 | RXT168: 0 | RXU168: 0 | RXV168: 0 | RXW168: 0 | RXX168: 0 | RXY168: 0 | RXZ168: 0 | RYA168: 0 | RYB168: 0 | RYC168: 0 | RYD168: 0 | RYE168: 0 | RYF168: 0 | RYG168: 0 | RYH168: 0 | RYI168: 0 | RYJ168: 0 | RYK168: 0 | RYL168: 0 | RYM168: 0 | RYN168: 0 | RYO168: 0 | RYP168: 0 | RYQ168: 0 | RYR168: 0 | RYS168: 0 | RYT168: 0 | RYU168: 0 | RYV168: 0 | RYW168: 0 | RYX168: 0 | RYY168: 0 | RYZ168: 0 | RZA168: 0 | RZB168: 0 | RZC168: 0 | RZD168: 0 | RZE168: 0 | RZF168: 0 | RZG168: 0 | RZH168: 0 | RZI168: 0 | RZJ168: 0 | RZK168: 0 | RZL168: 0 | RZM168: 0 | RZN168: 0 | RZO168: 0 | RZP168: 0 | RZQ168: 0 | RZR168: 0 | RZS168: 0 | RZT168: 0 | RZU168: =RZU145 -> 0 | RZV168: 0 | RZW168: 0 | RZX168: 0 | RZY168: 0 | RZZ168: 0 | SAA168: 0 | SAB168: 0 | SAC168: 0 | SAD168: 0 | SAE168: 0 | SAF168: 0 | SAG168: 0 | SAH168: 0 | SAI168: 0 | SAJ168: 0 | SAK168: 0 | SAL168: 0 | SAM168: 0 | SAN168: 0 | SAO168: 0 | SAP168: 0 | SAQ168: 0 | SAR168: 0 | SAS168: 0 | SAT168: 0 | SAU168: 0 | SAV168: 0 | SAW168: 0 | SAX168: 0 | SAY168: 0 | SAZ168: 0 | SBA168: 0 | SBB168: 0 | SBC168: 0 | SBD168: 0 | SBE168: 0 | SBF168: 0 | SBG168: 0 | SBH168: 0 | SBI168: 0 | SBJ168: 0 | SBK168: 0 | SBL168: 0 | SBM168: 0 | SBN168: 0 | SBO168: 0 | SBP168: 0 | SBQ168: 0 | SBR168: 0 | SBS168: 0 | SBT168: 0 | SBU168: 0 | SBV168: 0 | SBW168: 0 | SBX168: 0 | SBY168: 0 | SBZ168: 0 | SCA168: 0 | SCB168: 0 | SCC168: 0 | SCD168: 0 | SCE168: 0 | SCF168: 0 | SCG168: =SCG145 -> 0 | SCH168: 0 | SCI168: 0 | SCJ168: 0 | SCK168: 0 | SCL168: 0 | SCM168: 0 | SCN168: 0 | SCO168: 0 | SCP168: 0 | SCQ168: 0 | SCR168: 0 | SCS168: 0 | SCT168: 0 | SCU168: 0 | SCV168: 0 | SCW168: 0 | SCX168: 0 | SCY168: 0 | SCZ168: 0 | SDA168: 0 | SDB168: 0 | SDC168: 0 | SDD168: 0 | SDE168: 0 | SDF168: 0 | SDG168: 0 | SDH168: 0 | SDI168: 0 | SDJ168: 0 | SDK168: 0 | SDL168: 0 | SDM168: 0 | SDN168: 0 | SDO168: 0 | SDP168: 0 | SDQ168: 0 | SDR168: 0 | SDS168: 0 | SDT168: 0 | SDU168: 0 | SDV168: 0 | SDW168: 0 | SDX168: 0 | SDY168: 0 | SDZ168: 0 | SEA168: 0 | SEB168: 0 | SEC168: 0 | SED168: 0 | SEE168: 0 | SEF168: 0 | SEG168: 0 | SEH168: 0 | SEI168: 0 | SEJ168: 0 | SEK168: 0 | SEL168: 0 | SEM168: 0 | SEN168: 0 | SEO168: 0 | SEP168: 0 | SEQ168: 0 | SER168: 0 | SES168: =SES145 -> 0 | SET168: 0 | SEU168: 0 | SEV168: 0 | SEW168: 0 | SEX168: 0 | SEY168: 0 | SEZ168: 0 | SFA168: 0 | SFB168: 0 | SFC168: 0 | SFD168: 0 | SFE168: 0 | SFF168: 0 | SFG168: 0 | SFH168: 0 | SFI168: 0 | SFJ168: 0 | SFK168: 0 | SFL168: 0 | SFM168: 0 | SFN168: 0 | SFO168: 0 | SFP168: 0 | SFQ168: 0 | SFR168: 0 | SFS168: 0 | SFT168: 0 | SFU168: 0 | SFV168: 0 | SFW168: 0 | SFX168: 0 | SFY168: 0 | SFZ168: 0 | SGA168: 0 | SGB168: 0 | SGC168: 0 | SGD168: 0 | SGE168: 0 | SGF168: 0 | SGG168: 0 | SGH168: 0 | SGI168: 0 | SGJ168: 0 | SGK168: 0 | SGL168: 0 | SGM168: 0 | SGN168: 0 | SGO168: 0 | SGP168: 0 | SGQ168: 0 | SGR168: 0 | SGS168: 0 | SGT168: 0 | SGU168: 0 | SGV168: 0 | SGW168: 0 | SGX168: 0 | SGY168: 0 | SGZ168: 0 | SHA168: 0 | SHB168: 0 | SHC168: 0 | SHD168: 0 | SHE168: =SHE145 -> 0 | SHF168: 0 | SHG168: 0 | SHH168: 0 | SHI168: 0 | SHJ168: 0 | SHK168: 0 | SHL168: 0 | SHM168: 0 | SHN168: 0 | SHO168: 0 | SHP168: 0 | SHQ168: 0 | SHR168: 0 | SHS168: 0 | SHT168: 0 | SHU168: 0 | SHV168: 0 | SHW168: 0 | SHX168: 0 | SHY168: 0 | SHZ168: 0 | SIA168: 0 | SIB168: 0 | SIC168: 0 | SID168: 0 | SIE168: 0 | SIF168: 0 | SIG168: 0 | SIH168: 0 | SII168: 0 | SIJ168: 0 | SIK168: 0 | SIL168: 0 | SIM168: 0 | SIN168: 0 | SIO168: 0 | SIP168: 0 | SIQ168: 0 | SIR168: 0 | SIS168: 0 | SIT168: 0 | SIU168: 0 | SIV168: 0 | SIW168: 0 | SIX168: 0 | SIY168: 0 | SIZ168: 0 | SJA168: 0 | SJB168: 0 | SJC168: 0 | SJD168: 0 | SJE168: 0 | SJF168: 0 | SJG168: 0 | SJH168: 0 | SJI168: 0 | SJJ168: 0 | SJK168: 0 | SJL168: 0 | SJM168: 0 | SJN168: 0 | SJO168: 0 | SJP168: 0 | SJQ168: =SJQ145 -> 0 | SJR168: 0 | SJS168: 0 | SJT168: 0 | SJU168: 0 | SJV168: 0 | SJW168: 0 | SJX168: 0 | SJY168: 0 | SJZ168: 0 | SKA168: 0 | SKB168: 0 | SKC168: 0 | SKD168: 0 | SKE168: 0 | SKF168: 0 | SKG168: 0 | SKH168: 0 | SKI168: 0 | SKJ168: 0 | SKK168: 0 | SKL168: 0 | SKM168: 0 | SKN168: 0 | SKO168: 0 | SKP168: 0 | SKQ168: 0 | SKR168: 0 | SKS168: 0 | SKT168: 0 | SKU168: 0 | SKV168: 0 | SKW168: 0 | SKX168: 0 | SKY168: 0 | SKZ168: 0 | SLA168: 0 | SLB168: 0 | SLC168: 0 | SLD168: 0 | SLE168: 0 | SLF168: 0 | SLG168: 0 | SLH168: 0 | SLI168: 0 | SLJ168: 0 | SLK168: 0 | SLL168: 0 | SLM168: 0 | SLN168: 0 | SLO168: 0 | SLP168: 0 | SLQ168: 0 | SLR168: 0 | SLS168: 0 | SLT168: 0 | SLU168: 0 | SLV168: 0 | SLW168: 0 | SLX168: 0 | SLY168: 0 | SLZ168: 0 | SMA168: 0 | SMB168: 0 | SMC168: =SMC145 -> 0 | SMD168: 0 | SME168: 0 | SMF168: 0 | SMG168: 0 | SMH168: 0 | SMI168: 0 | SMJ168: 0 | SMK168: 0 | SML168: 0 | SMM168: 0 | SMN168: 0 | SMO168: 0 | SMP168: 0 | SMQ168: 0 | SMR168: 0 | SMS168: 0 | SMT168: 0 | SMU168: 0 | SMV168: 0 | SMW168: 0 | SMX168: 0 | SMY168: 0 | SMZ168: 0 | SNA168: 0 | SNB168: 0 | SNC168: 0 | SND168: 0 | SNE168: 0 | SNF168: 0 | SNG168: 0 | SNH168: 0 | SNI168: 0 | SNJ168: 0 | SNK168: 0 | SNL168: 0 | SNM168: 0 | SNN168: 0 | SNO168: 0 | SNP168: 0 | SNQ168: 0 | SNR168: 0 | SNS168: 0 | SNT168: 0 | SNU168: 0 | SNV168: 0 | SNW168: 0 | SNX168: 0 | SNY168: 0 | SNZ168: 0 | SOA168: 0 | SOB168: 0 | SOC168: 0 | SOD168: 0 | SOE168: 0 | SOF168: 0 | SOG168: 0 | SOH168: 0 | SOI168: 0 | SOJ168: 0 | SOK168: 0 | SOL168: 0 | SOM168: 0 | SON168: 0 | SOO168: =SOO145 -> 0 | SOP168: 0 | SOQ168: 0 | SOR168: 0 | SOS168: 0 | SOT168: 0 | SOU168: 0 | SOV168: 0 | SOW168: 0 | SOX168: 0 | SOY168: 0 | SOZ168: 0 | SPA168: 0 | SPB168: 0 | SPC168: 0 | SPD168: 0 | SPE168: 0 | SPF168: 0 | SPG168: 0 | SPH168: 0 | SPI168: 0 | SPJ168: 0 | SPK168: 0 | SPL168: 0 | SPM168: 0 | SPN168: 0 | SPO168: 0 | SPP168: 0 | SPQ168: 0 | SPR168: 0 | SPS168: 0 | SPT168: 0 | SPU168: 0 | SPV168: 0 | SPW168: 0 | SPX168: 0 | SPY168: 0 | SPZ168: 0 | SQA168: 0 | SQB168: 0 | SQC168: 0 | SQD168: 0 | SQE168: 0 | SQF168: 0 | SQG168: 0 | SQH168: 0 | SQI168: 0 | SQJ168: 0 | SQK168: 0 | SQL168: 0 | SQM168: 0 | SQN168: 0 | SQO168: 0 | SQP168: 0 | SQQ168: 0 | SQR168: 0 | SQS168: 0 | SQT168: 0 | SQU168: 0 | SQV168: 0 | SQW168: 0 | SQX168: 0 | SQY168: 0 | SQZ168: 0 | SRA168: =SRA145 -> 0 | SRB168: 0 | SRC168: 0 | SRD168: 0 | SRE168: 0 | SRF168: 0 | SRG168: 0 | SRH168: 0 | SRI168: 0 | SRJ168: 0 | SRK168: 0 | SRL168: 0 | SRM168: 0 | SRN168: 0 | SRO168: 0 | SRP168: 0 | SRQ168: 0 | SRR168: 0 | SRS168: 0 | SRT168: 0 | SRU168: 0 | SRV168: 0 | SRW168: 0 | SRX168: 0 | SRY168: 0 | SRZ168: 0 | SSA168: 0 | SSB168: 0 | SSC168: 0 | SSD168: 0 | SSE168: 0 | SSF168: 0 | SSG168: 0 | SSH168: 0 | SSI168: 0 | SSJ168: 0 | SSK168: 0 | SSL168: 0 | SSM168: 0 | SSN168: 0 | SSO168: 0 | SSP168: 0 | SSQ168: 0 | SSR168: 0 | SSS168: 0 | SST168: 0 | SSU168: 0 | SSV168: 0 | SSW168: 0 | SSX168: 0 | SSY168: 0 | SSZ168: 0 | STA168: 0 | STB168: 0 | STC168: 0 | STD168: 0 | STE168: 0 | STF168: 0 | STG168: 0 | STH168: 0 | STI168: 0 | STJ168: 0 | STK168: 0 | STL168: 0 | STM168: =STM145 -> 0 | STN168: 0 | STO168: 0 | STP168: 0 | STQ168: 0 | STR168: 0 | STS168: 0 | STT168: 0 | STU168: 0 | STV168: 0 | STW168: 0 | STX168: 0 | STY168: 0 | STZ168: 0 | SUA168: 0 | SUB168: 0 | SUC168: 0 | SUD168: 0 | SUE168: 0 | SUF168: 0 | SUG168: 0 | SUH168: 0 | SUI168: 0 | SUJ168: 0 | SUK168: 0 | SUL168: 0 | SUM168: 0 | SUN168: 0 | SUO168: 0 | SUP168: 0 | SUQ168: 0 | SUR168: 0 | SUS168: 0 | SUT168: 0 | SUU168: 0 | SUV168: 0 | SUW168: 0 | SUX168: 0 | SUY168: 0 | SUZ168: 0 | SVA168: 0 | SVB168: 0 | SVC168: 0 | SVD168: 0 | SVE168: 0 | SVF168: 0 | SVG168: 0 | SVH168: 0 | SVI168: 0 | SVJ168: 0 | SVK168: 0 | SVL168: 0 | SVM168: 0 | SVN168: 0 | SVO168: 0 | SVP168: 0 | SVQ168: 0 | SVR168: 0 | SVS168: 0 | SVT168: 0 | SVU168: 0 | SVV168: 0 | SVW168: 0 | SVX168: 0 | SVY168: =SVY145 -> 0 | SVZ168: 0 | SWA168: 0 | SWB168: 0 | SWC168: 0 | SWD168: 0 | SWE168: 0 | SWF168: 0 | SWG168: 0 | SWH168: 0 | SWI168: 0 | SWJ168: 0 | SWK168: 0 | SWL168: 0 | SWM168: 0 | SWN168: 0 | SWO168: 0 | SWP168: 0 | SWQ168: 0 | SWR168: 0 | SWS168: 0 | SWT168: 0 | SWU168: 0 | SWV168: 0 | SWW168: 0 | SWX168: 0 | SWY168: 0 | SWZ168: 0 | SXA168: 0 | SXB168: 0 | SXC168: 0 | SXD168: 0 | SXE168: 0 | SXF168: 0 | SXG168: 0 | SXH168: 0 | SXI168: 0 | SXJ168: 0 | SXK168: 0 | SXL168: 0 | SXM168: 0 | SXN168: 0 | SXO168: 0 | SXP168: 0 | SXQ168: 0 | SXR168: 0 | SXS168: 0 | SXT168: 0 | SXU168: 0 | SXV168: 0 | SXW168: 0 | SXX168: 0 | SXY168: 0 | SXZ168: 0 | SYA168: 0 | SYB168: 0 | SYC168: 0 | SYD168: 0 | SYE168: 0 | SYF168: 0 | SYG168: 0 | SYH168: 0 | SYI168: 0 | SYJ168: 0 | SYK168: =SYK145 -> 0 | SYL168: 0 | SYM168: 0 | SYN168: 0 | SYO168: 0 | SYP168: 0 | SYQ168: 0 | SYR168: 0 | SYS168: 0 | SYT168: 0 | SYU168: 0 | SYV168: 0 | SYW168: 0 | SYX168: 0 | SYY168: 0 | SYZ168: 0 | SZA168: 0 | SZB168: 0 | SZC168: 0 | SZD168: 0 | SZE168: 0 | SZF168: 0 | SZG168: 0 | SZH168: 0 | SZI168: 0 | SZJ168: 0 | SZK168: 0 | SZL168: 0 | SZM168: 0 | SZN168: 0 | SZO168: 0 | SZP168: 0 | SZQ168: 0 | SZR168: 0 | SZS168: 0 | SZT168: 0 | SZU168: 0 | SZV168: 0 | SZW168: 0 | SZX168: 0 | SZY168: 0 | SZZ168: 0 | TAA168: 0 | TAB168: 0 | TAC168: 0 | TAD168: 0 | TAE168: 0 | TAF168: 0 | TAG168: 0 | TAH168: 0 | TAI168: 0 | TAJ168: 0 | TAK168: 0 | TAL168: 0 | TAM168: 0 | TAN168: 0 | TAO168: 0 | TAP168: 0 | TAQ168: 0 | TAR168: 0 | TAS168: 0 | TAT168: 0 | TAU168: 0 | TAV168: 0 | TAW168: =TAW145 -> 0 | TAX168: 0 | TAY168: 0 | TAZ168: 0 | TBA168: 0 | TBB168: 0 | TBC168: 0 | TBD168: 0 | TBE168: 0 | TBF168: 0 | TBG168: 0 | TBH168: 0 | TBI168: 0 | TBJ168: 0 | TBK168: 0 | TBL168: 0 | TBM168: 0 | TBN168: 0 | TBO168: 0 | TBP168: 0 | TBQ168: 0 | TBR168: 0 | TBS168: 0 | TBT168: 0 | TBU168: 0 | TBV168: 0 | TBW168: 0 | TBX168: 0 | TBY168: 0 | TBZ168: 0 | TCA168: 0 | TCB168: 0 | TCC168: 0 | TCD168: 0 | TCE168: 0 | TCF168: 0 | TCG168: 0 | TCH168: 0 | TCI168: 0 | TCJ168: 0 | TCK168: 0 | TCL168: 0 | TCM168: 0 | TCN168: 0 | TCO168: 0 | TCP168: 0 | TCQ168: 0 | TCR168: 0 | TCS168: 0 | TCT168: 0 | TCU168: 0 | TCV168: 0 | TCW168: 0 | TCX168: 0 | TCY168: 0 | TCZ168: 0 | TDA168: 0 | TDB168: 0 | TDC168: 0 | TDD168: 0 | TDE168: 0 | TDF168: 0 | TDG168: 0 | TDH168: 0 | TDI168: =TDI145 -> 0 | TDJ168: 0 | TDK168: 0 | TDL168: 0 | TDM168: 0 | TDN168: 0 | TDO168: 0 | TDP168: 0 | TDQ168: 0 | TDR168: 0 | TDS168: 0 | TDT168: 0 | TDU168: 0 | TDV168: 0 | TDW168: 0 | TDX168: 0 | TDY168: 0 | TDZ168: 0 | TEA168: 0 | TEB168: 0 | TEC168: 0 | TED168: 0 | TEE168: 0 | TEF168: 0 | TEG168: 0 | TEH168: 0 | TEI168: 0 | TEJ168: 0 | TEK168: 0 | TEL168: 0 | TEM168: 0 | TEN168: 0 | TEO168: 0 | TEP168: 0 | TEQ168: 0 | TER168: 0 | TES168: 0 | TET168: 0 | TEU168: 0 | TEV168: 0 | TEW168: 0 | TEX168: 0 | TEY168: 0 | TEZ168: 0 | TFA168: 0 | TFB168: 0 | TFC168: 0 | TFD168: 0 | TFE168: 0 | TFF168: 0 | TFG168: 0 | TFH168: 0 | TFI168: 0 | TFJ168: 0 | TFK168: 0 | TFL168: 0 | TFM168: 0 | TFN168: 0 | TFO168: 0 | TFP168: 0 | TFQ168: 0 | TFR168: 0 | TFS168: 0 | TFT168: 0 | TFU168: =TFU145 -> 0 | TFV168: 0 | TFW168: 0 | TFX168: 0 | TFY168: 0 | TFZ168: 0 | TGA168: 0 | TGB168: 0 | TGC168: 0 | TGD168: 0 | TGE168: 0 | TGF168: 0 | TGG168: 0 | TGH168: 0 | TGI168: 0 | TGJ168: 0 | TGK168: 0 | TGL168: 0 | TGM168: 0 | TGN168: 0 | TGO168: 0 | TGP168: 0 | TGQ168: 0 | TGR168: 0 | TGS168: 0 | TGT168: 0 | TGU168: 0 | TGV168: 0 | TGW168: 0 | TGX168: 0 | TGY168: 0 | TGZ168: 0 | THA168: 0 | THB168: 0 | THC168: 0 | THD168: 0 | THE168: 0 | THF168: 0 | THG168: 0 | THH168: 0 | THI168: 0 | THJ168: 0 | THK168: 0 | THL168: 0 | THM168: 0 | THN168: 0 | THO168: 0 | THP168: 0 | THQ168: 0 | THR168: 0 | THS168: 0 | THT168: 0 | THU168: 0 | THV168: 0 | THW168: 0 | THX168: 0 | THY168: 0 | THZ168: 0 | TIA168: 0 | TIB168: 0 | TIC168: 0 | TID168: 0 | TIE168: 0 | TIF168: 0 | TIG168: =TIG145 -> 0 | TIH168: 0 | TII168: 0 | TIJ168: 0 | TIK168: 0 | TIL168: 0 | TIM168: 0 | TIN168: 0 | TIO168: 0 | TIP168: 0 | TIQ168: 0 | TIR168: 0 | TIS168: 0 | TIT168: 0 | TIU168: 0 | TIV168: 0 | TIW168: 0 | TIX168: 0 | TIY168: 0 | TIZ168: 0 | TJA168: 0 | TJB168: 0 | TJC168: 0 | TJD168: 0 | TJE168: 0 | TJF168: 0 | TJG168: 0 | TJH168: 0 | TJI168: 0 | TJJ168: 0 | TJK168: 0 | TJL168: 0 | TJM168: 0 | TJN168: 0 | TJO168: 0 | TJP168: 0 | TJQ168: 0 | TJR168: 0 | TJS168: 0 | TJT168: 0 | TJU168: 0 | TJV168: 0 | TJW168: 0 | TJX168: 0 | TJY168: 0 | TJZ168: 0 | TKA168: 0 | TKB168: 0 | TKC168: 0 | TKD168: 0 | TKE168: 0 | TKF168: 0 | TKG168: 0 | TKH168: 0 | TKI168: 0 | TKJ168: 0 | TKK168: 0 | TKL168: 0 | TKM168: 0 | TKN168: 0 | TKO168: 0 | TKP168: 0 | TKQ168: 0 | TKR168: 0 | TKS168: =TKS145 -> 0 | TKT168: 0 | TKU168: 0 | TKV168: 0 | TKW168: 0 | TKX168: 0 | TKY168: 0 | TKZ168: 0 | TLA168: 0 | TLB168: 0 | TLC168: 0 | TLD168: 0 | TLE168: 0 | TLF168: 0 | TLG168: 0 | TLH168: 0 | TLI168: 0 | TLJ168: 0 | TLK168: 0 | TLL168: 0 | TLM168: 0 | TLN168: 0 | TLO168: 0 | TLP168: 0 | TLQ168: 0 | TLR168: 0 | TLS168: 0 | TLT168: 0 | TLU168: 0 | TLV168: 0 | TLW168: 0 | TLX168: 0 | TLY168: 0 | TLZ168: 0 | TMA168: 0 | TMB168: 0 | TMC168: 0 | TMD168: 0 | TME168: 0 | TMF168: 0 | TMG168: 0 | TMH168: 0 | TMI168: 0 | TMJ168: 0 | TMK168: 0 | TML168: 0 | TMM168: 0 | TMN168: 0 | TMO168: 0 | TMP168: 0 | TMQ168: 0 | TMR168: 0 | TMS168: 0 | TMT168: 0 | TMU168: 0 | TMV168: 0 | TMW168: 0 | TMX168: 0 | TMY168: 0 | TMZ168: 0 | TNA168: 0 | TNB168: 0 | TNC168: 0 | TND168: 0 | TNE168: =TNE145 -> 0 | TNF168: 0 | TNG168: 0 | TNH168: 0 | TNI168: 0 | TNJ168: 0 | TNK168: 0 | TNL168: 0 | TNM168: 0 | TNN168: 0 | TNO168: 0 | TNP168: 0 | TNQ168: 0 | TNR168: 0 | TNS168: 0 | TNT168: 0 | TNU168: 0 | TNV168: 0 | TNW168: 0 | TNX168: 0 | TNY168: 0 | TNZ168: 0 | TOA168: 0 | TOB168: 0 | TOC168: 0 | TOD168: 0 | TOE168: 0 | TOF168: 0 | TOG168: 0 | TOH168: 0 | TOI168: 0 | TOJ168: 0 | TOK168: 0 | TOL168: 0 | TOM168: 0 | TON168: 0 | TOO168: 0 | TOP168: 0 | TOQ168: 0 | TOR168: 0 | TOS168: 0 | TOT168: 0 | TOU168: 0 | TOV168: 0 | TOW168: 0 | TOX168: 0 | TOY168: 0 | TOZ168: 0 | TPA168: 0 | TPB168: 0 | TPC168: 0 | TPD168: 0 | TPE168: 0 | TPF168: 0 | TPG168: 0 | TPH168: 0 | TPI168: 0 | TPJ168: 0 | TPK168: 0 | TPL168: 0 | TPM168: 0 | TPN168: 0 | TPO168: 0 | TPP168: 0 | TPQ168: =TPQ145 -> 0 | TPR168: 0 | TPS168: 0 | TPT168: 0 | TPU168: 0 | TPV168: 0 | TPW168: 0 | TPX168: 0 | TPY168: 0 | TPZ168: 0 | TQA168: 0 | TQB168: 0 | TQC168: 0 | TQD168: 0 | TQE168: 0 | TQF168: 0 | TQG168: 0 | TQH168: 0 | TQI168: 0 | TQJ168: 0 | TQK168: 0 | TQL168: 0 | TQM168: 0 | TQN168: 0 | TQO168: 0 | TQP168: 0 | TQQ168: 0 | TQR168: 0 | TQS168: 0 | TQT168: 0 | TQU168: 0 | TQV168: 0 | TQW168: 0 | TQX168: 0 | TQY168: 0 | TQZ168: 0 | TRA168: 0 | TRB168: 0 | TRC168: 0 | TRD168: 0 | TRE168: 0 | TRF168: 0 | TRG168: 0 | TRH168: 0 | TRI168: 0 | TRJ168: 0 | TRK168: 0 | TRL168: 0 | TRM168: 0 | TRN168: 0 | TRO168: 0 | TRP168: 0 | TRQ168: 0 | TRR168: 0 | TRS168: 0 | TRT168: 0 | TRU168: 0 | TRV168: 0 | TRW168: 0 | TRX168: 0 | TRY168: 0 | TRZ168: 0 | TSA168: 0 | TSB168: 0 | TSC168: =TSC145 -> 0 | TSD168: 0 | TSE168: 0 | TSF168: 0 | TSG168: 0 | TSH168: 0 | TSI168: 0 | TSJ168: 0 | TSK168: 0 | TSL168: 0 | TSM168: 0 | TSN168: 0 | TSO168: 0 | TSP168: 0 | TSQ168: 0 | TSR168: 0 | TSS168: 0 | TST168: 0 | TSU168: 0 | TSV168: 0 | TSW168: 0 | TSX168: 0 | TSY168: 0 | TSZ168: 0 | TTA168: 0 | TTB168: 0 | TTC168: 0 | TTD168: 0 | TTE168: 0 | TTF168: 0 | TTG168: 0 | TTH168: 0 | TTI168: 0 | TTJ168: 0 | TTK168: 0 | TTL168: 0 | TTM168: 0 | TTN168: 0 | TTO168: 0 | TTP168: 0 | TTQ168: 0 | TTR168: 0 | TTS168: 0 | TTT168: 0 | TTU168: 0 | TTV168: 0 | TTW168: 0 | TTX168: 0 | TTY168: 0 | TTZ168: 0 | TUA168: 0 | TUB168: 0 | TUC168: 0 | TUD168: 0 | TUE168: 0 | TUF168: 0 | TUG168: 0 | TUH168: 0 | TUI168: 0 | TUJ168: 0 | TUK168: 0 | TUL168: 0 | TUM168: 0 | TUN168: 0 | TUO168: =TUO145 -> 0 | TUP168: 0 | TUQ168: 0 | TUR168: 0 | TUS168: 0 | TUT168: 0 | TUU168: 0 | TUV168: 0 | TUW168: 0 | TUX168: 0 | TUY168: 0 | TUZ168: 0 | TVA168: 0 | TVB168: 0 | TVC168: 0 | TVD168: 0 | TVE168: 0 | TVF168: 0 | TVG168: 0 | TVH168: 0 | TVI168: 0 | TVJ168: 0 | TVK168: 0 | TVL168: 0 | TVM168: 0 | TVN168: 0 | TVO168: 0 | TVP168: 0 | TVQ168: 0 | TVR168: 0 | TVS168: 0 | TVT168: 0 | TVU168: 0 | TVV168: 0 | TVW168: 0 | TVX168: 0 | TVY168: 0 | TVZ168: 0 | TWA168: 0 | TWB168: 0 | TWC168: 0 | TWD168: 0 | TWE168: 0 | TWF168: 0 | TWG168: 0 | TWH168: 0 | TWI168: 0 | TWJ168: 0 | TWK168: 0 | TWL168: 0 | TWM168: 0 | TWN168: 0 | TWO168: 0 | TWP168: 0 | TWQ168: 0 | TWR168: 0 | TWS168: 0 | TWT168: 0 | TWU168: 0 | TWV168: 0 | TWW168: 0 | TWX168: 0 | TWY168: 0 | TWZ168: 0 | TXA168: =TXA145 -> 0 | TXB168: 0 | TXC168: 0 | TXD168: 0 | TXE168: 0 | TXF168: 0 | TXG168: 0 | TXH168: 0 | TXI168: 0 | TXJ168: 0 | TXK168: 0 | TXL168: 0 | TXM168: 0 | TXN168: 0 | TXO168: 0 | TXP168: 0 | TXQ168: 0 | TXR168: 0 | TXS168: 0 | TXT168: 0 | TXU168: 0 | TXV168: 0 | TXW168: 0 | TXX168: 0 | TXY168: 0 | TXZ168: 0 | TYA168: 0 | TYB168: 0 | TYC168: 0 | TYD168: 0 | TYE168: 0 | TYF168: 0 | TYG168: 0 | TYH168: 0 | TYI168: 0 | TYJ168: 0 | TYK168: 0 | TYL168: 0 | TYM168: 0 | TYN168: 0 | TYO168: 0 | TYP168: 0 | TYQ168: 0 | TYR168: 0 | TYS168: 0 | TYT168: 0 | TYU168: 0 | TYV168: 0 | TYW168: 0 | TYX168: 0 | TYY168: 0 | TYZ168: 0 | TZA168: 0 | TZB168: 0 | TZC168: 0 | TZD168: 0 | TZE168: 0 | TZF168: 0 | TZG168: 0 | TZH168: 0 | TZI168: 0 | TZJ168: 0 | TZK168: 0 | TZL168: 0 | TZM168: =TZM145 -> 0 | TZN168: 0 | TZO168: 0 | TZP168: 0 | TZQ168: 0 | TZR168: 0 | TZS168: 0 | TZT168: 0 | TZU168: 0 | TZV168: 0 | TZW168: 0 | TZX168: 0 | TZY168: 0 | TZZ168: 0 | UAA168: 0 | UAB168: 0 | UAC168: 0 | UAD168: 0 | UAE168: 0 | UAF168: 0 | UAG168: 0 | UAH168: 0 | UAI168: 0 | UAJ168: 0 | UAK168: 0 | UAL168: 0 | UAM168: 0 | UAN168: 0 | UAO168: 0 | UAP168: 0 | UAQ168: 0 | UAR168: 0 | UAS168: 0 | UAT168: 0 | UAU168: 0 | UAV168: 0 | UAW168: 0 | UAX168: 0 | UAY168: 0 | UAZ168: 0 | UBA168: 0 | UBB168: 0 | UBC168: 0 | UBD168: 0 | UBE168: 0 | UBF168: 0 | UBG168: 0 | UBH168: 0 | UBI168: 0 | UBJ168: 0 | UBK168: 0 | UBL168: 0 | UBM168: 0 | UBN168: 0 | UBO168: 0 | UBP168: 0 | UBQ168: 0 | UBR168: 0 | UBS168: 0 | UBT168: 0 | UBU168: 0 | UBV168: 0 | UBW168: 0 | UBX168: 0 | UBY168: =UBY145 -> 0 | UBZ168: 0 | UCA168: 0 | UCB168: 0 | UCC168: 0 | UCD168: 0 | UCE168: 0 | UCF168: 0 | UCG168: 0 | UCH168: 0 | UCI168: 0 | UCJ168: 0 | UCK168: 0 | UCL168: 0 | UCM168: 0 | UCN168: 0 | UCO168: 0 | UCP168: 0 | UCQ168: 0 | UCR168: 0 | UCS168: 0 | UCT168: 0 | UCU168: 0 | UCV168: 0 | UCW168: 0 | UCX168: 0 | UCY168: 0 | UCZ168: 0 | UDA168: 0 | UDB168: 0 | UDC168: 0 | UDD168: 0 | UDE168: 0 | UDF168: 0 | UDG168: 0 | UDH168: 0 | UDI168: 0 | UDJ168: 0 | UDK168: 0 | UDL168: 0 | UDM168: 0 | UDN168: 0 | UDO168: 0 | UDP168: 0 | UDQ168: 0 | UDR168: 0 | UDS168: 0 | UDT168: 0 | UDU168: 0 | UDV168: 0 | UDW168: 0 | UDX168: 0 | UDY168: 0 | UDZ168: 0 | UEA168: 0 | UEB168: 0 | UEC168: 0 | UED168: 0 | UEE168: 0 | UEF168: 0 | UEG168: 0 | UEH168: 0 | UEI168: 0 | UEJ168: 0 | UEK168: =UEK145 -> 0 | UEL168: 0 | UEM168: 0 | UEN168: 0 | UEO168: 0 | UEP168: 0 | UEQ168: 0 | UER168: 0 | UES168: 0 | UET168: 0 | UEU168: 0 | UEV168: 0 | UEW168: 0 | UEX168: 0 | UEY168: 0 | UEZ168: 0 | UFA168: 0 | UFB168: 0 | UFC168: 0 | UFD168: 0 | UFE168: 0 | UFF168: 0 | UFG168: 0 | UFH168: 0 | UFI168: 0 | UFJ168: 0 | UFK168: 0 | UFL168: 0 | UFM168: 0 | UFN168: 0 | UFO168: 0 | UFP168: 0 | UFQ168: 0 | UFR168: 0 | UFS168: 0 | UFT168: 0 | UFU168: 0 | UFV168: 0 | UFW168: 0 | UFX168: 0 | UFY168: 0 | UFZ168: 0 | UGA168: 0 | UGB168: 0 | UGC168: 0 | UGD168: 0 | UGE168: 0 | UGF168: 0 | UGG168: 0 | UGH168: 0 | UGI168: 0 | UGJ168: 0 | UGK168: 0 | UGL168: 0 | UGM168: 0 | UGN168: 0 | UGO168: 0 | UGP168: 0 | UGQ168: 0 | UGR168: 0 | UGS168: 0 | UGT168: 0 | UGU168: 0 | UGV168: 0 | UGW168: =UGW145 -> 0 | UGX168: 0 | UGY168: 0 | UGZ168: 0 | UHA168: 0 | UHB168: 0 | UHC168: 0 | UHD168: 0 | UHE168: 0 | UHF168: 0 | UHG168: 0 | UHH168: 0 | UHI168: 0 | UHJ168: 0 | UHK168: 0 | UHL168: 0 | UHM168: 0 | UHN168: 0 | UHO168: 0 | UHP168: 0 | UHQ168: 0 | UHR168: 0 | UHS168: 0 | UHT168: 0 | UHU168: 0 | UHV168: 0 | UHW168: 0 | UHX168: 0 | UHY168: 0 | UHZ168: 0 | UIA168: 0 | UIB168: 0 | UIC168: 0 | UID168: 0 | UIE168: 0 | UIF168: 0 | UIG168: 0 | UIH168: 0 | UII168: 0 | UIJ168: 0 | UIK168: 0 | UIL168: 0 | UIM168: 0 | UIN168: 0 | UIO168: 0 | UIP168: 0 | UIQ168: 0 | UIR168: 0 | UIS168: 0 | UIT168: 0 | UIU168: 0 | UIV168: 0 | UIW168: 0 | UIX168: 0 | UIY168: 0 | UIZ168: 0 | UJA168: 0 | UJB168: 0 | UJC168: 0 | UJD168: 0 | UJE168: 0 | UJF168: 0 | UJG168: 0 | UJH168: 0 | UJI168: =UJI145 -> 0 | UJJ168: 0 | UJK168: 0 | UJL168: 0 | UJM168: 0 | UJN168: 0 | UJO168: 0 | UJP168: 0 | UJQ168: 0 | UJR168: 0 | UJS168: 0 | UJT168: 0 | UJU168: 0 | UJV168: 0 | UJW168: 0 | UJX168: 0 | UJY168: 0 | UJZ168: 0 | UKA168: 0 | UKB168: 0 | UKC168: 0 | UKD168: 0 | UKE168: 0 | UKF168: 0 | UKG168: 0 | UKH168: 0 | UKI168: 0 | UKJ168: 0 | UKK168: 0 | UKL168: 0 | UKM168: 0 | UKN168: 0 | UKO168: 0 | UKP168: 0 | UKQ168: 0 | UKR168: 0 | UKS168: 0 | UKT168: 0 | UKU168: 0 | UKV168: 0 | UKW168: 0 | UKX168: 0 | UKY168: 0 | UKZ168: 0 | ULA168: 0 | ULB168: 0 | ULC168: 0 | ULD168: 0 | ULE168: 0 | ULF168: 0 | ULG168: 0 | ULH168: 0 | ULI168: 0 | ULJ168: 0 | ULK168: 0 | ULL168: 0 | ULM168: 0 | ULN168: 0 | ULO168: 0 | ULP168: 0 | ULQ168: 0 | ULR168: 0 | ULS168: 0 | ULT168: 0 | ULU168: =ULU145 -> 0 | ULV168: 0 | ULW168: 0 | ULX168: 0 | ULY168: 0 | ULZ168: 0 | UMA168: 0 | UMB168: 0 | UMC168: 0 | UMD168: 0 | UME168: 0 | UMF168: 0 | UMG168: 0 | UMH168: 0 | UMI168: 0 | UMJ168: 0 | UMK168: 0 | UML168: 0 | UMM168: 0 | UMN168: 0 | UMO168: 0 | UMP168: 0 | UMQ168: 0 | UMR168: 0 | UMS168: 0 | UMT168: 0 | UMU168: 0 | UMV168: 0 | UMW168: 0 | UMX168: 0 | UMY168: 0 | UMZ168: 0 | UNA168: 0 | UNB168: 0 | UNC168: 0 | UND168: 0 | UNE168: 0 | UNF168: 0 | UNG168: 0 | UNH168: 0 | UNI168: 0 | UNJ168: 0 | UNK168: 0 | UNL168: 0 | UNM168: 0 | UNN168: 0 | UNO168: 0 | UNP168: 0 | UNQ168: 0 | UNR168: 0 | UNS168: 0 | UNT168: 0 | UNU168: 0 | UNV168: 0 | UNW168: 0 | UNX168: 0 | UNY168: 0 | UNZ168: 0 | UOA168: 0 | UOB168: 0 | UOC168: 0 | UOD168: 0 | UOE168: 0 | UOF168: 0 | UOG168: =UOG145 -> 0 | UOH168: 0 | UOI168: 0 | UOJ168: 0 | UOK168: 0 | UOL168: 0 | UOM168: 0 | UON168: 0 | UOO168: 0 | UOP168: 0 | UOQ168: 0 | UOR168: 0 | UOS168: 0 | UOT168: 0 | UOU168: 0 | UOV168: 0 | UOW168: 0 | UOX168: 0 | UOY168: 0 | UOZ168: 0 | UPA168: 0 | UPB168: 0 | UPC168: 0 | UPD168: 0 | UPE168: 0 | UPF168: 0 | UPG168: 0 | UPH168: 0 | UPI168: 0 | UPJ168: 0 | UPK168: 0 | UPL168: 0 | UPM168: 0 | UPN168: 0 | UPO168: 0 | UPP168: 0 | UPQ168: 0 | UPR168: 0 | UPS168: 0 | UPT168: 0 | UPU168: 0 | UPV168: 0 | UPW168: 0 | UPX168: 0 | UPY168: 0 | UPZ168: 0 | UQA168: 0 | UQB168: 0 | UQC168: 0 | UQD168: 0 | UQE168: 0 | UQF168: 0 | UQG168: 0 | UQH168: 0 | UQI168: 0 | UQJ168: 0 | UQK168: 0 | UQL168: 0 | UQM168: 0 | UQN168: 0 | UQO168: 0 | UQP168: 0 | UQQ168: 0 | UQR168: 0 | UQS168: =UQS145 -> 0 | UQT168: 0 | UQU168: 0 | UQV168: 0 | UQW168: 0 | UQX168: 0 | UQY168: 0 | UQZ168: 0 | URA168: 0 | URB168: 0 | URC168: 0 | URD168: 0 | URE168: 0 | URF168: 0 | URG168: 0 | URH168: 0 | URI168: 0 | URJ168: 0 | URK168: 0 | URL168: 0 | URM168: 0 | URN168: 0 | URO168: 0 | URP168: 0 | URQ168: 0 | URR168: 0 | URS168: 0 | URT168: 0 | URU168: 0 | URV168: 0 | URW168: 0 | URX168: 0 | URY168: 0 | URZ168: 0 | USA168: 0 | USB168: 0 | USC168: 0 | USD168: 0 | USE168: 0 | USF168: 0 | USG168: 0 | USH168: 0 | USI168: 0 | USJ168: 0 | USK168: 0 | USL168: 0 | USM168: 0 | USN168: 0 | USO168: 0 | USP168: 0 | USQ168: 0 | USR168: 0 | USS168: 0 | UST168: 0 | USU168: 0 | USV168: 0 | USW168: 0 | USX168: 0 | USY168: 0 | USZ168: 0 | UTA168: 0 | UTB168: 0 | UTC168: 0 | UTD168: 0 | UTE168: =UTE145 -> 0 | UTF168: 0 | UTG168: 0 | UTH168: 0 | UTI168: 0 | UTJ168: 0 | UTK168: 0 | UTL168: 0 | UTM168: 0 | UTN168: 0 | UTO168: 0 | UTP168: 0 | UTQ168: 0 | UTR168: 0 | UTS168: 0 | UTT168: 0 | UTU168: 0 | UTV168: 0 | UTW168: 0 | UTX168: 0 | UTY168: 0 | UTZ168: 0 | UUA168: 0 | UUB168: 0 | UUC168: 0 | UUD168: 0 | UUE168: 0 | UUF168: 0 | UUG168: 0 | UUH168: 0 | UUI168: 0 | UUJ168: 0 | UUK168: 0 | UUL168: 0 | UUM168: 0 | UUN168: 0 | UUO168: 0 | UUP168: 0 | UUQ168: 0 | UUR168: 0 | UUS168: 0 | UUT168: 0 | UUU168: 0 | UUV168: 0 | UUW168: 0 | UUX168: 0 | UUY168: 0 | UUZ168: 0 | UVA168: 0 | UVB168: 0 | UVC168: 0 | UVD168: 0 | UVE168: 0 | UVF168: 0 | UVG168: 0 | UVH168: 0 | UVI168: 0 | UVJ168: 0 | UVK168: 0 | UVL168: 0 | UVM168: 0 | UVN168: 0 | UVO168: 0 | UVP168: 0 | UVQ168: =UVQ145 -> 0 | UVR168: 0 | UVS168: 0 | UVT168: 0 | UVU168: 0 | UVV168: 0 | UVW168: 0 | UVX168: 0 | UVY168: 0 | UVZ168: 0 | UWA168: 0 | UWB168: 0 | UWC168: 0 | UWD168: 0 | UWE168: 0 | UWF168: 0 | UWG168: 0 | UWH168: 0 | UWI168: 0 | UWJ168: 0 | UWK168: 0 | UWL168: 0 | UWM168: 0 | UWN168: 0 | UWO168: 0 | UWP168: 0 | UWQ168: 0 | UWR168: 0 | UWS168: 0 | UWT168: 0 | UWU168: 0 | UWV168: 0 | UWW168: 0 | UWX168: 0 | UWY168: 0 | UWZ168: 0 | UXA168: 0 | UXB168: 0 | UXC168: 0 | UXD168: 0 | UXE168: 0 | UXF168: 0 | UXG168: 0 | UXH168: 0 | UXI168: 0 | UXJ168: 0 | UXK168: 0 | UXL168: 0 | UXM168: 0 | UXN168: 0 | UXO168: 0 | UXP168: 0 | UXQ168: 0 | UXR168: 0 | UXS168: 0 | UXT168: 0 | UXU168: 0 | UXV168: 0 | UXW168: 0 | UXX168: 0 | UXY168: 0 | UXZ168: 0 | UYA168: 0 | UYB168: 0 | UYC168: =UYC145 -> 0 | UYD168: 0 | UYE168: 0 | UYF168: 0 | UYG168: 0 | UYH168: 0 | UYI168: 0 | UYJ168: 0 | UYK168: 0 | UYL168: 0 | UYM168: 0 | UYN168: 0 | UYO168: 0 | UYP168: 0 | UYQ168: 0 | UYR168: 0 | UYS168: 0 | UYT168: 0 | UYU168: 0 | UYV168: 0 | UYW168: 0 | UYX168: 0 | UYY168: 0 | UYZ168: 0 | UZA168: 0 | UZB168: 0 | UZC168: 0 | UZD168: 0 | UZE168: 0 | UZF168: 0 | UZG168: 0 | UZH168: 0 | UZI168: 0 | UZJ168: 0 | UZK168: 0 | UZL168: 0 | UZM168: 0 | UZN168: 0 | UZO168: 0 | UZP168: 0 | UZQ168: 0 | UZR168: 0 | UZS168: 0 | UZT168: 0 | UZU168: 0 | UZV168: 0 | UZW168: 0 | UZX168: 0 | UZY168: 0 | UZZ168: 0 | VAA168: 0 | VAB168: 0 | VAC168: 0 | VAD168: 0 | VAE168: 0 | VAF168: 0 | VAG168: 0 | VAH168: 0 | VAI168: 0 | VAJ168: 0 | VAK168: 0 | VAL168: 0 | VAM168: 0 | VAN168: 0 | VAO168: =VAO145 -> 0 | VAP168: 0 | VAQ168: 0 | VAR168: 0 | VAS168: 0 | VAT168: 0 | VAU168: 0 | VAV168: 0 | VAW168: 0 | VAX168: 0 | VAY168: 0 | VAZ168: 0 | VBA168: 0 | VBB168: 0 | VBC168: 0 | VBD168: 0 | VBE168: 0 | VBF168: 0 | VBG168: 0 | VBH168: 0 | VBI168: 0 | VBJ168: 0 | VBK168: 0 | VBL168: 0 | VBM168: 0 | VBN168: 0 | VBO168: 0 | VBP168: 0 | VBQ168: 0 | VBR168: 0 | VBS168: 0 | VBT168: 0 | VBU168: 0 | VBV168: 0 | VBW168: 0 | VBX168: 0 | VBY168: 0 | VBZ168: 0 | VCA168: 0 | VCB168: 0 | VCC168: 0 | VCD168: 0 | VCE168: 0 | VCF168: 0 | VCG168: 0 | VCH168: 0 | VCI168: 0 | VCJ168: 0 | VCK168: 0 | VCL168: 0 | VCM168: 0 | VCN168: 0 | VCO168: 0 | VCP168: 0 | VCQ168: 0 | VCR168: 0 | VCS168: 0 | VCT168: 0 | VCU168: 0 | VCV168: 0 | VCW168: 0 | VCX168: 0 | VCY168: 0 | VCZ168: 0 | VDA168: =VDA145 -> 0 | VDB168: 0 | VDC168: 0 | VDD168: 0 | VDE168: 0 | VDF168: 0 | VDG168: 0 | VDH168: 0 | VDI168: 0 | VDJ168: 0 | VDK168: 0 | VDL168: 0 | VDM168: 0 | VDN168: 0 | VDO168: 0 | VDP168: 0 | VDQ168: 0 | VDR168: 0 | VDS168: 0 | VDT168: 0 | VDU168: 0 | VDV168: 0 | VDW168: 0 | VDX168: 0 | VDY168: 0 | VDZ168: 0 | VEA168: 0 | VEB168: 0 | VEC168: 0 | VED168: 0 | VEE168: 0 | VEF168: 0 | VEG168: 0 | VEH168: 0 | VEI168: 0 | VEJ168: 0 | VEK168: 0 | VEL168: 0 | VEM168: 0 | VEN168: 0 | VEO168: 0 | VEP168: 0 | VEQ168: 0 | VER168: 0 | VES168: 0 | VET168: 0 | VEU168: 0 | VEV168: 0 | VEW168: 0 | VEX168: 0 | VEY168: 0 | VEZ168: 0 | VFA168: 0 | VFB168: 0 | VFC168: 0 | VFD168: 0 | VFE168: 0 | VFF168: 0 | VFG168: 0 | VFH168: 0 | VFI168: 0 | VFJ168: 0 | VFK168: 0 | VFL168: 0 | VFM168: =VFM145 -> 0 | VFN168: 0 | VFO168: 0 | VFP168: 0 | VFQ168: 0 | VFR168: 0 | VFS168: 0 | VFT168: 0 | VFU168: 0 | VFV168: 0 | VFW168: 0 | VFX168: 0 | VFY168: 0 | VFZ168: 0 | VGA168: 0 | VGB168: 0 | VGC168: 0 | VGD168: 0 | VGE168: 0 | VGF168: 0 | VGG168: 0 | VGH168: 0 | VGI168: 0 | VGJ168: 0 | VGK168: 0 | VGL168: 0 | VGM168: 0 | VGN168: 0 | VGO168: 0 | VGP168: 0 | VGQ168: 0 | VGR168: 0 | VGS168: 0 | VGT168: 0 | VGU168: 0 | VGV168: 0 | VGW168: 0 | VGX168: 0 | VGY168: 0 | VGZ168: 0 | VHA168: 0 | VHB168: 0 | VHC168: 0 | VHD168: 0 | VHE168: 0 | VHF168: 0 | VHG168: 0 | VHH168: 0 | VHI168: 0 | VHJ168: 0 | VHK168: 0 | VHL168: 0 | VHM168: 0 | VHN168: 0 | VHO168: 0 | VHP168: 0 | VHQ168: 0 | VHR168: 0 | VHS168: 0 | VHT168: 0 | VHU168: 0 | VHV168: 0 | VHW168: 0 | VHX168: 0 | VHY168: =VHY145 -> 0 | VHZ168: 0 | VIA168: 0 | VIB168: 0 | VIC168: 0 | VID168: 0 | VIE168: 0 | VIF168: 0 | VIG168: 0 | VIH168: 0 | VII168: 0 | VIJ168: 0 | VIK168: 0 | VIL168: 0 | VIM168: 0 | VIN168: 0 | VIO168: 0 | VIP168: 0 | VIQ168: 0 | VIR168: 0 | VIS168: 0 | VIT168: 0 | VIU168: 0 | VIV168: 0 | VIW168: 0 | VIX168: 0 | VIY168: 0 | VIZ168: 0 | VJA168: 0 | VJB168: 0 | VJC168: 0 | VJD168: 0 | VJE168: 0 | VJF168: 0 | VJG168: 0 | VJH168: 0 | VJI168: 0 | VJJ168: 0 | VJK168: 0 | VJL168: 0 | VJM168: 0 | VJN168: 0 | VJO168: 0 | VJP168: 0 | VJQ168: 0 | VJR168: 0 | VJS168: 0 | VJT168: 0 | VJU168: 0 | VJV168: 0 | VJW168: 0 | VJX168: 0 | VJY168: 0 | VJZ168: 0 | VKA168: 0 | VKB168: 0 | VKC168: 0 | VKD168: 0 | VKE168: 0 | VKF168: 0 | VKG168: 0 | VKH168: 0 | VKI168: 0 | VKJ168: 0 | VKK168: =VKK145 -> 0 | VKL168: 0 | VKM168: 0 | VKN168: 0 | VKO168: 0 | VKP168: 0 | VKQ168: 0 | VKR168: 0 | VKS168: 0 | VKT168: 0 | VKU168: 0 | VKV168: 0 | VKW168: 0 | VKX168: 0 | VKY168: 0 | VKZ168: 0 | VLA168: 0 | VLB168: 0 | VLC168: 0 | VLD168: 0 | VLE168: 0 | VLF168: 0 | VLG168: 0 | VLH168: 0 | VLI168: 0 | VLJ168: 0 | VLK168: 0 | VLL168: 0 | VLM168: 0 | VLN168: 0 | VLO168: 0 | VLP168: 0 | VLQ168: 0 | VLR168: 0 | VLS168: 0 | VLT168: 0 | VLU168: 0 | VLV168: 0 | VLW168: 0 | VLX168: 0 | VLY168: 0 | VLZ168: 0 | VMA168: 0 | VMB168: 0 | VMC168: 0 | VMD168: 0 | VME168: 0 | VMF168: 0 | VMG168: 0 | VMH168: 0 | VMI168: 0 | VMJ168: 0 | VMK168: 0 | VML168: 0 | VMM168: 0 | VMN168: 0 | VMO168: 0 | VMP168: 0 | VMQ168: 0 | VMR168: 0 | VMS168: 0 | VMT168: 0 | VMU168: 0 | VMV168: 0 | VMW168: =VMW145 -> 0 | VMX168: 0 | VMY168: 0 | VMZ168: 0 | VNA168: 0 | VNB168: 0 | VNC168: 0 | VND168: 0 | VNE168: 0 | VNF168: 0 | VNG168: 0 | VNH168: 0 | VNI168: 0 | VNJ168: 0 | VNK168: 0 | VNL168: 0 | VNM168: 0 | VNN168: 0 | VNO168: 0 | VNP168: 0 | VNQ168: 0 | VNR168: 0 | VNS168: 0 | VNT168: 0 | VNU168: 0 | VNV168: 0 | VNW168: 0 | VNX168: 0 | VNY168: 0 | VNZ168: 0 | VOA168: 0 | VOB168: 0 | VOC168: 0 | VOD168: 0 | VOE168: 0 | VOF168: 0 | VOG168: 0 | VOH168: 0 | VOI168: 0 | VOJ168: 0 | VOK168: 0 | VOL168: 0 | VOM168: 0 | VON168: 0 | VOO168: 0 | VOP168: 0 | VOQ168: 0 | VOR168: 0 | VOS168: 0 | VOT168: 0 | VOU168: 0 | VOV168: 0 | VOW168: 0 | VOX168: 0 | VOY168: 0 | VOZ168: 0 | VPA168: 0 | VPB168: 0 | VPC168: 0 | VPD168: 0 | VPE168: 0 | VPF168: 0 | VPG168: 0 | VPH168: 0 | VPI168: =VPI145 -> 0 | VPJ168: 0 | VPK168: 0 | VPL168: 0 | VPM168: 0 | VPN168: 0 | VPO168: 0 | VPP168: 0 | VPQ168: 0 | VPR168: 0 | VPS168: 0 | VPT168: 0 | VPU168: 0 | VPV168: 0 | VPW168: 0 | VPX168: 0 | VPY168: 0 | VPZ168: 0 | VQA168: 0 | VQB168: 0 | VQC168: 0 | VQD168: 0 | VQE168: 0 | VQF168: 0 | VQG168: 0 | VQH168: 0 | VQI168: 0 | VQJ168: 0 | VQK168: 0 | VQL168: 0 | VQM168: 0 | VQN168: 0 | VQO168: 0 | VQP168: 0 | VQQ168: 0 | VQR168: 0 | VQS168: 0 | VQT168: 0 | VQU168: 0 | VQV168: 0 | VQW168: 0 | VQX168: 0 | VQY168: 0 | VQZ168: 0 | VRA168: 0 | VRB168: 0 | VRC168: 0 | VRD168: 0 | VRE168: 0 | VRF168: 0 | VRG168: 0 | VRH168: 0 | VRI168: 0 | VRJ168: 0 | VRK168: 0 | VRL168: 0 | VRM168: 0 | VRN168: 0 | VRO168: 0 | VRP168: 0 | VRQ168: 0 | VRR168: 0 | VRS168: 0 | VRT168: 0 | VRU168: =VRU145 -> 0 | VRV168: 0 | VRW168: 0 | VRX168: 0 | VRY168: 0 | VRZ168: 0 | VSA168: 0 | VSB168: 0 | VSC168: 0 | VSD168: 0 | VSE168: 0 | VSF168: 0 | VSG168: 0 | VSH168: 0 | VSI168: 0 | VSJ168: 0 | VSK168: 0 | VSL168: 0 | VSM168: 0 | VSN168: 0 | VSO168: 0 | VSP168: 0 | VSQ168: 0 | VSR168: 0 | VSS168: 0 | VST168: 0 | VSU168: 0 | VSV168: 0 | VSW168: 0 | VSX168: 0 | VSY168: 0 | VSZ168: 0 | VTA168: 0 | VTB168: 0 | VTC168: 0 | VTD168: 0 | VTE168: 0 | VTF168: 0 | VTG168: 0 | VTH168: 0 | VTI168: 0 | VTJ168: 0 | VTK168: 0 | VTL168: 0 | VTM168: 0 | VTN168: 0 | VTO168: 0 | VTP168: 0 | VTQ168: 0 | VTR168: 0 | VTS168: 0 | VTT168: 0 | VTU168: 0 | VTV168: 0 | VTW168: 0 | VTX168: 0 | VTY168: 0 | VTZ168: 0 | VUA168: 0 | VUB168: 0 | VUC168: 0 | VUD168: 0 | VUE168: 0 | VUF168: 0 | VUG168: =VUG145 -> 0 | VUH168: 0 | VUI168: 0 | VUJ168: 0 | VUK168: 0 | VUL168: 0 | VUM168: 0 | VUN168: 0 | VUO168: 0 | VUP168: 0 | VUQ168: 0 | VUR168: 0 | VUS168: 0 | VUT168: 0 | VUU168: 0 | VUV168: 0 | VUW168: 0 | VUX168: 0 | VUY168: 0 | VUZ168: 0 | VVA168: 0 | VVB168: 0 | VVC168: 0 | VVD168: 0 | VVE168: 0 | VVF168: 0 | VVG168: 0 | VVH168: 0 | VVI168: 0 | VVJ168: 0 | VVK168: 0 | VVL168: 0 | VVM168: 0 | VVN168: 0 | VVO168: 0 | VVP168: 0 | VVQ168: 0 | VVR168: 0 | VVS168: 0 | VVT168: 0 | VVU168: 0 | VVV168: 0 | VVW168: 0 | VVX168: 0 | VVY168: 0 | VVZ168: 0 | VWA168: 0 | VWB168: 0 | VWC168: 0 | VWD168: 0 | VWE168: 0 | VWF168: 0 | VWG168: 0 | VWH168: 0 | VWI168: 0 | VWJ168: 0 | VWK168: 0 | VWL168: 0 | VWM168: 0 | VWN168: 0 | VWO168: 0 | VWP168: 0 | VWQ168: 0 | VWR168: 0 | VWS168: =VWS145 -> 0 | VWT168: 0 | VWU168: 0 | VWV168: 0 | VWW168: 0 | VWX168: 0 | VWY168: 0 | VWZ168: 0 | VXA168: 0 | VXB168: 0 | VXC168: 0 | VXD168: 0 | VXE168: 0 | VXF168: 0 | VXG168: 0 | VXH168: 0 | VXI168: 0 | VXJ168: 0 | VXK168: 0 | VXL168: 0 | VXM168: 0 | VXN168: 0 | VXO168: 0 | VXP168: 0 | VXQ168: 0 | VXR168: 0 | VXS168: 0 | VXT168: 0 | VXU168: 0 | VXV168: 0 | VXW168: 0 | VXX168: 0 | VXY168: 0 | VXZ168: 0 | VYA168: 0 | VYB168: 0 | VYC168: 0 | VYD168: 0 | VYE168: 0 | VYF168: 0 | VYG168: 0 | VYH168: 0 | VYI168: 0 | VYJ168: 0 | VYK168: 0 | VYL168: 0 | VYM168: 0 | VYN168: 0 | VYO168: 0 | VYP168: 0 | VYQ168: 0 | VYR168: 0 | VYS168: 0 | VYT168: 0 | VYU168: 0 | VYV168: 0 | VYW168: 0 | VYX168: 0 | VYY168: 0 | VYZ168: 0 | VZA168: 0 | VZB168: 0 | VZC168: 0 | VZD168: 0 | VZE168: =VZE145 -> 0 | VZF168: 0 | VZG168: 0 | VZH168: 0 | VZI168: 0 | VZJ168: 0 | VZK168: 0 | VZL168: 0 | VZM168: 0 | VZN168: 0 | VZO168: 0 | VZP168: 0 | VZQ168: 0 | VZR168: 0 | VZS168: 0 | VZT168: 0 | VZU168: 0 | VZV168: 0 | VZW168: 0 | VZX168: 0 | VZY168: 0 | VZZ168: 0 | WAA168: 0 | WAB168: 0 | WAC168: 0 | WAD168: 0 | WAE168: 0 | WAF168: 0 | WAG168: 0 | WAH168: 0 | WAI168: 0 | WAJ168: 0 | WAK168: 0 | WAL168: 0 | WAM168: 0 | WAN168: 0 | WAO168: 0 | WAP168: 0 | WAQ168: 0 | WAR168: 0 | WAS168: 0 | WAT168: 0 | WAU168: 0 | WAV168: 0 | WAW168: 0 | WAX168: 0 | WAY168: 0 | WAZ168: 0 | WBA168: 0 | WBB168: 0 | WBC168: 0 | WBD168: 0 | WBE168: 0 | WBF168: 0 | WBG168: 0 | WBH168: 0 | WBI168: 0 | WBJ168: 0 | WBK168: 0 | WBL168: 0 | WBM168: 0 | WBN168: 0 | WBO168: 0 | WBP168: 0 | WBQ168: =WBQ145 -> 0 | WBR168: 0 | WBS168: 0 | WBT168: 0 | WBU168: 0 | WBV168: 0 | WBW168: 0 | WBX168: 0 | WBY168: 0 | WBZ168: 0 | WCA168: 0 | WCB168: 0 | WCC168: 0 | WCD168: 0 | WCE168: 0 | WCF168: 0 | WCG168: 0 | WCH168: 0 | WCI168: 0 | WCJ168: 0 | WCK168: 0 | WCL168: 0 | WCM168: 0 | WCN168: 0 | WCO168: 0 | WCP168: 0 | WCQ168: 0 | WCR168: 0 | WCS168: 0 | WCT168: 0 | WCU168: 0 | WCV168: 0 | WCW168: 0 | WCX168: 0 | WCY168: 0 | WCZ168: 0 | WDA168: 0 | WDB168: 0 | WDC168: 0 | WDD168: 0 | WDE168: 0 | WDF168: 0 | WDG168: 0 | WDH168: 0 | WDI168: 0 | WDJ168: 0 | WDK168: 0 | WDL168: 0 | WDM168: 0 | WDN168: 0 | WDO168: 0 | WDP168: 0 | WDQ168: 0 | WDR168: 0 | WDS168: 0 | WDT168: 0 | WDU168: 0 | WDV168: 0 | WDW168: 0 | WDX168: 0 | WDY168: 0 | WDZ168: 0 | WEA168: 0 | WEB168: 0 | WEC168: =WEC145 -> 0 | WED168: 0 | WEE168: 0 | WEF168: 0 | WEG168: 0 | WEH168: 0 | WEI168: 0 | WEJ168: 0 | WEK168: 0 | WEL168: 0 | WEM168: 0 | WEN168: 0 | WEO168: 0 | WEP168: 0 | WEQ168: 0 | WER168: 0 | WES168: 0 | WET168: 0 | WEU168: 0 | WEV168: 0 | WEW168: 0 | WEX168: 0 | WEY168: 0 | WEZ168: 0 | WFA168: 0 | WFB168: 0 | WFC168: 0 | WFD168: 0 | WFE168: 0 | WFF168: 0 | WFG168: 0 | WFH168: 0 | WFI168: 0 | WFJ168: 0 | WFK168: 0 | WFL168: 0 | WFM168: 0 | WFN168: 0 | WFO168: 0 | WFP168: 0 | WFQ168: 0 | WFR168: 0 | WFS168: 0 | WFT168: 0 | WFU168: 0 | WFV168: 0 | WFW168: 0 | WFX168: 0 | WFY168: 0 | WFZ168: 0 | WGA168: 0 | WGB168: 0 | WGC168: 0 | WGD168: 0 | WGE168: 0 | WGF168: 0 | WGG168: 0 | WGH168: 0 | WGI168: 0 | WGJ168: 0 | WGK168: 0 | WGL168: 0 | WGM168: 0 | WGN168: 0 | WGO168: =WGO145 -> 0 | WGP168: 0 | WGQ168: 0 | WGR168: 0 | WGS168: 0 | WGT168: 0 | WGU168: 0 | WGV168: 0 | WGW168: 0 | WGX168: 0 | WGY168: 0 | WGZ168: 0 | WHA168: 0 | WHB168: 0 | WHC168: 0 | WHD168: 0 | WHE168: 0 | WHF168: 0 | WHG168: 0 | WHH168: 0 | WHI168: 0 | WHJ168: 0 | WHK168: 0 | WHL168: 0 | WHM168: 0 | WHN168: 0 | WHO168: 0 | WHP168: 0 | WHQ168: 0 | WHR168: 0 | WHS168: 0 | WHT168: 0 | WHU168: 0 | WHV168: 0 | WHW168: 0 | WHX168: 0 | WHY168: 0 | WHZ168: 0 | WIA168: 0 | WIB168: 0 | WIC168: 0 | WID168: 0 | WIE168: 0 | WIF168: 0 | WIG168: 0 | WIH168: 0 | WII168: 0 | WIJ168: 0 | WIK168: 0 | WIL168: 0 | WIM168: 0 | WIN168: 0 | WIO168: 0 | WIP168: 0 | WIQ168: 0 | WIR168: 0 | WIS168: 0 | WIT168: 0 | WIU168: 0 | WIV168: 0 | WIW168: 0 | WIX168: 0 | WIY168: 0 | WIZ168: 0 | WJA168: =WJA145 -> 0 | WJB168: 0 | WJC168: 0 | WJD168: 0 | WJE168: 0 | WJF168: 0 | WJG168: 0 | WJH168: 0 | WJI168: 0 | WJJ168: 0 | WJK168: 0 | WJL168: 0 | WJM168: 0 | WJN168: 0 | WJO168: 0 | WJP168: 0 | WJQ168: 0 | WJR168: 0 | WJS168: 0 | WJT168: 0 | WJU168: 0 | WJV168: 0 | WJW168: 0 | WJX168: 0 | WJY168: 0 | WJZ168: 0 | WKA168: 0 | WKB168: 0 | WKC168: 0 | WKD168: 0 | WKE168: 0 | WKF168: 0 | WKG168: 0 | WKH168: 0 | WKI168: 0 | WKJ168: 0 | WKK168: 0 | WKL168: 0 | WKM168: 0 | WKN168: 0 | WKO168: 0 | WKP168: 0 | WKQ168: 0 | WKR168: 0 | WKS168: 0 | WKT168: 0 | WKU168: 0 | WKV168: 0 | WKW168: 0 | WKX168: 0 | WKY168: 0 | WKZ168: 0 | WLA168: 0 | WLB168: 0 | WLC168: 0 | WLD168: 0 | WLE168: 0 | WLF168: 0 | WLG168: 0 | WLH168: 0 | WLI168: 0 | WLJ168: 0 | WLK168: 0 | WLL168: 0 | WLM168: =WLM145 -> 0 | WLN168: 0 | WLO168: 0 | WLP168: 0 | WLQ168: 0 | WLR168: 0 | WLS168: 0 | WLT168: 0 | WLU168: 0 | WLV168: 0 | WLW168: 0 | WLX168: 0 | WLY168: 0 | WLZ168: 0 | WMA168: 0 | WMB168: 0 | WMC168: 0 | WMD168: 0 | WME168: 0 | WMF168: 0 | WMG168: 0 | WMH168: 0 | WMI168: 0 | WMJ168: 0 | WMK168: 0 | WML168: 0 | WMM168: 0 | WMN168: 0 | WMO168: 0 | WMP168: 0 | WMQ168: 0 | WMR168: 0 | WMS168: 0 | WMT168: 0 | WMU168: 0 | WMV168: 0 | WMW168: 0 | WMX168: 0 | WMY168: 0 | WMZ168: 0 | WNA168: 0 | WNB168: 0 | WNC168: 0 | WND168: 0 | WNE168: 0 | WNF168: 0 | WNG168: 0 | WNH168: 0 | WNI168: 0 | WNJ168: 0 | WNK168: 0 | WNL168: 0 | WNM168: 0 | WNN168: 0 | WNO168: 0 | WNP168: 0 | WNQ168: 0 | WNR168: 0 | WNS168: 0 | WNT168: 0 | WNU168: 0 | WNV168: 0 | WNW168: 0 | WNX168: 0 | WNY168: =WNY145 -> 0 | WNZ168: 0 | WOA168: 0 | WOB168: 0 | WOC168: 0 | WOD168: 0 | WOE168: 0 | WOF168: 0 | WOG168: 0 | WOH168: 0 | WOI168: 0 | WOJ168: 0 | WOK168: 0 | WOL168: 0 | WOM168: 0 | WON168: 0 | WOO168: 0 | WOP168: 0 | WOQ168: 0 | WOR168: 0 | WOS168: 0 | WOT168: 0 | WOU168: 0 | WOV168: 0 | WOW168: 0 | WOX168: 0 | WOY168: 0 | WOZ168: 0 | WPA168: 0 | WPB168: 0 | WPC168: 0 | WPD168: 0 | WPE168: 0 | WPF168: 0 | WPG168: 0 | WPH168: 0 | WPI168: 0 | WPJ168: 0 | WPK168: 0 | WPL168: 0 | WPM168: 0 | WPN168: 0 | WPO168: 0 | WPP168: 0 | WPQ168: 0 | WPR168: 0 | WPS168: 0 | WPT168: 0 | WPU168: 0 | WPV168: 0 | WPW168: 0 | WPX168: 0 | WPY168: 0 | WPZ168: 0 | WQA168: 0 | WQB168: 0 | WQC168: 0 | WQD168: 0 | WQE168: 0 | WQF168: 0 | WQG168: 0 | WQH168: 0 | WQI168: 0 | WQJ168: 0 | WQK168: =WQK145 -> 0 | WQL168: 0 | WQM168: 0 | WQN168: 0 | WQO168: 0 | WQP168: 0 | WQQ168: 0 | WQR168: 0 | WQS168: 0 | WQT168: 0 | WQU168: 0 | WQV168: 0 | WQW168: 0 | WQX168: 0 | WQY168: 0 | WQZ168: 0 | WRA168: 0 | WRB168: 0 | WRC168: 0 | WRD168: 0 | WRE168: 0 | WRF168: 0 | WRG168: 0 | WRH168: 0 | WRI168: 0 | WRJ168: 0 | WRK168: 0 | WRL168: 0 | WRM168: 0 | WRN168: 0 | WRO168: 0 | WRP168: 0 | WRQ168: 0 | WRR168: 0 | WRS168: 0 | WRT168: 0 | WRU168: 0 | WRV168: 0 | WRW168: 0 | WRX168: 0 | WRY168: 0 | WRZ168: 0 | WSA168: 0 | WSB168: 0 | WSC168: 0 | WSD168: 0 | WSE168: 0 | WSF168: 0 | WSG168: 0 | WSH168: 0 | WSI168: 0 | WSJ168: 0 | WSK168: 0 | WSL168: 0 | WSM168: 0 | WSN168: 0 | WSO168: 0 | WSP168: 0 | WSQ168: 0 | WSR168: 0 | WSS168: 0 | WST168: 0 | WSU168: 0 | WSV168: 0 | WSW168: =WSW145 -> 0 | WSX168: 0 | WSY168: 0 | WSZ168: 0 | WTA168: 0 | WTB168: 0 | WTC168: 0 | WTD168: 0 | WTE168: 0 | WTF168: 0 | WTG168: 0 | WTH168: 0 | WTI168: 0 | WTJ168: 0 | WTK168: 0 | WTL168: 0 | WTM168: 0 | WTN168: 0 | WTO168: 0 | WTP168: 0 | WTQ168: 0 | WTR168: 0 | WTS168: 0 | WTT168: 0 | WTU168: 0 | WTV168: 0 | WTW168: 0 | WTX168: 0 | WTY168: 0 | WTZ168: 0 | WUA168: 0 | WUB168: 0 | WUC168: 0 | WUD168: 0 | WUE168: 0 | WUF168: 0 | WUG168: 0 | WUH168: 0 | WUI168: 0 | WUJ168: 0 | WUK168: 0 | WUL168: 0 | WUM168: 0 | WUN168: 0 | WUO168: 0 | WUP168: 0 | WUQ168: 0 | WUR168: 0 | WUS168: 0 | WUT168: 0 | WUU168: 0 | WUV168: 0 | WUW168: 0 | WUX168: 0 | WUY168: 0 | WUZ168: 0 | WVA168: 0 | WVB168: 0 | WVC168: 0 | WVD168: 0 | WVE168: 0 | WVF168: 0 | WVG168: 0 | WVH168: 0 | WVI168: =WVI145 -> 0 | WVJ168: 0 | WVK168: 0 | WVL168: 0 | WVM168: 0 | WVN168: 0 | WVO168: 0 | WVP168: 0 | WVQ168: 0 | WVR168: 0 | WVS168: 0 | WVT168: 0 | WVU168: 0 | WVV168: 0 | WVW168: 0 | WVX168: 0 | WVY168: 0 | WVZ168: 0 | WWA168: 0 | WWB168: 0 | WWC168: 0 | WWD168: 0 | WWE168: 0 | WWF168: 0 | WWG168: 0 | WWH168: 0 | WWI168: 0 | WWJ168: 0 | WWK168: 0 | WWL168: 0 | WWM168: 0 | WWN168: 0 | WWO168: 0 | WWP168: 0 | WWQ168: 0 | WWR168: 0 | WWS168: 0 | WWT168: 0 | WWU168: 0 | WWV168: 0 | WWW168: 0 | WWX168: 0 | WWY168: 0 | WWZ168: 0 | WXA168: 0 | WXB168: 0 | WXC168: 0 | WXD168: 0 | WXE168: 0 | WXF168: 0 | WXG168: 0 | WXH168: 0 | WXI168: 0 | WXJ168: 0 | WXK168: 0 | WXL168: 0 | WXM168: 0 | WXN168: 0 | WXO168: 0 | WXP168: 0 | WXQ168: 0 | WXR168: 0 | WXS168: 0 | WXT168: 0 | WXU168: =WXU145 -> 0 | WXV168: 0 | WXW168: 0 | WXX168: 0 | WXY168: 0 | WXZ168: 0 | WYA168: 0 | WYB168: 0 | WYC168: 0 | WYD168: 0 | WYE168: 0 | WYF168: 0 | WYG168: 0 | WYH168: 0 | WYI168: 0 | WYJ168: 0 | WYK168: 0 | WYL168: 0 | WYM168: 0 | WYN168: 0 | WYO168: 0 | WYP168: 0 | WYQ168: 0 | WYR168: 0 | WYS168: 0 | WYT168: 0 | WYU168: 0 | WYV168: 0 | WYW168: 0 | WYX168: 0 | WYY168: 0 | WYZ168: 0 | WZA168: 0 | WZB168: 0 | WZC168: 0 | WZD168: 0 | WZE168: 0 | WZF168: 0 | WZG168: 0 | WZH168: 0 | WZI168: 0 | WZJ168: 0 | WZK168: 0 | WZL168: 0 | WZM168: 0 | WZN168: 0 | WZO168: 0 | WZP168: 0 | WZQ168: 0 | WZR168: 0 | WZS168: 0 | WZT168: 0 | WZU168: 0 | WZV168: 0 | WZW168: 0 | WZX168: 0 | WZY168: 0 | WZZ168: 0 | XAA168: 0 | XAB168: 0 | XAC168: 0 | XAD168: 0 | XAE168: 0 | XAF168: 0 | XAG168: =XAG145 -> 0 | XAH168: 0 | XAI168: 0 | XAJ168: 0 | XAK168: 0 | XAL168: 0 | XAM168: 0 | XAN168: 0 | XAO168: 0 | XAP168: 0 | XAQ168: 0 | XAR168: 0 | XAS168: 0 | XAT168: 0 | XAU168: 0 | XAV168: 0 | XAW168: 0 | XAX168: 0 | XAY168: 0 | XAZ168: 0 | XBA168: 0 | XBB168: 0 | XBC168: 0 | XBD168: 0 | XBE168: 0 | XBF168: 0 | XBG168: 0 | XBH168: 0 | XBI168: 0 | XBJ168: 0 | XBK168: 0 | XBL168: 0 | XBM168: 0 | XBN168: 0 | XBO168: 0 | XBP168: 0 | XBQ168: 0 | XBR168: 0 | XBS168: 0 | XBT168: 0 | XBU168: 0 | XBV168: 0 | XBW168: 0 | XBX168: 0 | XBY168: 0 | XBZ168: 0 | XCA168: 0 | XCB168: 0 | XCC168: 0 | XCD168: 0 | XCE168: 0 | XCF168: 0 | XCG168: 0 | XCH168: 0 | XCI168: 0 | XCJ168: 0 | XCK168: 0 | XCL168: 0 | XCM168: 0 | XCN168: 0 | XCO168: 0 | XCP168: 0 | XCQ168: 0 | XCR168: 0 | XCS168: =XCS145 -> 0 | XCT168: 0 | XCU168: 0 | XCV168: 0 | XCW168: 0 | XCX168: 0 | XCY168: 0 | XCZ168: 0 | XDA168: 0 | XDB168: 0 | XDC168: 0 | XDD168: 0 | XDE168: 0 | XDF168: 0 | XDG168: 0 | XDH168: 0 | XDI168: 0 | XDJ168: 0 | XDK168: 0 | XDL168: 0 | XDM168: 0 | XDN168: 0 | XDO168: 0 | XDP168: 0 | XDQ168: 0 | XDR168: 0 | XDS168: 0 | XDT168: 0 | XDU168: 0 | XDV168: 0 | XDW168: 0 | XDX168: 0 | XDY168: 0 | XDZ168: 0 | XEA168: 0 | XEB168: 0 | XEC168: 0 | XED168: 0 | XEE168: 0 | XEF168: 0 | XEG168: 0 | XEH168: 0 | XEI168: 0 | XEJ168: 0 | XEK168: 0 | XEL168: 0 | XEM168: 0 | XEN168: 0 | XEO168: 0 | XEP168: 0 | XEQ168: 0 | XER168: 0 | XES168: 0 | XET168: 0 | XEU168: 0 | XEV168: 0 | XEW168: 0 | XEX168: 0 | XEY168: 0 | XEZ168: 0 | XFA168: 0 | XFB168: 0 | XFC168: 0 | XFD168: 0
E169: Capitalized interest | F169: 4 | H169: year | I169: First year of Production = year 3
E171: Depreciation period
E172: Production Vessel | F172: 10 | H172: years | I172: Straight-Line depreciation
E173: Transfer Vessel/Bulk Carriers | F173: 10 | H173: years | I173: Straight-Line depreciation
E174: Support Vessel | F174: 10 | H174: years | I174: Straight-Line depreciation
E175: Operations facilities initial setup | F175: 10 | H175: years | I175: Straight-Line depreciation
E176: Professional Services | F176: 10 | H176: years | I176: Straight-Line depreciation
E177: Owners cost | F177: 10 | H177: years | I177: Straight-Line depreciation
E178: Contingency | F178: 10 | H178: years | I178: Straight-Line depreciation
E179: Allseas credit | F179: 10 | H179: years | I179: Straight-Line depreciation
E180: Capitalized interest | F180: 10 | H180: years | I180: Straight-Line depreciation
C182: Sustaining Capex Depreciation
E183: Sustaining capex depreciation period | F183: 5 | G183: 10 | H183: years | I183: Straight-Line depreciation
C186: Project Operational Expenditure
E187: Collection | F187: 75.2 | G187: 46.5 | H187: US$ /wmt of nodules
E188: Transfer and shipping | F188: =SUM(F189:F193) -> 18.7 | G188: =SUM(G189:G193) -> 9.1 | H188: US$ /wmt of nodules
E189: Transfer vessel CCZ | F189: 6.4 | H189: US$ /wmt of nodules
E190: Bulk Carrier CCZ to INDO - Capesize | F190: 10.4 | G190: 7.7 | H190: US$ /wmt of nodules
E191: Bulk Carrier INDO to Texas - Handymax | F191: 1 | G191: 1.4 | H191: US$ /wmt of nodules
E192: Bulk Carrier INDO to Janpan - Handymax | F192: 0.8 | H192: US$ /wmt of nodules
E193: INDO inbound handling | F193: 0.1 | H193: US$ /wmt of nodules
E194: Contractor (Offshore) | F194: 11.3 | G194: 5.3 | H194: US$ /wmt of nodules
E195: Consumables (Offshore) | F195: 23.4 | G195: 17.7 | H195: US$ /wmt of nodules
E196: Processing | F196: 83 | G196: 80 | H196: US$ /wmt of nodules
E197: G&A | F197: 12.1 | G197: 5.9 | H197: US$ /wmt of nodules
A199: Other Operation Fees Assumptions
C201: Fees for ISA
E202: Annual reporting fee | F202: 1 | G202: 1 | H202: US$ mn | I202: Assumption
E203: Annual fixed fee | F203: 0.5 | G203: 0.5 | H203: US$ mn | I203: Assumption
C205: Other fees
E206: Nauru Continuity Benefits Payment | F206: 1.2 | G206: 0.2 | H206: US$/WMT
E207: Tonga Continuity Payment | G207: 0.11 | H207: US$/WMT
E208: LCR Royalty | F208: 2.8 | G208: 1 | H208: US$/WMT
A210: Fiscal Assumptions
C212: Royalty
E213: =Dashboard!B8 -> Royalty - stage 1 | F213: =Dashboard!$C$8 -> 0.025 | G213: =Dashboard!$C$8 -> 0.025 | H213: =Dashboard!D8 -> % | I213: Assumption
E214: =Dashboard!B9 -> Royalty stage 1 duration | F214: =Dashboard!$C$9 -> 5 | G214: =Dashboard!$C$9 -> 5 | H214: =Dashboard!D9 -> years into production | I214: Assumption
E215: =Dashboard!B10 -> Royalty - stage 2 | F215: =Dashboard!$C$10 -> 0.075 | G215: =Dashboard!$C$10 -> 0.075 | H215: =Dashboard!D10 -> %
C217: Additional profit share
E218: =Dashboard!B11 -> Additional profit share | F218: =Dashboard!$C$11 -> 0.25 | G218: =Dashboard!$C$11 -> 0.25 | H218: =Dashboard!D11 -> %
E219: Additional Profits share adjustment factor | F219: =Dashboard!$C$12 -> 1.1 | G219: =Dashboard!$C$12 -> 1.1 | H219: constant
E220: Covered payments credit applicable to Additional profit share to ISA | F220: 1 | G220: 1 | H220: Option | I220: 1 = Yes ; 0 = No
E221: =Dashboard!B14 -> Additionam profit share reductible for CIT | F221: =Dashboard!$C$14 -> 0 | G221: =Dashboard!$C$14 -> 0 | H221: Option | I221: 1 = Yes ; 0 = No
C223: CIT
E224: CIT Rate - Sponsoring state | F224: =Dashboard!$C$13 -> 0.25 | G224: =Dashboard!$C$13 -> 0.25 | H224: %
A226: Financing Assumptions
C228: Debt financing
E229: Proportion of Capex financed by debts | F229: 0 | G229: 0 | H229: % | I229: Assumption
E230: Repayment start year | F230: =F17 -> 7 | G230: =G17 -> 8 | H230: Year | I230: Assumption
E231: Repayment period | F231: 10 | G231: 10 | H231: Years | I231: Assumption
E232: Loan real interest rate | F232: 0.18 | G232: 0.18 | H232: % | I232: Assumption
E233: Interest payment start year | F233: 4 | G233: 5 | H233: Year
A235: Economic assumptions
E237: ISA Discount Rate | F237: 0.08 | G237: 0.08 | H237: %
E238: Project Shareholder Discount Rate | F238: 0.08 | G238: 0.08 | H238: %
E239: Sponsoring State Discount Rate | F239: 0.08 | G239: 0.08 | H239: %
A241: Technical parameters
E243: Model check tolerance level | F243: 0.01 | G243: 0.01 | H243: Tolerance
E244: one hundred | F244: 100 | G244: 100 | H244: Constant
E245: one thousand | F245: 1000 | G245: 1000 | H245: Constant
E246: one million | F246: 1000000 | G246: 1000000 | H246: Constant
... 7 more rows

Sheet Working Inputs
A1: =RIGHT( CELL("filename",$A$1), LEN( CELL("filename",$A$1)) - SEARCH("]", CELL("filename",$A$1))) -> Working Inputs | K1: ='Project Cashflows'!K1 -> 1 | L1: ='Project Cashflows'!L1 -> 2 | M1: ='Project Cashflows'!M1 -> 3 | N1: ='Project Cashflows'!N1 -> 4 | O1: ='Project Cashflows'!O1 -> 5 | P1: ='Project Cashflows'!P1 -> 6 | Q1: ='Project Cashflows'!Q1 -> 7 | R1: ='Project Cashflows'!R1 -> 8 | S1: ='Project Cashflows'!S1 -> 9 | T1: ='Project Cashflows'!T1 -> 10 | U1: ='Project Cashflows'!U1 -> 11 | V1: ='Project Cashflows'!V1 -> 12 | W1: ='Project Cashflows'!W1 -> 13 | X1: ='Project Cashflows'!X1 -> 14 | Y1: ='Project Cashflows'!Y1 -> 15 | Z1: ='Project Cashflows'!Z1 -> 16 | AA1: ='Project Cashflows'!AA1 -> 17 | AB1: ='Project Cashflows'!AB1 -> 18 | AC1: ='Project Cashflows'!AC1 -> 19 | AD1: ='Project Cashflows'!AD1 -> 20 | AE1: ='Project Cashflows'!AE1 -> 21 | AF1: ='Project Cashflows'!AF1 -> 22 | AG1: ='Project Cashflows'!AG1 -> 23 | AH1: ='Project Cashflows'!AH1 -> 24 | AI1: ='Project Cashflows'!AI1 -> 25 | AJ1: ='Project Cashflows'!AJ1 -> 26 | AK1: ='Project Cashflows'!AK1 -> 27 | AL1: ='Project Cashflows'!AL1 -> 28 | AM1: ='Project Cashflows'!AM1 -> 29 | AN1: ='Project Cashflows'!AN1 -> 30 | AO1: ='Project Cashflows'!AO1 -> 31 | AP1: ='Project Cashflows'!AP1 -> 32 | AQ1: ='Project Cashflows'!AQ1 -> 33 | AR1: ='Project Cashflows'!AR1 -> 34 | AS1: ='Project Cashflows'!AS1 -> 35 | AT1: ='Project Cashflows'!AT1 -> 36 | AU1: ='Project Cashflows'!AU1 -> 37
E2: Row description | F2: Constant | G2: Units | H2: Comments | I2: Total
G3: Global labels
A5: Project General Assumptions
E7: Project Selected | F7: =Dashboard!C5 -> NORI-D
B9: Production lifecycle and productions data
C11: Project lifecycle
E12: Project start year | F12: =IF($F$7='Projects Inputs '!$F$2,'Projects Inputs '!F12,IF($F$7='Projects Inputs '!$G$2,'Projects Inputs '!G12,"n/a")) -> 2025 | G12: year
E13: Pre-production - start | F13: =IF($F$7='Projects Inputs '!$F$2,'Projects Inputs '!F13,IF($F$7='Projects Inputs '!$G$2,'Projects Inputs '!G13,"n/a")) -> 1 | G13: year #
E14: Pre-production - end | F14: =IF($F$7='Projects Inputs '!$F$2,'Projects Inputs '!F14,IF($F$7='Projects Inputs '!$G$2,'Projects Inputs '!G14,"n/a")) -> 2 | G14: year #
E15: Ramp Up area 1 - start | F15: =IF($F$7='Projects Inputs '!$F$2,'Projects Inputs '!F15,IF($F$7='Projects Inputs '!$G$2,'Projects Inputs '!G15,"n/a")) -> 3 | G15: year #
E16: Ramp Up area 1 - end | F16: =IF($F$7='Projects Inputs '!$F$2,'Projects Inputs '!F16,IF($F$7='Projects Inputs '!$G$2,'Projects Inputs '!G16,"n/a")) -> 6 | G16: year #
E17: Full Operation area 1- start | F17: =IF($F$7='Projects Inputs '!$F$2,'Projects Inputs '!F17,IF($F$7='Projects Inputs '!$G$2,'Projects Inputs '!G17,"n/a")) -> 7 | G17: year #
E18: Full Operation area 1- end | F18: =IF($F$7='Projects Inputs '!$F$2,'Projects Inputs '!F18,IF($F$7='Projects Inputs '!$G$2,'Projects Inputs '!G18,"n/a")) -> 20 | G18: year #
E19: Operation closing area 1 - start | F19: =IF($F$7='Projects Inputs '!$F$2,'Projects Inputs '!F19,IF($F$7='Projects Inputs '!$G$2,'Projects Inputs '!G19,"n/a")) -> 21 | G19: year #
E20: Operation closing area 1 - end | F20: =IF($F$7='Projects Inputs '!$F$2,'Projects Inputs '!F20,IF($F$7='Projects Inputs '!$G$2,'Projects Inputs '!G20,"n/a")) -> 21 | G20: year #
E21: Ramp Up area 2 - start | F21: =IF($F$7='Projects Inputs '!$F$2,'Projects Inputs '!F21,IF($F$7='Projects Inputs '!$G$2,'Projects Inputs '!G21,"n/a")) -> 0 | G21: year #
E22: Ramp Up area 2- end | F22: =IF($F$7='Projects Inputs '!$F$2,'Projects Inputs '!F22,IF($F$7='Projects Inputs '!$G$2,'Projects Inputs '!G22,"n/a")) -> 0 | G22: year #
E23: Full Operation area 2 - start | F23: =IF($F$7='Projects Inputs '!$F$2,'Projects Inputs '!F23,IF($F$7='Projects Inputs '!$G$2,'Projects Inputs '!G23,"n/a")) -> 0 | G23: year #
E24: Full Operation area 2 - end | F24: =IF($F$7='Projects Inputs '!$F$2,'Projects Inputs '!F24,IF($F$7='Projects Inputs '!$G$2,'Projects Inputs '!G24,"n/a")) -> 0 | G24: year #
E25: Operation closing area 2 - start | F25: =IF($F$7='Projects Inputs '!$F$2,'Projects Inputs '!F25,IF($F$7='Projects Inputs '!$G$2,'Projects Inputs '!G25,"n/a")) -> 0 | G25: year #
E26: Operation closing area 2 - end | F26: =IF($F$7='Projects Inputs '!$F$2,'Projects Inputs '!F26,IF($F$7='Projects Inputs '!$G$2,'Projects Inputs '!G26,"n/a")) -> 0 | G26: year #
E27: Project Closure - start | F27: =IF($F$7='Projects Inputs '!$F$2,'Projects Inputs '!F27,IF($F$7='Projects Inputs '!$G$2,'Projects Inputs '!G27,"n/a")) -> 22 | G27: year #
E28: Project Closure - end | F28: =IF($F$7='Projects Inputs '!$F$2,'Projects Inputs '!F28,IF($F$7='Projects Inputs '!$G$2,'Projects Inputs '!G28,"n/a")) -> 31 | G28: year #
